Workbook

Sheet สรุปชั่วโมงสอนต่อสัปดาห์ (hidden)
A1: สรุปชั่วโมงปฎิบัติงานรายสัปดาห์
K2: =IF(SUM(J5:J264)>0,"ตรวจสอบชั่วโมงสอนบางสัปดาห์","") -> 
A3: เลขบัตรประชาชน | B3: ปีการศึกษา | C3: ภาคเรียนที่ | D3: สัปดาห์ที่ | E3: จำนวนคาบ | H3: รวม | J3: Check | K3: Check
E4: ตามตารางสอน | F4: สนับสนุนการเรียนรู้ | G4: ตอบสนองนโยบายและจุดเน้น
A5: ='1.ข้อมูลส่วนบุคคล'!$F$5 -> 1234567891234 | B5: ='3.ชั่วโมงสอนตามตารางสอน'!B7 -> 1 | D5: 1 | E5: =SUMIF('3.ชั่วโมงสอนตามตารางสอน'!T$7:T$56,สรุปชั่วโมงสอนต่อสัปดาห์!I5,'3.ชั่วโมงสอนตามตารางสอน'!L$7:L$56) -> 10 | F5: =SUMIF('4.งานสนับสนุนการจัดการเรียนรู้'!#REF!,สรุปชั่วโมงสอนต่อสัปดาห์!I5,'4.งานสนับสนุนการจัดการเรียนรู้'!I$7:I$58) ->  | G5: =SUMIF('5.งานตอบสนองนโยบายและจุดเน้น'!#REF!,สรุปชั่วโมงสอนต่อสัปดาห์!I5,'5.งานตอบสนองนโยบายและจุดเน้น'!I$7:I$58) ->  | H5: =SUM(E5:G5) ->  | I5: =B5&+D5 -> 11 | J5: =IF(H5>ตัวแปร!C$37,1,"") ->  | K5: =IF(J5=1,"ตรวจสอบ","") -> 
A6: ='1.ข้อมูลส่วนบุคคล'!$F$5 -> 1234567891234 | B6: =IF(D5=52,B5+1,B5) -> 1 | D6: 2 | E6: =SUMIF('3.ชั่วโมงสอนตามตารางสอน'!T$7:T$56,สรุปชั่วโมงสอนต่อสัปดาห์!I6,'3.ชั่วโมงสอนตามตารางสอน'!L$7:L$56) -> 15 | F6: =SUMIF('4.งานสนับสนุนการจัดการเรียนรู้'!#REF!,สรุปชั่วโมงสอนต่อสัปดาห์!I6,'4.งานสนับสนุนการจัดการเรียนรู้'!I$7:I$58) ->  | G6: =SUMIF('5.งานตอบสนองนโยบายและจุดเน้น'!#REF!,สรุปชั่วโมงสอนต่อสัปดาห์!I6,'5.งานตอบสนองนโยบายและจุดเน้น'!I$7:I$58) ->  | H6: =SUM(E6:G6) ->  | I6: =B6&+D6 -> 12 | J6: =IF(H6>ตัวแปร!C$37,1,"") ->  | K6: =IF(J6=1,"ตรวจสอบ","") -> 
A7: ='1.ข้อมูลส่วนบุคคล'!$F$5 -> 1234567891234 | B7: =IF(D6=52,B6+1,B6) -> 1 | D7: 3 | E7: =SUMIF('3.ชั่วโมงสอนตามตารางสอน'!T$7:T$56,สรุปชั่วโมงสอนต่อสัปดาห์!I7,'3.ชั่วโมงสอนตามตารางสอน'!L$7:L$56) -> 15 | F7: =SUMIF('4.งานสนับสนุนการจัดการเรียนรู้'!#REF!,สรุปชั่วโมงสอนต่อสัปดาห์!I7,'4.งานสนับสนุนการจัดการเรียนรู้'!I$7:I$58) ->  | G7: =SUMIF('5.งานตอบสนองนโยบายและจุดเน้น'!#REF!,สรุปชั่วโมงสอนต่อสัปดาห์!I7,'5.งานตอบสนองนโยบายและจุดเน้น'!I$7:I$58) ->  | I7: 13 | J7: =IF(H7>ตัวแปร!C$37,1,"") -> 
A8: ='1.ข้อมูลส่วนบุคคล'!$F$5 -> 1234567891234 | B8: 1 | D8: 4 | E8: =SUMIF('3.ชั่วโมงสอนตามตารางสอน'!T$7:T$56,สรุปชั่วโมงสอนต่อสัปดาห์!I8,'3.ชั่วโมงสอนตามตารางสอน'!L$7:L$56) -> 20 | F8: =SUMIF('4.งานสนับสนุนการจัดการเรียนรู้'!#REF!,สรุปชั่วโมงสอนต่อสัปดาห์!I8,'4.งานสนับสนุนการจัดการเรียนรู้'!I$7:I$58) ->  | G8: =SUMIF('5.งานตอบสนองนโยบายและจุดเน้น'!#REF!,สรุปชั่วโมงสอนต่อสัปดาห์!I8,'5.งานตอบสนองนโยบายและจุดเน้น'!I$7:I$58) ->  | I8: 14 | J8: =IF(H8>ตัวแปร!C$37,1,"") -> 
A9: ='1.ข้อมูลส่วนบุคคล'!$F$5 -> 1234567891234 | B9: 1 | D9: 5 | E9: =SUMIF('3.ชั่วโมงสอนตามตารางสอน'!T$7:T$56,สรุปชั่วโมงสอนต่อสัปดาห์!I9,'3.ชั่วโมงสอนตามตารางสอน'!L$7:L$56) -> 15 | F9: =SUMIF('4.งานสนับสนุนการจัดการเรียนรู้'!#REF!,สรุปชั่วโมงสอนต่อสัปดาห์!I9,'4.งานสนับสนุนการจัดการเรียนรู้'!I$7:I$58) ->  | G9: =SUMIF('5.งานตอบสนองนโยบายและจุดเน้น'!#REF!,สรุปชั่วโมงสอนต่อสัปดาห์!I9,'5.งานตอบสนองนโยบายและจุดเน้น'!I$7:I$58) ->  | H9: =SUM(E9:G9) ->  | I9: 15 | J9: =IF(H9>ตัวแปร!C$37,1,"") -> 
A10: ='1.ข้อมูลส่วนบุคคล'!$F$5 -> 1234567891234 | B10: 1 | D10: 6 | E10: =SUMIF('3.ชั่วโมงสอนตามตารางสอน'!T$7:T$56,สรุปชั่วโมงสอนต่อสัปดาห์!I10,'3.ชั่วโมงสอนตามตารางสอน'!L$7:L$56) -> 15 | F10: =SUMIF('4.งานสนับสนุนการจัดการเรียนรู้'!#REF!,สรุปชั่วโมงสอนต่อสัปดาห์!I10,'4.งานสนับสนุนการจัดการเรียนรู้'!I$7:I$58) ->  | G10: =SUMIF('5.งานตอบสนองนโยบายและจุดเน้น'!#REF!,สรุปชั่วโมงสอนต่อสัปดาห์!I10,'5.งานตอบสนองนโยบายและจุดเน้น'!I$7:I$58) ->  | I10: 16 | J10: =IF(H10>ตัวแปร!C$37,1,"") -> 
A11: ='1.ข้อมูลส่วนบุคคล'!$F$5 -> 1234567891234 | B11: 1 | D11: 7 | E11: =SUMIF('3.ชั่วโมงสอนตามตารางสอน'!T$7:T$56,สรุปชั่วโมงสอนต่อสัปดาห์!I11,'3.ชั่วโมงสอนตามตารางสอน'!L$7:L$56) -> 0 | F11: =SUMIF('4.งานสนับสนุนการจัดการเรียนรู้'!#REF!,สรุปชั่วโมงสอนต่อสัปดาห์!I11,'4.งานสนับสนุนการจัดการเรียนรู้'!I$7:I$58) ->  | G11: =SUMIF('5.งานตอบสนองนโยบายและจุดเน้น'!#REF!,สรุปชั่วโมงสอนต่อสัปดาห์!I11,'5.งานตอบสนองนโยบายและจุดเน้น'!I$7:I$58) ->  | I11: 17 | J11: =IF(H11>ตัวแปร!C$37,1,"") -> 
A12: ='1.ข้อมูลส่วนบุคคล'!$F$5 -> 1234567891234 | B12: 1 | D12: 8 | E12: =SUMIF('3.ชั่วโมงสอนตามตารางสอน'!T$7:T$56,สรุปชั่วโมงสอนต่อสัปดาห์!I12,'3.ชั่วโมงสอนตามตารางสอน'!L$7:L$56) -> 0 | F12: =SUMIF('4.งานสนับสนุนการจัดการเรียนรู้'!#REF!,สรุปชั่วโมงสอนต่อสัปดาห์!I12,'4.งานสนับสนุนการจัดการเรียนรู้'!I$7:I$58) ->  | G12: =SUMIF('5.งานตอบสนองนโยบายและจุดเน้น'!#REF!,สรุปชั่วโมงสอนต่อสัปดาห์!I12,'5.งานตอบสนองนโยบายและจุดเน้น'!I$7:I$58) ->  | I12: 18 | J12: =IF(H12>ตัวแปร!C$37,1,"") -> 
A13: ='1.ข้อมูลส่วนบุคคล'!$F$5 -> 1234567891234 | B13: 1 | D13: 9 | E13: =SUMIF('3.ชั่วโมงสอนตามตารางสอน'!T$7:T$56,สรุปชั่วโมงสอนต่อสัปดาห์!I13,'3.ชั่วโมงสอนตามตารางสอน'!L$7:L$56) -> 0 | F13: =SUMIF('4.งานสนับสนุนการจัดการเรียนรู้'!#REF!,สรุปชั่วโมงสอนต่อสัปดาห์!I13,'4.งานสนับสนุนการจัดการเรียนรู้'!I$7:I$58) ->  | G13: =SUMIF('5.งานตอบสนองนโยบายและจุดเน้น'!#REF!,สรุปชั่วโมงสอนต่อสัปดาห์!I13,'5.งานตอบสนองนโยบายและจุดเน้น'!I$7:I$58) ->  | I13: 19 | J13: =IF(H13>ตัวแปร!C$37,1,"") -> 
A14: ='1.ข้อมูลส่วนบุคคล'!$F$5 -> 1234567891234 | B14: 1 | D14: 10 | E14: =SUMIF('3.ชั่วโมงสอนตามตารางสอน'!T$7:T$56,สรุปชั่วโมงสอนต่อสัปดาห์!I14,'3.ชั่วโมงสอนตามตารางสอน'!L$7:L$56) -> 0 | F14: =SUMIF('4.งานสนับสนุนการจัดการเรียนรู้'!#REF!,สรุปชั่วโมงสอนต่อสัปดาห์!I14,'4.งานสนับสนุนการจัดการเรียนรู้'!I$7:I$58) ->  | G14: =SUMIF('5.งานตอบสนองนโยบายและจุดเน้น'!#REF!,สรุปชั่วโมงสอนต่อสัปดาห์!I14,'5.งานตอบสนองนโยบายและจุดเน้น'!I$7:I$58) ->  | I14: 110 | J14: =IF(H14>ตัวแปร!C$37,1,"") -> 
A15: ='1.ข้อมูลส่วนบุคคล'!$F$5 -> 1234567891234 | B15: 1 | D15: 11 | E15: =SUMIF('3.ชั่วโมงสอนตามตารางสอน'!T$7:T$56,สรุปชั่วโมงสอนต่อสัปดาห์!I15,'3.ชั่วโมงสอนตามตารางสอน'!L$7:L$56) -> 0 | F15: =SUMIF('4.งานสนับสนุนการจัดการเรียนรู้'!#REF!,สรุปชั่วโมงสอนต่อสัปดาห์!I15,'4.งานสนับสนุนการจัดการเรียนรู้'!I$7:I$58) ->  | G15: =SUMIF('5.งานตอบสนองนโยบายและจุดเน้น'!#REF!,สรุปชั่วโมงสอนต่อสัปดาห์!I15,'5.งานตอบสนองนโยบายและจุดเน้น'!I$7:I$58) ->  | I15: 111 | J15: =IF(H15>ตัวแปร!C$37,1,"") -> 
A16: ='1.ข้อมูลส่วนบุคคล'!$F$5 -> 1234567891234 | B16: 1 | D16: 12 | E16: =SUMIF('3.ชั่วโมงสอนตามตารางสอน'!T$7:T$56,สรุปชั่วโมงสอนต่อสัปดาห์!I16,'3.ชั่วโมงสอนตามตารางสอน'!L$7:L$56) -> 0 | F16: =SUMIF('4.งานสนับสนุนการจัดการเรียนรู้'!#REF!,สรุปชั่วโมงสอนต่อสัปดาห์!I16,'4.งานสนับสนุนการจัดการเรียนรู้'!I$7:I$58) ->  | G16: =SUMIF('5.งานตอบสนองนโยบายและจุดเน้น'!#REF!,สรุปชั่วโมงสอนต่อสัปดาห์!I16,'5.งานตอบสนองนโยบายและจุดเน้น'!I$7:I$58) ->  | I16: 112 | J16: =IF(H16>ตัวแปร!C$37,1,"") -> 
A17: ='1.ข้อมูลส่วนบุคคล'!$F$5 -> 1234567891234 | B17: 1 | D17: 13 | E17: =SUMIF('3.ชั่วโมงสอนตามตารางสอน'!T$7:T$56,สรุปชั่วโมงสอนต่อสัปดาห์!I17,'3.ชั่วโมงสอนตามตารางสอน'!L$7:L$56) -> 0 | F17: =SUMIF('4.งานสนับสนุนการจัดการเรียนรู้'!#REF!,สรุปชั่วโมงสอนต่อสัปดาห์!I17,'4.งานสนับสนุนการจัดการเรียนรู้'!I$7:I$58) ->  | G17: =SUMIF('5.งานตอบสนองนโยบายและจุดเน้น'!#REF!,สรุปชั่วโมงสอนต่อสัปดาห์!I17,'5.งานตอบสนองนโยบายและจุดเน้น'!I$7:I$58) ->  | I17: 113 | J17: =IF(H17>ตัวแปร!C$37,1,"") -> 
A18: ='1.ข้อมูลส่วนบุคคล'!$F$5 -> 1234567891234 | B18: 1 | D18: 14 | E18: =SUMIF('3.ชั่วโมงสอนตามตารางสอน'!T$7:T$56,สรุปชั่วโมงสอนต่อสัปดาห์!I18,'3.ชั่วโมงสอนตามตารางสอน'!L$7:L$56) -> 0 | F18: =SUMIF('4.งานสนับสนุนการจัดการเรียนรู้'!#REF!,สรุปชั่วโมงสอนต่อสัปดาห์!I18,'4.งานสนับสนุนการจัดการเรียนรู้'!I$7:I$58) ->  | G18: =SUMIF('5.งานตอบสนองนโยบายและจุดเน้น'!#REF!,สรุปชั่วโมงสอนต่อสัปดาห์!I18,'5.งานตอบสนองนโยบายและจุดเน้น'!I$7:I$58) ->  | I18: 114 | J18: =IF(H18>ตัวแปร!C$37,1,"") -> 
A19: ='1.ข้อมูลส่วนบุคคล'!$F$5 -> 1234567891234 | B19: 1 | D19: 15 | E19: =SUMIF('3.ชั่วโมงสอนตามตารางสอน'!T$7:T$56,สรุปชั่วโมงสอนต่อสัปดาห์!I19,'3.ชั่วโมงสอนตามตารางสอน'!L$7:L$56) -> 0 | F19: =SUMIF('4.งานสนับสนุนการจัดการเรียนรู้'!#REF!,สรุปชั่วโมงสอนต่อสัปดาห์!I19,'4.งานสนับสนุนการจัดการเรียนรู้'!I$7:I$58) ->  | G19: =SUMIF('5.งานตอบสนองนโยบายและจุดเน้น'!#REF!,สรุปชั่วโมงสอนต่อสัปดาห์!I19,'5.งานตอบสนองนโยบายและจุดเน้น'!I$7:I$58) ->  | I19: 115 | J19: =IF(H19>ตัวแปร!C$37,1,"") -> 
A20: ='1.ข้อมูลส่วนบุคคล'!$F$5 -> 1234567891234 | B20: 1 | D20: 16 | E20: =SUMIF('3.ชั่วโมงสอนตามตารางสอน'!T$7:T$56,สรุปชั่วโมงสอนต่อสัปดาห์!I20,'3.ชั่วโมงสอนตามตารางสอน'!L$7:L$56) -> 0 | F20: =SUMIF('4.งานสนับสนุนการจัดการเรียนรู้'!#REF!,สรุปชั่วโมงสอนต่อสัปดาห์!I20,'4.งานสนับสนุนการจัดการเรียนรู้'!I$7:I$58) ->  | G20: =SUMIF('5.งานตอบสนองนโยบายและจุดเน้น'!#REF!,สรุปชั่วโมงสอนต่อสัปดาห์!I20,'5.งานตอบสนองนโยบายและจุดเน้น'!I$7:I$58) ->  | I20: 116 | J20: =IF(H20>ตัวแปร!C$37,1,"") -> 
A21: ='1.ข้อมูลส่วนบุคคล'!$F$5 -> 1234567891234 | B21: 1 | D21: 17 | E21: =SUMIF('3.ชั่วโมงสอนตามตารางสอน'!T$7:T$56,สรุปชั่วโมงสอนต่อสัปดาห์!I21,'3.ชั่วโมงสอนตามตารางสอน'!L$7:L$56) -> 0 | F21: =SUMIF('4.งานสนับสนุนการจัดการเรียนรู้'!#REF!,สรุปชั่วโมงสอนต่อสัปดาห์!I21,'4.งานสนับสนุนการจัดการเรียนรู้'!I$7:I$58) ->  | G21: =SUMIF('5.งานตอบสนองนโยบายและจุดเน้น'!#REF!,สรุปชั่วโมงสอนต่อสัปดาห์!I21,'5.งานตอบสนองนโยบายและจุดเน้น'!I$7:I$58) ->  | I21: 117 | J21: =IF(H21>ตัวแปร!C$37,1,"") -> 
A22: ='1.ข้อมูลส่วนบุคคล'!$F$5 -> 1234567891234 | B22: 1 | D22: 18 | E22: =SUMIF('3.ชั่วโมงสอนตามตารางสอน'!T$7:T$56,สรุปชั่วโมงสอนต่อสัปดาห์!I22,'3.ชั่วโมงสอนตามตารางสอน'!L$7:L$56) -> 0 | F22: =SUMIF('4.งานสนับสนุนการจัดการเรียนรู้'!#REF!,สรุปชั่วโมงสอนต่อสัปดาห์!I22,'4.งานสนับสนุนการจัดการเรียนรู้'!I$7:I$58) ->  | G22: =SUMIF('5.งานตอบสนองนโยบายและจุดเน้น'!#REF!,สรุปชั่วโมงสอนต่อสัปดาห์!I22,'5.งานตอบสนองนโยบายและจุดเน้น'!I$7:I$58) ->  | I22: 118 | J22: =IF(H22>ตัวแปร!C$37,1,"") -> 
A23: ='1.ข้อมูลส่วนบุคคล'!$F$5 -> 1234567891234 | B23: 1 | D23: 19 | E23: =SUMIF('3.ชั่วโมงสอนตามตารางสอน'!T$7:T$56,สรุปชั่วโมงสอนต่อสัปดาห์!I23,'3.ชั่วโมงสอนตามตารางสอน'!L$7:L$56) -> 0 | F23: =SUMIF('4.งานสนับสนุนการจัดการเรียนรู้'!#REF!,สรุปชั่วโมงสอนต่อสัปดาห์!I23,'4.งานสนับสนุนการจัดการเรียนรู้'!I$7:I$58) ->  | G23: =SUMIF('5.งานตอบสนองนโยบายและจุดเน้น'!#REF!,สรุปชั่วโมงสอนต่อสัปดาห์!I23,'5.งานตอบสนองนโยบายและจุดเน้น'!I$7:I$58) ->  | I23: 119 | J23: =IF(H23>ตัวแปร!C$37,1,"") -> 
A24: ='1.ข้อมูลส่วนบุคคล'!$F$5 -> 1234567891234 | B24: 1 | D24: 20 | E24: =SUMIF('3.ชั่วโมงสอนตามตารางสอน'!T$7:T$56,สรุปชั่วโมงสอนต่อสัปดาห์!I24,'3.ชั่วโมงสอนตามตารางสอน'!L$7:L$56) -> 0 | F24: =SUMIF('4.งานสนับสนุนการจัดการเรียนรู้'!#REF!,สรุปชั่วโมงสอนต่อสัปดาห์!I24,'4.งานสนับสนุนการจัดการเรียนรู้'!I$7:I$58) ->  | G24: =SUMIF('5.งานตอบสนองนโยบายและจุดเน้น'!#REF!,สรุปชั่วโมงสอนต่อสัปดาห์!I24,'5.งานตอบสนองนโยบายและจุดเน้น'!I$7:I$58) ->  | I24: 120 | J24: =IF(H24>ตัวแปร!C$37,1,"") -> 
A25: ='1.ข้อมูลส่วนบุคคล'!$F$5 -> 1234567891234 | B25: 1 | D25: 21 | E25: =SUMIF('3.ชั่วโมงสอนตามตารางสอน'!T$7:T$56,สรุปชั่วโมงสอนต่อสัปดาห์!I25,'3.ชั่วโมงสอนตามตารางสอน'!L$7:L$56) -> 0 | F25: =SUMIF('4.งานสนับสนุนการจัดการเรียนรู้'!#REF!,สรุปชั่วโมงสอนต่อสัปดาห์!I25,'4.งานสนับสนุนการจัดการเรียนรู้'!I$7:I$58) ->  | G25: =SUMIF('5.งานตอบสนองนโยบายและจุดเน้น'!#REF!,สรุปชั่วโมงสอนต่อสัปดาห์!I25,'5.งานตอบสนองนโยบายและจุดเน้น'!I$7:I$58) ->  | I25: 121 | J25: =IF(H25>ตัวแปร!C$37,1,"") -> 
A26: ='1.ข้อมูลส่วนบุคคล'!$F$5 -> 1234567891234 | B26: 1 | D26: 22 | E26: =SUMIF('3.ชั่วโมงสอนตามตารางสอน'!T$7:T$56,สรุปชั่วโมงสอนต่อสัปดาห์!I26,'3.ชั่วโมงสอนตามตารางสอน'!L$7:L$56) -> 0 | F26: =SUMIF('4.งานสนับสนุนการจัดการเรียนรู้'!#REF!,สรุปชั่วโมงสอนต่อสัปดาห์!I26,'4.งานสนับสนุนการจัดการเรียนรู้'!I$7:I$58) ->  | G26: =SUMIF('5.งานตอบสนองนโยบายและจุดเน้น'!#REF!,สรุปชั่วโมงสอนต่อสัปดาห์!I26,'5.งานตอบสนองนโยบายและจุดเน้น'!I$7:I$58) ->  | I26: 122 | J26: =IF(H26>ตัวแปร!C$37,1,"") -> 
A27: ='1.ข้อมูลส่วนบุคคล'!$F$5 -> 1234567891234 | B27: 1 | D27: 23 | E27: =SUMIF('3.ชั่วโมงสอนตามตารางสอน'!T$7:T$56,สรุปชั่วโมงสอนต่อสัปดาห์!I27,'3.ชั่วโมงสอนตามตารางสอน'!L$7:L$56) -> 0 | F27: =SUMIF('4.งานสนับสนุนการจัดการเรียนรู้'!#REF!,สรุปชั่วโมงสอนต่อสัปดาห์!I27,'4.งานสนับสนุนการจัดการเรียนรู้'!I$7:I$58) ->  | G27: =SUMIF('5.งานตอบสนองนโยบายและจุดเน้น'!#REF!,สรุปชั่วโมงสอนต่อสัปดาห์!I27,'5.งานตอบสนองนโยบายและจุดเน้น'!I$7:I$58) ->  | I27: 123 | J27: =IF(H27>ตัวแปร!C$37,1,"") -> 
A28: ='1.ข้อมูลส่วนบุคคล'!$F$5 -> 1234567891234 | B28: 1 | D28: 24 | E28: =SUMIF('3.ชั่วโมงสอนตามตารางสอน'!T$7:T$56,สรุปชั่วโมงสอนต่อสัปดาห์!I28,'3.ชั่วโมงสอนตามตารางสอน'!L$7:L$56) -> 0 | F28: =SUMIF('4.งานสนับสนุนการจัดการเรียนรู้'!#REF!,สรุปชั่วโมงสอนต่อสัปดาห์!I28,'4.งานสนับสนุนการจัดการเรียนรู้'!I$7:I$58) ->  | G28: =SUMIF('5.งานตอบสนองนโยบายและจุดเน้น'!#REF!,สรุปชั่วโมงสอนต่อสัปดาห์!I28,'5.งานตอบสนองนโยบายและจุดเน้น'!I$7:I$58) ->  | I28: 124 | J28: =IF(H28>ตัวแปร!C$37,1,"") -> 
A29: ='1.ข้อมูลส่วนบุคคล'!$F$5 -> 1234567891234 | B29: 1 | D29: 25 | E29: =SUMIF('3.ชั่วโมงสอนตามตารางสอน'!T$7:T$56,สรุปชั่วโมงสอนต่อสัปดาห์!I29,'3.ชั่วโมงสอนตามตารางสอน'!L$7:L$56) -> 0 | F29: =SUMIF('4.งานสนับสนุนการจัดการเรียนรู้'!#REF!,สรุปชั่วโมงสอนต่อสัปดาห์!I29,'4.งานสนับสนุนการจัดการเรียนรู้'!I$7:I$58) ->  | G29: =SUMIF('5.งานตอบสนองนโยบายและจุดเน้น'!#REF!,สรุปชั่วโมงสอนต่อสัปดาห์!I29,'5.งานตอบสนองนโยบายและจุดเน้น'!I$7:I$58) ->  | I29: 125 | J29: =IF(H29>ตัวแปร!C$37,1,"") -> 
A30: ='1.ข้อมูลส่วนบุคคล'!$F$5 -> 1234567891234 | B30: 1 | D30: 26 | E30: =SUMIF('3.ชั่วโมงสอนตามตารางสอน'!T$7:T$56,สรุปชั่วโมงสอนต่อสัปดาห์!I30,'3.ชั่วโมงสอนตามตารางสอน'!L$7:L$56) -> 0 | F30: =SUMIF('4.งานสนับสนุนการจัดการเรียนรู้'!#REF!,สรุปชั่วโมงสอนต่อสัปดาห์!I30,'4.งานสนับสนุนการจัดการเรียนรู้'!I$7:I$58) ->  | G30: =SUMIF('5.งานตอบสนองนโยบายและจุดเน้น'!#REF!,สรุปชั่วโมงสอนต่อสัปดาห์!I30,'5.งานตอบสนองนโยบายและจุดเน้น'!I$7:I$58) ->  | I30: 126 | J30: =IF(H30>ตัวแปร!C$37,1,"") -> 
A31: ='1.ข้อมูลส่วนบุคคล'!$F$5 -> 1234567891234 | B31: 1 | D31: 27 | E31: =SUMIF('3.ชั่วโมงสอนตามตารางสอน'!T$7:T$56,สรุปชั่วโมงสอนต่อสัปดาห์!I31,'3.ชั่วโมงสอนตามตารางสอน'!L$7:L$56) -> 0 | F31: =SUMIF('4.งานสนับสนุนการจัดการเรียนรู้'!#REF!,สรุปชั่วโมงสอนต่อสัปดาห์!I31,'4.งานสนับสนุนการจัดการเรียนรู้'!I$7:I$58) ->  | G31: =SUMIF('5.งานตอบสนองนโยบายและจุดเน้น'!#REF!,สรุปชั่วโมงสอนต่อสัปดาห์!I31,'5.งานตอบสนองนโยบายและจุดเน้น'!I$7:I$58) ->  | I31: 127 | J31: =IF(H31>ตัวแปร!C$37,1,"") -> 
A32: ='1.ข้อมูลส่วนบุคคล'!$F$5 -> 1234567891234 | B32: 1 | D32: 28 | E32: =SUMIF('3.ชั่วโมงสอนตามตารางสอน'!T$7:T$56,สรุปชั่วโมงสอนต่อสัปดาห์!I32,'3.ชั่วโมงสอนตามตารางสอน'!L$7:L$56) -> 0 | F32: =SUMIF('4.งานสนับสนุนการจัดการเรียนรู้'!#REF!,สรุปชั่วโมงสอนต่อสัปดาห์!I32,'4.งานสนับสนุนการจัดการเรียนรู้'!I$7:I$58) ->  | G32: =SUMIF('5.งานตอบสนองนโยบายและจุดเน้น'!#REF!,สรุปชั่วโมงสอนต่อสัปดาห์!I32,'5.งานตอบสนองนโยบายและจุดเน้น'!I$7:I$58) ->  | I32: 128 | J32: =IF(H32>ตัวแปร!C$37,1,"") -> 
A33: ='1.ข้อมูลส่วนบุคคล'!$F$5 -> 1234567891234 | B33: 1 | D33: 29 | E33: =SUMIF('3.ชั่วโมงสอนตามตารางสอน'!T$7:T$56,สรุปชั่วโมงสอนต่อสัปดาห์!I33,'3.ชั่วโมงสอนตามตารางสอน'!L$7:L$56) -> 0 | F33: =SUMIF('4.งานสนับสนุนการจัดการเรียนรู้'!#REF!,สรุปชั่วโมงสอนต่อสัปดาห์!I33,'4.งานสนับสนุนการจัดการเรียนรู้'!I$7:I$58) ->  | G33: =SUMIF('5.งานตอบสนองนโยบายและจุดเน้น'!#REF!,สรุปชั่วโมงสอนต่อสัปดาห์!I33,'5.งานตอบสนองนโยบายและจุดเน้น'!I$7:I$58) ->  | I33: 129 | J33: =IF(H33>ตัวแปร!C$37,1,"") -> 
A34: ='1.ข้อมูลส่วนบุคคล'!$F$5 -> 1234567891234 | B34: 1 | D34: 30 | E34: =SUMIF('3.ชั่วโมงสอนตามตารางสอน'!T$7:T$56,สรุปชั่วโมงสอนต่อสัปดาห์!I34,'3.ชั่วโมงสอนตามตารางสอน'!L$7:L$56) -> 0 | F34: =SUMIF('4.งานสนับสนุนการจัดการเรียนรู้'!#REF!,สรุปชั่วโมงสอนต่อสัปดาห์!I34,'4.งานสนับสนุนการจัดการเรียนรู้'!I$7:I$58) ->  | G34: =SUMIF('5.งานตอบสนองนโยบายและจุดเน้น'!#REF!,สรุปชั่วโมงสอนต่อสัปดาห์!I34,'5.งานตอบสนองนโยบายและจุดเน้น'!I$7:I$58) ->  | I34: 130 | J34: =IF(H34>ตัวแปร!C$37,1,"") -> 
A35: ='1.ข้อมูลส่วนบุคคล'!$F$5 -> 1234567891234 | B35: 1 | D35: 31 | E35: =SUMIF('3.ชั่วโมงสอนตามตารางสอน'!T$7:T$56,สรุปชั่วโมงสอนต่อสัปดาห์!I35,'3.ชั่วโมงสอนตามตารางสอน'!L$7:L$56) -> 0 | F35: =SUMIF('4.งานสนับสนุนการจัดการเรียนรู้'!#REF!,สรุปชั่วโมงสอนต่อสัปดาห์!I35,'4.งานสนับสนุนการจัดการเรียนรู้'!I$7:I$58) ->  | G35: =SUMIF('5.งานตอบสนองนโยบายและจุดเน้น'!#REF!,สรุปชั่วโมงสอนต่อสัปดาห์!I35,'5.งานตอบสนองนโยบายและจุดเน้น'!I$7:I$58) ->  | I35: 131 | J35: =IF(H35>ตัวแปร!C$37,1,"") -> 
A36: ='1.ข้อมูลส่วนบุคคล'!$F$5 -> 1234567891234 | B36: 1 | D36: 32 | E36: =SUMIF('3.ชั่วโมงสอนตามตารางสอน'!T$7:T$56,สรุปชั่วโมงสอนต่อสัปดาห์!I36,'3.ชั่วโมงสอนตามตารางสอน'!L$7:L$56) -> 0 | F36: =SUMIF('4.งานสนับสนุนการจัดการเรียนรู้'!#REF!,สรุปชั่วโมงสอนต่อสัปดาห์!I36,'4.งานสนับสนุนการจัดการเรียนรู้'!I$7:I$58) ->  | G36: =SUMIF('5.งานตอบสนองนโยบายและจุดเน้น'!#REF!,สรุปชั่วโมงสอนต่อสัปดาห์!I36,'5.งานตอบสนองนโยบายและจุดเน้น'!I$7:I$58) ->  | I36: 132 | J36: =IF(H36>ตัวแปร!C$37,1,"") -> 
A37: ='1.ข้อมูลส่วนบุคคล'!$F$5 -> 1234567891234 | B37: 1 | D37: 33 | E37: =SUMIF('3.ชั่วโมงสอนตามตารางสอน'!T$7:T$56,สรุปชั่วโมงสอนต่อสัปดาห์!I37,'3.ชั่วโมงสอนตามตารางสอน'!L$7:L$56) -> 0 | F37: =SUMIF('4.งานสนับสนุนการจัดการเรียนรู้'!#REF!,สรุปชั่วโมงสอนต่อสัปดาห์!I37,'4.งานสนับสนุนการจัดการเรียนรู้'!I$7:I$58) ->  | G37: =SUMIF('5.งานตอบสนองนโยบายและจุดเน้น'!#REF!,สรุปชั่วโมงสอนต่อสัปดาห์!I37,'5.งานตอบสนองนโยบายและจุดเน้น'!I$7:I$58) ->  | I37: 133 | J37: =IF(H37>ตัวแปร!C$37,1,"") -> 
A38: ='1.ข้อมูลส่วนบุคคล'!$F$5 -> 1234567891234 | B38: 1 | D38: 34 | E38: =SUMIF('3.ชั่วโมงสอนตามตารางสอน'!T$7:T$56,สรุปชั่วโมงสอนต่อสัปดาห์!I38,'3.ชั่วโมงสอนตามตารางสอน'!L$7:L$56) -> 0 | F38: =SUMIF('4.งานสนับสนุนการจัดการเรียนรู้'!#REF!,สรุปชั่วโมงสอนต่อสัปดาห์!I38,'4.งานสนับสนุนการจัดการเรียนรู้'!I$7:I$58) ->  | G38: =SUMIF('5.งานตอบสนองนโยบายและจุดเน้น'!#REF!,สรุปชั่วโมงสอนต่อสัปดาห์!I38,'5.งานตอบสนองนโยบายและจุดเน้น'!I$7:I$58) ->  | I38: 134 | J38: =IF(H38>ตัวแปร!C$37,1,"") -> 
A39: ='1.ข้อมูลส่วนบุคคล'!$F$5 -> 1234567891234 | B39: 1 | D39: 35 | E39: =SUMIF('3.ชั่วโมงสอนตามตารางสอน'!T$7:T$56,สรุปชั่วโมงสอนต่อสัปดาห์!I39,'3.ชั่วโมงสอนตามตารางสอน'!L$7:L$56) -> 0 | F39: =SUMIF('4.งานสนับสนุนการจัดการเรียนรู้'!#REF!,สรุปชั่วโมงสอนต่อสัปดาห์!I39,'4.งานสนับสนุนการจัดการเรียนรู้'!I$7:I$58) ->  | G39: =SUMIF('5.งานตอบสนองนโยบายและจุดเน้น'!#REF!,สรุปชั่วโมงสอนต่อสัปดาห์!I39,'5.งานตอบสนองนโยบายและจุดเน้น'!I$7:I$58) ->  | I39: 135 | J39: =IF(H39>ตัวแปร!C$37,1,"") -> 
A40: ='1.ข้อมูลส่วนบุคคล'!$F$5 -> 1234567891234 | B40: 1 | D40: 36 | E40: =SUMIF('3.ชั่วโมงสอนตามตารางสอน'!T$7:T$56,สรุปชั่วโมงสอนต่อสัปดาห์!I40,'3.ชั่วโมงสอนตามตารางสอน'!L$7:L$56) -> 0 | F40: =SUMIF('4.งานสนับสนุนการจัดการเรียนรู้'!#REF!,สรุปชั่วโมงสอนต่อสัปดาห์!I40,'4.งานสนับสนุนการจัดการเรียนรู้'!I$7:I$58) ->  | G40: =SUMIF('5.งานตอบสนองนโยบายและจุดเน้น'!#REF!,สรุปชั่วโมงสอนต่อสัปดาห์!I40,'5.งานตอบสนองนโยบายและจุดเน้น'!I$7:I$58) ->  | I40: 136 | J40: =IF(H40>ตัวแปร!C$37,1,"") -> 
A41: ='1.ข้อมูลส่วนบุคคล'!$F$5 -> 1234567891234 | B41: 1 | D41: 37 | E41: =SUMIF('3.ชั่วโมงสอนตามตารางสอน'!T$7:T$56,สรุปชั่วโมงสอนต่อสัปดาห์!I41,'3.ชั่วโมงสอนตามตารางสอน'!L$7:L$56) -> 0 | F41: =SUMIF('4.งานสนับสนุนการจัดการเรียนรู้'!#REF!,สรุปชั่วโมงสอนต่อสัปดาห์!I41,'4.งานสนับสนุนการจัดการเรียนรู้'!I$7:I$58) ->  | G41: =SUMIF('5.งานตอบสนองนโยบายและจุดเน้น'!#REF!,สรุปชั่วโมงสอนต่อสัปดาห์!I41,'5.งานตอบสนองนโยบายและจุดเน้น'!I$7:I$58) ->  | I41: 137 | J41: =IF(H41>ตัวแปร!C$37,1,"") -> 
A42: ='1.ข้อมูลส่วนบุคคล'!$F$5 -> 1234567891234 | B42: 1 | D42: 38 | E42: =SUMIF('3.ชั่วโมงสอนตามตารางสอน'!T$7:T$56,สรุปชั่วโมงสอนต่อสัปดาห์!I42,'3.ชั่วโมงสอนตามตารางสอน'!L$7:L$56) -> 0 | F42: =SUMIF('4.งานสนับสนุนการจัดการเรียนรู้'!#REF!,สรุปชั่วโมงสอนต่อสัปดาห์!I42,'4.งานสนับสนุนการจัดการเรียนรู้'!I$7:I$58) ->  | G42: =SUMIF('5.งานตอบสนองนโยบายและจุดเน้น'!#REF!,สรุปชั่วโมงสอนต่อสัปดาห์!I42,'5.งานตอบสนองนโยบายและจุดเน้น'!I$7:I$58) ->  | I42: 138 | J42: =IF(H42>ตัวแปร!C$37,1,"") -> 
A43: ='1.ข้อมูลส่วนบุคคล'!$F$5 -> 1234567891234 | B43: 1 | D43: 39 | E43: =SUMIF('3.ชั่วโมงสอนตามตารางสอน'!T$7:T$56,สรุปชั่วโมงสอนต่อสัปดาห์!I43,'3.ชั่วโมงสอนตามตารางสอน'!L$7:L$56) -> 0 | F43: =SUMIF('4.งานสนับสนุนการจัดการเรียนรู้'!#REF!,สรุปชั่วโมงสอนต่อสัปดาห์!I43,'4.งานสนับสนุนการจัดการเรียนรู้'!I$7:I$58) ->  | G43: =SUMIF('5.งานตอบสนองนโยบายและจุดเน้น'!#REF!,สรุปชั่วโมงสอนต่อสัปดาห์!I43,'5.งานตอบสนองนโยบายและจุดเน้น'!I$7:I$58) ->  | I43: 139 | J43: =IF(H43>ตัวแปร!C$37,1,"") -> 
A44: ='1.ข้อมูลส่วนบุคคล'!$F$5 -> 1234567891234 | B44: 1 | D44: 40 | E44: =SUMIF('3.ชั่วโมงสอนตามตารางสอน'!T$7:T$56,สรุปชั่วโมงสอนต่อสัปดาห์!I44,'3.ชั่วโมงสอนตามตารางสอน'!L$7:L$56) -> 0 | F44: =SUMIF('4.งานสนับสนุนการจัดการเรียนรู้'!#REF!,สรุปชั่วโมงสอนต่อสัปดาห์!I44,'4.งานสนับสนุนการจัดการเรียนรู้'!I$7:I$58) ->  | G44: =SUMIF('5.งานตอบสนองนโยบายและจุดเน้น'!#REF!,สรุปชั่วโมงสอนต่อสัปดาห์!I44,'5.งานตอบสนองนโยบายและจุดเน้น'!I$7:I$58) ->  | I44: 140 | J44: =IF(H44>ตัวแปร!C$37,1,"") -> 
A45: ='1.ข้อมูลส่วนบุคคล'!$F$5 -> 1234567891234 | B45: 1 | D45: 41 | E45: =SUMIF('3.ชั่วโมงสอนตามตารางสอน'!T$7:T$56,สรุปชั่วโมงสอนต่อสัปดาห์!I45,'3.ชั่วโมงสอนตามตารางสอน'!L$7:L$56) -> 0 | F45: =SUMIF('4.งานสนับสนุนการจัดการเรียนรู้'!#REF!,สรุปชั่วโมงสอนต่อสัปดาห์!I45,'4.งานสนับสนุนการจัดการเรียนรู้'!I$7:I$58) ->  | G45: =SUMIF('5.งานตอบสนองนโยบายและจุดเน้น'!#REF!,สรุปชั่วโมงสอนต่อสัปดาห์!I45,'5.งานตอบสนองนโยบายและจุดเน้น'!I$7:I$58) ->  | I45: 141 | J45: =IF(H45>ตัวแปร!C$37,1,"") -> 
A46: ='1.ข้อมูลส่วนบุคคล'!$F$5 -> 1234567891234 | B46: 1 | D46: 42 | E46: =SUMIF('3.ชั่วโมงสอนตามตารางสอน'!T$7:T$56,สรุปชั่วโมงสอนต่อสัปดาห์!I46,'3.ชั่วโมงสอนตามตารางสอน'!L$7:L$56) -> 0 | F46: =SUMIF('4.งานสนับสนุนการจัดการเรียนรู้'!#REF!,สรุปชั่วโมงสอนต่อสัปดาห์!I46,'4.งานสนับสนุนการจัดการเรียนรู้'!I$7:I$58) ->  | G46: =SUMIF('5.งานตอบสนองนโยบายและจุดเน้น'!#REF!,สรุปชั่วโมงสอนต่อสัปดาห์!I46,'5.งานตอบสนองนโยบายและจุดเน้น'!I$7:I$58) ->  | I46: 142 | J46: =IF(H46>ตัวแปร!C$37,1,"") -> 
A47: ='1.ข้อมูลส่วนบุคคล'!$F$5 -> 1234567891234 | B47: 1 | D47: 43 | E47: =SUMIF('3.ชั่วโมงสอนตามตารางสอน'!T$7:T$56,สรุปชั่วโมงสอนต่อสัปดาห์!I47,'3.ชั่วโมงสอนตามตารางสอน'!L$7:L$56) -> 0 | F47: =SUMIF('4.งานสนับสนุนการจัดการเรียนรู้'!#REF!,สรุปชั่วโมงสอนต่อสัปดาห์!I47,'4.งานสนับสนุนการจัดการเรียนรู้'!I$7:I$58) ->  | G47: =SUMIF('5.งานตอบสนองนโยบายและจุดเน้น'!#REF!,สรุปชั่วโมงสอนต่อสัปดาห์!I47,'5.งานตอบสนองนโยบายและจุดเน้น'!I$7:I$58) ->  | I47: 143 | J47: =IF(H47>ตัวแปร!C$37,1,"") -> 
A48: ='1.ข้อมูลส่วนบุคคล'!$F$5 -> 1234567891234 | B48: 1 | D48: 44 | E48: =SUMIF('3.ชั่วโมงสอนตามตารางสอน'!T$7:T$56,สรุปชั่วโมงสอนต่อสัปดาห์!I48,'3.ชั่วโมงสอนตามตารางสอน'!L$7:L$56) -> 0 | F48: =SUMIF('4.งานสนับสนุนการจัดการเรียนรู้'!#REF!,สรุปชั่วโมงสอนต่อสัปดาห์!I48,'4.งานสนับสนุนการจัดการเรียนรู้'!I$7:I$58) ->  | G48: =SUMIF('5.งานตอบสนองนโยบายและจุดเน้น'!#REF!,สรุปชั่วโมงสอนต่อสัปดาห์!I48,'5.งานตอบสนองนโยบายและจุดเน้น'!I$7:I$58) ->  | I48: 144 | J48: =IF(H48>ตัวแปร!C$37,1,"") -> 
A49: ='1.ข้อมูลส่วนบุคคล'!$F$5 -> 1234567891234 | B49: 1 | D49: 45 | E49: =SUMIF('3.ชั่วโมงสอนตามตารางสอน'!T$7:T$56,สรุปชั่วโมงสอนต่อสัปดาห์!I49,'3.ชั่วโมงสอนตามตารางสอน'!L$7:L$56) -> 0 | F49: =SUMIF('4.งานสนับสนุนการจัดการเรียนรู้'!#REF!,สรุปชั่วโมงสอนต่อสัปดาห์!I49,'4.งานสนับสนุนการจัดการเรียนรู้'!I$7:I$58) ->  | G49: =SUMIF('5.งานตอบสนองนโยบายและจุดเน้น'!#REF!,สรุปชั่วโมงสอนต่อสัปดาห์!I49,'5.งานตอบสนองนโยบายและจุดเน้น'!I$7:I$58) ->  | I49: 145 | J49: =IF(H49>ตัวแปร!C$37,1,"") -> 
A50: ='1.ข้อมูลส่วนบุคคล'!$F$5 -> 1234567891234 | B50: 1 | D50: 46 | E50: =SUMIF('3.ชั่วโมงสอนตามตารางสอน'!T$7:T$56,สรุปชั่วโมงสอนต่อสัปดาห์!I50,'3.ชั่วโมงสอนตามตารางสอน'!L$7:L$56) -> 0 | F50: =SUMIF('4.งานสนับสนุนการจัดการเรียนรู้'!#REF!,สรุปชั่วโมงสอนต่อสัปดาห์!I50,'4.งานสนับสนุนการจัดการเรียนรู้'!I$7:I$58) ->  | G50: =SUMIF('5.งานตอบสนองนโยบายและจุดเน้น'!#REF!,สรุปชั่วโมงสอนต่อสัปดาห์!I50,'5.งานตอบสนองนโยบายและจุดเน้น'!I$7:I$58) ->  | I50: 146 | J50: =IF(H50>ตัวแปร!C$37,1,"") -> 
A51: ='1.ข้อมูลส่วนบุคคล'!$F$5 -> 1234567891234 | B51: 1 | D51: 47 | E51: =SUMIF('3.ชั่วโมงสอนตามตารางสอน'!T$7:T$56,สรุปชั่วโมงสอนต่อสัปดาห์!I51,'3.ชั่วโมงสอนตามตารางสอน'!L$7:L$56) -> 0 | F51: =SUMIF('4.งานสนับสนุนการจัดการเรียนรู้'!#REF!,สรุปชั่วโมงสอนต่อสัปดาห์!I51,'4.งานสนับสนุนการจัดการเรียนรู้'!I$7:I$58) ->  | G51: =SUMIF('5.งานตอบสนองนโยบายและจุดเน้น'!#REF!,สรุปชั่วโมงสอนต่อสัปดาห์!I51,'5.งานตอบสนองนโยบายและจุดเน้น'!I$7:I$58) ->  | I51: 147 | J51: =IF(H51>ตัวแปร!C$37,1,"") -> 
A52: ='1.ข้อมูลส่วนบุคคล'!$F$5 -> 1234567891234 | B52: 1 | D52: 48 | E52: =SUMIF('3.ชั่วโมงสอนตามตารางสอน'!T$7:T$56,สรุปชั่วโมงสอนต่อสัปดาห์!I52,'3.ชั่วโมงสอนตามตารางสอน'!L$7:L$56) -> 0 | F52: =SUMIF('4.งานสนับสนุนการจัดการเรียนรู้'!#REF!,สรุปชั่วโมงสอนต่อสัปดาห์!I52,'4.งานสนับสนุนการจัดการเรียนรู้'!I$7:I$58) ->  | G52: =SUMIF('5.งานตอบสนองนโยบายและจุดเน้น'!#REF!,สรุปชั่วโมงสอนต่อสัปดาห์!I52,'5.งานตอบสนองนโยบายและจุดเน้น'!I$7:I$58) ->  | I52: 148 | J52: =IF(H52>ตัวแปร!C$37,1,"") -> 
A53: ='1.ข้อมูลส่วนบุคคล'!$F$5 -> 1234567891234 | B53: 1 | D53: 49 | E53: =SUMIF('3.ชั่วโมงสอนตามตารางสอน'!T$7:T$56,สรุปชั่วโมงสอนต่อสัปดาห์!I53,'3.ชั่วโมงสอนตามตารางสอน'!L$7:L$56) -> 0 | F53: =SUMIF('4.งานสนับสนุนการจัดการเรียนรู้'!#REF!,สรุปชั่วโมงสอนต่อสัปดาห์!I53,'4.งานสนับสนุนการจัดการเรียนรู้'!I$7:I$58) ->  | G53: =SUMIF('5.งานตอบสนองนโยบายและจุดเน้น'!#REF!,สรุปชั่วโมงสอนต่อสัปดาห์!I53,'5.งานตอบสนองนโยบายและจุดเน้น'!I$7:I$58) ->  | I53: 149 | J53: =IF(H53>ตัวแปร!C$37,1,"") -> 
A54: ='1.ข้อมูลส่วนบุคคล'!$F$5 -> 1234567891234 | B54: 1 | D54: 50 | E54: =SUMIF('3.ชั่วโมงสอนตามตารางสอน'!T$7:T$56,สรุปชั่วโมงสอนต่อสัปดาห์!I54,'3.ชั่วโมงสอนตามตารางสอน'!L$7:L$56) -> 0 | F54: =SUMIF('4.งานสนับสนุนการจัดการเรียนรู้'!#REF!,สรุปชั่วโมงสอนต่อสัปดาห์!I54,'4.งานสนับสนุนการจัดการเรียนรู้'!I$7:I$58) ->  | G54: =SUMIF('5.งานตอบสนองนโยบายและจุดเน้น'!#REF!,สรุปชั่วโมงสอนต่อสัปดาห์!I54,'5.งานตอบสนองนโยบายและจุดเน้น'!I$7:I$58) ->  | I54: 150 | J54: =IF(H54>ตัวแปร!C$37,1,"") -> 
B55: 1 | D55: 51 | E55: =SUMIF('3.ชั่วโมงสอนตามตารางสอน'!T$7:T$56,สรุปชั่วโมงสอนต่อสัปดาห์!I55,'3.ชั่วโมงสอนตามตารางสอน'!L$7:L$56) -> 0 | F55: =SUMIF('4.งานสนับสนุนการจัดการเรียนรู้'!#REF!,สรุปชั่วโมงสอนต่อสัปดาห์!I55,'4.งานสนับสนุนการจัดการเรียนรู้'!I$7:I$58) ->  | G55: =SUMIF('5.งานตอบสนองนโยบายและจุดเน้น'!#REF!,สรุปชั่วโมงสอนต่อสัปดาห์!I55,'5.งานตอบสนองนโยบายและจุดเน้น'!I$7:I$58) ->  | I55: 151 | J55: =IF(H55>ตัวแปร!C$37,1,"") -> 
B56: 1 | D56: 52 | E56: =SUMIF('3.ชั่วโมงสอนตามตารางสอน'!T$7:T$56,สรุปชั่วโมงสอนต่อสัปดาห์!I56,'3.ชั่วโมงสอนตามตารางสอน'!L$7:L$56) -> 0 | F56: =SUMIF('4.งานสนับสนุนการจัดการเรียนรู้'!#REF!,สรุปชั่วโมงสอนต่อสัปดาห์!I56,'4.งานสนับสนุนการจัดการเรียนรู้'!I$7:I$58) ->  | G56: =SUMIF('5.งานตอบสนองนโยบายและจุดเน้น'!#REF!,สรุปชั่วโมงสอนต่อสัปดาห์!I56,'5.งานตอบสนองนโยบายและจุดเน้น'!I$7:I$58) ->  | I56: 152 | J56: =IF(H56>ตัวแปร!C$37,1,"") -> 
B57: 2 | D57: 1 | E57: =SUMIF('3.ชั่วโมงสอนตามตารางสอน'!T$7:T$56,สรุปชั่วโมงสอนต่อสัปดาห์!I57,'3.ชั่วโมงสอนตามตารางสอน'!L$7:L$56) -> 0 | F57: =SUMIF('4.งานสนับสนุนการจัดการเรียนรู้'!#REF!,สรุปชั่วโมงสอนต่อสัปดาห์!I57,'4.งานสนับสนุนการจัดการเรียนรู้'!I$7:I$58) ->  | G57: =SUMIF('5.งานตอบสนองนโยบายและจุดเน้น'!#REF!,สรุปชั่วโมงสอนต่อสัปดาห์!I57,'5.งานตอบสนองนโยบายและจุดเน้น'!I$7:I$58) ->  | I57: 21 | J57: =IF(H57>ตัวแปร!C$37,1,"") -> 
B58: 2 | D58: 2 | E58: =SUMIF('3.ชั่วโมงสอนตามตารางสอน'!T$7:T$56,สรุปชั่วโมงสอนต่อสัปดาห์!I58,'3.ชั่วโมงสอนตามตารางสอน'!L$7:L$56) -> 0 | F58: =SUMIF('4.งานสนับสนุนการจัดการเรียนรู้'!#REF!,สรุปชั่วโมงสอนต่อสัปดาห์!I58,'4.งานสนับสนุนการจัดการเรียนรู้'!I$7:I$58) ->  | G58: =SUMIF('5.งานตอบสนองนโยบายและจุดเน้น'!#REF!,สรุปชั่วโมงสอนต่อสัปดาห์!I58,'5.งานตอบสนองนโยบายและจุดเน้น'!I$7:I$58) ->  | I58: 22 | J58: =IF(H58>ตัวแปร!C$37,1,"") -> 
B59: 2 | D59: 3 | E59: =SUMIF('3.ชั่วโมงสอนตามตารางสอน'!T$7:T$56,สรุปชั่วโมงสอนต่อสัปดาห์!I59,'3.ชั่วโมงสอนตามตารางสอน'!L$7:L$56) -> 0 | F59: =SUMIF('4.งานสนับสนุนการจัดการเรียนรู้'!#REF!,สรุปชั่วโมงสอนต่อสัปดาห์!I59,'4.งานสนับสนุนการจัดการเรียนรู้'!I$7:I$58) ->  | G59: =SUMIF('5.งานตอบสนองนโยบายและจุดเน้น'!#REF!,สรุปชั่วโมงสอนต่อสัปดาห์!I59,'5.งานตอบสนองนโยบายและจุดเน้น'!I$7:I$58) ->  | I59: 23 | J59: =IF(H59>ตัวแปร!C$37,1,"") -> 
B60: 2 | D60: 4 | E60: =SUMIF('3.ชั่วโมงสอนตามตารางสอน'!T$7:T$56,สรุปชั่วโมงสอนต่อสัปดาห์!I60,'3.ชั่วโมงสอนตามตารางสอน'!L$7:L$56) -> 0 | F60: =SUMIF('4.งานสนับสนุนการจัดการเรียนรู้'!#REF!,สรุปชั่วโมงสอนต่อสัปดาห์!I60,'4.งานสนับสนุนการจัดการเรียนรู้'!I$7:I$58) ->  | G60: =SUMIF('5.งานตอบสนองนโยบายและจุดเน้น'!#REF!,สรุปชั่วโมงสอนต่อสัปดาห์!I60,'5.งานตอบสนองนโยบายและจุดเน้น'!I$7:I$58) ->  | I60: 24 | J60: =IF(H60>ตัวแปร!C$37,1,"") -> 
B61: 2 | D61: 5 | E61: =SUMIF('3.ชั่วโมงสอนตามตารางสอน'!T$7:T$56,สรุปชั่วโมงสอนต่อสัปดาห์!I61,'3.ชั่วโมงสอนตามตารางสอน'!L$7:L$56) -> 0 | F61: =SUMIF('4.งานสนับสนุนการจัดการเรียนรู้'!#REF!,สรุปชั่วโมงสอนต่อสัปดาห์!I61,'4.งานสนับสนุนการจัดการเรียนรู้'!I$7:I$58) ->  | G61: =SUMIF('5.งานตอบสนองนโยบายและจุดเน้น'!#REF!,สรุปชั่วโมงสอนต่อสัปดาห์!I61,'5.งานตอบสนองนโยบายและจุดเน้น'!I$7:I$58) ->  | I61: 25 | J61: =IF(H61>ตัวแปร!C$37,1,"") -> 
B62: 2 | D62: 6 | E62: =SUMIF('3.ชั่วโมงสอนตามตารางสอน'!T$7:T$56,สรุปชั่วโมงสอนต่อสัปดาห์!I62,'3.ชั่วโมงสอนตามตารางสอน'!L$7:L$56) -> 0 | F62: =SUMIF('4.งานสนับสนุนการจัดการเรียนรู้'!#REF!,สรุปชั่วโมงสอนต่อสัปดาห์!I62,'4.งานสนับสนุนการจัดการเรียนรู้'!I$7:I$58) ->  | G62: =SUMIF('5.งานตอบสนองนโยบายและจุดเน้น'!#REF!,สรุปชั่วโมงสอนต่อสัปดาห์!I62,'5.งานตอบสนองนโยบายและจุดเน้น'!I$7:I$58) ->  | I62: 26 | J62: =IF(H62>ตัวแปร!C$37,1,"") -> 
B63: 2 | D63: 7 | E63: =SUMIF('3.ชั่วโมงสอนตามตารางสอน'!T$7:T$56,สรุปชั่วโมงสอนต่อสัปดาห์!I63,'3.ชั่วโมงสอนตามตารางสอน'!L$7:L$56) -> 0 | F63: =SUMIF('4.งานสนับสนุนการจัดการเรียนรู้'!#REF!,สรุปชั่วโมงสอนต่อสัปดาห์!I63,'4.งานสนับสนุนการจัดการเรียนรู้'!I$7:I$58) ->  | G63: =SUMIF('5.งานตอบสนองนโยบายและจุดเน้น'!#REF!,สรุปชั่วโมงสอนต่อสัปดาห์!I63,'5.งานตอบสนองนโยบายและจุดเน้น'!I$7:I$58) ->  | I63: 27 | J63: =IF(H63>ตัวแปร!C$37,1,"") -> 
B64: 2 | D64: 8 | E64: =SUMIF('3.ชั่วโมงสอนตามตารางสอน'!T$7:T$56,สรุปชั่วโมงสอนต่อสัปดาห์!I64,'3.ชั่วโมงสอนตามตารางสอน'!L$7:L$56) -> 0 | F64: =SUMIF('4.งานสนับสนุนการจัดการเรียนรู้'!#REF!,สรุปชั่วโมงสอนต่อสัปดาห์!I64,'4.งานสนับสนุนการจัดการเรียนรู้'!I$7:I$58) ->  | G64: =SUMIF('5.งานตอบสนองนโยบายและจุดเน้น'!#REF!,สรุปชั่วโมงสอนต่อสัปดาห์!I64,'5.งานตอบสนองนโยบายและจุดเน้น'!I$7:I$58) ->  | I64: 28 | J64: =IF(H64>ตัวแปร!C$37,1,"") -> 
B65: 2 | D65: 9 | E65: =SUMIF('3.ชั่วโมงสอนตามตารางสอน'!T$7:T$56,สรุปชั่วโมงสอนต่อสัปดาห์!I65,'3.ชั่วโมงสอนตามตารางสอน'!L$7:L$56) -> 0 | F65: =SUMIF('4.งานสนับสนุนการจัดการเรียนรู้'!#REF!,สรุปชั่วโมงสอนต่อสัปดาห์!I65,'4.งานสนับสนุนการจัดการเรียนรู้'!I$7:I$58) ->  | G65: =SUMIF('5.งานตอบสนองนโยบายและจุดเน้น'!#REF!,สรุปชั่วโมงสอนต่อสัปดาห์!I65,'5.งานตอบสนองนโยบายและจุดเน้น'!I$7:I$58) ->  | I65: 29 | J65: =IF(H65>ตัวแปร!C$37,1,"") -> 
B66: 2 | D66: 10 | E66: =SUMIF('3.ชั่วโมงสอนตามตารางสอน'!T$7:T$56,สรุปชั่วโมงสอนต่อสัปดาห์!I66,'3.ชั่วโมงสอนตามตารางสอน'!L$7:L$56) -> 0 | F66: =SUMIF('4.งานสนับสนุนการจัดการเรียนรู้'!#REF!,สรุปชั่วโมงสอนต่อสัปดาห์!I66,'4.งานสนับสนุนการจัดการเรียนรู้'!I$7:I$58) ->  | G66: =SUMIF('5.งานตอบสนองนโยบายและจุดเน้น'!#REF!,สรุปชั่วโมงสอนต่อสัปดาห์!I66,'5.งานตอบสนองนโยบายและจุดเน้น'!I$7:I$58) ->  | I66: 210 | J66: =IF(H66>ตัวแปร!C$37,1,"") -> 
B67: 2 | D67: 11 | E67: =SUMIF('3.ชั่วโมงสอนตามตารางสอน'!T$7:T$56,สรุปชั่วโมงสอนต่อสัปดาห์!I67,'3.ชั่วโมงสอนตามตารางสอน'!L$7:L$56) -> 0 | F67: =SUMIF('4.งานสนับสนุนการจัดการเรียนรู้'!#REF!,สรุปชั่วโมงสอนต่อสัปดาห์!I67,'4.งานสนับสนุนการจัดการเรียนรู้'!I$7:I$58) ->  | G67: =SUMIF('5.งานตอบสนองนโยบายและจุดเน้น'!#REF!,สรุปชั่วโมงสอนต่อสัปดาห์!I67,'5.งานตอบสนองนโยบายและจุดเน้น'!I$7:I$58) ->  | I67: 211 | J67: =IF(H67>ตัวแปร!C$37,1,"") -> 
B68: 2 | D68: 12 | E68: =SUMIF('3.ชั่วโมงสอนตามตารางสอน'!T$7:T$56,สรุปชั่วโมงสอนต่อสัปดาห์!I68,'3.ชั่วโมงสอนตามตารางสอน'!L$7:L$56) -> 0 | F68: =SUMIF('4.งานสนับสนุนการจัดการเรียนรู้'!#REF!,สรุปชั่วโมงสอนต่อสัปดาห์!I68,'4.งานสนับสนุนการจัดการเรียนรู้'!I$7:I$58) ->  | G68: =SUMIF('5.งานตอบสนองนโยบายและจุดเน้น'!#REF!,สรุปชั่วโมงสอนต่อสัปดาห์!I68,'5.งานตอบสนองนโยบายและจุดเน้น'!I$7:I$58) ->  | I68: 212 | J68: =IF(H68>ตัวแปร!C$37,1,"") -> 
B69: 2 | D69: 13 | E69: =SUMIF('3.ชั่วโมงสอนตามตารางสอน'!T$7:T$56,สรุปชั่วโมงสอนต่อสัปดาห์!I69,'3.ชั่วโมงสอนตามตารางสอน'!L$7:L$56) -> 0 | F69: =SUMIF('4.งานสนับสนุนการจัดการเรียนรู้'!#REF!,สรุปชั่วโมงสอนต่อสัปดาห์!I69,'4.งานสนับสนุนการจัดการเรียนรู้'!I$7:I$58) ->  | G69: =SUMIF('5.งานตอบสนองนโยบายและจุดเน้น'!#REF!,สรุปชั่วโมงสอนต่อสัปดาห์!I69,'5.งานตอบสนองนโยบายและจุดเน้น'!I$7:I$58) ->  | I69: 213 | J69: =IF(H69>ตัวแปร!C$37,1,"") -> 
B70: 2 | D70: 14 | E70: =SUMIF('3.ชั่วโมงสอนตามตารางสอน'!T$7:T$56,สรุปชั่วโมงสอนต่อสัปดาห์!I70,'3.ชั่วโมงสอนตามตารางสอน'!L$7:L$56) -> 0 | F70: =SUMIF('4.งานสนับสนุนการจัดการเรียนรู้'!#REF!,สรุปชั่วโมงสอนต่อสัปดาห์!I70,'4.งานสนับสนุนการจัดการเรียนรู้'!I$7:I$58) ->  | G70: =SUMIF('5.งานตอบสนองนโยบายและจุดเน้น'!#REF!,สรุปชั่วโมงสอนต่อสัปดาห์!I70,'5.งานตอบสนองนโยบายและจุดเน้น'!I$7:I$58) ->  | H70: =SUM(E70:G70) ->  | I70: =B70&+D70 -> 214 | J70: =IF(H70>ตัวแปร!C$37,1,"") ->  | K70: =IF(J70=1,"ตรวจสอบ","") -> 
B71: =IF(D70=52,B70+1,B70) -> 2 | D71: 15 | E71: =SUMIF('3.ชั่วโมงสอนตามตารางสอน'!T$7:T$56,สรุปชั่วโมงสอนต่อสัปดาห์!I71,'3.ชั่วโมงสอนตามตารางสอน'!L$7:L$56) -> 0 | F71: =SUMIF('4.งานสนับสนุนการจัดการเรียนรู้'!#REF!,สรุปชั่วโมงสอนต่อสัปดาห์!I71,'4.งานสนับสนุนการจัดการเรียนรู้'!I$7:I$58) ->  | G71: =SUMIF('5.งานตอบสนองนโยบายและจุดเน้น'!#REF!,สรุปชั่วโมงสอนต่อสัปดาห์!I71,'5.งานตอบสนองนโยบายและจุดเน้น'!I$7:I$58) ->  | I71: 215 | J71: =IF(H71>ตัวแปร!C$37,1,"") -> 
B72: 2 | D72: 16 | E72: =SUMIF('3.ชั่วโมงสอนตามตารางสอน'!T$7:T$56,สรุปชั่วโมงสอนต่อสัปดาห์!I72,'3.ชั่วโมงสอนตามตารางสอน'!L$7:L$56) -> 0 | F72: =SUMIF('4.งานสนับสนุนการจัดการเรียนรู้'!#REF!,สรุปชั่วโมงสอนต่อสัปดาห์!I72,'4.งานสนับสนุนการจัดการเรียนรู้'!I$7:I$58) ->  | G72: =SUMIF('5.งานตอบสนองนโยบายและจุดเน้น'!#REF!,สรุปชั่วโมงสอนต่อสัปดาห์!I72,'5.งานตอบสนองนโยบายและจุดเน้น'!I$7:I$58) ->  | I72: 216 | J72: =IF(H72>ตัวแปร!C$37,1,"") -> 
B73: 2 | D73: 17 | E73: =SUMIF('3.ชั่วโมงสอนตามตารางสอน'!T$7:T$56,สรุปชั่วโมงสอนต่อสัปดาห์!I73,'3.ชั่วโมงสอนตามตารางสอน'!L$7:L$56) -> 0 | F73: =SUMIF('4.งานสนับสนุนการจัดการเรียนรู้'!#REF!,สรุปชั่วโมงสอนต่อสัปดาห์!I73,'4.งานสนับสนุนการจัดการเรียนรู้'!I$7:I$58) ->  | G73: =SUMIF('5.งานตอบสนองนโยบายและจุดเน้น'!#REF!,สรุปชั่วโมงสอนต่อสัปดาห์!I73,'5.งานตอบสนองนโยบายและจุดเน้น'!I$7:I$58) ->  | I73: 217 | J73: =IF(H73>ตัวแปร!C$37,1,"") -> 
B74: 2 | D74: 18 | E74: =SUMIF('3.ชั่วโมงสอนตามตารางสอน'!T$7:T$56,สรุปชั่วโมงสอนต่อสัปดาห์!I74,'3.ชั่วโมงสอนตามตารางสอน'!L$7:L$56) -> 0 | F74: =SUMIF('4.งานสนับสนุนการจัดการเรียนรู้'!#REF!,สรุปชั่วโมงสอนต่อสัปดาห์!I74,'4.งานสนับสนุนการจัดการเรียนรู้'!I$7:I$58) ->  | G74: =SUMIF('5.งานตอบสนองนโยบายและจุดเน้น'!#REF!,สรุปชั่วโมงสอนต่อสัปดาห์!I74,'5.งานตอบสนองนโยบายและจุดเน้น'!I$7:I$58) ->  | I74: 218 | J74: =IF(H74>ตัวแปร!C$37,1,"") -> 
B75: 2 | D75: 19 | E75: =SUMIF('3.ชั่วโมงสอนตามตารางสอน'!T$7:T$56,สรุปชั่วโมงสอนต่อสัปดาห์!I75,'3.ชั่วโมงสอนตามตารางสอน'!L$7:L$56) -> 0 | F75: =SUMIF('4.งานสนับสนุนการจัดการเรียนรู้'!#REF!,สรุปชั่วโมงสอนต่อสัปดาห์!I75,'4.งานสนับสนุนการจัดการเรียนรู้'!I$7:I$58) ->  | G75: =SUMIF('5.งานตอบสนองนโยบายและจุดเน้น'!#REF!,สรุปชั่วโมงสอนต่อสัปดาห์!I75,'5.งานตอบสนองนโยบายและจุดเน้น'!I$7:I$58) ->  | I75: 219 | J75: =IF(H75>ตัวแปร!C$37,1,"") -> 
B76: 2 | D76: 20 | E76: =SUMIF('3.ชั่วโมงสอนตามตารางสอน'!T$7:T$56,สรุปชั่วโมงสอนต่อสัปดาห์!I76,'3.ชั่วโมงสอนตามตารางสอน'!L$7:L$56) -> 0 | F76: =SUMIF('4.งานสนับสนุนการจัดการเรียนรู้'!#REF!,สรุปชั่วโมงสอนต่อสัปดาห์!I76,'4.งานสนับสนุนการจัดการเรียนรู้'!I$7:I$58) ->  | G76: =SUMIF('5.งานตอบสนองนโยบายและจุดเน้น'!#REF!,สรุปชั่วโมงสอนต่อสัปดาห์!I76,'5.งานตอบสนองนโยบายและจุดเน้น'!I$7:I$58) ->  | I76: 220 | J76: =IF(H76>ตัวแปร!C$37,1,"") -> 
B77: 2 | D77: 21 | E77: =SUMIF('3.ชั่วโมงสอนตามตารางสอน'!T$7:T$56,สรุปชั่วโมงสอนต่อสัปดาห์!I77,'3.ชั่วโมงสอนตามตารางสอน'!L$7:L$56) -> 0 | F77: =SUMIF('4.งานสนับสนุนการจัดการเรียนรู้'!#REF!,สรุปชั่วโมงสอนต่อสัปดาห์!I77,'4.งานสนับสนุนการจัดการเรียนรู้'!I$7:I$58) ->  | G77: =SUMIF('5.งานตอบสนองนโยบายและจุดเน้น'!#REF!,สรุปชั่วโมงสอนต่อสัปดาห์!I77,'5.งานตอบสนองนโยบายและจุดเน้น'!I$7:I$58) ->  | I77: 221 | J77: =IF(H77>ตัวแปร!C$37,1,"") -> 
B78: 2 | D78: 22 | E78: =SUMIF('3.ชั่วโมงสอนตามตารางสอน'!T$7:T$56,สรุปชั่วโมงสอนต่อสัปดาห์!I78,'3.ชั่วโมงสอนตามตารางสอน'!L$7:L$56) -> 0 | F78: =SUMIF('4.งานสนับสนุนการจัดการเรียนรู้'!#REF!,สรุปชั่วโมงสอนต่อสัปดาห์!I78,'4.งานสนับสนุนการจัดการเรียนรู้'!I$7:I$58) ->  | G78: =SUMIF('5.งานตอบสนองนโยบายและจุดเน้น'!#REF!,สรุปชั่วโมงสอนต่อสัปดาห์!I78,'5.งานตอบสนองนโยบายและจุดเน้น'!I$7:I$58) ->  | I78: 222 | J78: =IF(H78>ตัวแปร!C$37,1,"") -> 
B79: 2 | D79: 23 | E79: =SUMIF('3.ชั่วโมงสอนตามตารางสอน'!T$7:T$56,สรุปชั่วโมงสอนต่อสัปดาห์!I79,'3.ชั่วโมงสอนตามตารางสอน'!L$7:L$56) -> 0 | F79: =SUMIF('4.งานสนับสนุนการจัดการเรียนรู้'!#REF!,สรุปชั่วโมงสอนต่อสัปดาห์!I79,'4.งานสนับสนุนการจัดการเรียนรู้'!I$7:I$58) ->  | G79: =SUMIF('5.งานตอบสนองนโยบายและจุดเน้น'!#REF!,สรุปชั่วโมงสอนต่อสัปดาห์!I79,'5.งานตอบสนองนโยบายและจุดเน้น'!I$7:I$58) ->  | I79: 223 | J79: =IF(H79>ตัวแปร!C$37,1,"") -> 
B80: 2 | D80: 24 | E80: =SUMIF('3.ชั่วโมงสอนตามตารางสอน'!T$7:T$56,สรุปชั่วโมงสอนต่อสัปดาห์!I80,'3.ชั่วโมงสอนตามตารางสอน'!L$7:L$56) -> 0 | F80: =SUMIF('4.งานสนับสนุนการจัดการเรียนรู้'!#REF!,สรุปชั่วโมงสอนต่อสัปดาห์!I80,'4.งานสนับสนุนการจัดการเรียนรู้'!I$7:I$58) ->  | G80: =SUMIF('5.งานตอบสนองนโยบายและจุดเน้น'!#REF!,สรุปชั่วโมงสอนต่อสัปดาห์!I80,'5.งานตอบสนองนโยบายและจุดเน้น'!I$7:I$58) ->  | I80: 224 | J80: =IF(H80>ตัวแปร!C$37,1,"") -> 
B81: 2 | D81: 25 | E81: =SUMIF('3.ชั่วโมงสอนตามตารางสอน'!T$7:T$56,สรุปชั่วโมงสอนต่อสัปดาห์!I81,'3.ชั่วโมงสอนตามตารางสอน'!L$7:L$56) -> 0 | F81: =SUMIF('4.งานสนับสนุนการจัดการเรียนรู้'!#REF!,สรุปชั่วโมงสอนต่อสัปดาห์!I81,'4.งานสนับสนุนการจัดการเรียนรู้'!I$7:I$58) ->  | G81: =SUMIF('5.งานตอบสนองนโยบายและจุดเน้น'!#REF!,สรุปชั่วโมงสอนต่อสัปดาห์!I81,'5.งานตอบสนองนโยบายและจุดเน้น'!I$7:I$58) ->  | I81: 225 | J81: =IF(H81>ตัวแปร!C$37,1,"") -> 
B82: 2 | D82: 26 | E82: =SUMIF('3.ชั่วโมงสอนตามตารางสอน'!T$7:T$56,สรุปชั่วโมงสอนต่อสัปดาห์!I82,'3.ชั่วโมงสอนตามตารางสอน'!L$7:L$56) -> 0 | F82: =SUMIF('4.งานสนับสนุนการจัดการเรียนรู้'!#REF!,สรุปชั่วโมงสอนต่อสัปดาห์!I82,'4.งานสนับสนุนการจัดการเรียนรู้'!I$7:I$58) ->  | G82: =SUMIF('5.งานตอบสนองนโยบายและจุดเน้น'!#REF!,สรุปชั่วโมงสอนต่อสัปดาห์!I82,'5.งานตอบสนองนโยบายและจุดเน้น'!I$7:I$58) ->  | I82: 226 | J82: =IF(H82>ตัวแปร!C$37,1,"") -> 
B83: 2 | D83: 27 | E83: =SUMIF('3.ชั่วโมงสอนตามตารางสอน'!T$7:T$56,สรุปชั่วโมงสอนต่อสัปดาห์!I83,'3.ชั่วโมงสอนตามตารางสอน'!L$7:L$56) -> 0 | F83: =SUMIF('4.งานสนับสนุนการจัดการเรียนรู้'!#REF!,สรุปชั่วโมงสอนต่อสัปดาห์!I83,'4.งานสนับสนุนการจัดการเรียนรู้'!I$7:I$58) ->  | G83: =SUMIF('5.งานตอบสนองนโยบายและจุดเน้น'!#REF!,สรุปชั่วโมงสอนต่อสัปดาห์!I83,'5.งานตอบสนองนโยบายและจุดเน้น'!I$7:I$58) ->  | I83: 227 | J83: =IF(H83>ตัวแปร!C$37,1,"") -> 
B84: 2 | D84: 28 | E84: =SUMIF('3.ชั่วโมงสอนตามตารางสอน'!T$7:T$56,สรุปชั่วโมงสอนต่อสัปดาห์!I84,'3.ชั่วโมงสอนตามตารางสอน'!L$7:L$56) -> 0 | F84: =SUMIF('4.งานสนับสนุนการจัดการเรียนรู้'!#REF!,สรุปชั่วโมงสอนต่อสัปดาห์!I84,'4.งานสนับสนุนการจัดการเรียนรู้'!I$7:I$58) ->  | G84: =SUMIF('5.งานตอบสนองนโยบายและจุดเน้น'!#REF!,สรุปชั่วโมงสอนต่อสัปดาห์!I84,'5.งานตอบสนองนโยบายและจุดเน้น'!I$7:I$58) ->  | I84: 228 | J84: =IF(H84>ตัวแปร!C$37,1,"") -> 
B85: 2 | D85: 29 | E85: =SUMIF('3.ชั่วโมงสอนตามตารางสอน'!T$7:T$56,สรุปชั่วโมงสอนต่อสัปดาห์!I85,'3.ชั่วโมงสอนตามตารางสอน'!L$7:L$56) -> 0 | F85: =SUMIF('4.งานสนับสนุนการจัดการเรียนรู้'!#REF!,สรุปชั่วโมงสอนต่อสัปดาห์!I85,'4.งานสนับสนุนการจัดการเรียนรู้'!I$7:I$58) ->  | G85: =SUMIF('5.งานตอบสนองนโยบายและจุดเน้น'!#REF!,สรุปชั่วโมงสอนต่อสัปดาห์!I85,'5.งานตอบสนองนโยบายและจุดเน้น'!I$7:I$58) ->  | I85: 229 | J85: =IF(H85>ตัวแปร!C$37,1,"") -> 
B86: 2 | D86: 30 | E86: =SUMIF('3.ชั่วโมงสอนตามตารางสอน'!T$7:T$56,สรุปชั่วโมงสอนต่อสัปดาห์!I86,'3.ชั่วโมงสอนตามตารางสอน'!L$7:L$56) -> 0 | F86: =SUMIF('4.งานสนับสนุนการจัดการเรียนรู้'!#REF!,สรุปชั่วโมงสอนต่อสัปดาห์!I86,'4.งานสนับสนุนการจัดการเรียนรู้'!I$7:I$58) ->  | G86: =SUMIF('5.งานตอบสนองนโยบายและจุดเน้น'!#REF!,สรุปชั่วโมงสอนต่อสัปดาห์!I86,'5.งานตอบสนองนโยบายและจุดเน้น'!I$7:I$58) ->  | I86: 230 | J86: =IF(H86>ตัวแปร!C$37,1,"") -> 
B87: 2 | D87: 31 | E87: =SUMIF('3.ชั่วโมงสอนตามตารางสอน'!T$7:T$56,สรุปชั่วโมงสอนต่อสัปดาห์!I87,'3.ชั่วโมงสอนตามตารางสอน'!L$7:L$56) -> 0 | F87: =SUMIF('4.งานสนับสนุนการจัดการเรียนรู้'!#REF!,สรุปชั่วโมงสอนต่อสัปดาห์!I87,'4.งานสนับสนุนการจัดการเรียนรู้'!I$7:I$58) ->  | G87: =SUMIF('5.งานตอบสนองนโยบายและจุดเน้น'!#REF!,สรุปชั่วโมงสอนต่อสัปดาห์!I87,'5.งานตอบสนองนโยบายและจุดเน้น'!I$7:I$58) ->  | I87: 231 | J87: =IF(H87>ตัวแปร!C$37,1,"") -> 
B88: 2 | D88: 32 | E88: =SUMIF('3.ชั่วโมงสอนตามตารางสอน'!T$7:T$56,สรุปชั่วโมงสอนต่อสัปดาห์!I88,'3.ชั่วโมงสอนตามตารางสอน'!L$7:L$56) -> 0 | F88: =SUMIF('4.งานสนับสนุนการจัดการเรียนรู้'!#REF!,สรุปชั่วโมงสอนต่อสัปดาห์!I88,'4.งานสนับสนุนการจัดการเรียนรู้'!I$7:I$58) ->  | G88: =SUMIF('5.งานตอบสนองนโยบายและจุดเน้น'!#REF!,สรุปชั่วโมงสอนต่อสัปดาห์!I88,'5.งานตอบสนองนโยบายและจุดเน้น'!I$7:I$58) ->  | I88: 232 | J88: =IF(H88>ตัวแปร!C$37,1,"") -> 
B89: 2 | D89: 33 | E89: =SUMIF('3.ชั่วโมงสอนตามตารางสอน'!T$7:T$56,สรุปชั่วโมงสอนต่อสัปดาห์!I89,'3.ชั่วโมงสอนตามตารางสอน'!L$7:L$56) -> 0 | F89: =SUMIF('4.งานสนับสนุนการจัดการเรียนรู้'!#REF!,สรุปชั่วโมงสอนต่อสัปดาห์!I89,'4.งานสนับสนุนการจัดการเรียนรู้'!I$7:I$58) ->  | G89: =SUMIF('5.งานตอบสนองนโยบายและจุดเน้น'!#REF!,สรุปชั่วโมงสอนต่อสัปดาห์!I89,'5.งานตอบสนองนโยบายและจุดเน้น'!I$7:I$58) ->  | I89: 233 | J89: =IF(H89>ตัวแปร!C$37,1,"") -> 
B90: 2 | D90: 34 | E90: =SUMIF('3.ชั่วโมงสอนตามตารางสอน'!T$7:T$56,สรุปชั่วโมงสอนต่อสัปดาห์!I90,'3.ชั่วโมงสอนตามตารางสอน'!L$7:L$56) -> 0 | F90: =SUMIF('4.งานสนับสนุนการจัดการเรียนรู้'!#REF!,สรุปชั่วโมงสอนต่อสัปดาห์!I90,'4.งานสนับสนุนการจัดการเรียนรู้'!I$7:I$58) ->  | G90: =SUMIF('5.งานตอบสนองนโยบายและจุดเน้น'!#REF!,สรุปชั่วโมงสอนต่อสัปดาห์!I90,'5.งานตอบสนองนโยบายและจุดเน้น'!I$7:I$58) ->  | I90: 234 | J90: =IF(H90>ตัวแปร!C$37,1,"") -> 
B91: 2 | D91: 35 | E91: =SUMIF('3.ชั่วโมงสอนตามตารางสอน'!T$7:T$56,สรุปชั่วโมงสอนต่อสัปดาห์!I91,'3.ชั่วโมงสอนตามตารางสอน'!L$7:L$56) -> 0 | F91: =SUMIF('4.งานสนับสนุนการจัดการเรียนรู้'!#REF!,สรุปชั่วโมงสอนต่อสัปดาห์!I91,'4.งานสนับสนุนการจัดการเรียนรู้'!I$7:I$58) ->  | G91: =SUMIF('5.งานตอบสนองนโยบายและจุดเน้น'!#REF!,สรุปชั่วโมงสอนต่อสัปดาห์!I91,'5.งานตอบสนองนโยบายและจุดเน้น'!I$7:I$58) ->  | I91: 235 | J91: =IF(H91>ตัวแปร!C$37,1,"") -> 
B92: 2 | D92: 36 | E92: =SUMIF('3.ชั่วโมงสอนตามตารางสอน'!T$7:T$56,สรุปชั่วโมงสอนต่อสัปดาห์!I92,'3.ชั่วโมงสอนตามตารางสอน'!L$7:L$56) -> 0 | F92: =SUMIF('4.งานสนับสนุนการจัดการเรียนรู้'!#REF!,สรุปชั่วโมงสอนต่อสัปดาห์!I92,'4.งานสนับสนุนการจัดการเรียนรู้'!I$7:I$58) ->  | G92: =SUMIF('5.งานตอบสนองนโยบายและจุดเน้น'!#REF!,สรุปชั่วโมงสอนต่อสัปดาห์!I92,'5.งานตอบสนองนโยบายและจุดเน้น'!I$7:I$58) ->  | I92: 236 | J92: =IF(H92>ตัวแปร!C$37,1,"") -> 
B93: 2 | D93: 37 | E93: =SUMIF('3.ชั่วโมงสอนตามตารางสอน'!T$7:T$56,สรุปชั่วโมงสอนต่อสัปดาห์!I93,'3.ชั่วโมงสอนตามตารางสอน'!L$7:L$56) -> 0 | F93: =SUMIF('4.งานสนับสนุนการจัดการเรียนรู้'!#REF!,สรุปชั่วโมงสอนต่อสัปดาห์!I93,'4.งานสนับสนุนการจัดการเรียนรู้'!I$7:I$58) ->  | G93: =SUMIF('5.งานตอบสนองนโยบายและจุดเน้น'!#REF!,สรุปชั่วโมงสอนต่อสัปดาห์!I93,'5.งานตอบสนองนโยบายและจุดเน้น'!I$7:I$58) ->  | I93: 237 | J93: =IF(H93>ตัวแปร!C$37,1,"") -> 
B94: 2 | D94: 38 | E94: =SUMIF('3.ชั่วโมงสอนตามตารางสอน'!T$7:T$56,สรุปชั่วโมงสอนต่อสัปดาห์!I94,'3.ชั่วโมงสอนตามตารางสอน'!L$7:L$56) -> 0 | F94: =SUMIF('4.งานสนับสนุนการจัดการเรียนรู้'!#REF!,สรุปชั่วโมงสอนต่อสัปดาห์!I94,'4.งานสนับสนุนการจัดการเรียนรู้'!I$7:I$58) ->  | G94: =SUMIF('5.งานตอบสนองนโยบายและจุดเน้น'!#REF!,สรุปชั่วโมงสอนต่อสัปดาห์!I94,'5.งานตอบสนองนโยบายและจุดเน้น'!I$7:I$58) ->  | I94: 238 | J94: =IF(H94>ตัวแปร!C$37,1,"") -> 
B95: 2 | D95: 39 | E95: =SUMIF('3.ชั่วโมงสอนตามตารางสอน'!T$7:T$56,สรุปชั่วโมงสอนต่อสัปดาห์!I95,'3.ชั่วโมงสอนตามตารางสอน'!L$7:L$56) -> 0 | F95: =SUMIF('4.งานสนับสนุนการจัดการเรียนรู้'!#REF!,สรุปชั่วโมงสอนต่อสัปดาห์!I95,'4.งานสนับสนุนการจัดการเรียนรู้'!I$7:I$58) ->  | G95: =SUMIF('5.งานตอบสนองนโยบายและจุดเน้น'!#REF!,สรุปชั่วโมงสอนต่อสัปดาห์!I95,'5.งานตอบสนองนโยบายและจุดเน้น'!I$7:I$58) ->  | I95: 239 | J95: =IF(H95>ตัวแปร!C$37,1,"") -> 
B96: 2 | D96: 40 | E96: =SUMIF('3.ชั่วโมงสอนตามตารางสอน'!T$7:T$56,สรุปชั่วโมงสอนต่อสัปดาห์!I96,'3.ชั่วโมงสอนตามตารางสอน'!L$7:L$56) -> 0 | F96: =SUMIF('4.งานสนับสนุนการจัดการเรียนรู้'!#REF!,สรุปชั่วโมงสอนต่อสัปดาห์!I96,'4.งานสนับสนุนการจัดการเรียนรู้'!I$7:I$58) ->  | G96: =SUMIF('5.งานตอบสนองนโยบายและจุดเน้น'!#REF!,สรุปชั่วโมงสอนต่อสัปดาห์!I96,'5.งานตอบสนองนโยบายและจุดเน้น'!I$7:I$58) ->  | I96: 240 | J96: =IF(H96>ตัวแปร!C$37,1,"") -> 
B97: 2 | D97: 41 | E97: =SUMIF('3.ชั่วโมงสอนตามตารางสอน'!T$7:T$56,สรุปชั่วโมงสอนต่อสัปดาห์!I97,'3.ชั่วโมงสอนตามตารางสอน'!L$7:L$56) -> 0 | F97: =SUMIF('4.งานสนับสนุนการจัดการเรียนรู้'!#REF!,สรุปชั่วโมงสอนต่อสัปดาห์!I97,'4.งานสนับสนุนการจัดการเรียนรู้'!I$7:I$58) ->  | G97: =SUMIF('5.งานตอบสนองนโยบายและจุดเน้น'!#REF!,สรุปชั่วโมงสอนต่อสัปดาห์!I97,'5.งานตอบสนองนโยบายและจุดเน้น'!I$7:I$58) ->  | I97: 241 | J97: =IF(H97>ตัวแปร!C$37,1,"") -> 
B98: 2 | D98: 42 | E98: =SUMIF('3.ชั่วโมงสอนตามตารางสอน'!T$7:T$56,สรุปชั่วโมงสอนต่อสัปดาห์!I98,'3.ชั่วโมงสอนตามตารางสอน'!L$7:L$56) -> 0 | F98: =SUMIF('4.งานสนับสนุนการจัดการเรียนรู้'!#REF!,สรุปชั่วโมงสอนต่อสัปดาห์!I98,'4.งานสนับสนุนการจัดการเรียนรู้'!I$7:I$58) ->  | G98: =SUMIF('5.งานตอบสนองนโยบายและจุดเน้น'!#REF!,สรุปชั่วโมงสอนต่อสัปดาห์!I98,'5.งานตอบสนองนโยบายและจุดเน้น'!I$7:I$58) ->  | I98: 242 | J98: =IF(H98>ตัวแปร!C$37,1,"") -> 
B99: 2 | D99: 43 | E99: =SUMIF('3.ชั่วโมงสอนตามตารางสอน'!T$7:T$56,สรุปชั่วโมงสอนต่อสัปดาห์!I99,'3.ชั่วโมงสอนตามตารางสอน'!L$7:L$56) -> 0 | F99: =SUMIF('4.งานสนับสนุนการจัดการเรียนรู้'!#REF!,สรุปชั่วโมงสอนต่อสัปดาห์!I99,'4.งานสนับสนุนการจัดการเรียนรู้'!I$7:I$58) ->  | G99: =SUMIF('5.งานตอบสนองนโยบายและจุดเน้น'!#REF!,สรุปชั่วโมงสอนต่อสัปดาห์!I99,'5.งานตอบสนองนโยบายและจุดเน้น'!I$7:I$58) ->  | I99: 243 | J99: =IF(H99>ตัวแปร!C$37,1,"") -> 
B100: 2 | D100: 44 | E100: =SUMIF('3.ชั่วโมงสอนตามตารางสอน'!T$7:T$56,สรุปชั่วโมงสอนต่อสัปดาห์!I100,'3.ชั่วโมงสอนตามตารางสอน'!L$7:L$56) -> 0 | F100: =SUMIF('4.งานสนับสนุนการจัดการเรียนรู้'!#REF!,สรุปชั่วโมงสอนต่อสัปดาห์!I100,'4.งานสนับสนุนการจัดการเรียนรู้'!I$7:I$58) ->  | G100: =SUMIF('5.งานตอบสนองนโยบายและจุดเน้น'!#REF!,สรุปชั่วโมงสอนต่อสัปดาห์!I100,'5.งานตอบสนองนโยบายและจุดเน้น'!I$7:I$58) ->  | I100: 244 | J100: =IF(H100>ตัวแปร!C$37,1,"") -> 
B101: 2 | D101: 45 | E101: =SUMIF('3.ชั่วโมงสอนตามตารางสอน'!T$7:T$56,สรุปชั่วโมงสอนต่อสัปดาห์!I101,'3.ชั่วโมงสอนตามตารางสอน'!L$7:L$56) -> 0 | F101: =SUMIF('4.งานสนับสนุนการจัดการเรียนรู้'!#REF!,สรุปชั่วโมงสอนต่อสัปดาห์!I101,'4.งานสนับสนุนการจัดการเรียนรู้'!I$7:I$58) ->  | G101: =SUMIF('5.งานตอบสนองนโยบายและจุดเน้น'!#REF!,สรุปชั่วโมงสอนต่อสัปดาห์!I101,'5.งานตอบสนองนโยบายและจุดเน้น'!I$7:I$58) ->  | I101: 245 | J101: =IF(H101>ตัวแปร!C$37,1,"") -> 
B102: 2 | D102: 46 | E102: =SUMIF('3.ชั่วโมงสอนตามตารางสอน'!T$7:T$56,สรุปชั่วโมงสอนต่อสัปดาห์!I102,'3.ชั่วโมงสอนตามตารางสอน'!L$7:L$56) -> 0 | F102: =SUMIF('4.งานสนับสนุนการจัดการเรียนรู้'!#REF!,สรุปชั่วโมงสอนต่อสัปดาห์!I102,'4.งานสนับสนุนการจัดการเรียนรู้'!I$7:I$58) ->  | G102: =SUMIF('5.งานตอบสนองนโยบายและจุดเน้น'!#REF!,สรุปชั่วโมงสอนต่อสัปดาห์!I102,'5.งานตอบสนองนโยบายและจุดเน้น'!I$7:I$58) ->  | I102: 246 | J102: =IF(H102>ตัวแปร!C$37,1,"") -> 
B103: 2 | D103: 47 | E103: =SUMIF('3.ชั่วโมงสอนตามตารางสอน'!T$7:T$56,สรุปชั่วโมงสอนต่อสัปดาห์!I103,'3.ชั่วโมงสอนตามตารางสอน'!L$7:L$56) -> 0 | F103: =SUMIF('4.งานสนับสนุนการจัดการเรียนรู้'!#REF!,สรุปชั่วโมงสอนต่อสัปดาห์!I103,'4.งานสนับสนุนการจัดการเรียนรู้'!I$7:I$58) ->  | G103: =SUMIF('5.งานตอบสนองนโยบายและจุดเน้น'!#REF!,สรุปชั่วโมงสอนต่อสัปดาห์!I103,'5.งานตอบสนองนโยบายและจุดเน้น'!I$7:I$58) ->  | I103: 247 | J103: =IF(H103>ตัวแปร!C$37,1,"") -> 
B104: 2 | D104: 48 | E104: =SUMIF('3.ชั่วโมงสอนตามตารางสอน'!T$7:T$56,สรุปชั่วโมงสอนต่อสัปดาห์!I104,'3.ชั่วโมงสอนตามตารางสอน'!L$7:L$56) -> 0 | F104: =SUMIF('4.งานสนับสนุนการจัดการเรียนรู้'!#REF!,สรุปชั่วโมงสอนต่อสัปดาห์!I104,'4.งานสนับสนุนการจัดการเรียนรู้'!I$7:I$58) ->  | G104: =SUMIF('5.งานตอบสนองนโยบายและจุดเน้น'!#REF!,สรุปชั่วโมงสอนต่อสัปดาห์!I104,'5.งานตอบสนองนโยบายและจุดเน้น'!I$7:I$58) ->  | I104: 248 | J104: =IF(H104>ตัวแปร!C$37,1,"") -> 
B105: 2 | D105: 49 | E105: =SUMIF('3.ชั่วโมงสอนตามตารางสอน'!T$7:T$56,สรุปชั่วโมงสอนต่อสัปดาห์!I105,'3.ชั่วโมงสอนตามตารางสอน'!L$7:L$56) -> 0 | F105: =SUMIF('4.งานสนับสนุนการจัดการเรียนรู้'!#REF!,สรุปชั่วโมงสอนต่อสัปดาห์!I105,'4.งานสนับสนุนการจัดการเรียนรู้'!I$7:I$58) ->  | G105: =SUMIF('5.งานตอบสนองนโยบายและจุดเน้น'!#REF!,สรุปชั่วโมงสอนต่อสัปดาห์!I105,'5.งานตอบสนองนโยบายและจุดเน้น'!I$7:I$58) ->  | I105: 249 | J105: =IF(H105>ตัวแปร!C$37,1,"") -> 
B106: 2 | D106: 50 | E106: =SUMIF('3.ชั่วโมงสอนตามตารางสอน'!T$7:T$56,สรุปชั่วโมงสอนต่อสัปดาห์!I106,'3.ชั่วโมงสอนตามตารางสอน'!L$7:L$56) -> 0 | F106: =SUMIF('4.งานสนับสนุนการจัดการเรียนรู้'!#REF!,สรุปชั่วโมงสอนต่อสัปดาห์!I106,'4.งานสนับสนุนการจัดการเรียนรู้'!I$7:I$58) ->  | G106: =SUMIF('5.งานตอบสนองนโยบายและจุดเน้น'!#REF!,สรุปชั่วโมงสอนต่อสัปดาห์!I106,'5.งานตอบสนองนโยบายและจุดเน้น'!I$7:I$58) ->  | I106: 250 | J106: =IF(H106>ตัวแปร!C$37,1,"") -> 
B107: 2 | D107: 51 | E107: =SUMIF('3.ชั่วโมงสอนตามตารางสอน'!T$7:T$56,สรุปชั่วโมงสอนต่อสัปดาห์!I107,'3.ชั่วโมงสอนตามตารางสอน'!L$7:L$56) -> 0 | F107: =SUMIF('4.งานสนับสนุนการจัดการเรียนรู้'!#REF!,สรุปชั่วโมงสอนต่อสัปดาห์!I107,'4.งานสนับสนุนการจัดการเรียนรู้'!I$7:I$58) ->  | G107: =SUMIF('5.งานตอบสนองนโยบายและจุดเน้น'!#REF!,สรุปชั่วโมงสอนต่อสัปดาห์!I107,'5.งานตอบสนองนโยบายและจุดเน้น'!I$7:I$58) ->  | I107: 251 | J107: =IF(H107>ตัวแปร!C$37,1,"") -> 
B108: 2 | D108: 52 | E108: =SUMIF('3.ชั่วโมงสอนตามตารางสอน'!T$7:T$56,สรุปชั่วโมงสอนต่อสัปดาห์!I108,'3.ชั่วโมงสอนตามตารางสอน'!L$7:L$56) -> 0 | F108: =SUMIF('4.งานสนับสนุนการจัดการเรียนรู้'!#REF!,สรุปชั่วโมงสอนต่อสัปดาห์!I108,'4.งานสนับสนุนการจัดการเรียนรู้'!I$7:I$58) ->  | G108: =SUMIF('5.งานตอบสนองนโยบายและจุดเน้น'!#REF!,สรุปชั่วโมงสอนต่อสัปดาห์!I108,'5.งานตอบสนองนโยบายและจุดเน้น'!I$7:I$58) ->  | I108: 252 | J108: =IF(H108>ตัวแปร!C$37,1,"") -> 
B109: 3 | D109: 1 | E109: =SUMIF('3.ชั่วโมงสอนตามตารางสอน'!T$7:T$56,สรุปชั่วโมงสอนต่อสัปดาห์!I109,'3.ชั่วโมงสอนตามตารางสอน'!L$7:L$56) -> 0 | F109: =SUMIF('4.งานสนับสนุนการจัดการเรียนรู้'!#REF!,สรุปชั่วโมงสอนต่อสัปดาห์!I109,'4.งานสนับสนุนการจัดการเรียนรู้'!I$7:I$58) ->  | G109: =SUMIF('5.งานตอบสนองนโยบายและจุดเน้น'!#REF!,สรุปชั่วโมงสอนต่อสัปดาห์!I109,'5.งานตอบสนองนโยบายและจุดเน้น'!I$7:I$58) ->  | I109: 31 | J109: =IF(H109>ตัวแปร!C$37,1,"") -> 
B110: 3 | D110: 2 | E110: =SUMIF('3.ชั่วโมงสอนตามตารางสอน'!T$7:T$56,สรุปชั่วโมงสอนต่อสัปดาห์!I110,'3.ชั่วโมงสอนตามตารางสอน'!L$7:L$56) -> 0 | F110: =SUMIF('4.งานสนับสนุนการจัดการเรียนรู้'!#REF!,สรุปชั่วโมงสอนต่อสัปดาห์!I110,'4.งานสนับสนุนการจัดการเรียนรู้'!I$7:I$58) ->  | G110: =SUMIF('5.งานตอบสนองนโยบายและจุดเน้น'!#REF!,สรุปชั่วโมงสอนต่อสัปดาห์!I110,'5.งานตอบสนองนโยบายและจุดเน้น'!I$7:I$58) ->  | I110: 32 | J110: =IF(H110>ตัวแปร!C$37,1,"") -> 
B111: 3 | D111: 3 | E111: =SUMIF('3.ชั่วโมงสอนตามตารางสอน'!T$7:T$56,สรุปชั่วโมงสอนต่อสัปดาห์!I111,'3.ชั่วโมงสอนตามตารางสอน'!L$7:L$56) -> 0 | F111: =SUMIF('4.งานสนับสนุนการจัดการเรียนรู้'!#REF!,สรุปชั่วโมงสอนต่อสัปดาห์!I111,'4.งานสนับสนุนการจัดการเรียนรู้'!I$7:I$58) ->  | G111: =SUMIF('5.งานตอบสนองนโยบายและจุดเน้น'!#REF!,สรุปชั่วโมงสอนต่อสัปดาห์!I111,'5.งานตอบสนองนโยบายและจุดเน้น'!I$7:I$58) ->  | I111: 33 | J111: =IF(H111>ตัวแปร!C$37,1,"") -> 
B112: 3 | D112: 4 | E112: =SUMIF('3.ชั่วโมงสอนตามตารางสอน'!T$7:T$56,สรุปชั่วโมงสอนต่อสัปดาห์!I112,'3.ชั่วโมงสอนตามตารางสอน'!L$7:L$56) -> 0 | F112: =SUMIF('4.งานสนับสนุนการจัดการเรียนรู้'!#REF!,สรุปชั่วโมงสอนต่อสัปดาห์!I112,'4.งานสนับสนุนการจัดการเรียนรู้'!I$7:I$58) ->  | G112: =SUMIF('5.งานตอบสนองนโยบายและจุดเน้น'!#REF!,สรุปชั่วโมงสอนต่อสัปดาห์!I112,'5.งานตอบสนองนโยบายและจุดเน้น'!I$7:I$58) ->  | I112: 34 | J112: =IF(H112>ตัวแปร!C$37,1,"") -> 
B113: 3 | D113: 5 | E113: =SUMIF('3.ชั่วโมงสอนตามตารางสอน'!T$7:T$56,สรุปชั่วโมงสอนต่อสัปดาห์!I113,'3.ชั่วโมงสอนตามตารางสอน'!L$7:L$56) -> 0 | F113: =SUMIF('4.งานสนับสนุนการจัดการเรียนรู้'!#REF!,สรุปชั่วโมงสอนต่อสัปดาห์!I113,'4.งานสนับสนุนการจัดการเรียนรู้'!I$7:I$58) ->  | G113: =SUMIF('5.งานตอบสนองนโยบายและจุดเน้น'!#REF!,สรุปชั่วโมงสอนต่อสัปดาห์!I113,'5.งานตอบสนองนโยบายและจุดเน้น'!I$7:I$58) ->  | I113: 35 | J113: =IF(H113>ตัวแปร!C$37,1,"") -> 
B114: 3 | D114: 6 | E114: =SUMIF('3.ชั่วโมงสอนตามตารางสอน'!T$7:T$56,สรุปชั่วโมงสอนต่อสัปดาห์!I114,'3.ชั่วโมงสอนตามตารางสอน'!L$7:L$56) -> 0 | F114: =SUMIF('4.งานสนับสนุนการจัดการเรียนรู้'!#REF!,สรุปชั่วโมงสอนต่อสัปดาห์!I114,'4.งานสนับสนุนการจัดการเรียนรู้'!I$7:I$58) ->  | G114: =SUMIF('5.งานตอบสนองนโยบายและจุดเน้น'!#REF!,สรุปชั่วโมงสอนต่อสัปดาห์!I114,'5.งานตอบสนองนโยบายและจุดเน้น'!I$7:I$58) ->  | I114: 36 | J114: =IF(H114>ตัวแปร!C$37,1,"") -> 
B115: 3 | D115: 7 | E115: =SUMIF('3.ชั่วโมงสอนตามตารางสอน'!T$7:T$56,สรุปชั่วโมงสอนต่อสัปดาห์!I115,'3.ชั่วโมงสอนตามตารางสอน'!L$7:L$56) -> 0 | F115: =SUMIF('4.งานสนับสนุนการจัดการเรียนรู้'!#REF!,สรุปชั่วโมงสอนต่อสัปดาห์!I115,'4.งานสนับสนุนการจัดการเรียนรู้'!I$7:I$58) ->  | G115: =SUMIF('5.งานตอบสนองนโยบายและจุดเน้น'!#REF!,สรุปชั่วโมงสอนต่อสัปดาห์!I115,'5.งานตอบสนองนโยบายและจุดเน้น'!I$7:I$58) ->  | I115: 37 | J115: =IF(H115>ตัวแปร!C$37,1,"") -> 
B116: 3 | D116: 8 | E116: =SUMIF('3.ชั่วโมงสอนตามตารางสอน'!T$7:T$56,สรุปชั่วโมงสอนต่อสัปดาห์!I116,'3.ชั่วโมงสอนตามตารางสอน'!L$7:L$56) -> 0 | F116: =SUMIF('4.งานสนับสนุนการจัดการเรียนรู้'!#REF!,สรุปชั่วโมงสอนต่อสัปดาห์!I116,'4.งานสนับสนุนการจัดการเรียนรู้'!I$7:I$58) ->  | G116: =SUMIF('5.งานตอบสนองนโยบายและจุดเน้น'!#REF!,สรุปชั่วโมงสอนต่อสัปดาห์!I116,'5.งานตอบสนองนโยบายและจุดเน้น'!I$7:I$58) ->  | I116: 38 | J116: =IF(H116>ตัวแปร!C$37,1,"") -> 
B117: 3 | D117: 9 | E117: =SUMIF('3.ชั่วโมงสอนตามตารางสอน'!T$7:T$56,สรุปชั่วโมงสอนต่อสัปดาห์!I117,'3.ชั่วโมงสอนตามตารางสอน'!L$7:L$56) -> 0 | F117: =SUMIF('4.งานสนับสนุนการจัดการเรียนรู้'!#REF!,สรุปชั่วโมงสอนต่อสัปดาห์!I117,'4.งานสนับสนุนการจัดการเรียนรู้'!I$7:I$58) ->  | G117: =SUMIF('5.งานตอบสนองนโยบายและจุดเน้น'!#REF!,สรุปชั่วโมงสอนต่อสัปดาห์!I117,'5.งานตอบสนองนโยบายและจุดเน้น'!I$7:I$58) ->  | I117: 39 | J117: =IF(H117>ตัวแปร!C$37,1,"") -> 
B118: 3 | D118: 10 | E118: =SUMIF('3.ชั่วโมงสอนตามตารางสอน'!T$7:T$56,สรุปชั่วโมงสอนต่อสัปดาห์!I118,'3.ชั่วโมงสอนตามตารางสอน'!L$7:L$56) -> 0 | F118: =SUMIF('4.งานสนับสนุนการจัดการเรียนรู้'!#REF!,สรุปชั่วโมงสอนต่อสัปดาห์!I118,'4.งานสนับสนุนการจัดการเรียนรู้'!I$7:I$58) ->  | G118: =SUMIF('5.งานตอบสนองนโยบายและจุดเน้น'!#REF!,สรุปชั่วโมงสอนต่อสัปดาห์!I118,'5.งานตอบสนองนโยบายและจุดเน้น'!I$7:I$58) ->  | I118: 310 | J118: =IF(H118>ตัวแปร!C$37,1,"") -> 
B119: 3 | D119: 11 | E119: =SUMIF('3.ชั่วโมงสอนตามตารางสอน'!T$7:T$56,สรุปชั่วโมงสอนต่อสัปดาห์!I119,'3.ชั่วโมงสอนตามตารางสอน'!L$7:L$56) -> 0 | F119: =SUMIF('4.งานสนับสนุนการจัดการเรียนรู้'!#REF!,สรุปชั่วโมงสอนต่อสัปดาห์!I119,'4.งานสนับสนุนการจัดการเรียนรู้'!I$7:I$58) ->  | G119: =SUMIF('5.งานตอบสนองนโยบายและจุดเน้น'!#REF!,สรุปชั่วโมงสอนต่อสัปดาห์!I119,'5.งานตอบสนองนโยบายและจุดเน้น'!I$7:I$58) ->  | I119: 311 | J119: =IF(H119>ตัวแปร!C$37,1,"") -> 
B120: 3 | D120: 12 | E120: =SUMIF('3.ชั่วโมงสอนตามตารางสอน'!T$7:T$56,สรุปชั่วโมงสอนต่อสัปดาห์!I120,'3.ชั่วโมงสอนตามตารางสอน'!L$7:L$56) -> 0 | F120: =SUMIF('4.งานสนับสนุนการจัดการเรียนรู้'!#REF!,สรุปชั่วโมงสอนต่อสัปดาห์!I120,'4.งานสนับสนุนการจัดการเรียนรู้'!I$7:I$58) ->  | G120: =SUMIF('5.งานตอบสนองนโยบายและจุดเน้น'!#REF!,สรุปชั่วโมงสอนต่อสัปดาห์!I120,'5.งานตอบสนองนโยบายและจุดเน้น'!I$7:I$58) ->  | I120: 312 | J120: =IF(H120>ตัวแปร!C$37,1,"") -> 
B121: 3 | D121: 13 | E121: =SUMIF('3.ชั่วโมงสอนตามตารางสอน'!T$7:T$56,สรุปชั่วโมงสอนต่อสัปดาห์!I121,'3.ชั่วโมงสอนตามตารางสอน'!L$7:L$56) -> 0 | F121: =SUMIF('4.งานสนับสนุนการจัดการเรียนรู้'!#REF!,สรุปชั่วโมงสอนต่อสัปดาห์!I121,'4.งานสนับสนุนการจัดการเรียนรู้'!I$7:I$58) ->  | G121: =SUMIF('5.งานตอบสนองนโยบายและจุดเน้น'!#REF!,สรุปชั่วโมงสอนต่อสัปดาห์!I121,'5.งานตอบสนองนโยบายและจุดเน้น'!I$7:I$58) ->  | I121: 313 | J121: =IF(H121>ตัวแปร!C$37,1,"") -> 
B122: 3 | D122: 14 | E122: =SUMIF('3.ชั่วโมงสอนตามตารางสอน'!T$7:T$56,สรุปชั่วโมงสอนต่อสัปดาห์!I122,'3.ชั่วโมงสอนตามตารางสอน'!L$7:L$56) -> 0 | F122: =SUMIF('4.งานสนับสนุนการจัดการเรียนรู้'!#REF!,สรุปชั่วโมงสอนต่อสัปดาห์!I122,'4.งานสนับสนุนการจัดการเรียนรู้'!I$7:I$58) ->  | G122: =SUMIF('5.งานตอบสนองนโยบายและจุดเน้น'!#REF!,สรุปชั่วโมงสอนต่อสัปดาห์!I122,'5.งานตอบสนองนโยบายและจุดเน้น'!I$7:I$58) ->  | I122: 314 | J122: =IF(H122>ตัวแปร!C$37,1,"") -> 
B123: 3 | D123: 15 | E123: =SUMIF('3.ชั่วโมงสอนตามตารางสอน'!T$7:T$56,สรุปชั่วโมงสอนต่อสัปดาห์!I123,'3.ชั่วโมงสอนตามตารางสอน'!L$7:L$56) -> 0 | F123: =SUMIF('4.งานสนับสนุนการจัดการเรียนรู้'!#REF!,สรุปชั่วโมงสอนต่อสัปดาห์!I123,'4.งานสนับสนุนการจัดการเรียนรู้'!I$7:I$58) ->  | G123: =SUMIF('5.งานตอบสนองนโยบายและจุดเน้น'!#REF!,สรุปชั่วโมงสอนต่อสัปดาห์!I123,'5.งานตอบสนองนโยบายและจุดเน้น'!I$7:I$58) ->  | I123: 315 | J123: =IF(H123>ตัวแปร!C$37,1,"") -> 
B124: 3 | D124: 16 | E124: =SUMIF('3.ชั่วโมงสอนตามตารางสอน'!T$7:T$56,สรุปชั่วโมงสอนต่อสัปดาห์!I124,'3.ชั่วโมงสอนตามตารางสอน'!L$7:L$56) -> 0 | F124: =SUMIF('4.งานสนับสนุนการจัดการเรียนรู้'!#REF!,สรุปชั่วโมงสอนต่อสัปดาห์!I124,'4.งานสนับสนุนการจัดการเรียนรู้'!I$7:I$58) ->  | G124: =SUMIF('5.งานตอบสนองนโยบายและจุดเน้น'!#REF!,สรุปชั่วโมงสอนต่อสัปดาห์!I124,'5.งานตอบสนองนโยบายและจุดเน้น'!I$7:I$58) ->  | I124: 316 | J124: =IF(H124>ตัวแปร!C$37,1,"") -> 
B125: 3 | D125: 17 | E125: =SUMIF('3.ชั่วโมงสอนตามตารางสอน'!T$7:T$56,สรุปชั่วโมงสอนต่อสัปดาห์!I125,'3.ชั่วโมงสอนตามตารางสอน'!L$7:L$56) -> 0 | F125: =SUMIF('4.งานสนับสนุนการจัดการเรียนรู้'!#REF!,สรุปชั่วโมงสอนต่อสัปดาห์!I125,'4.งานสนับสนุนการจัดการเรียนรู้'!I$7:I$58) ->  | G125: =SUMIF('5.งานตอบสนองนโยบายและจุดเน้น'!#REF!,สรุปชั่วโมงสอนต่อสัปดาห์!I125,'5.งานตอบสนองนโยบายและจุดเน้น'!I$7:I$58) ->  | I125: 317 | J125: =IF(H125>ตัวแปร!C$37,1,"") -> 
B126: 3 | D126: 18 | E126: =SUMIF('3.ชั่วโมงสอนตามตารางสอน'!T$7:T$56,สรุปชั่วโมงสอนต่อสัปดาห์!I126,'3.ชั่วโมงสอนตามตารางสอน'!L$7:L$56) -> 0 | F126: =SUMIF('4.งานสนับสนุนการจัดการเรียนรู้'!#REF!,สรุปชั่วโมงสอนต่อสัปดาห์!I126,'4.งานสนับสนุนการจัดการเรียนรู้'!I$7:I$58) ->  | G126: =SUMIF('5.งานตอบสนองนโยบายและจุดเน้น'!#REF!,สรุปชั่วโมงสอนต่อสัปดาห์!I126,'5.งานตอบสนองนโยบายและจุดเน้น'!I$7:I$58) ->  | I126: 318 | J126: =IF(H126>ตัวแปร!C$37,1,"") -> 
B127: 3 | D127: 19 | E127: =SUMIF('3.ชั่วโมงสอนตามตารางสอน'!T$7:T$56,สรุปชั่วโมงสอนต่อสัปดาห์!I127,'3.ชั่วโมงสอนตามตารางสอน'!L$7:L$56) -> 0 | F127: =SUMIF('4.งานสนับสนุนการจัดการเรียนรู้'!#REF!,สรุปชั่วโมงสอนต่อสัปดาห์!I127,'4.งานสนับสนุนการจัดการเรียนรู้'!I$7:I$58) ->  | G127: =SUMIF('5.งานตอบสนองนโยบายและจุดเน้น'!#REF!,สรุปชั่วโมงสอนต่อสัปดาห์!I127,'5.งานตอบสนองนโยบายและจุดเน้น'!I$7:I$58) ->  | I127: 319 | J127: =IF(H127>ตัวแปร!C$37,1,"") -> 
B128: 3 | D128: 20 | E128: =SUMIF('3.ชั่วโมงสอนตามตารางสอน'!T$7:T$56,สรุปชั่วโมงสอนต่อสัปดาห์!I128,'3.ชั่วโมงสอนตามตารางสอน'!L$7:L$56) -> 0 | F128: =SUMIF('4.งานสนับสนุนการจัดการเรียนรู้'!#REF!,สรุปชั่วโมงสอนต่อสัปดาห์!I128,'4.งานสนับสนุนการจัดการเรียนรู้'!I$7:I$58) ->  | G128: =SUMIF('5.งานตอบสนองนโยบายและจุดเน้น'!#REF!,สรุปชั่วโมงสอนต่อสัปดาห์!I128,'5.งานตอบสนองนโยบายและจุดเน้น'!I$7:I$58) ->  | I128: 320 | J128: =IF(H128>ตัวแปร!C$37,1,"") -> 
B129: 3 | D129: 21 | E129: =SUMIF('3.ชั่วโมงสอนตามตารางสอน'!T$7:T$56,สรุปชั่วโมงสอนต่อสัปดาห์!I129,'3.ชั่วโมงสอนตามตารางสอน'!L$7:L$56) -> 0 | F129: =SUMIF('4.งานสนับสนุนการจัดการเรียนรู้'!#REF!,สรุปชั่วโมงสอนต่อสัปดาห์!I129,'4.งานสนับสนุนการจัดการเรียนรู้'!I$7:I$58) ->  | G129: =SUMIF('5.งานตอบสนองนโยบายและจุดเน้น'!#REF!,สรุปชั่วโมงสอนต่อสัปดาห์!I129,'5.งานตอบสนองนโยบายและจุดเน้น'!I$7:I$58) ->  | I129: 321 | J129: =IF(H129>ตัวแปร!C$37,1,"") -> 
B130: 3 | D130: 22 | E130: =SUMIF('3.ชั่วโมงสอนตามตารางสอน'!T$7:T$56,สรุปชั่วโมงสอนต่อสัปดาห์!I130,'3.ชั่วโมงสอนตามตารางสอน'!L$7:L$56) -> 0 | F130: =SUMIF('4.งานสนับสนุนการจัดการเรียนรู้'!#REF!,สรุปชั่วโมงสอนต่อสัปดาห์!I130,'4.งานสนับสนุนการจัดการเรียนรู้'!I$7:I$58) ->  | G130: =SUMIF('5.งานตอบสนองนโยบายและจุดเน้น'!#REF!,สรุปชั่วโมงสอนต่อสัปดาห์!I130,'5.งานตอบสนองนโยบายและจุดเน้น'!I$7:I$58) ->  | I130: 322 | J130: =IF(H130>ตัวแปร!C$37,1,"") -> 
B131: 3 | D131: 23 | E131: =SUMIF('3.ชั่วโมงสอนตามตารางสอน'!T$7:T$56,สรุปชั่วโมงสอนต่อสัปดาห์!I131,'3.ชั่วโมงสอนตามตารางสอน'!L$7:L$56) -> 0 | F131: =SUMIF('4.งานสนับสนุนการจัดการเรียนรู้'!#REF!,สรุปชั่วโมงสอนต่อสัปดาห์!I131,'4.งานสนับสนุนการจัดการเรียนรู้'!I$7:I$58) ->  | G131: =SUMIF('5.งานตอบสนองนโยบายและจุดเน้น'!#REF!,สรุปชั่วโมงสอนต่อสัปดาห์!I131,'5.งานตอบสนองนโยบายและจุดเน้น'!I$7:I$58) ->  | I131: 323 | J131: =IF(H131>ตัวแปร!C$37,1,"") -> 
B132: 3 | D132: 24 | E132: =SUMIF('3.ชั่วโมงสอนตามตารางสอน'!T$7:T$56,สรุปชั่วโมงสอนต่อสัปดาห์!I132,'3.ชั่วโมงสอนตามตารางสอน'!L$7:L$56) -> 0 | F132: =SUMIF('4.งานสนับสนุนการจัดการเรียนรู้'!#REF!,สรุปชั่วโมงสอนต่อสัปดาห์!I132,'4.งานสนับสนุนการจัดการเรียนรู้'!I$7:I$58) ->  | G132: =SUMIF('5.งานตอบสนองนโยบายและจุดเน้น'!#REF!,สรุปชั่วโมงสอนต่อสัปดาห์!I132,'5.งานตอบสนองนโยบายและจุดเน้น'!I$7:I$58) ->  | I132: 324 | J132: =IF(H132>ตัวแปร!C$37,1,"") -> 
B133: 3 | D133: 25 | E133: =SUMIF('3.ชั่วโมงสอนตามตารางสอน'!T$7:T$56,สรุปชั่วโมงสอนต่อสัปดาห์!I133,'3.ชั่วโมงสอนตามตารางสอน'!L$7:L$56) -> 0 | F133: =SUMIF('4.งานสนับสนุนการจัดการเรียนรู้'!#REF!,สรุปชั่วโมงสอนต่อสัปดาห์!I133,'4.งานสนับสนุนการจัดการเรียนรู้'!I$7:I$58) ->  | G133: =SUMIF('5.งานตอบสนองนโยบายและจุดเน้น'!#REF!,สรุปชั่วโมงสอนต่อสัปดาห์!I133,'5.งานตอบสนองนโยบายและจุดเน้น'!I$7:I$58) ->  | I133: 325 | J133: =IF(H133>ตัวแปร!C$37,1,"") -> 
B134: 3 | D134: 26 | E134: =SUMIF('3.ชั่วโมงสอนตามตารางสอน'!T$7:T$56,สรุปชั่วโมงสอนต่อสัปดาห์!I134,'3.ชั่วโมงสอนตามตารางสอน'!L$7:L$56) -> 0 | F134: =SUMIF('4.งานสนับสนุนการจัดการเรียนรู้'!#REF!,สรุปชั่วโมงสอนต่อสัปดาห์!I134,'4.งานสนับสนุนการจัดการเรียนรู้'!I$7:I$58) ->  | G134: =SUMIF('5.งานตอบสนองนโยบายและจุดเน้น'!#REF!,สรุปชั่วโมงสอนต่อสัปดาห์!I134,'5.งานตอบสนองนโยบายและจุดเน้น'!I$7:I$58) ->  | H134: =SUM(E134:G134) ->  | I134: =B134&+D134 -> 326 | J134: =IF(H134>ตัวแปร!C$37,1,"") ->  | K134: =IF(J134=1,"ตรวจสอบ","") -> 
B135: =IF(D134=52,B134+1,B134) -> 3 | D135: 27 | E135: =SUMIF('3.ชั่วโมงสอนตามตารางสอน'!T$7:T$56,สรุปชั่วโมงสอนต่อสัปดาห์!I135,'3.ชั่วโมงสอนตามตารางสอน'!L$7:L$56) -> 0 | F135: =SUMIF('4.งานสนับสนุนการจัดการเรียนรู้'!#REF!,สรุปชั่วโมงสอนต่อสัปดาห์!I135,'4.งานสนับสนุนการจัดการเรียนรู้'!I$7:I$58) ->  | G135: =SUMIF('5.งานตอบสนองนโยบายและจุดเน้น'!#REF!,สรุปชั่วโมงสอนต่อสัปดาห์!I135,'5.งานตอบสนองนโยบายและจุดเน้น'!I$7:I$58) ->  | I135: 327 | J135: =IF(H135>ตัวแปร!C$37,1,"") -> 
B136: 3 | D136: 28 | E136: =SUMIF('3.ชั่วโมงสอนตามตารางสอน'!T$7:T$56,สรุปชั่วโมงสอนต่อสัปดาห์!I136,'3.ชั่วโมงสอนตามตารางสอน'!L$7:L$56) -> 0 | F136: =SUMIF('4.งานสนับสนุนการจัดการเรียนรู้'!#REF!,สรุปชั่วโมงสอนต่อสัปดาห์!I136,'4.งานสนับสนุนการจัดการเรียนรู้'!I$7:I$58) ->  | G136: =SUMIF('5.งานตอบสนองนโยบายและจุดเน้น'!#REF!,สรุปชั่วโมงสอนต่อสัปดาห์!I136,'5.งานตอบสนองนโยบายและจุดเน้น'!I$7:I$58) ->  | I136: 328 | J136: =IF(H136>ตัวแปร!C$37,1,"") -> 
B137: 3 | D137: 29 | E137: =SUMIF('3.ชั่วโมงสอนตามตารางสอน'!T$7:T$56,สรุปชั่วโมงสอนต่อสัปดาห์!I137,'3.ชั่วโมงสอนตามตารางสอน'!L$7:L$56) -> 0 | F137: =SUMIF('4.งานสนับสนุนการจัดการเรียนรู้'!#REF!,สรุปชั่วโมงสอนต่อสัปดาห์!I137,'4.งานสนับสนุนการจัดการเรียนรู้'!I$7:I$58) ->  | G137: =SUMIF('5.งานตอบสนองนโยบายและจุดเน้น'!#REF!,สรุปชั่วโมงสอนต่อสัปดาห์!I137,'5.งานตอบสนองนโยบายและจุดเน้น'!I$7:I$58) ->  | I137: 329 | J137: =IF(H137>ตัวแปร!C$37,1,"") -> 
B138: 3 | D138: 30 | E138: =SUMIF('3.ชั่วโมงสอนตามตารางสอน'!T$7:T$56,สรุปชั่วโมงสอนต่อสัปดาห์!I138,'3.ชั่วโมงสอนตามตารางสอน'!L$7:L$56) -> 0 | F138: =SUMIF('4.งานสนับสนุนการจัดการเรียนรู้'!#REF!,สรุปชั่วโมงสอนต่อสัปดาห์!I138,'4.งานสนับสนุนการจัดการเรียนรู้'!I$7:I$58) ->  | G138: =SUMIF('5.งานตอบสนองนโยบายและจุดเน้น'!#REF!,สรุปชั่วโมงสอนต่อสัปดาห์!I138,'5.งานตอบสนองนโยบายและจุดเน้น'!I$7:I$58) ->  | I138: 330 | J138: =IF(H138>ตัวแปร!C$37,1,"") -> 
B139: 3 | D139: 31 | E139: =SUMIF('3.ชั่วโมงสอนตามตารางสอน'!T$7:T$56,สรุปชั่วโมงสอนต่อสัปดาห์!I139,'3.ชั่วโมงสอนตามตารางสอน'!L$7:L$56) -> 0 | F139: =SUMIF('4.งานสนับสนุนการจัดการเรียนรู้'!#REF!,สรุปชั่วโมงสอนต่อสัปดาห์!I139,'4.งานสนับสนุนการจัดการเรียนรู้'!I$7:I$58) ->  | G139: =SUMIF('5.งานตอบสนองนโยบายและจุดเน้น'!#REF!,สรุปชั่วโมงสอนต่อสัปดาห์!I139,'5.งานตอบสนองนโยบายและจุดเน้น'!I$7:I$58) ->  | I139: 331 | J139: =IF(H139>ตัวแปร!C$37,1,"") -> 
B140: 3 | D140: 32 | E140: =SUMIF('3.ชั่วโมงสอนตามตารางสอน'!T$7:T$56,สรุปชั่วโมงสอนต่อสัปดาห์!I140,'3.ชั่วโมงสอนตามตารางสอน'!L$7:L$56) -> 0 | F140: =SUMIF('4.งานสนับสนุนการจัดการเรียนรู้'!#REF!,สรุปชั่วโมงสอนต่อสัปดาห์!I140,'4.งานสนับสนุนการจัดการเรียนรู้'!I$7:I$58) ->  | G140: =SUMIF('5.งานตอบสนองนโยบายและจุดเน้น'!#REF!,สรุปชั่วโมงสอนต่อสัปดาห์!I140,'5.งานตอบสนองนโยบายและจุดเน้น'!I$7:I$58) ->  | I140: 332 | J140: =IF(H140>ตัวแปร!C$37,1,"") -> 
B141: 3 | D141: 33 | E141: =SUMIF('3.ชั่วโมงสอนตามตารางสอน'!T$7:T$56,สรุปชั่วโมงสอนต่อสัปดาห์!I141,'3.ชั่วโมงสอนตามตารางสอน'!L$7:L$56) -> 0 | F141: =SUMIF('4.งานสนับสนุนการจัดการเรียนรู้'!#REF!,สรุปชั่วโมงสอนต่อสัปดาห์!I141,'4.งานสนับสนุนการจัดการเรียนรู้'!I$7:I$58) ->  | G141: =SUMIF('5.งานตอบสนองนโยบายและจุดเน้น'!#REF!,สรุปชั่วโมงสอนต่อสัปดาห์!I141,'5.งานตอบสนองนโยบายและจุดเน้น'!I$7:I$58) ->  | I141: 333 | J141: =IF(H141>ตัวแปร!C$37,1,"") -> 
B142: 3 | D142: 34 | E142: =SUMIF('3.ชั่วโมงสอนตามตารางสอน'!T$7:T$56,สรุปชั่วโมงสอนต่อสัปดาห์!I142,'3.ชั่วโมงสอนตามตารางสอน'!L$7:L$56) -> 0 | F142: =SUMIF('4.งานสนับสนุนการจัดการเรียนรู้'!#REF!,สรุปชั่วโมงสอนต่อสัปดาห์!I142,'4.งานสนับสนุนการจัดการเรียนรู้'!I$7:I$58) ->  | G142: =SUMIF('5.งานตอบสนองนโยบายและจุดเน้น'!#REF!,สรุปชั่วโมงสอนต่อสัปดาห์!I142,'5.งานตอบสนองนโยบายและจุดเน้น'!I$7:I$58) ->  | I142: 334 | J142: =IF(H142>ตัวแปร!C$37,1,"") -> 
B143: 3 | D143: 35 | E143: =SUMIF('3.ชั่วโมงสอนตามตารางสอน'!T$7:T$56,สรุปชั่วโมงสอนต่อสัปดาห์!I143,'3.ชั่วโมงสอนตามตารางสอน'!L$7:L$56) -> 0 | F143: =SUMIF('4.งานสนับสนุนการจัดการเรียนรู้'!#REF!,สรุปชั่วโมงสอนต่อสัปดาห์!I143,'4.งานสนับสนุนการจัดการเรียนรู้'!I$7:I$58) ->  | G143: =SUMIF('5.งานตอบสนองนโยบายและจุดเน้น'!#REF!,สรุปชั่วโมงสอนต่อสัปดาห์!I143,'5.งานตอบสนองนโยบายและจุดเน้น'!I$7:I$58) ->  | I143: 335 | J143: =IF(H143>ตัวแปร!C$37,1,"") -> 
B144: 3 | D144: 36 | E144: =SUMIF('3.ชั่วโมงสอนตามตารางสอน'!T$7:T$56,สรุปชั่วโมงสอนต่อสัปดาห์!I144,'3.ชั่วโมงสอนตามตารางสอน'!L$7:L$56) -> 0 | F144: =SUMIF('4.งานสนับสนุนการจัดการเรียนรู้'!#REF!,สรุปชั่วโมงสอนต่อสัปดาห์!I144,'4.งานสนับสนุนการจัดการเรียนรู้'!I$7:I$58) ->  | G144: =SUMIF('5.งานตอบสนองนโยบายและจุดเน้น'!#REF!,สรุปชั่วโมงสอนต่อสัปดาห์!I144,'5.งานตอบสนองนโยบายและจุดเน้น'!I$7:I$58) ->  | I144: 336 | J144: =IF(H144>ตัวแปร!C$37,1,"") -> 
B145: 3 | D145: 37 | E145: =SUMIF('3.ชั่วโมงสอนตามตารางสอน'!T$7:T$56,สรุปชั่วโมงสอนต่อสัปดาห์!I145,'3.ชั่วโมงสอนตามตารางสอน'!L$7:L$56) -> 0 | F145: =SUMIF('4.งานสนับสนุนการจัดการเรียนรู้'!#REF!,สรุปชั่วโมงสอนต่อสัปดาห์!I145,'4.งานสนับสนุนการจัดการเรียนรู้'!I$7:I$58) ->  | G145: =SUMIF('5.งานตอบสนองนโยบายและจุดเน้น'!#REF!,สรุปชั่วโมงสอนต่อสัปดาห์!I145,'5.งานตอบสนองนโยบายและจุดเน้น'!I$7:I$58) ->  | I145: 337 | J145: =IF(H145>ตัวแปร!C$37,1,"") -> 
B146: 3 | D146: 38 | E146: =SUMIF('3.ชั่วโมงสอนตามตารางสอน'!T$7:T$56,สรุปชั่วโมงสอนต่อสัปดาห์!I146,'3.ชั่วโมงสอนตามตารางสอน'!L$7:L$56) -> 0 | F146: =SUMIF('4.งานสนับสนุนการจัดการเรียนรู้'!#REF!,สรุปชั่วโมงสอนต่อสัปดาห์!I146,'4.งานสนับสนุนการจัดการเรียนรู้'!I$7:I$58) ->  | G146: =SUMIF('5.งานตอบสนองนโยบายและจุดเน้น'!#REF!,สรุปชั่วโมงสอนต่อสัปดาห์!I146,'5.งานตอบสนองนโยบายและจุดเน้น'!I$7:I$58) ->  | I146: 338 | J146: =IF(H146>ตัวแปร!C$37,1,"") -> 
B147: 3 | D147: 39 | E147: =SUMIF('3.ชั่วโมงสอนตามตารางสอน'!T$7:T$56,สรุปชั่วโมงสอนต่อสัปดาห์!I147,'3.ชั่วโมงสอนตามตารางสอน'!L$7:L$56) -> 0 | F147: =SUMIF('4.งานสนับสนุนการจัดการเรียนรู้'!#REF!,สรุปชั่วโมงสอนต่อสัปดาห์!I147,'4.งานสนับสนุนการจัดการเรียนรู้'!I$7:I$58) ->  | G147: =SUMIF('5.งานตอบสนองนโยบายและจุดเน้น'!#REF!,สรุปชั่วโมงสอนต่อสัปดาห์!I147,'5.งานตอบสนองนโยบายและจุดเน้น'!I$7:I$58) ->  | I147: 339 | J147: =IF(H147>ตัวแปร!C$37,1,"") -> 
B148: 3 | D148: 40 | E148: =SUMIF('3.ชั่วโมงสอนตามตารางสอน'!T$7:T$56,สรุปชั่วโมงสอนต่อสัปดาห์!I148,'3.ชั่วโมงสอนตามตารางสอน'!L$7:L$56) -> 0 | F148: =SUMIF('4.งานสนับสนุนการจัดการเรียนรู้'!#REF!,สรุปชั่วโมงสอนต่อสัปดาห์!I148,'4.งานสนับสนุนการจัดการเรียนรู้'!I$7:I$58) ->  | G148: =SUMIF('5.งานตอบสนองนโยบายและจุดเน้น'!#REF!,สรุปชั่วโมงสอนต่อสัปดาห์!I148,'5.งานตอบสนองนโยบายและจุดเน้น'!I$7:I$58) ->  | I148: 340 | J148: =IF(H148>ตัวแปร!C$37,1,"") -> 
B149: 3 | D149: 41 | E149: =SUMIF('3.ชั่วโมงสอนตามตารางสอน'!T$7:T$56,สรุปชั่วโมงสอนต่อสัปดาห์!I149,'3.ชั่วโมงสอนตามตารางสอน'!L$7:L$56) -> 0 | F149: =SUMIF('4.งานสนับสนุนการจัดการเรียนรู้'!#REF!,สรุปชั่วโมงสอนต่อสัปดาห์!I149,'4.งานสนับสนุนการจัดการเรียนรู้'!I$7:I$58) ->  | G149: =SUMIF('5.งานตอบสนองนโยบายและจุดเน้น'!#REF!,สรุปชั่วโมงสอนต่อสัปดาห์!I149,'5.งานตอบสนองนโยบายและจุดเน้น'!I$7:I$58) ->  | I149: 341 | J149: =IF(H149>ตัวแปร!C$37,1,"") -> 
B150: 3 | D150: 42 | E150: =SUMIF('3.ชั่วโมงสอนตามตารางสอน'!T$7:T$56,สรุปชั่วโมงสอนต่อสัปดาห์!I150,'3.ชั่วโมงสอนตามตารางสอน'!L$7:L$56) -> 0 | F150: =SUMIF('4.งานสนับสนุนการจัดการเรียนรู้'!#REF!,สรุปชั่วโมงสอนต่อสัปดาห์!I150,'4.งานสนับสนุนการจัดการเรียนรู้'!I$7:I$58) ->  | G150: =SUMIF('5.งานตอบสนองนโยบายและจุดเน้น'!#REF!,สรุปชั่วโมงสอนต่อสัปดาห์!I150,'5.งานตอบสนองนโยบายและจุดเน้น'!I$7:I$58) ->  | I150: 342 | J150: =IF(H150>ตัวแปร!C$37,1,"") -> 
B151: 3 | D151: 43 | E151: =SUMIF('3.ชั่วโมงสอนตามตารางสอน'!T$7:T$56,สรุปชั่วโมงสอนต่อสัปดาห์!I151,'3.ชั่วโมงสอนตามตารางสอน'!L$7:L$56) -> 0 | F151: =SUMIF('4.งานสนับสนุนการจัดการเรียนรู้'!#REF!,สรุปชั่วโมงสอนต่อสัปดาห์!I151,'4.งานสนับสนุนการจัดการเรียนรู้'!I$7:I$58) ->  | G151: =SUMIF('5.งานตอบสนองนโยบายและจุดเน้น'!#REF!,สรุปชั่วโมงสอนต่อสัปดาห์!I151,'5.งานตอบสนองนโยบายและจุดเน้น'!I$7:I$58) ->  | I151: 343 | J151: =IF(H151>ตัวแปร!C$37,1,"") -> 
B152: 3 | D152: 44 | E152: =SUMIF('3.ชั่วโมงสอนตามตารางสอน'!T$7:T$56,สรุปชั่วโมงสอนต่อสัปดาห์!I152,'3.ชั่วโมงสอนตามตารางสอน'!L$7:L$56) -> 0 | F152: =SUMIF('4.งานสนับสนุนการจัดการเรียนรู้'!#REF!,สรุปชั่วโมงสอนต่อสัปดาห์!I152,'4.งานสนับสนุนการจัดการเรียนรู้'!I$7:I$58) ->  | G152: =SUMIF('5.งานตอบสนองนโยบายและจุดเน้น'!#REF!,สรุปชั่วโมงสอนต่อสัปดาห์!I152,'5.งานตอบสนองนโยบายและจุดเน้น'!I$7:I$58) ->  | I152: 344 | J152: =IF(H152>ตัวแปร!C$37,1,"") -> 
B153: 3 | D153: 45 | E153: =SUMIF('3.ชั่วโมงสอนตามตารางสอน'!T$7:T$56,สรุปชั่วโมงสอนต่อสัปดาห์!I153,'3.ชั่วโมงสอนตามตารางสอน'!L$7:L$56) -> 0 | F153: =SUMIF('4.งานสนับสนุนการจัดการเรียนรู้'!#REF!,สรุปชั่วโมงสอนต่อสัปดาห์!I153,'4.งานสนับสนุนการจัดการเรียนรู้'!I$7:I$58) ->  | G153: =SUMIF('5.งานตอบสนองนโยบายและจุดเน้น'!#REF!,สรุปชั่วโมงสอนต่อสัปดาห์!I153,'5.งานตอบสนองนโยบายและจุดเน้น'!I$7:I$58) ->  | I153: 345 | J153: =IF(H153>ตัวแปร!C$37,1,"") -> 
B154: 3 | D154: 46 | E154: =SUMIF('3.ชั่วโมงสอนตามตารางสอน'!T$7:T$56,สรุปชั่วโมงสอนต่อสัปดาห์!I154,'3.ชั่วโมงสอนตามตารางสอน'!L$7:L$56) -> 0 | F154: =SUMIF('4.งานสนับสนุนการจัดการเรียนรู้'!#REF!,สรุปชั่วโมงสอนต่อสัปดาห์!I154,'4.งานสนับสนุนการจัดการเรียนรู้'!I$7:I$58) ->  | G154: =SUMIF('5.งานตอบสนองนโยบายและจุดเน้น'!#REF!,สรุปชั่วโมงสอนต่อสัปดาห์!I154,'5.งานตอบสนองนโยบายและจุดเน้น'!I$7:I$58) ->  | I154: 346 | J154: =IF(H154>ตัวแปร!C$37,1,"") -> 
B155: 3 | D155: 47 | E155: =SUMIF('3.ชั่วโมงสอนตามตารางสอน'!T$7:T$56,สรุปชั่วโมงสอนต่อสัปดาห์!I155,'3.ชั่วโมงสอนตามตารางสอน'!L$7:L$56) -> 0 | F155: =SUMIF('4.งานสนับสนุนการจัดการเรียนรู้'!#REF!,สรุปชั่วโมงสอนต่อสัปดาห์!I155,'4.งานสนับสนุนการจัดการเรียนรู้'!I$7:I$58) ->  | G155: =SUMIF('5.งานตอบสนองนโยบายและจุดเน้น'!#REF!,สรุปชั่วโมงสอนต่อสัปดาห์!I155,'5.งานตอบสนองนโยบายและจุดเน้น'!I$7:I$58) ->  | I155: 347 | J155: =IF(H155>ตัวแปร!C$37,1,"") -> 
B156: 3 | D156: 48 | E156: =SUMIF('3.ชั่วโมงสอนตามตารางสอน'!T$7:T$56,สรุปชั่วโมงสอนต่อสัปดาห์!I156,'3.ชั่วโมงสอนตามตารางสอน'!L$7:L$56) -> 0 | F156: =SUMIF('4.งานสนับสนุนการจัดการเรียนรู้'!#REF!,สรุปชั่วโมงสอนต่อสัปดาห์!I156,'4.งานสนับสนุนการจัดการเรียนรู้'!I$7:I$58) ->  | G156: =SUMIF('5.งานตอบสนองนโยบายและจุดเน้น'!#REF!,สรุปชั่วโมงสอนต่อสัปดาห์!I156,'5.งานตอบสนองนโยบายและจุดเน้น'!I$7:I$58) ->  | I156: 348 | J156: =IF(H156>ตัวแปร!C$37,1,"") -> 
B157: 3 | D157: 49 | E157: =SUMIF('3.ชั่วโมงสอนตามตารางสอน'!T$7:T$56,สรุปชั่วโมงสอนต่อสัปดาห์!I157,'3.ชั่วโมงสอนตามตารางสอน'!L$7:L$56) -> 0 | F157: =SUMIF('4.งานสนับสนุนการจัดการเรียนรู้'!#REF!,สรุปชั่วโมงสอนต่อสัปดาห์!I157,'4.งานสนับสนุนการจัดการเรียนรู้'!I$7:I$58) ->  | G157: =SUMIF('5.งานตอบสนองนโยบายและจุดเน้น'!#REF!,สรุปชั่วโมงสอนต่อสัปดาห์!I157,'5.งานตอบสนองนโยบายและจุดเน้น'!I$7:I$58) ->  | I157: 349 | J157: =IF(H157>ตัวแปร!C$37,1,"") -> 
B158: 3 | D158: 50 | E158: =SUMIF('3.ชั่วโมงสอนตามตารางสอน'!T$7:T$56,สรุปชั่วโมงสอนต่อสัปดาห์!I158,'3.ชั่วโมงสอนตามตารางสอน'!L$7:L$56) -> 0 | F158: =SUMIF('4.งานสนับสนุนการจัดการเรียนรู้'!#REF!,สรุปชั่วโมงสอนต่อสัปดาห์!I158,'4.งานสนับสนุนการจัดการเรียนรู้'!I$7:I$58) ->  | G158: =SUMIF('5.งานตอบสนองนโยบายและจุดเน้น'!#REF!,สรุปชั่วโมงสอนต่อสัปดาห์!I158,'5.งานตอบสนองนโยบายและจุดเน้น'!I$7:I$58) ->  | I158: 350 | J158: =IF(H158>ตัวแปร!C$37,1,"") -> 
B159: 3 | D159: 51 | E159: =SUMIF('3.ชั่วโมงสอนตามตารางสอน'!T$7:T$56,สรุปชั่วโมงสอนต่อสัปดาห์!I159,'3.ชั่วโมงสอนตามตารางสอน'!L$7:L$56) -> 0 | F159: =SUMIF('4.งานสนับสนุนการจัดการเรียนรู้'!#REF!,สรุปชั่วโมงสอนต่อสัปดาห์!I159,'4.งานสนับสนุนการจัดการเรียนรู้'!I$7:I$58) ->  | G159: =SUMIF('5.งานตอบสนองนโยบายและจุดเน้น'!#REF!,สรุปชั่วโมงสอนต่อสัปดาห์!I159,'5.งานตอบสนองนโยบายและจุดเน้น'!I$7:I$58) ->  | I159: 351 | J159: =IF(H159>ตัวแปร!C$37,1,"") -> 
B160: 3 | D160: 52 | E160: =SUMIF('3.ชั่วโมงสอนตามตารางสอน'!T$7:T$56,สรุปชั่วโมงสอนต่อสัปดาห์!I160,'3.ชั่วโมงสอนตามตารางสอน'!L$7:L$56) -> 0 | F160: =SUMIF('4.งานสนับสนุนการจัดการเรียนรู้'!#REF!,สรุปชั่วโมงสอนต่อสัปดาห์!I160,'4.งานสนับสนุนการจัดการเรียนรู้'!I$7:I$58) ->  | G160: =SUMIF('5.งานตอบสนองนโยบายและจุดเน้น'!#REF!,สรุปชั่วโมงสอนต่อสัปดาห์!I160,'5.งานตอบสนองนโยบายและจุดเน้น'!I$7:I$58) ->  | I160: 352 | J160: =IF(H160>ตัวแปร!C$37,1,"") -> 
B161: 4 | D161: 1 | E161: =SUMIF('3.ชั่วโมงสอนตามตารางสอน'!T$7:T$56,สรุปชั่วโมงสอนต่อสัปดาห์!I161,'3.ชั่วโมงสอนตามตารางสอน'!L$7:L$56) -> 0 | F161: =SUMIF('4.งานสนับสนุนการจัดการเรียนรู้'!#REF!,สรุปชั่วโมงสอนต่อสัปดาห์!I161,'4.งานสนับสนุนการจัดการเรียนรู้'!I$7:I$58) ->  | G161: =SUMIF('5.งานตอบสนองนโยบายและจุดเน้น'!#REF!,สรุปชั่วโมงสอนต่อสัปดาห์!I161,'5.งานตอบสนองนโยบายและจุดเน้น'!I$7:I$58) ->  | I161: 41 | J161: =IF(H161>ตัวแปร!C$37,1,"") -> 
B162: 4 | D162: 2 | E162: =SUMIF('3.ชั่วโมงสอนตามตารางสอน'!T$7:T$56,สรุปชั่วโมงสอนต่อสัปดาห์!I162,'3.ชั่วโมงสอนตามตารางสอน'!L$7:L$56) -> 0 | F162: =SUMIF('4.งานสนับสนุนการจัดการเรียนรู้'!#REF!,สรุปชั่วโมงสอนต่อสัปดาห์!I162,'4.งานสนับสนุนการจัดการเรียนรู้'!I$7:I$58) ->  | G162: =SUMIF('5.งานตอบสนองนโยบายและจุดเน้น'!#REF!,สรุปชั่วโมงสอนต่อสัปดาห์!I162,'5.งานตอบสนองนโยบายและจุดเน้น'!I$7:I$58) ->  | I162: 42 | J162: =IF(H162>ตัวแปร!C$37,1,"") -> 
B163: 4 | D163: 3 | E163: =SUMIF('3.ชั่วโมงสอนตามตารางสอน'!T$7:T$56,สรุปชั่วโมงสอนต่อสัปดาห์!I163,'3.ชั่วโมงสอนตามตารางสอน'!L$7:L$56) -> 0 | F163: =SUMIF('4.งานสนับสนุนการจัดการเรียนรู้'!#REF!,สรุปชั่วโมงสอนต่อสัปดาห์!I163,'4.งานสนับสนุนการจัดการเรียนรู้'!I$7:I$58) ->  | G163: =SUMIF('5.งานตอบสนองนโยบายและจุดเน้น'!#REF!,สรุปชั่วโมงสอนต่อสัปดาห์!I163,'5.งานตอบสนองนโยบายและจุดเน้น'!I$7:I$58) ->  | I163: 43 | J163: =IF(H163>ตัวแปร!C$37,1,"") -> 
B164: 4 | D164: 4 | E164: =SUMIF('3.ชั่วโมงสอนตามตารางสอน'!T$7:T$56,สรุปชั่วโมงสอนต่อสัปดาห์!I164,'3.ชั่วโมงสอนตามตารางสอน'!L$7:L$56) -> 0 | F164: =SUMIF('4.งานสนับสนุนการจัดการเรียนรู้'!#REF!,สรุปชั่วโมงสอนต่อสัปดาห์!I164,'4.งานสนับสนุนการจัดการเรียนรู้'!I$7:I$58) ->  | G164: =SUMIF('5.งานตอบสนองนโยบายและจุดเน้น'!#REF!,สรุปชั่วโมงสอนต่อสัปดาห์!I164,'5.งานตอบสนองนโยบายและจุดเน้น'!I$7:I$58) ->  | I164: 44 | J164: =IF(H164>ตัวแปร!C$37,1,"") -> 
B165: 4 | D165: 5 | E165: =SUMIF('3.ชั่วโมงสอนตามตารางสอน'!T$7:T$56,สรุปชั่วโมงสอนต่อสัปดาห์!I165,'3.ชั่วโมงสอนตามตารางสอน'!L$7:L$56) -> 0 | F165: =SUMIF('4.งานสนับสนุนการจัดการเรียนรู้'!#REF!,สรุปชั่วโมงสอนต่อสัปดาห์!I165,'4.งานสนับสนุนการจัดการเรียนรู้'!I$7:I$58) ->  | G165: =SUMIF('5.งานตอบสนองนโยบายและจุดเน้น'!#REF!,สรุปชั่วโมงสอนต่อสัปดาห์!I165,'5.งานตอบสนองนโยบายและจุดเน้น'!I$7:I$58) ->  | I165: 45 | J165: =IF(H165>ตัวแปร!C$37,1,"") -> 
B166: 4 | D166: 6 | E166: =SUMIF('3.ชั่วโมงสอนตามตารางสอน'!T$7:T$56,สรุปชั่วโมงสอนต่อสัปดาห์!I166,'3.ชั่วโมงสอนตามตารางสอน'!L$7:L$56) -> 0 | F166: =SUMIF('4.งานสนับสนุนการจัดการเรียนรู้'!#REF!,สรุปชั่วโมงสอนต่อสัปดาห์!I166,'4.งานสนับสนุนการจัดการเรียนรู้'!I$7:I$58) ->  | G166: =SUMIF('5.งานตอบสนองนโยบายและจุดเน้น'!#REF!,สรุปชั่วโมงสอนต่อสัปดาห์!I166,'5.งานตอบสนองนโยบายและจุดเน้น'!I$7:I$58) ->  | I166: 46 | J166: =IF(H166>ตัวแปร!C$37,1,"") -> 
B167: 4 | D167: 7 | E167: =SUMIF('3.ชั่วโมงสอนตามตารางสอน'!T$7:T$56,สรุปชั่วโมงสอนต่อสัปดาห์!I167,'3.ชั่วโมงสอนตามตารางสอน'!L$7:L$56) -> 0 | F167: =SUMIF('4.งานสนับสนุนการจัดการเรียนรู้'!#REF!,สรุปชั่วโมงสอนต่อสัปดาห์!I167,'4.งานสนับสนุนการจัดการเรียนรู้'!I$7:I$58) ->  | G167: =SUMIF('5.งานตอบสนองนโยบายและจุดเน้น'!#REF!,สรุปชั่วโมงสอนต่อสัปดาห์!I167,'5.งานตอบสนองนโยบายและจุดเน้น'!I$7:I$58) ->  | I167: 47 | J167: =IF(H167>ตัวแปร!C$37,1,"") -> 
B168: 4 | D168: 8 | E168: =SUMIF('3.ชั่วโมงสอนตามตารางสอน'!T$7:T$56,สรุปชั่วโมงสอนต่อสัปดาห์!I168,'3.ชั่วโมงสอนตามตารางสอน'!L$7:L$56) -> 0 | F168: =SUMIF('4.งานสนับสนุนการจัดการเรียนรู้'!#REF!,สรุปชั่วโมงสอนต่อสัปดาห์!I168,'4.งานสนับสนุนการจัดการเรียนรู้'!I$7:I$58) ->  | G168: =SUMIF('5.งานตอบสนองนโยบายและจุดเน้น'!#REF!,สรุปชั่วโมงสอนต่อสัปดาห์!I168,'5.งานตอบสนองนโยบายและจุดเน้น'!I$7:I$58) ->  | I168: 48 | J168: =IF(H168>ตัวแปร!C$37,1,"") -> 
B169: 4 | D169: 9 | E169: =SUMIF('3.ชั่วโมงสอนตามตารางสอน'!T$7:T$56,สรุปชั่วโมงสอนต่อสัปดาห์!I169,'3.ชั่วโมงสอนตามตารางสอน'!L$7:L$56) -> 0 | F169: =SUMIF('4.งานสนับสนุนการจัดการเรียนรู้'!#REF!,สรุปชั่วโมงสอนต่อสัปดาห์!I169,'4.งานสนับสนุนการจัดการเรียนรู้'!I$7:I$58) ->  | G169: =SUMIF('5.งานตอบสนองนโยบายและจุดเน้น'!#REF!,สรุปชั่วโมงสอนต่อสัปดาห์!I169,'5.งานตอบสนองนโยบายและจุดเน้น'!I$7:I$58) ->  | I169: 49 | J169: =IF(H169>ตัวแปร!C$37,1,"") -> 
B170: 4 | D170: 10 | E170: =SUMIF('3.ชั่วโมงสอนตามตารางสอน'!T$7:T$56,สรุปชั่วโมงสอนต่อสัปดาห์!I170,'3.ชั่วโมงสอนตามตารางสอน'!L$7:L$56) -> 0 | F170: =SUMIF('4.งานสนับสนุนการจัดการเรียนรู้'!#REF!,สรุปชั่วโมงสอนต่อสัปดาห์!I170,'4.งานสนับสนุนการจัดการเรียนรู้'!I$7:I$58) ->  | G170: =SUMIF('5.งานตอบสนองนโยบายและจุดเน้น'!#REF!,สรุปชั่วโมงสอนต่อสัปดาห์!I170,'5.งานตอบสนองนโยบายและจุดเน้น'!I$7:I$58) ->  | I170: 410 | J170: =IF(H170>ตัวแปร!C$37,1,"") -> 
B171: 4 | D171: 11 | E171: =SUMIF('3.ชั่วโมงสอนตามตารางสอน'!T$7:T$56,สรุปชั่วโมงสอนต่อสัปดาห์!I171,'3.ชั่วโมงสอนตามตารางสอน'!L$7:L$56) -> 0 | F171: =SUMIF('4.งานสนับสนุนการจัดการเรียนรู้'!#REF!,สรุปชั่วโมงสอนต่อสัปดาห์!I171,'4.งานสนับสนุนการจัดการเรียนรู้'!I$7:I$58) ->  | G171: =SUMIF('5.งานตอบสนองนโยบายและจุดเน้น'!#REF!,สรุปชั่วโมงสอนต่อสัปดาห์!I171,'5.งานตอบสนองนโยบายและจุดเน้น'!I$7:I$58) ->  | I171: 411 | J171: =IF(H171>ตัวแปร!C$37,1,"") -> 
B172: 4 | D172: 12 | E172: =SUMIF('3.ชั่วโมงสอนตามตารางสอน'!T$7:T$56,สรุปชั่วโมงสอนต่อสัปดาห์!I172,'3.ชั่วโมงสอนตามตารางสอน'!L$7:L$56) -> 0 | F172: =SUMIF('4.งานสนับสนุนการจัดการเรียนรู้'!#REF!,สรุปชั่วโมงสอนต่อสัปดาห์!I172,'4.งานสนับสนุนการจัดการเรียนรู้'!I$7:I$58) ->  | G172: =SUMIF('5.งานตอบสนองนโยบายและจุดเน้น'!#REF!,สรุปชั่วโมงสอนต่อสัปดาห์!I172,'5.งานตอบสนองนโยบายและจุดเน้น'!I$7:I$58) ->  | I172: 412 | J172: =IF(H172>ตัวแปร!C$37,1,"") -> 
B173: 4 | D173: 13 | E173: =SUMIF('3.ชั่วโมงสอนตามตารางสอน'!T$7:T$56,สรุปชั่วโมงสอนต่อสัปดาห์!I173,'3.ชั่วโมงสอนตามตารางสอน'!L$7:L$56) -> 0 | F173: =SUMIF('4.งานสนับสนุนการจัดการเรียนรู้'!#REF!,สรุปชั่วโมงสอนต่อสัปดาห์!I173,'4.งานสนับสนุนการจัดการเรียนรู้'!I$7:I$58) ->  | G173: =SUMIF('5.งานตอบสนองนโยบายและจุดเน้น'!#REF!,สรุปชั่วโมงสอนต่อสัปดาห์!I173,'5.งานตอบสนองนโยบายและจุดเน้น'!I$7:I$58) ->  | I173: 413 | J173: =IF(H173>ตัวแปร!C$37,1,"") -> 
B174: 4 | D174: 14 | E174: =SUMIF('3.ชั่วโมงสอนตามตารางสอน'!T$7:T$56,สรุปชั่วโมงสอนต่อสัปดาห์!I174,'3.ชั่วโมงสอนตามตารางสอน'!L$7:L$56) -> 0 | F174: =SUMIF('4.งานสนับสนุนการจัดการเรียนรู้'!#REF!,สรุปชั่วโมงสอนต่อสัปดาห์!I174,'4.งานสนับสนุนการจัดการเรียนรู้'!I$7:I$58) ->  | G174: =SUMIF('5.งานตอบสนองนโยบายและจุดเน้น'!#REF!,สรุปชั่วโมงสอนต่อสัปดาห์!I174,'5.งานตอบสนองนโยบายและจุดเน้น'!I$7:I$58) ->  | I174: 414 | J174: =IF(H174>ตัวแปร!C$37,1,"") -> 
B175: 4 | D175: 15 | E175: =SUMIF('3.ชั่วโมงสอนตามตารางสอน'!T$7:T$56,สรุปชั่วโมงสอนต่อสัปดาห์!I175,'3.ชั่วโมงสอนตามตารางสอน'!L$7:L$56) -> 0 | F175: =SUMIF('4.งานสนับสนุนการจัดการเรียนรู้'!#REF!,สรุปชั่วโมงสอนต่อสัปดาห์!I175,'4.งานสนับสนุนการจัดการเรียนรู้'!I$7:I$58) ->  | G175: =SUMIF('5.งานตอบสนองนโยบายและจุดเน้น'!#REF!,สรุปชั่วโมงสอนต่อสัปดาห์!I175,'5.งานตอบสนองนโยบายและจุดเน้น'!I$7:I$58) ->  | I175: 415 | J175: =IF(H175>ตัวแปร!C$37,1,"") -> 
B176: 4 | D176: 16 | E176: =SUMIF('3.ชั่วโมงสอนตามตารางสอน'!T$7:T$56,สรุปชั่วโมงสอนต่อสัปดาห์!I176,'3.ชั่วโมงสอนตามตารางสอน'!L$7:L$56) -> 0 | F176: =SUMIF('4.งานสนับสนุนการจัดการเรียนรู้'!#REF!,สรุปชั่วโมงสอนต่อสัปดาห์!I176,'4.งานสนับสนุนการจัดการเรียนรู้'!I$7:I$58) ->  | G176: =SUMIF('5.งานตอบสนองนโยบายและจุดเน้น'!#REF!,สรุปชั่วโมงสอนต่อสัปดาห์!I176,'5.งานตอบสนองนโยบายและจุดเน้น'!I$7:I$58) ->  | I176: 416 | J176: =IF(H176>ตัวแปร!C$37,1,"") -> 
B177: 4 | D177: 17 | E177: =SUMIF('3.ชั่วโมงสอนตามตารางสอน'!T$7:T$56,สรุปชั่วโมงสอนต่อสัปดาห์!I177,'3.ชั่วโมงสอนตามตารางสอน'!L$7:L$56) -> 0 | F177: =SUMIF('4.งานสนับสนุนการจัดการเรียนรู้'!#REF!,สรุปชั่วโมงสอนต่อสัปดาห์!I177,'4.งานสนับสนุนการจัดการเรียนรู้'!I$7:I$58) ->  | G177: =SUMIF('5.งานตอบสนองนโยบายและจุดเน้น'!#REF!,สรุปชั่วโมงสอนต่อสัปดาห์!I177,'5.งานตอบสนองนโยบายและจุดเน้น'!I$7:I$58) ->  | I177: 417 | J177: =IF(H177>ตัวแปร!C$37,1,"") -> 
B178: 4 | D178: 18 | E178: =SUMIF('3.ชั่วโมงสอนตามตารางสอน'!T$7:T$56,สรุปชั่วโมงสอนต่อสัปดาห์!I178,'3.ชั่วโมงสอนตามตารางสอน'!L$7:L$56) -> 0 | F178: =SUMIF('4.งานสนับสนุนการจัดการเรียนรู้'!#REF!,สรุปชั่วโมงสอนต่อสัปดาห์!I178,'4.งานสนับสนุนการจัดการเรียนรู้'!I$7:I$58) ->  | G178: =SUMIF('5.งานตอบสนองนโยบายและจุดเน้น'!#REF!,สรุปชั่วโมงสอนต่อสัปดาห์!I178,'5.งานตอบสนองนโยบายและจุดเน้น'!I$7:I$58) ->  | I178: 418 | J178: =IF(H178>ตัวแปร!C$37,1,"") -> 
B179: 4 | D179: 19 | E179: =SUMIF('3.ชั่วโมงสอนตามตารางสอน'!T$7:T$56,สรุปชั่วโมงสอนต่อสัปดาห์!I179,'3.ชั่วโมงสอนตามตารางสอน'!L$7:L$56) -> 0 | F179: =SUMIF('4.งานสนับสนุนการจัดการเรียนรู้'!#REF!,สรุปชั่วโมงสอนต่อสัปดาห์!I179,'4.งานสนับสนุนการจัดการเรียนรู้'!I$7:I$58) ->  | G179: =SUMIF('5.งานตอบสนองนโยบายและจุดเน้น'!#REF!,สรุปชั่วโมงสอนต่อสัปดาห์!I179,'5.งานตอบสนองนโยบายและจุดเน้น'!I$7:I$58) ->  | I179: 419 | J179: =IF(H179>ตัวแปร!C$37,1,"") -> 
B180: 4 | D180: 20 | E180: =SUMIF('3.ชั่วโมงสอนตามตารางสอน'!T$7:T$56,สรุปชั่วโมงสอนต่อสัปดาห์!I180,'3.ชั่วโมงสอนตามตารางสอน'!L$7:L$56) -> 0 | F180: =SUMIF('4.งานสนับสนุนการจัดการเรียนรู้'!#REF!,สรุปชั่วโมงสอนต่อสัปดาห์!I180,'4.งานสนับสนุนการจัดการเรียนรู้'!I$7:I$58) ->  | G180: =SUMIF('5.งานตอบสนองนโยบายและจุดเน้น'!#REF!,สรุปชั่วโมงสอนต่อสัปดาห์!I180,'5.งานตอบสนองนโยบายและจุดเน้น'!I$7:I$58) ->  | I180: 420 | J180: =IF(H180>ตัวแปร!C$37,1,"") -> 
B181: 4 | D181: 21 | E181: =SUMIF('3.ชั่วโมงสอนตามตารางสอน'!T$7:T$56,สรุปชั่วโมงสอนต่อสัปดาห์!I181,'3.ชั่วโมงสอนตามตารางสอน'!L$7:L$56) -> 0 | F181: =SUMIF('4.งานสนับสนุนการจัดการเรียนรู้'!#REF!,สรุปชั่วโมงสอนต่อสัปดาห์!I181,'4.งานสนับสนุนการจัดการเรียนรู้'!I$7:I$58) ->  | G181: =SUMIF('5.งานตอบสนองนโยบายและจุดเน้น'!#REF!,สรุปชั่วโมงสอนต่อสัปดาห์!I181,'5.งานตอบสนองนโยบายและจุดเน้น'!I$7:I$58) ->  | I181: 421 | J181: =IF(H181>ตัวแปร!C$37,1,"") -> 
B182: 4 | D182: 22 | E182: =SUMIF('3.ชั่วโมงสอนตามตารางสอน'!T$7:T$56,สรุปชั่วโมงสอนต่อสัปดาห์!I182,'3.ชั่วโมงสอนตามตารางสอน'!L$7:L$56) -> 0 | F182: =SUMIF('4.งานสนับสนุนการจัดการเรียนรู้'!#REF!,สรุปชั่วโมงสอนต่อสัปดาห์!I182,'4.งานสนับสนุนการจัดการเรียนรู้'!I$7:I$58) ->  | G182: =SUMIF('5.งานตอบสนองนโยบายและจุดเน้น'!#REF!,สรุปชั่วโมงสอนต่อสัปดาห์!I182,'5.งานตอบสนองนโยบายและจุดเน้น'!I$7:I$58) ->  | I182: 422 | J182: =IF(H182>ตัวแปร!C$37,1,"") -> 
B183: 4 | D183: 23 | E183: =SUMIF('3.ชั่วโมงสอนตามตารางสอน'!T$7:T$56,สรุปชั่วโมงสอนต่อสัปดาห์!I183,'3.ชั่วโมงสอนตามตารางสอน'!L$7:L$56) -> 0 | F183: =SUMIF('4.งานสนับสนุนการจัดการเรียนรู้'!#REF!,สรุปชั่วโมงสอนต่อสัปดาห์!I183,'4.งานสนับสนุนการจัดการเรียนรู้'!I$7:I$58) ->  | G183: =SUMIF('5.งานตอบสนองนโยบายและจุดเน้น'!#REF!,สรุปชั่วโมงสอนต่อสัปดาห์!I183,'5.งานตอบสนองนโยบายและจุดเน้น'!I$7:I$58) ->  | I183: 423 | J183: =IF(H183>ตัวแปร!C$37,1,"") -> 
B184: 4 | D184: 24 | E184: =SUMIF('3.ชั่วโมงสอนตามตารางสอน'!T$7:T$56,สรุปชั่วโมงสอนต่อสัปดาห์!I184,'3.ชั่วโมงสอนตามตารางสอน'!L$7:L$56) -> 0 | F184: =SUMIF('4.งานสนับสนุนการจัดการเรียนรู้'!#REF!,สรุปชั่วโมงสอนต่อสัปดาห์!I184,'4.งานสนับสนุนการจัดการเรียนรู้'!I$7:I$58) ->  | G184: =SUMIF('5.งานตอบสนองนโยบายและจุดเน้น'!#REF!,สรุปชั่วโมงสอนต่อสัปดาห์!I184,'5.งานตอบสนองนโยบายและจุดเน้น'!I$7:I$58) ->  | I184: 424 | J184: =IF(H184>ตัวแปร!C$37,1,"") -> 
B185: 4 | D185: 25 | E185: =SUMIF('3.ชั่วโมงสอนตามตารางสอน'!T$7:T$56,สรุปชั่วโมงสอนต่อสัปดาห์!I185,'3.ชั่วโมงสอนตามตารางสอน'!L$7:L$56) -> 0 | F185: =SUMIF('4.งานสนับสนุนการจัดการเรียนรู้'!#REF!,สรุปชั่วโมงสอนต่อสัปดาห์!I185,'4.งานสนับสนุนการจัดการเรียนรู้'!I$7:I$58) ->  | G185: =SUMIF('5.งานตอบสนองนโยบายและจุดเน้น'!#REF!,สรุปชั่วโมงสอนต่อสัปดาห์!I185,'5.งานตอบสนองนโยบายและจุดเน้น'!I$7:I$58) ->  | I185: 425 | J185: =IF(H185>ตัวแปร!C$37,1,"") -> 
B186: 4 | D186: 26 | E186: =SUMIF('3.ชั่วโมงสอนตามตารางสอน'!T$7:T$56,สรุปชั่วโมงสอนต่อสัปดาห์!I186,'3.ชั่วโมงสอนตามตารางสอน'!L$7:L$56) -> 0 | F186: =SUMIF('4.งานสนับสนุนการจัดการเรียนรู้'!#REF!,สรุปชั่วโมงสอนต่อสัปดาห์!I186,'4.งานสนับสนุนการจัดการเรียนรู้'!I$7:I$58) ->  | G186: =SUMIF('5.งานตอบสนองนโยบายและจุดเน้น'!#REF!,สรุปชั่วโมงสอนต่อสัปดาห์!I186,'5.งานตอบสนองนโยบายและจุดเน้น'!I$7:I$58) ->  | I186: 426 | J186: =IF(H186>ตัวแปร!C$37,1,"") -> 
B187: 4 | D187: 27 | E187: =SUMIF('3.ชั่วโมงสอนตามตารางสอน'!T$7:T$56,สรุปชั่วโมงสอนต่อสัปดาห์!I187,'3.ชั่วโมงสอนตามตารางสอน'!L$7:L$56) -> 0 | F187: =SUMIF('4.งานสนับสนุนการจัดการเรียนรู้'!#REF!,สรุปชั่วโมงสอนต่อสัปดาห์!I187,'4.งานสนับสนุนการจัดการเรียนรู้'!I$7:I$58) ->  | G187: =SUMIF('5.งานตอบสนองนโยบายและจุดเน้น'!#REF!,สรุปชั่วโมงสอนต่อสัปดาห์!I187,'5.งานตอบสนองนโยบายและจุดเน้น'!I$7:I$58) ->  | I187: 427 | J187: =IF(H187>ตัวแปร!C$37,1,"") -> 
B188: 4 | D188: 28 | E188: =SUMIF('3.ชั่วโมงสอนตามตารางสอน'!T$7:T$56,สรุปชั่วโมงสอนต่อสัปดาห์!I188,'3.ชั่วโมงสอนตามตารางสอน'!L$7:L$56) -> 0 | F188: =SUMIF('4.งานสนับสนุนการจัดการเรียนรู้'!#REF!,สรุปชั่วโมงสอนต่อสัปดาห์!I188,'4.งานสนับสนุนการจัดการเรียนรู้'!I$7:I$58) ->  | G188: =SUMIF('5.งานตอบสนองนโยบายและจุดเน้น'!#REF!,สรุปชั่วโมงสอนต่อสัปดาห์!I188,'5.งานตอบสนองนโยบายและจุดเน้น'!I$7:I$58) ->  | I188: 428 | J188: =IF(H188>ตัวแปร!C$37,1,"") -> 
B189: 4 | D189: 29 | E189: =SUMIF('3.ชั่วโมงสอนตามตารางสอน'!T$7:T$56,สรุปชั่วโมงสอนต่อสัปดาห์!I189,'3.ชั่วโมงสอนตามตารางสอน'!L$7:L$56) -> 0 | F189: =SUMIF('4.งานสนับสนุนการจัดการเรียนรู้'!#REF!,สรุปชั่วโมงสอนต่อสัปดาห์!I189,'4.งานสนับสนุนการจัดการเรียนรู้'!I$7:I$58) ->  | G189: =SUMIF('5.งานตอบสนองนโยบายและจุดเน้น'!#REF!,สรุปชั่วโมงสอนต่อสัปดาห์!I189,'5.งานตอบสนองนโยบายและจุดเน้น'!I$7:I$58) ->  | I189: 429 | J189: =IF(H189>ตัวแปร!C$37,1,"") -> 
B190: 4 | D190: 30 | E190: =SUMIF('3.ชั่วโมงสอนตามตารางสอน'!T$7:T$56,สรุปชั่วโมงสอนต่อสัปดาห์!I190,'3.ชั่วโมงสอนตามตารางสอน'!L$7:L$56) -> 0 | F190: =SUMIF('4.งานสนับสนุนการจัดการเรียนรู้'!#REF!,สรุปชั่วโมงสอนต่อสัปดาห์!I190,'4.งานสนับสนุนการจัดการเรียนรู้'!I$7:I$58) ->  | G190: =SUMIF('5.งานตอบสนองนโยบายและจุดเน้น'!#REF!,สรุปชั่วโมงสอนต่อสัปดาห์!I190,'5.งานตอบสนองนโยบายและจุดเน้น'!I$7:I$58) ->  | I190: 430 | J190: =IF(H190>ตัวแปร!C$37,1,"") -> 
B191: 4 | D191: 31 | E191: =SUMIF('3.ชั่วโมงสอนตามตารางสอน'!T$7:T$56,สรุปชั่วโมงสอนต่อสัปดาห์!I191,'3.ชั่วโมงสอนตามตารางสอน'!L$7:L$56) -> 0 | F191: =SUMIF('4.งานสนับสนุนการจัดการเรียนรู้'!#REF!,สรุปชั่วโมงสอนต่อสัปดาห์!I191,'4.งานสนับสนุนการจัดการเรียนรู้'!I$7:I$58) ->  | G191: =SUMIF('5.งานตอบสนองนโยบายและจุดเน้น'!#REF!,สรุปชั่วโมงสอนต่อสัปดาห์!I191,'5.งานตอบสนองนโยบายและจุดเน้น'!I$7:I$58) ->  | I191: 431 | J191: =IF(H191>ตัวแปร!C$37,1,"") -> 
B192: 4 | D192: 32 | E192: =SUMIF('3.ชั่วโมงสอนตามตารางสอน'!T$7:T$56,สรุปชั่วโมงสอนต่อสัปดาห์!I192,'3.ชั่วโมงสอนตามตารางสอน'!L$7:L$56) -> 0 | F192: =SUMIF('4.งานสนับสนุนการจัดการเรียนรู้'!#REF!,สรุปชั่วโมงสอนต่อสัปดาห์!I192,'4.งานสนับสนุนการจัดการเรียนรู้'!I$7:I$58) ->  | G192: =SUMIF('5.งานตอบสนองนโยบายและจุดเน้น'!#REF!,สรุปชั่วโมงสอนต่อสัปดาห์!I192,'5.งานตอบสนองนโยบายและจุดเน้น'!I$7:I$58) ->  | I192: 432 | J192: =IF(H192>ตัวแปร!C$37,1,"") -> 
B193: 4 | D193: 33 | E193: =SUMIF('3.ชั่วโมงสอนตามตารางสอน'!T$7:T$56,สรุปชั่วโมงสอนต่อสัปดาห์!I193,'3.ชั่วโมงสอนตามตารางสอน'!L$7:L$56) -> 0 | F193: =SUMIF('4.งานสนับสนุนการจัดการเรียนรู้'!#REF!,สรุปชั่วโมงสอนต่อสัปดาห์!I193,'4.งานสนับสนุนการจัดการเรียนรู้'!I$7:I$58) ->  | G193: =SUMIF('5.งานตอบสนองนโยบายและจุดเน้น'!#REF!,สรุปชั่วโมงสอนต่อสัปดาห์!I193,'5.งานตอบสนองนโยบายและจุดเน้น'!I$7:I$58) ->  | I193: 433 | J193: =IF(H193>ตัวแปร!C$37,1,"") -> 
B194: 4 | D194: 34 | E194: =SUMIF('3.ชั่วโมงสอนตามตารางสอน'!T$7:T$56,สรุปชั่วโมงสอนต่อสัปดาห์!I194,'3.ชั่วโมงสอนตามตารางสอน'!L$7:L$56) -> 0 | F194: =SUMIF('4.งานสนับสนุนการจัดการเรียนรู้'!#REF!,สรุปชั่วโมงสอนต่อสัปดาห์!I194,'4.งานสนับสนุนการจัดการเรียนรู้'!I$7:I$58) ->  | G194: =SUMIF('5.งานตอบสนองนโยบายและจุดเน้น'!#REF!,สรุปชั่วโมงสอนต่อสัปดาห์!I194,'5.งานตอบสนองนโยบายและจุดเน้น'!I$7:I$58) ->  | I194: 434 | J194: =IF(H194>ตัวแปร!C$37,1,"") -> 
B195: 4 | D195: 35 | E195: =SUMIF('3.ชั่วโมงสอนตามตารางสอน'!T$7:T$56,สรุปชั่วโมงสอนต่อสัปดาห์!I195,'3.ชั่วโมงสอนตามตารางสอน'!L$7:L$56) -> 0 | F195: =SUMIF('4.งานสนับสนุนการจัดการเรียนรู้'!#REF!,สรุปชั่วโมงสอนต่อสัปดาห์!I195,'4.งานสนับสนุนการจัดการเรียนรู้'!I$7:I$58) ->  | G195: =SUMIF('5.งานตอบสนองนโยบายและจุดเน้น'!#REF!,สรุปชั่วโมงสอนต่อสัปดาห์!I195,'5.งานตอบสนองนโยบายและจุดเน้น'!I$7:I$58) ->  | I195: 435 | J195: =IF(H195>ตัวแปร!C$37,1,"") -> 
B196: 4 | D196: 36 | E196: =SUMIF('3.ชั่วโมงสอนตามตารางสอน'!T$7:T$56,สรุปชั่วโมงสอนต่อสัปดาห์!I196,'3.ชั่วโมงสอนตามตารางสอน'!L$7:L$56) -> 0 | F196: =SUMIF('4.งานสนับสนุนการจัดการเรียนรู้'!#REF!,สรุปชั่วโมงสอนต่อสัปดาห์!I196,'4.งานสนับสนุนการจัดการเรียนรู้'!I$7:I$58) ->  | G196: =SUMIF('5.งานตอบสนองนโยบายและจุดเน้น'!#REF!,สรุปชั่วโมงสอนต่อสัปดาห์!I196,'5.งานตอบสนองนโยบายและจุดเน้น'!I$7:I$58) ->  | I196: 436 | J196: =IF(H196>ตัวแปร!C$37,1,"") -> 
B197: 4 | D197: 37 | E197: =SUMIF('3.ชั่วโมงสอนตามตารางสอน'!T$7:T$56,สรุปชั่วโมงสอนต่อสัปดาห์!I197,'3.ชั่วโมงสอนตามตารางสอน'!L$7:L$56) -> 0 | F197: =SUMIF('4.งานสนับสนุนการจัดการเรียนรู้'!#REF!,สรุปชั่วโมงสอนต่อสัปดาห์!I197,'4.งานสนับสนุนการจัดการเรียนรู้'!I$7:I$58) ->  | G197: =SUMIF('5.งานตอบสนองนโยบายและจุดเน้น'!#REF!,สรุปชั่วโมงสอนต่อสัปดาห์!I197,'5.งานตอบสนองนโยบายและจุดเน้น'!I$7:I$58) ->  | I197: 437 | J197: =IF(H197>ตัวแปร!C$37,1,"") -> 
B198: 4 | D198: 38 | E198: =SUMIF('3.ชั่วโมงสอนตามตารางสอน'!T$7:T$56,สรุปชั่วโมงสอนต่อสัปดาห์!I198,'3.ชั่วโมงสอนตามตารางสอน'!L$7:L$56) -> 0 | F198: =SUMIF('4.งานสนับสนุนการจัดการเรียนรู้'!#REF!,สรุปชั่วโมงสอนต่อสัปดาห์!I198,'4.งานสนับสนุนการจัดการเรียนรู้'!I$7:I$58) ->  | G198: =SUMIF('5.งานตอบสนองนโยบายและจุดเน้น'!#REF!,สรุปชั่วโมงสอนต่อสัปดาห์!I198,'5.งานตอบสนองนโยบายและจุดเน้น'!I$7:I$58) ->  | H198: =SUM(E198:G198) ->  | I198: =B198&+D198 -> 438 | J198: =IF(H198>ตัวแปร!C$37,1,"") ->  | K198: =IF(J198=1,"ตรวจสอบ","") -> 
B199: =IF(D198=52,B198+1,B198) -> 4 | D199: 39 | E199: =SUMIF('3.ชั่วโมงสอนตามตารางสอน'!T$7:T$56,สรุปชั่วโมงสอนต่อสัปดาห์!I199,'3.ชั่วโมงสอนตามตารางสอน'!L$7:L$56) -> 0 | F199: =SUMIF('4.งานสนับสนุนการจัดการเรียนรู้'!#REF!,สรุปชั่วโมงสอนต่อสัปดาห์!I199,'4.งานสนับสนุนการจัดการเรียนรู้'!I$7:I$58) ->  | G199: =SUMIF('5.งานตอบสนองนโยบายและจุดเน้น'!#REF!,สรุปชั่วโมงสอนต่อสัปดาห์!I199,'5.งานตอบสนองนโยบายและจุดเน้น'!I$7:I$58) ->  | I199: 439 | J199: =IF(H199>ตัวแปร!C$37,1,"") -> 
B200: 4 | D200: 40 | E200: =SUMIF('3.ชั่วโมงสอนตามตารางสอน'!T$7:T$56,สรุปชั่วโมงสอนต่อสัปดาห์!I200,'3.ชั่วโมงสอนตามตารางสอน'!L$7:L$56) -> 0 | F200: =SUMIF('4.งานสนับสนุนการจัดการเรียนรู้'!#REF!,สรุปชั่วโมงสอนต่อสัปดาห์!I200,'4.งานสนับสนุนการจัดการเรียนรู้'!I$7:I$58) ->  | G200: =SUMIF('5.งานตอบสนองนโยบายและจุดเน้น'!#REF!,สรุปชั่วโมงสอนต่อสัปดาห์!I200,'5.งานตอบสนองนโยบายและจุดเน้น'!I$7:I$58) ->  | I200: 440 | J200: =IF(H200>ตัวแปร!C$37,1,"") -> 
... 64 more rows

Sheet 1.ข้อมูลส่วนบุคคล
A1: Logbook
A2: ข้อมูลส่วนบุคคล
A3: ลำดับที่ | B3: วัน เดือน ปี ที่บันทึก | C3: หลักสูตรที่พัฒนา | E3: ระดับวิทยฐานะ | F3: วัน เดือน ปี ที่พัฒนา
A5: 1 | B5: คำนำหน้าชื่อ | C5: นาย | E5: เลขที่บัตรประชาชน | F5: 1234567891234
B6: ชื่อ | C6: สมชาย | E6: คุณวุฒิ | F6: ปริญญาตรี (4 ปี) คบ. การสอนภาษาไทย
B7: นามสกุล | C7: ใจดี
A9: 2 | B9: ตำแหน่งปัจจุบัน | C9: ครู | E9: เลขที่ตำแหน่ง | F9: 1234
B10: วิทยฐานะ ครู | C10: ชำนาญการ | E10: ตั้งแต่วันที่ | F10: 2555-01-25 | G10: =DAY(F10)&+"/"&+MONTH(F10)&+"/"&+YEAR(F10) -> 25/1/2555
B11: เงินเดือน | C11: 25000 | D11: บาท | G11: =DAY(F10)&+"/"&+MONTH(F10)&+"/"&+(YEAR(F10)) -> 25/1/2555
A13: 3 | B13: ชื่อสถานศึกษา | C13: โรงเรียนอนุบาลวัดปรินายก | E13: แขวง/ตำบล | F13: บ้านพานถม | G13: =NOW() -> 2018-03-21T14:28:26.290
B14: เขต/อำเภอ | C14: พระนคร | E14: จังหวัด | F14: กรุงเทพฯ | G14: =DAY(G13)&+"/"&+MONTH(G13)&+"/"&+(YEAR(G13)+543) -> 21/3/2561
B15: รหัสไปรษณีย์ | C15: 10200
A17: 4 | B17: สังกัด | C17: สำนักงานคณะกรรมการการศึกษาขั้นพื้นฐาน
B18: หน่วยงาน | C18: สำนักงานเขตพื้นที่การศึกษา | E18: ชื่อหน่วยงาน (ถ้ามี)
A20: 5 | B20: มีความประสงค์จะยื่นขอรับการประเมินเพื่อขอมีหรือเลื่อนวิทยฐานะใด
B21: ครู | C21: =IF(C10="","โปรดระบุวิทยฐานะในข้อที่ 2",VLOOKUP(C10,ตั้งค่าข้อมูล!A4:B8,2,FALSE)) -> ชำนาญการพิเศษ | D21: =IF(C21="ชำนาญการ","",IF(C21="ชำนาญการพิเศษ","",IF(C21="เชี่ยวชาญ","โปรดกรอกข้อมูลในข้อ 6",IF(C21="เชี่ยวชาญพิเศษ","โปรดกรอกข้อมูลในข้อ 6","")))) -> 
A23: 6 | B23: กรณีที่ยื่นขอวิทยฐานะ เชี่ยวชาญ/เชี่ยวชาญพิเศษ ให้ระบุระดับการศึกษาและกลุ่มสาระ/สาขาวิชา/วิชาที่เสนอขอผลงานทางวิชาการ ตามสังกัดของตนเอง
B25: สังกัดหน่วยงานการศึกษา… | D25: ระดับการศึกษา | F25: กลุ่มสาระ/สาขาวิชา/วิชาที่เสนอขอ
B26: สำนักงานเขตพื้นที่การศึกษา | D26: ประถมศึกษา | F26: ภาษาไทย
D28: การลงนามเพื่อรับรองข้อมูล
E29: การรับรองของตนเอง
D30: ลงชื่อ | E30: =C6&+" "&+C7 -> สมชาย ใจดี
E31: ="("&+C5&+C6&+" "&+C7&+")" -> (นายสมชาย ใจดี)
D32: วัน/เดือน/ปี ที่เริ่มบันทึก | E32: 2560-05-15 | G32: =IF(ISBLANK(E33),E32,DATE(YEAR(E33)-5,MONTH(E33),DAY(E33))) -> 2560-05-15 | H32: 0
B33: วัน/เดือน/ปี ที่ขอมีวิทยฐานะหรือเลื่อนวิทยฐานะ หมายเหตุ กรอกวันเดียวกันกับแบบ วฐ.1 หน้า 5 | G33: =IF(H33=1,"วันที่ขอมีวิทยฐานะหรือเลื่อนวิทยฐานะต้องหลังจากวันที่เริ่มบันทึก",IF(H32=1,"วันที่ขอมีวิทยฐานะหรือเลื่อนวิทยฐานะน้อยกว่า 5 ปีจากวันที่เริ่มบันทึก","")) ->  | H33: 0
E34: =DAY(E32) -> 15 | F34: =MONTH(E32) -> 5 | G34: =YEAR(E32)+543 -> 3103
B35: การรับรองของ ผอ.สถานศึกษา | F35: =TEXT(E32,"MMMM") -> พฤษภาคม
A36: ลงชื่อ | B36: สมหวัง ดังใจ | D36: 2018-02-12
B37: (นาย | C37: =B36&+")" -> สมหวัง ดังใจ) | D37: วัน/เดือน/ปี
A38: ตำแหน่ง | B38: ผู้อำนวยการโรงเรียนอนุบาลวัดปรินายก
A39: กรณีที่ในปีใดมีการปรับปรุงหรือแก้ไขข้อมูลในหน้านี้ ให้ผอ.สถานศึกษาที่เป็นผู้บังคับบัญชาในขณะนั้นทำการรับรองใหม่
A40: ลงชื่อ
B41: (นาย | C41: =B40&+")" -> ) | D41: วัน/เดือน/ปี
A42: ตำแหน่ง | B42: ผู้อำนวยการโรงเรียน....
A44: ลงชื่อ
B45: (นาย | C45: =B44&+")" -> ) | D45: วัน/เดือน/ปี
A46: ตำแหน่ง | B46: ผู้อำนวยการโรงเรียน....
A48: ลงชื่อ
B49: (นาย | C49: =B48&+")" -> ) | D49: วัน/เดือน/ปี
A50: ตำแหน่ง | B50: ผู้อำนวยการโรงเรียน....
A52: ลงชื่อ
B53: (นาย | C53: =B52&+")" -> ) | D53: วัน/เดือน/ปี
A54: ตำแหน่ง | B54: ผู้อำนวยการโรงเรียน....
A56: ลงชื่อ
B57: (นาย | C57: =B56&+")" -> ) | D57: วัน/เดือน/ปี
A58: ตำแหน่ง | B58: ผู้อำนวยการโรงเรียน....
A60: ลงชื่อ
B61: (นาย | C61: =B60&+")" -> ) | D61: วัน/เดือน/ปี
A62: ตำแหน่ง | B62: ผู้อำนวยการโรงเรียน....
A64: ลงชื่อ
B65: (นาย | C65: =B64&+")" -> ) | D65: วัน/เดือน/ปี
A66: ตำแหน่ง | B66: ผู้อำนวยการโรงเรียน....
A68: ลงชื่อ
B69: (นาย | C69: =B68&+")" -> ) | D69: วัน/เดือน/ปี
A70: ตำแหน่ง | B70: ผู้อำนวยการโรงเรียน....
A72: ลงชื่อ
B73: (นาย | C73: =B72&+")" -> ) | D73: วัน/เดือน/ปี
A74: ตำแหน่ง | B74: ผู้อำนวยการโรงเรียน....
A76: ลงชื่อ
B77: (นาย | C77: =B76&+")" -> ) | D77: วัน/เดือน/ปี
A78: ตำแหน่ง | B78: ผู้อำนวยการโรงเรียน....

Sheet 2.การมอบหมายงานสอน
A1: การมอบหมายงานสอน
E2: เป็นการกรอกข้อมูลการมอบหมายงานสอนตามตารางสอนที่อยู่ในหลักสูตรแกนกลางฯ/หลักสูตร ปวช., ปวส., ระยะสั้น/หลักสูตรการศึกษานอกระบบ/หลักสูตรฝึกอบรม สคบศ.
O3: =MIN(O5:O354) -> 12 | P3: =MIN(P5:P354) -> 0 | Q3: =MIN(Q5:Q354) -> 0 | R3: 0 | S3: 0 | T3: 0 | U3: 0 | V3: 0 | W3: 0 | X3: 0 | Y3: 0 | Z3: 0 | AA3: 0 | AB3: 0 | AC3: 0 | AD3: 0 | AE3: 0 | AF3: 0 | AG3: 0 | AH3: 0
B4: NO | C4: ปีการศึกษา/ปีงบประมาณ | D4: ภาคเรียนที่ | E4: หน่วยงานการศึกษา | F4: ชื่อสถานศึกษา | G4: ประเภทการสอน/ระดับการศึกษาที่สอน | H4: กลุ่มสาระที่สอน/สาขาวิชาที่สอน/วิชาที่สอน | I4: สาขาวิชา/กลุ่มวิชาที่สอน (ถ้ามี) | J4: ชื่อวิชาที่สอน/วิชาที่อบรม | K4: จำนวนคาบต่อสัปดาห์/หลักสูตร | L4: การรับรองของ ผอ. สถานศึกษา | M4: แสดงจำนวนชั่วโมงขั้นต่ำ | N4: ปี+เทอม | O4: =IF(ISBLANK(D5),C5*10+0,C5*10+D5) -> 25601 | P4: =IF(ISBLANK(D5),C5*10+0,($C$5)*10+2) -> 25602 | Q4: =IF(ISBLANK(D5),C5*10+(10*1),($C$5+1)*10+1) -> 25611 | R4: =IF(ISBLANK(D5),C5*10+(10*1),($C$5+1)*10+2) -> 25612 | S4: =IF(ISBLANK(D5),C5*10+(10*2),($C$5+2)*10+1) -> 25621 | T4: =IF(ISBLANK(D5),C5*10+(10*2),($C$5+2)*10+2) -> 25622 | U4: =IF(ISBLANK(D5),C5*10+(10*3),($C$5+3)*10+1) -> 25631 | V4: =IF(ISBLANK(D5),C5*10+(10*3),($C$5+3)*10+2) -> 25632 | W4: =IF(ISBLANK(D5),C5*10+(10*4),($C$5+4)*10+1) -> 25641 | X4: =IF(ISBLANK(D5),C5*10+(10*4),($C$5+4)*10+2) -> 25642 | Y4: =IF(ISBLANK(D5),C5*10+(10*5),($C$5+5)*10+1) -> 25651 | Z4: =IF(ISBLANK(D5),C5*10+(10*5),($C$5+5)*10+2) -> 25652 | AA4: =IF(ISBLANK(D5),C5*10+(10*6),($C$5+6)*10+1) -> 25661 | AB4: =IF(ISBLANK(D5),C5*10+(10*6),($C$5+6)*10+2) -> 25662 | AC4: =IF(ISBLANK(D5),C5*10+(10*7),($C$5+7)*10+1) -> 25671 | AD4: =IF(ISBLANK(D5),C5*10+(10*7),($C$5+7)*10+2) -> 25672 | AE4: =IF(ISBLANK(D5),C5*10+(10*8),($C$5+8)*10+1) -> 25681 | AF4: =IF(ISBLANK(D5),C5*10+(10*8),($C$5+8)*10+2) -> 25682 | AG4: =IF(ISBLANK(D5),C5*10+(10*9),($C$5+9)*10+1) -> 25691 | AH4: =IF(ISBLANK(D5),C5*10+(10*9),($C$5+9)*10+2) -> 25692 | AI4: Convert จากแถวด้านบน
A5: ='1.ข้อมูลส่วนบุคคล'!$F$5 -> 1234567891234 | B5: 1 | C5: 2560 | D5: 1 | E5: สำนักงานเขตพื้นที่การศึกษา | F5: โรงเรียนอนุบาลวัดปรินายก | G5: ประถมศึกษา | H5: ภาษาไทย | I5: ภาษาไทย | J5: ภาษาไทย | K5: 15 | L5: ถูกต้อง | M5: =IFERROR(VLOOKUP(G5,ตัวแปร!B$41:C$61,2,0),"") -> 12 | N5: =C5*10+D5 -> 25601 | O5: =IF(O$4=$N5,$M5,"") -> 12 | P5: =IF(P$4=$N5,$M5,"") ->  | Q5: =IF(Q$4=$N5,$M5,"") ->  | AI5: =O$4 -> 25601 | AJ5: =O3 -> 12
A6: ='1.ข้อมูลส่วนบุคคล'!$F$5 -> 1234567891234 | B6: 2 | L6: ไม่ถูกต้อง | M6: =IFERROR(VLOOKUP(G6,ตัวแปร!B$41:C$61,2,0),"") ->  | N6: =C6*10+D6 -> 0 | O6: =IF(O$4=N6,M6,"") ->  | P6: =IF(P$4=$N6,$M6,"") ->  | AI6: =P$4 -> 25602 | AJ6: =P$3 -> 0
A7: ='1.ข้อมูลส่วนบุคคล'!$F$5 -> 1234567891234 | B7: 3 | L7: ไม่ถูกต้อง | M7: =IFERROR(VLOOKUP(G7,ตัวแปร!B$41:C$61,2,0),"") ->  | N7: =C7*10+D7 -> 0 | AI7: =Q$4 -> 25611 | AJ7: =Q3 -> 0
A8: ='1.ข้อมูลส่วนบุคคล'!$F$5 -> 1234567891234 | B8: 4 | L8: ไม่ถูกต้อง | M8: =IFERROR(VLOOKUP(G8,ตัวแปร!B$41:C$61,2,0),"") ->  | N8: =C8*10+D8 -> 0 | AI8: =R$4 -> 25612 | AJ8: =R3 -> 0
A9: ='1.ข้อมูลส่วนบุคคล'!$F$5 -> 1234567891234 | B9: 5 | L9: ไม่ถูกต้อง | M9: =IFERROR(VLOOKUP(G9,ตัวแปร!B$41:C$61,2,0),"") ->  | N9: =C9*10+D9 -> 0 | AI9: =S$4 -> 25621 | AJ9: =S3 -> 0
A10: ='1.ข้อมูลส่วนบุคคล'!$F$5 -> 1234567891234 | B10: 6 | L10: ไม่ถูกต้อง | M10: =IFERROR(VLOOKUP(G10,ตัวแปร!B$41:C$61,2,0),"") ->  | N10: =C10*10+D10 -> 0 | AI10: =T$4 -> 25622 | AJ10: =T3 -> 0
A11: ='1.ข้อมูลส่วนบุคคล'!$F$5 -> 1234567891234 | B11: 7 | L11: ไม่ถูกต้อง | M11: =IFERROR(VLOOKUP(G11,ตัวแปร!B$41:C$61,2,0),"") ->  | N11: =C11*10+D11 -> 0 | AI11: =U$4 -> 25631 | AJ11: =U3 -> 0
A12: ='1.ข้อมูลส่วนบุคคล'!$F$5 -> 1234567891234 | B12: 8 | L12: ไม่ถูกต้อง | M12: =IFERROR(VLOOKUP(G12,ตัวแปร!B$41:C$61,2,0),"") ->  | N12: =C12*10+D12 -> 0 | AI12: =V$4 -> 25632 | AJ12: =V3 -> 0
A13: ='1.ข้อมูลส่วนบุคคล'!$F$5 -> 1234567891234 | B13: 9 | L13: ไม่ถูกต้อง | M13: =IFERROR(VLOOKUP(G13,ตัวแปร!B$41:C$61,2,0),"") ->  | N13: =C13*10+D13 -> 0 | AI13: =W$4 -> 25641 | AJ13: =W3 -> 0
A14: ='1.ข้อมูลส่วนบุคคล'!$F$5 -> 1234567891234 | B14: 10 | L14: ไม่ถูกต้อง | M14: =IFERROR(VLOOKUP(G14,ตัวแปร!B$41:C$61,2,0),"") ->  | N14: =C14*10+D14 -> 0 | AI14: =X$4 -> 25642 | AJ14: =X3 -> 0
A15: ='1.ข้อมูลส่วนบุคคล'!$F$5 -> 1234567891234 | B15: 11 | L15: ไม่ถูกต้อง | M15: =IFERROR(VLOOKUP(G15,ตัวแปร!B$41:C$61,2,0),"") ->  | N15: =C15*10+D15 -> 0 | AI15: =Y$4 -> 25651 | AJ15: =Y3 -> 0
A16: ='1.ข้อมูลส่วนบุคคล'!$F$5 -> 1234567891234 | B16: 12 | L16: ไม่ถูกต้อง | M16: =IFERROR(VLOOKUP(G16,ตัวแปร!B$41:C$61,2,0),"") ->  | N16: =C16*10+D16 -> 0 | AI16: =Z4 -> 25652 | AJ16: =Z3 -> 0
A17: ='1.ข้อมูลส่วนบุคคล'!$F$5 -> 1234567891234 | B17: 13 | L17: ไม่ถูกต้อง | M17: =IFERROR(VLOOKUP(G17,ตัวแปร!B$41:C$61,2,0),"") ->  | N17: =C17*10+D17 -> 0 | AI17: =AA4 -> 25661 | AJ17: =AA3 -> 0
A18: ='1.ข้อมูลส่วนบุคคล'!$F$5 -> 1234567891234 | B18: 14 | L18: ไม่ถูกต้อง | M18: =IFERROR(VLOOKUP(G18,ตัวแปร!B$41:C$61,2,0),"") ->  | N18: =C18*10+D18 -> 0 | AI18: =AB4 -> 25662 | AJ18: =AB3 -> 0
A19: ='1.ข้อมูลส่วนบุคคล'!$F$5 -> 1234567891234 | B19: 15 | L19: ไม่ถูกต้อง | M19: =IFERROR(VLOOKUP(G19,ตัวแปร!B$41:C$61,2,0),"") ->  | N19: =C19*10+D19 -> 0 | T19: =IF(T$4=$N19,$M19,"") ->  | AI19: =AC4 -> 25671 | AJ19: =AC3 -> 0
A20: ='1.ข้อมูลส่วนบุคคล'!$F$5 -> 1234567891234 | B20: 16 | L20: ไม่ถูกต้อง | M20: =IFERROR(VLOOKUP(G20,ตัวแปร!B$41:C$61,2,0),"") ->  | N20: =C20*10+D20 -> 0 | AI20: =AD4 -> 25672 | AJ20: =AD3 -> 0
A21: ='1.ข้อมูลส่วนบุคคล'!$F$5 -> 1234567891234 | B21: 17 | L21: ไม่ถูกต้อง | M21: =IFERROR(VLOOKUP(G21,ตัวแปร!B$41:C$61,2,0),"") ->  | N21: =C21*10+D21 -> 0 | AI21: =AE4 -> 25681 | AJ21: =AE3 -> 0
A22: ='1.ข้อมูลส่วนบุคคล'!$F$5 -> 1234567891234 | B22: 18 | L22: ไม่ถูกต้อง | M22: =IFERROR(VLOOKUP(G22,ตัวแปร!B$41:C$61,2,0),"") ->  | N22: =C22*10+D22 -> 0 | AI22: =AF4 -> 25682 | AJ22: =AF3 -> 0
A23: ='1.ข้อมูลส่วนบุคคล'!$F$5 -> 1234567891234 | B23: 19 | L23: ไม่ถูกต้อง | M23: =IFERROR(VLOOKUP(G23,ตัวแปร!B$41:C$61,2,0),"") ->  | N23: =C23*10+D23 -> 0 | AI23: =AG4 -> 25691 | AJ23: =AG3 -> 0
A24: ='1.ข้อมูลส่วนบุคคล'!$F$5 -> 1234567891234 | B24: 20 | L24: ไม่ถูกต้อง | M24: =IFERROR(VLOOKUP(G24,ตัวแปร!B$41:C$61,2,0),"") ->  | N24: =C24*10+D24 -> 0 | AI24: =AH4 -> 25692 | AJ24: =AH3 -> 0
A25: ='1.ข้อมูลส่วนบุคคล'!$F$5 -> 1234567891234 | B25: 21 | L25: ไม่ถูกต้อง | M25: =IFERROR(VLOOKUP(G25,ตัวแปร!B$41:C$61,2,0),"") ->  | N25: =C25*10+D25 -> 0
A26: ='1.ข้อมูลส่วนบุคคล'!$F$5 -> 1234567891234 | B26: 22 | L26: ไม่ถูกต้อง | M26: =IFERROR(VLOOKUP(G26,ตัวแปร!B$41:C$61,2,0),"") ->  | N26: =C26*10+D26 -> 0
A27: ='1.ข้อมูลส่วนบุคคล'!$F$5 -> 1234567891234 | B27: 23 | L27: ไม่ถูกต้อง | M27: =IFERROR(VLOOKUP(G27,ตัวแปร!B$41:C$61,2,0),"") ->  | N27: =C27*10+D27 -> 0
A28: ='1.ข้อมูลส่วนบุคคล'!$F$5 -> 1234567891234 | B28: 24 | L28: ไม่ถูกต้อง | M28: =IFERROR(VLOOKUP(G28,ตัวแปร!B$41:C$61,2,0),"") ->  | N28: =C28*10+D28 -> 0
A29: ='1.ข้อมูลส่วนบุคคล'!$F$5 -> 1234567891234 | B29: 25 | L29: ไม่ถูกต้อง | M29: =IFERROR(VLOOKUP(G29,ตัวแปร!B$41:C$61,2,0),"") ->  | N29: =C29*10+D29 -> 0
A30: ='1.ข้อมูลส่วนบุคคล'!$F$5 -> 1234567891234 | B30: 26 | L30: ไม่ถูกต้อง | M30: =IFERROR(VLOOKUP(G30,ตัวแปร!B$41:C$61,2,0),"") ->  | N30: =C30*10+D30 -> 0
A31: ='1.ข้อมูลส่วนบุคคล'!$F$5 -> 1234567891234 | B31: 27 | L31: ไม่ถูกต้อง | M31: =IFERROR(VLOOKUP(G31,ตัวแปร!B$41:C$61,2,0),"") ->  | N31: =C31*10+D31 -> 0
A32: ='1.ข้อมูลส่วนบุคคล'!$F$5 -> 1234567891234 | B32: 28 | L32: ไม่ถูกต้อง | M32: =IFERROR(VLOOKUP(G32,ตัวแปร!B$41:C$61,2,0),"") ->  | N32: =C32*10+D32 -> 0
A33: ='1.ข้อมูลส่วนบุคคล'!$F$5 -> 1234567891234 | B33: 29 | L33: ไม่ถูกต้อง | M33: =IFERROR(VLOOKUP(G33,ตัวแปร!B$41:C$61,2,0),"") ->  | N33: =C33*10+D33 -> 0
A34: ='1.ข้อมูลส่วนบุคคล'!$F$5 -> 1234567891234 | B34: 30 | L34: ไม่ถูกต้อง | M34: =IFERROR(VLOOKUP(G34,ตัวแปร!B$41:C$61,2,0),"") ->  | N34: =C34*10+D34 -> 0
A35: ='1.ข้อมูลส่วนบุคคล'!$F$5 -> 1234567891234 | B35: 31 | L35: ไม่ถูกต้อง | M35: =IFERROR(VLOOKUP(G35,ตัวแปร!B$41:C$61,2,0),"") ->  | N35: =C35*10+D35 -> 0 | Q35: =IF(Q$4=$N35,$M35,"") -> 
A36: ='1.ข้อมูลส่วนบุคคล'!$F$5 -> 1234567891234 | B36: 32 | L36: ไม่ถูกต้อง | M36: =IFERROR(VLOOKUP(G36,ตัวแปร!B$41:C$61,2,0),"") ->  | N36: =C36*10+D36 -> 0 | P36: =IF(P$4=$N36,$M36,"") -> 
A37: ='1.ข้อมูลส่วนบุคคล'!$F$5 -> 1234567891234 | B37: 33 | L37: ไม่ถูกต้อง | M37: =IFERROR(VLOOKUP(G37,ตัวแปร!B$41:C$61,2,0),"") ->  | N37: =C37*10+D37 -> 0
A38: ='1.ข้อมูลส่วนบุคคล'!$F$5 -> 1234567891234 | B38: 34 | L38: ไม่ถูกต้อง | M38: =IFERROR(VLOOKUP(G38,ตัวแปร!B$41:C$61,2,0),"") ->  | N38: =C38*10+D38 -> 0
A39: ='1.ข้อมูลส่วนบุคคล'!$F$5 -> 1234567891234 | B39: 35 | L39: ไม่ถูกต้อง | M39: =IFERROR(VLOOKUP(G39,ตัวแปร!B$41:C$61,2,0),"") ->  | N39: =C39*10+D39 -> 0
A40: ='1.ข้อมูลส่วนบุคคล'!$F$5 -> 1234567891234 | B40: 36 | L40: ไม่ถูกต้อง | M40: =IFERROR(VLOOKUP(G40,ตัวแปร!B$41:C$61,2,0),"") ->  | N40: =C40*10+D40 -> 0
A41: ='1.ข้อมูลส่วนบุคคล'!$F$5 -> 1234567891234 | B41: 37 | L41: ไม่ถูกต้อง | M41: =IFERROR(VLOOKUP(G41,ตัวแปร!B$41:C$61,2,0),"") ->  | N41: =C41*10+D41 -> 0
A42: ='1.ข้อมูลส่วนบุคคล'!$F$5 -> 1234567891234 | B42: 38 | L42: ไม่ถูกต้อง | M42: =IFERROR(VLOOKUP(G42,ตัวแปร!B$41:C$61,2,0),"") ->  | N42: =C42*10+D42 -> 0
A43: ='1.ข้อมูลส่วนบุคคล'!$F$5 -> 1234567891234 | B43: 39 | L43: ไม่ถูกต้อง | M43: =IFERROR(VLOOKUP(G43,ตัวแปร!B$41:C$61,2,0),"") ->  | N43: =C43*10+D43 -> 0
A44: ='1.ข้อมูลส่วนบุคคล'!$F$5 -> 1234567891234 | B44: 40 | L44: ไม่ถูกต้อง | M44: =IFERROR(VLOOKUP(G44,ตัวแปร!B$41:C$61,2,0),"") ->  | N44: =C44*10+D44 -> 0
A45: ='1.ข้อมูลส่วนบุคคล'!$F$5 -> 1234567891234 | B45: 41 | L45: ไม่ถูกต้อง | M45: =IFERROR(VLOOKUP(G45,ตัวแปร!B$41:C$61,2,0),"") ->  | N45: =C45*10+D45 -> 0
A46: ='1.ข้อมูลส่วนบุคคล'!$F$5 -> 1234567891234 | B46: 42 | L46: ไม่ถูกต้อง | M46: =IFERROR(VLOOKUP(G46,ตัวแปร!B$41:C$61,2,0),"") ->  | N46: =C46*10+D46 -> 0
A47: ='1.ข้อมูลส่วนบุคคล'!$F$5 -> 1234567891234 | B47: 43 | L47: ไม่ถูกต้อง | M47: =IFERROR(VLOOKUP(G47,ตัวแปร!B$41:C$61,2,0),"") ->  | N47: =C47*10+D47 -> 0
A48: ='1.ข้อมูลส่วนบุคคล'!$F$5 -> 1234567891234 | B48: 44 | L48: ไม่ถูกต้อง | M48: =IFERROR(VLOOKUP(G48,ตัวแปร!B$41:C$61,2,0),"") ->  | N48: =C48*10+D48 -> 0
A49: ='1.ข้อมูลส่วนบุคคล'!$F$5 -> 1234567891234 | B49: 45 | L49: ไม่ถูกต้อง | M49: =IFERROR(VLOOKUP(G49,ตัวแปร!B$41:C$61,2,0),"") ->  | N49: =C49*10+D49 -> 0
A50: ='1.ข้อมูลส่วนบุคคล'!$F$5 -> 1234567891234 | B50: 46 | L50: ไม่ถูกต้อง | M50: =IFERROR(VLOOKUP(G50,ตัวแปร!B$41:C$61,2,0),"") ->  | N50: =C50*10+D50 -> 0 | AF50: =IF(AF$4=$N50,$M50,"") -> 
A51: ='1.ข้อมูลส่วนบุคคล'!$F$5 -> 1234567891234 | B51: 47 | L51: ไม่ถูกต้อง | M51: =IFERROR(VLOOKUP(G51,ตัวแปร!B$41:C$61,2,0),"") ->  | N51: =C51*10+D51 -> 0
A52: ='1.ข้อมูลส่วนบุคคล'!$F$5 -> 1234567891234 | B52: 48 | L52: ไม่ถูกต้อง | M52: =IFERROR(VLOOKUP(G52,ตัวแปร!B$41:C$61,2,0),"") ->  | N52: =C52*10+D52 -> 0
A53: ='1.ข้อมูลส่วนบุคคล'!$F$5 -> 1234567891234 | B53: 49 | L53: ไม่ถูกต้อง | M53: =IFERROR(VLOOKUP(G53,ตัวแปร!B$41:C$61,2,0),"") ->  | N53: =C53*10+D53 -> 0
A54: ='1.ข้อมูลส่วนบุคคล'!$F$5 -> 1234567891234 | B54: 50 | L54: ไม่ถูกต้อง | M54: =IFERROR(VLOOKUP(G54,ตัวแปร!B$41:C$61,2,0),"") ->  | N54: =C54*10+D54 -> 0
A55: ='1.ข้อมูลส่วนบุคคล'!$F$5 -> 1234567891234 | B55: 51 | L55: ไม่ถูกต้อง | M55: =IFERROR(VLOOKUP(G55,ตัวแปร!B$41:C$61,2,0),"") ->  | N55: =C55*10+D55 -> 0
A56: ='1.ข้อมูลส่วนบุคคล'!$F$5 -> 1234567891234 | B56: 52 | L56: ไม่ถูกต้อง | M56: =IFERROR(VLOOKUP(G56,ตัวแปร!B$41:C$61,2,0),"") ->  | N56: =C56*10+D56 -> 0
A57: ='1.ข้อมูลส่วนบุคคล'!$F$5 -> 1234567891234 | B57: 53 | L57: ไม่ถูกต้อง | M57: =IFERROR(VLOOKUP(G57,ตัวแปร!B$41:C$61,2,0),"") ->  | N57: =C57*10+D57 -> 0
A58: ='1.ข้อมูลส่วนบุคคล'!$F$5 -> 1234567891234 | B58: 54 | L58: ไม่ถูกต้อง | M58: =IFERROR(VLOOKUP(G58,ตัวแปร!B$41:C$61,2,0),"") ->  | N58: =C58*10+D58 -> 0
A59: ='1.ข้อมูลส่วนบุคคล'!$F$5 -> 1234567891234 | B59: 55 | L59: ไม่ถูกต้อง | M59: =IFERROR(VLOOKUP(G59,ตัวแปร!B$41:C$61,2,0),"") ->  | N59: =C59*10+D59 -> 0
A60: ='1.ข้อมูลส่วนบุคคล'!$F$5 -> 1234567891234 | B60: 56 | L60: ไม่ถูกต้อง | M60: =IFERROR(VLOOKUP(G60,ตัวแปร!B$41:C$61,2,0),"") ->  | N60: =C60*10+D60 -> 0
A61: ='1.ข้อมูลส่วนบุคคล'!$F$5 -> 1234567891234 | B61: 57 | L61: ไม่ถูกต้อง | M61: =IFERROR(VLOOKUP(G61,ตัวแปร!B$41:C$61,2,0),"") ->  | N61: =C61*10+D61 -> 0
A62: ='1.ข้อมูลส่วนบุคคล'!$F$5 -> 1234567891234 | B62: 58 | L62: ไม่ถูกต้อง | M62: =IFERROR(VLOOKUP(G62,ตัวแปร!B$41:C$61,2,0),"") ->  | N62: =C62*10+D62 -> 0
A63: ='1.ข้อมูลส่วนบุคคล'!$F$5 -> 1234567891234 | B63: 59 | L63: ไม่ถูกต้อง | M63: =IFERROR(VLOOKUP(G63,ตัวแปร!B$41:C$61,2,0),"") ->  | N63: =C63*10+D63 -> 0
A64: ='1.ข้อมูลส่วนบุคคล'!$F$5 -> 1234567891234 | B64: 60 | L64: ไม่ถูกต้อง | M64: =IFERROR(VLOOKUP(G64,ตัวแปร!B$41:C$61,2,0),"") ->  | N64: =C64*10+D64 -> 0
A65: ='1.ข้อมูลส่วนบุคคล'!$F$5 -> 1234567891234 | B65: 61 | L65: ไม่ถูกต้อง | M65: =IFERROR(VLOOKUP(G65,ตัวแปร!B$41:C$61,2,0),"") ->  | N65: =C65*10+D65 -> 0
A66: ='1.ข้อมูลส่วนบุคคล'!$F$5 -> 1234567891234 | B66: 62 | L66: ไม่ถูกต้อง | M66: =IFERROR(VLOOKUP(G66,ตัวแปร!B$41:C$61,2,0),"") ->  | N66: =C66*10+D66 -> 0 | P66: =IF(P$4=$N66,$M66,"") -> 
A67: ='1.ข้อมูลส่วนบุคคล'!$F$5 -> 1234567891234 | B67: 63 | L67: ไม่ถูกต้อง | M67: =IFERROR(VLOOKUP(G67,ตัวแปร!B$41:C$61,2,0),"") ->  | N67: =C67*10+D67 -> 0
A68: ='1.ข้อมูลส่วนบุคคล'!$F$5 -> 1234567891234 | B68: 64 | L68: ไม่ถูกต้อง | M68: =IFERROR(VLOOKUP(G68,ตัวแปร!B$41:C$61,2,0),"") ->  | N68: =C68*10+D68 -> 0
A69: ='1.ข้อมูลส่วนบุคคล'!$F$5 -> 1234567891234 | B69: 65 | L69: ไม่ถูกต้อง | M69: =IFERROR(VLOOKUP(G69,ตัวแปร!B$41:C$61,2,0),"") ->  | N69: =C69*10+D69 -> 0
A70: ='1.ข้อมูลส่วนบุคคล'!$F$5 -> 1234567891234 | B70: 66 | L70: ไม่ถูกต้อง | M70: =IFERROR(VLOOKUP(G70,ตัวแปร!B$41:C$61,2,0),"") ->  | N70: =C70*10+D70 -> 0 | O70: =IF(O$4=N70,M70,"") -> 
A71: ='1.ข้อมูลส่วนบุคคล'!$F$5 -> 1234567891234 | B71: 67 | L71: ไม่ถูกต้อง | M71: =IFERROR(VLOOKUP(G71,ตัวแปร!B$41:C$61,2,0),"") ->  | N71: =C71*10+D71 -> 0
A72: ='1.ข้อมูลส่วนบุคคล'!$F$5 -> 1234567891234 | B72: 68 | L72: ไม่ถูกต้อง | M72: =IFERROR(VLOOKUP(G72,ตัวแปร!B$41:C$61,2,0),"") ->  | N72: =C72*10+D72 -> 0
A73: ='1.ข้อมูลส่วนบุคคล'!$F$5 -> 1234567891234 | B73: 69 | L73: ไม่ถูกต้อง | M73: =IFERROR(VLOOKUP(G73,ตัวแปร!B$41:C$61,2,0),"") ->  | N73: =C73*10+D73 -> 0
A74: ='1.ข้อมูลส่วนบุคคล'!$F$5 -> 1234567891234 | B74: 70 | L74: ไม่ถูกต้อง | M74: =IFERROR(VLOOKUP(G74,ตัวแปร!B$41:C$61,2,0),"") ->  | N74: =C74*10+D74 -> 0
A75: ='1.ข้อมูลส่วนบุคคล'!$F$5 -> 1234567891234 | B75: 71 | L75: ไม่ถูกต้อง | M75: =IFERROR(VLOOKUP(G75,ตัวแปร!B$41:C$61,2,0),"") ->  | N75: =C75*10+D75 -> 0
A76: ='1.ข้อมูลส่วนบุคคล'!$F$5 -> 1234567891234 | B76: 72 | L76: ไม่ถูกต้อง | M76: =IFERROR(VLOOKUP(G76,ตัวแปร!B$41:C$61,2,0),"") ->  | N76: =C76*10+D76 -> 0
A77: ='1.ข้อมูลส่วนบุคคล'!$F$5 -> 1234567891234 | B77: 73 | L77: ไม่ถูกต้อง | M77: =IFERROR(VLOOKUP(G77,ตัวแปร!B$41:C$61,2,0),"") ->  | N77: =C77*10+D77 -> 0
A78: ='1.ข้อมูลส่วนบุคคล'!$F$5 -> 1234567891234 | B78: 74 | L78: ไม่ถูกต้อง | M78: =IFERROR(VLOOKUP(G78,ตัวแปร!B$41:C$61,2,0),"") ->  | N78: =C78*10+D78 -> 0
A79: ='1.ข้อมูลส่วนบุคคล'!$F$5 -> 1234567891234 | B79: 75 | L79: ไม่ถูกต้อง | M79: =IFERROR(VLOOKUP(G79,ตัวแปร!B$41:C$61,2,0),"") ->  | N79: =C79*10+D79 -> 0
A80: ='1.ข้อมูลส่วนบุคคล'!$F$5 -> 1234567891234 | B80: 76 | L80: ไม่ถูกต้อง | M80: =IFERROR(VLOOKUP(G80,ตัวแปร!B$41:C$61,2,0),"") ->  | N80: =C80*10+D80 -> 0
A81: ='1.ข้อมูลส่วนบุคคล'!$F$5 -> 1234567891234 | B81: 77 | L81: ไม่ถูกต้อง | M81: =IFERROR(VLOOKUP(G81,ตัวแปร!B$41:C$61,2,0),"") ->  | N81: =C81*10+D81 -> 0 | AE81: =IF(AE$4=$N81,$M81,"") -> 
A82: ='1.ข้อมูลส่วนบุคคล'!$F$5 -> 1234567891234 | B82: 78 | L82: ไม่ถูกต้อง | M82: =IFERROR(VLOOKUP(G82,ตัวแปร!B$41:C$61,2,0),"") ->  | N82: =C82*10+D82 -> 0 | P82: =IF(P$4=$N82,$M82,"") -> 
A83: ='1.ข้อมูลส่วนบุคคล'!$F$5 -> 1234567891234 | B83: 79 | L83: ไม่ถูกต้อง | M83: =IFERROR(VLOOKUP(G83,ตัวแปร!B$41:C$61,2,0),"") ->  | N83: =C83*10+D83 -> 0
A84: ='1.ข้อมูลส่วนบุคคล'!$F$5 -> 1234567891234 | B84: 80 | L84: ไม่ถูกต้อง | M84: =IFERROR(VLOOKUP(G84,ตัวแปร!B$41:C$61,2,0),"") ->  | N84: =C84*10+D84 -> 0
A85: ='1.ข้อมูลส่วนบุคคล'!$F$5 -> 1234567891234 | B85: 81 | L85: ไม่ถูกต้อง | M85: =IFERROR(VLOOKUP(G85,ตัวแปร!B$41:C$61,2,0),"") ->  | N85: =C85*10+D85 -> 0
A86: ='1.ข้อมูลส่วนบุคคล'!$F$5 -> 1234567891234 | B86: 82 | L86: ไม่ถูกต้อง | M86: =IFERROR(VLOOKUP(G86,ตัวแปร!B$41:C$61,2,0),"") ->  | N86: =C86*10+D86 -> 0
A87: ='1.ข้อมูลส่วนบุคคล'!$F$5 -> 1234567891234 | B87: 83 | L87: ไม่ถูกต้อง | M87: =IFERROR(VLOOKUP(G87,ตัวแปร!B$41:C$61,2,0),"") ->  | N87: =C87*10+D87 -> 0
A88: ='1.ข้อมูลส่วนบุคคล'!$F$5 -> 1234567891234 | B88: 84 | L88: ไม่ถูกต้อง | M88: =IFERROR(VLOOKUP(G88,ตัวแปร!B$41:C$61,2,0),"") ->  | N88: =C88*10+D88 -> 0
A89: ='1.ข้อมูลส่วนบุคคล'!$F$5 -> 1234567891234 | B89: 85 | L89: ไม่ถูกต้อง | M89: =IFERROR(VLOOKUP(G89,ตัวแปร!B$41:C$61,2,0),"") ->  | N89: =C89*10+D89 -> 0
A90: ='1.ข้อมูลส่วนบุคคล'!$F$5 -> 1234567891234 | B90: 86 | L90: ไม่ถูกต้อง | M90: =IFERROR(VLOOKUP(G90,ตัวแปร!B$41:C$61,2,0),"") ->  | N90: =C90*10+D90 -> 0
A91: ='1.ข้อมูลส่วนบุคคล'!$F$5 -> 1234567891234 | B91: 87 | L91: ไม่ถูกต้อง | M91: =IFERROR(VLOOKUP(G91,ตัวแปร!B$41:C$61,2,0),"") ->  | N91: =C91*10+D91 -> 0
A92: ='1.ข้อมูลส่วนบุคคล'!$F$5 -> 1234567891234 | B92: 88 | L92: ไม่ถูกต้อง | M92: =IFERROR(VLOOKUP(G92,ตัวแปร!B$41:C$61,2,0),"") ->  | N92: =C92*10+D92 -> 0
A93: ='1.ข้อมูลส่วนบุคคล'!$F$5 -> 1234567891234 | B93: 89 | L93: ไม่ถูกต้อง | M93: =IFERROR(VLOOKUP(G93,ตัวแปร!B$41:C$61,2,0),"") ->  | N93: =C93*10+D93 -> 0
A94: ='1.ข้อมูลส่วนบุคคล'!$F$5 -> 1234567891234 | B94: 90 | L94: ไม่ถูกต้อง | M94: =IFERROR(VLOOKUP(G94,ตัวแปร!B$41:C$61,2,0),"") ->  | N94: =C94*10+D94 -> 0
A95: ='1.ข้อมูลส่วนบุคคล'!$F$5 -> 1234567891234 | B95: 91 | L95: ไม่ถูกต้อง | M95: =IFERROR(VLOOKUP(G95,ตัวแปร!B$41:C$61,2,0),"") ->  | N95: =C95*10+D95 -> 0
A96: ='1.ข้อมูลส่วนบุคคล'!$F$5 -> 1234567891234 | B96: 92 | L96: ไม่ถูกต้อง | M96: =IFERROR(VLOOKUP(G96,ตัวแปร!B$41:C$61,2,0),"") ->  | N96: =C96*10+D96 -> 0
A97: ='1.ข้อมูลส่วนบุคคล'!$F$5 -> 1234567891234 | B97: 93 | L97: ไม่ถูกต้อง | M97: =IFERROR(VLOOKUP(G97,ตัวแปร!B$41:C$61,2,0),"") ->  | N97: =C97*10+D97 -> 0 | AE97: =IF(AE$4=$N97,$M97,"") -> 
A98: ='1.ข้อมูลส่วนบุคคล'!$F$5 -> 1234567891234 | B98: 94 | L98: ไม่ถูกต้อง | M98: =IFERROR(VLOOKUP(G98,ตัวแปร!B$41:C$61,2,0),"") ->  | N98: =C98*10+D98 -> 0 | P98: =IF(P$4=$N98,$M98,"") -> 
A99: ='1.ข้อมูลส่วนบุคคล'!$F$5 -> 1234567891234 | B99: 95 | L99: ไม่ถูกต้อง | M99: =IFERROR(VLOOKUP(G99,ตัวแปร!B$41:C$61,2,0),"") ->  | N99: =C99*10+D99 -> 0
A100: ='1.ข้อมูลส่วนบุคคล'!$F$5 -> 1234567891234 | B100: 96 | L100: ไม่ถูกต้อง | M100: =IFERROR(VLOOKUP(G100,ตัวแปร!B$41:C$61,2,0),"") ->  | N100: =C100*10+D100 -> 0
A101: ='1.ข้อมูลส่วนบุคคล'!$F$5 -> 1234567891234 | B101: 97 | L101: ไม่ถูกต้อง | M101: =IFERROR(VLOOKUP(G101,ตัวแปร!B$41:C$61,2,0),"") ->  | N101: =C101*10+D101 -> 0
A102: ='1.ข้อมูลส่วนบุคคล'!$F$5 -> 1234567891234 | B102: 98 | L102: ไม่ถูกต้อง | M102: =IFERROR(VLOOKUP(G102,ตัวแปร!B$41:C$61,2,0),"") ->  | N102: =C102*10+D102 -> 0
A103: ='1.ข้อมูลส่วนบุคคล'!$F$5 -> 1234567891234 | B103: 99 | L103: ไม่ถูกต้อง | M103: =IFERROR(VLOOKUP(G103,ตัวแปร!B$41:C$61,2,0),"") ->  | N103: =C103*10+D103 -> 0
A104: ='1.ข้อมูลส่วนบุคคล'!$F$5 -> 1234567891234 | B104: 100 | L104: ไม่ถูกต้อง | M104: =IFERROR(VLOOKUP(G104,ตัวแปร!B$41:C$61,2,0),"") ->  | N104: =C104*10+D104 -> 0
A105: ='1.ข้อมูลส่วนบุคคล'!$F$5 -> 1234567891234 | B105: 101 | L105: ไม่ถูกต้อง | M105: =IFERROR(VLOOKUP(G105,ตัวแปร!B$41:C$61,2,0),"") ->  | N105: =C105*10+D105 -> 0
A106: ='1.ข้อมูลส่วนบุคคล'!$F$5 -> 1234567891234 | B106: 102 | L106: ไม่ถูกต้อง | M106: =IFERROR(VLOOKUP(G106,ตัวแปร!B$41:C$61,2,0),"") ->  | N106: =C106*10+D106 -> 0
A107: ='1.ข้อมูลส่วนบุคคล'!$F$5 -> 1234567891234 | B107: 103 | L107: ไม่ถูกต้อง | M107: =IFERROR(VLOOKUP(G107,ตัวแปร!B$41:C$61,2,0),"") ->  | N107: =C107*10+D107 -> 0
A108: ='1.ข้อมูลส่วนบุคคล'!$F$5 -> 1234567891234 | B108: 104 | L108: ไม่ถูกต้อง | M108: =IFERROR(VLOOKUP(G108,ตัวแปร!B$41:C$61,2,0),"") ->  | N108: =C108*10+D108 -> 0
A109: ='1.ข้อมูลส่วนบุคคล'!$F$5 -> 1234567891234 | B109: 105 | L109: ไม่ถูกต้อง | M109: =IFERROR(VLOOKUP(G109,ตัวแปร!B$41:C$61,2,0),"") ->  | N109: =C109*10+D109 -> 0
A110: ='1.ข้อมูลส่วนบุคคล'!$F$5 -> 1234567891234 | B110: 106 | L110: ไม่ถูกต้อง | M110: =IFERROR(VLOOKUP(G110,ตัวแปร!B$41:C$61,2,0),"") ->  | N110: =C110*10+D110 -> 0
A111: ='1.ข้อมูลส่วนบุคคล'!$F$5 -> 1234567891234 | B111: 107 | L111: ไม่ถูกต้อง | M111: =IFERROR(VLOOKUP(G111,ตัวแปร!B$41:C$61,2,0),"") ->  | N111: =C111*10+D111 -> 0
A112: ='1.ข้อมูลส่วนบุคคล'!$F$5 -> 1234567891234 | B112: 108 | L112: ไม่ถูกต้อง | M112: =IFERROR(VLOOKUP(G112,ตัวแปร!B$41:C$61,2,0),"") ->  | N112: =C112*10+D112 -> 0
A113: ='1.ข้อมูลส่วนบุคคล'!$F$5 -> 1234567891234 | B113: 109 | L113: ไม่ถูกต้อง | M113: =IFERROR(VLOOKUP(G113,ตัวแปร!B$41:C$61,2,0),"") ->  | N113: =C113*10+D113 -> 0 | AE113: =IF(AE$4=$N113,$M113,"") -> 
A114: ='1.ข้อมูลส่วนบุคคล'!$F$5 -> 1234567891234 | B114: 110 | L114: ไม่ถูกต้อง | M114: =IFERROR(VLOOKUP(G114,ตัวแปร!B$41:C$61,2,0),"") ->  | N114: =C114*10+D114 -> 0 | P114: =IF(P$4=$N114,$M114,"") -> 
A115: ='1.ข้อมูลส่วนบุคคล'!$F$5 -> 1234567891234 | B115: 111 | L115: ไม่ถูกต้อง | M115: =IFERROR(VLOOKUP(G115,ตัวแปร!B$41:C$61,2,0),"") ->  | N115: =C115*10+D115 -> 0
A116: ='1.ข้อมูลส่วนบุคคล'!$F$5 -> 1234567891234 | B116: 112 | L116: ไม่ถูกต้อง | M116: =IFERROR(VLOOKUP(G116,ตัวแปร!B$41:C$61,2,0),"") ->  | N116: =C116*10+D116 -> 0
A117: ='1.ข้อมูลส่วนบุคคล'!$F$5 -> 1234567891234 | B117: 113 | L117: ไม่ถูกต้อง | M117: =IFERROR(VLOOKUP(G117,ตัวแปร!B$41:C$61,2,0),"") ->  | N117: =C117*10+D117 -> 0
A118: ='1.ข้อมูลส่วนบุคคล'!$F$5 -> 1234567891234 | B118: 114 | L118: ไม่ถูกต้อง | M118: =IFERROR(VLOOKUP(G118,ตัวแปร!B$41:C$61,2,0),"") ->  | N118: =C118*10+D118 -> 0
A119: ='1.ข้อมูลส่วนบุคคล'!$F$5 -> 1234567891234 | B119: 115 | L119: ไม่ถูกต้อง | M119: =IFERROR(VLOOKUP(G119,ตัวแปร!B$41:C$61,2,0),"") ->  | N119: =C119*10+D119 -> 0
A120: ='1.ข้อมูลส่วนบุคคล'!$F$5 -> 1234567891234 | B120: 116 | L120: ไม่ถูกต้อง | M120: =IFERROR(VLOOKUP(G120,ตัวแปร!B$41:C$61,2,0),"") ->  | N120: =C120*10+D120 -> 0
A121: ='1.ข้อมูลส่วนบุคคล'!$F$5 -> 1234567891234 | B121: 117 | L121: ไม่ถูกต้อง | M121: =IFERROR(VLOOKUP(G121,ตัวแปร!B$41:C$61,2,0),"") ->  | N121: =C121*10+D121 -> 0
A122: ='1.ข้อมูลส่วนบุคคล'!$F$5 -> 1234567891234 | B122: 118 | L122: ไม่ถูกต้อง | M122: =IFERROR(VLOOKUP(G122,ตัวแปร!B$41:C$61,2,0),"") ->  | N122: =C122*10+D122 -> 0
A123: ='1.ข้อมูลส่วนบุคคล'!$F$5 -> 1234567891234 | B123: 119 | L123: ไม่ถูกต้อง | M123: =IFERROR(VLOOKUP(G123,ตัวแปร!B$41:C$61,2,0),"") ->  | N123: =C123*10+D123 -> 0
A124: ='1.ข้อมูลส่วนบุคคล'!$F$5 -> 1234567891234 | B124: 120 | L124: ไม่ถูกต้อง | M124: =IFERROR(VLOOKUP(G124,ตัวแปร!B$41:C$61,2,0),"") ->  | N124: =C124*10+D124 -> 0
A125: ='1.ข้อมูลส่วนบุคคล'!$F$5 -> 1234567891234 | B125: 121 | L125: ไม่ถูกต้อง | M125: =IFERROR(VLOOKUP(G125,ตัวแปร!B$41:C$61,2,0),"") ->  | N125: =C125*10+D125 -> 0
A126: ='1.ข้อมูลส่วนบุคคล'!$F$5 -> 1234567891234 | B126: 122 | L126: ไม่ถูกต้อง | M126: =IFERROR(VLOOKUP(G126,ตัวแปร!B$41:C$61,2,0),"") ->  | N126: =C126*10+D126 -> 0
A127: ='1.ข้อมูลส่วนบุคคล'!$F$5 -> 1234567891234 | B127: 123 | L127: ไม่ถูกต้อง | M127: =IFERROR(VLOOKUP(G127,ตัวแปร!B$41:C$61,2,0),"") ->  | N127: =C127*10+D127 -> 0
A128: ='1.ข้อมูลส่วนบุคคล'!$F$5 -> 1234567891234 | B128: 124 | L128: ไม่ถูกต้อง | M128: =IFERROR(VLOOKUP(G128,ตัวแปร!B$41:C$61,2,0),"") ->  | N128: =C128*10+D128 -> 0
A129: ='1.ข้อมูลส่วนบุคคล'!$F$5 -> 1234567891234 | B129: 125 | L129: ไม่ถูกต้อง | M129: =IFERROR(VLOOKUP(G129,ตัวแปร!B$41:C$61,2,0),"") ->  | N129: =C129*10+D129 -> 0 | AE129: =IF(AE$4=$N129,$M129,"") -> 
A130: ='1.ข้อมูลส่วนบุคคล'!$F$5 -> 1234567891234 | B130: 126 | L130: ไม่ถูกต้อง | M130: =IFERROR(VLOOKUP(G130,ตัวแปร!B$41:C$61,2,0),"") ->  | N130: =C130*10+D130 -> 0 | P130: =IF(P$4=$N130,$M130,"") -> 
A131: ='1.ข้อมูลส่วนบุคคล'!$F$5 -> 1234567891234 | B131: 127 | L131: ไม่ถูกต้อง | M131: =IFERROR(VLOOKUP(G131,ตัวแปร!B$41:C$61,2,0),"") ->  | N131: =C131*10+D131 -> 0
A132: ='1.ข้อมูลส่วนบุคคล'!$F$5 -> 1234567891234 | B132: 128 | L132: ไม่ถูกต้อง | M132: =IFERROR(VLOOKUP(G132,ตัวแปร!B$41:C$61,2,0),"") ->  | N132: =C132*10+D132 -> 0
A133: ='1.ข้อมูลส่วนบุคคล'!$F$5 -> 1234567891234 | B133: 129 | L133: ไม่ถูกต้อง | M133: =IFERROR(VLOOKUP(G133,ตัวแปร!B$41:C$61,2,0),"") ->  | N133: =C133*10+D133 -> 0
A134: ='1.ข้อมูลส่วนบุคคล'!$F$5 -> 1234567891234 | B134: 130 | L134: ไม่ถูกต้อง | M134: =IFERROR(VLOOKUP(G134,ตัวแปร!B$41:C$61,2,0),"") ->  | N134: =C134*10+D134 -> 0 | O134: =IF(O$4=N134,M134,"") -> 
A135: ='1.ข้อมูลส่วนบุคคล'!$F$5 -> 1234567891234 | B135: 131 | L135: ไม่ถูกต้อง | M135: =IFERROR(VLOOKUP(G135,ตัวแปร!B$41:C$61,2,0),"") ->  | N135: =C135*10+D135 -> 0
A136: ='1.ข้อมูลส่วนบุคคล'!$F$5 -> 1234567891234 | B136: 132 | L136: ไม่ถูกต้อง | M136: =IFERROR(VLOOKUP(G136,ตัวแปร!B$41:C$61,2,0),"") ->  | N136: =C136*10+D136 -> 0
A137: ='1.ข้อมูลส่วนบุคคล'!$F$5 -> 1234567891234 | B137: 133 | L137: ไม่ถูกต้อง | M137: =IFERROR(VLOOKUP(G137,ตัวแปร!B$41:C$61,2,0),"") ->  | N137: =C137*10+D137 -> 0
A138: ='1.ข้อมูลส่วนบุคคล'!$F$5 -> 1234567891234 | B138: 134 | L138: ไม่ถูกต้อง | M138: =IFERROR(VLOOKUP(G138,ตัวแปร!B$41:C$61,2,0),"") ->  | N138: =C138*10+D138 -> 0
A139: ='1.ข้อมูลส่วนบุคคล'!$F$5 -> 1234567891234 | B139: 135 | L139: ไม่ถูกต้อง | M139: =IFERROR(VLOOKUP(G139,ตัวแปร!B$41:C$61,2,0),"") ->  | N139: =C139*10+D139 -> 0
A140: ='1.ข้อมูลส่วนบุคคล'!$F$5 -> 1234567891234 | B140: 136 | L140: ไม่ถูกต้อง | M140: =IFERROR(VLOOKUP(G140,ตัวแปร!B$41:C$61,2,0),"") ->  | N140: =C140*10+D140 -> 0
A141: ='1.ข้อมูลส่วนบุคคล'!$F$5 -> 1234567891234 | B141: 137 | L141: ไม่ถูกต้อง | M141: =IFERROR(VLOOKUP(G141,ตัวแปร!B$41:C$61,2,0),"") ->  | N141: =C141*10+D141 -> 0
A142: ='1.ข้อมูลส่วนบุคคล'!$F$5 -> 1234567891234 | B142: 138 | L142: ไม่ถูกต้อง | M142: =IFERROR(VLOOKUP(G142,ตัวแปร!B$41:C$61,2,0),"") ->  | N142: =C142*10+D142 -> 0
A143: ='1.ข้อมูลส่วนบุคคล'!$F$5 -> 1234567891234 | B143: 139 | L143: ไม่ถูกต้อง | M143: =IFERROR(VLOOKUP(G143,ตัวแปร!B$41:C$61,2,0),"") ->  | N143: =C143*10+D143 -> 0
A144: ='1.ข้อมูลส่วนบุคคล'!$F$5 -> 1234567891234 | B144: 140 | L144: ไม่ถูกต้อง | M144: =IFERROR(VLOOKUP(G144,ตัวแปร!B$41:C$61,2,0),"") ->  | N144: =C144*10+D144 -> 0
A145: ='1.ข้อมูลส่วนบุคคล'!$F$5 -> 1234567891234 | B145: 141 | L145: ไม่ถูกต้อง | M145: =IFERROR(VLOOKUP(G145,ตัวแปร!B$41:C$61,2,0),"") ->  | N145: =C145*10+D145 -> 0 | AE145: =IF(AE$4=$N145,$M145,"") -> 
A146: ='1.ข้อมูลส่วนบุคคล'!$F$5 -> 1234567891234 | B146: 142 | L146: ไม่ถูกต้อง | M146: =IFERROR(VLOOKUP(G146,ตัวแปร!B$41:C$61,2,0),"") ->  | N146: =C146*10+D146 -> 0 | P146: =IF(P$4=$N146,$M146,"") -> 
A147: ='1.ข้อมูลส่วนบุคคล'!$F$5 -> 1234567891234 | B147: 143 | L147: ไม่ถูกต้อง | M147: =IFERROR(VLOOKUP(G147,ตัวแปร!B$41:C$61,2,0),"") ->  | N147: =C147*10+D147 -> 0
A148: ='1.ข้อมูลส่วนบุคคล'!$F$5 -> 1234567891234 | B148: 144 | L148: ไม่ถูกต้อง | M148: =IFERROR(VLOOKUP(G148,ตัวแปร!B$41:C$61,2,0),"") ->  | N148: =C148*10+D148 -> 0
A149: ='1.ข้อมูลส่วนบุคคล'!$F$5 -> 1234567891234 | B149: 145 | L149: ไม่ถูกต้อง | M149: =IFERROR(VLOOKUP(G149,ตัวแปร!B$41:C$61,2,0),"") ->  | N149: =C149*10+D149 -> 0
A150: ='1.ข้อมูลส่วนบุคคล'!$F$5 -> 1234567891234 | B150: 146 | L150: ไม่ถูกต้อง | M150: =IFERROR(VLOOKUP(G150,ตัวแปร!B$41:C$61,2,0),"") ->  | N150: =C150*10+D150 -> 0
A151: ='1.ข้อมูลส่วนบุคคล'!$F$5 -> 1234567891234 | B151: 147 | L151: ไม่ถูกต้อง | M151: =IFERROR(VLOOKUP(G151,ตัวแปร!B$41:C$61,2,0),"") ->  | N151: =C151*10+D151 -> 0
A152: ='1.ข้อมูลส่วนบุคคล'!$F$5 -> 1234567891234 | B152: 148 | L152: ไม่ถูกต้อง | M152: =IFERROR(VLOOKUP(G152,ตัวแปร!B$41:C$61,2,0),"") ->  | N152: =C152*10+D152 -> 0
A153: ='1.ข้อมูลส่วนบุคคล'!$F$5 -> 1234567891234 | B153: 149 | L153: ไม่ถูกต้อง | M153: =IFERROR(VLOOKUP(G153,ตัวแปร!B$41:C$61,2,0),"") ->  | N153: =C153*10+D153 -> 0
A154: ='1.ข้อมูลส่วนบุคคล'!$F$5 -> 1234567891234 | B154: 150 | L154: ไม่ถูกต้อง | M154: =IFERROR(VLOOKUP(G154,ตัวแปร!B$41:C$61,2,0),"") ->  | N154: =C154*10+D154 -> 0
A155: ='1.ข้อมูลส่วนบุคคล'!$F$5 -> 1234567891234 | B155: 151 | L155: ไม่ถูกต้อง | M155: =IFERROR(VLOOKUP(G155,ตัวแปร!B$41:C$61,2,0),"") ->  | N155: =C155*10+D155 -> 0
A156: ='1.ข้อมูลส่วนบุคคล'!$F$5 -> 1234567891234 | B156: 152 | L156: ไม่ถูกต้อง | M156: =IFERROR(VLOOKUP(G156,ตัวแปร!B$41:C$61,2,0),"") ->  | N156: =C156*10+D156 -> 0
A157: ='1.ข้อมูลส่วนบุคคล'!$F$5 -> 1234567891234 | B157: 153 | L157: ไม่ถูกต้อง | M157: =IFERROR(VLOOKUP(G157,ตัวแปร!B$41:C$61,2,0),"") ->  | N157: =C157*10+D157 -> 0
A158: ='1.ข้อมูลส่วนบุคคล'!$F$5 -> 1234567891234 | B158: 154 | L158: ไม่ถูกต้อง | M158: =IFERROR(VLOOKUP(G158,ตัวแปร!B$41:C$61,2,0),"") ->  | N158: =C158*10+D158 -> 0
A159: ='1.ข้อมูลส่วนบุคคล'!$F$5 -> 1234567891234 | B159: 155 | L159: ไม่ถูกต้อง | M159: =IFERROR(VLOOKUP(G159,ตัวแปร!B$41:C$61,2,0),"") ->  | N159: =C159*10+D159 -> 0
A160: ='1.ข้อมูลส่วนบุคคล'!$F$5 -> 1234567891234 | B160: 156 | L160: ไม่ถูกต้อง | M160: =IFERROR(VLOOKUP(G160,ตัวแปร!B$41:C$61,2,0),"") ->  | N160: =C160*10+D160 -> 0
A161: ='1.ข้อมูลส่วนบุคคล'!$F$5 -> 1234567891234 | B161: 157 | L161: ไม่ถูกต้อง | M161: =IFERROR(VLOOKUP(G161,ตัวแปร!B$41:C$61,2,0),"") ->  | N161: =C161*10+D161 -> 0 | AE161: =IF(AE$4=$N161,$M161,"") -> 
A162: ='1.ข้อมูลส่วนบุคคล'!$F$5 -> 1234567891234 | B162: 158 | L162: ไม่ถูกต้อง | M162: =IFERROR(VLOOKUP(G162,ตัวแปร!B$41:C$61,2,0),"") ->  | N162: =C162*10+D162 -> 0 | P162: =IF(P$4=$N162,$M162,"") -> 
A163: ='1.ข้อมูลส่วนบุคคล'!$F$5 -> 1234567891234 | B163: 159 | L163: ไม่ถูกต้อง | M163: =IFERROR(VLOOKUP(G163,ตัวแปร!B$41:C$61,2,0),"") ->  | N163: =C163*10+D163 -> 0
A164: ='1.ข้อมูลส่วนบุคคล'!$F$5 -> 1234567891234 | B164: 160 | L164: ไม่ถูกต้อง | M164: =IFERROR(VLOOKUP(G164,ตัวแปร!B$41:C$61,2,0),"") ->  | N164: =C164*10+D164 -> 0
A165: ='1.ข้อมูลส่วนบุคคล'!$F$5 -> 1234567891234 | B165: 161 | L165: ไม่ถูกต้อง | M165: =IFERROR(VLOOKUP(G165,ตัวแปร!B$41:C$61,2,0),"") ->  | N165: =C165*10+D165 -> 0
A166: ='1.ข้อมูลส่วนบุคคล'!$F$5 -> 1234567891234 | B166: 162 | L166: ไม่ถูกต้อง | M166: =IFERROR(VLOOKUP(G166,ตัวแปร!B$41:C$61,2,0),"") ->  | N166: =C166*10+D166 -> 0
A167: ='1.ข้อมูลส่วนบุคคล'!$F$5 -> 1234567891234 | B167: 163 | L167: ไม่ถูกต้อง | M167: =IFERROR(VLOOKUP(G167,ตัวแปร!B$41:C$61,2,0),"") ->  | N167: =C167*10+D167 -> 0
A168: ='1.ข้อมูลส่วนบุคคล'!$F$5 -> 1234567891234 | B168: 164 | L168: ไม่ถูกต้อง | M168: =IFERROR(VLOOKUP(G168,ตัวแปร!B$41:C$61,2,0),"") ->  | N168: =C168*10+D168 -> 0
A169: ='1.ข้อมูลส่วนบุคคล'!$F$5 -> 1234567891234 | B169: 165 | L169: ไม่ถูกต้อง | M169: =IFERROR(VLOOKUP(G169,ตัวแปร!B$41:C$61,2,0),"") ->  | N169: =C169*10+D169 -> 0
A170: ='1.ข้อมูลส่วนบุคคล'!$F$5 -> 1234567891234 | B170: 166 | L170: ไม่ถูกต้อง | M170: =IFERROR(VLOOKUP(G170,ตัวแปร!B$41:C$61,2,0),"") ->  | N170: =C170*10+D170 -> 0
A171: ='1.ข้อมูลส่วนบุคคล'!$F$5 -> 1234567891234 | B171: 167 | L171: ไม่ถูกต้อง | M171: =IFERROR(VLOOKUP(G171,ตัวแปร!B$41:C$61,2,0),"") ->  | N171: =C171*10+D171 -> 0
A172: ='1.ข้อมูลส่วนบุคคล'!$F$5 -> 1234567891234 | B172: 168 | L172: ไม่ถูกต้อง | M172: =IFERROR(VLOOKUP(G172,ตัวแปร!B$41:C$61,2,0),"") ->  | N172: =C172*10+D172 -> 0
A173: ='1.ข้อมูลส่วนบุคคล'!$F$5 -> 1234567891234 | B173: 169 | L173: ไม่ถูกต้อง | M173: =IFERROR(VLOOKUP(G173,ตัวแปร!B$41:C$61,2,0),"") ->  | N173: =C173*10+D173 -> 0
A174: ='1.ข้อมูลส่วนบุคคล'!$F$5 -> 1234567891234 | B174: 170 | L174: ไม่ถูกต้อง | M174: =IFERROR(VLOOKUP(G174,ตัวแปร!B$41:C$61,2,0),"") ->  | N174: =C174*10+D174 -> 0
A175: ='1.ข้อมูลส่วนบุคคล'!$F$5 -> 1234567891234 | B175: 171 | L175: ไม่ถูกต้อง | M175: =IFERROR(VLOOKUP(G175,ตัวแปร!B$41:C$61,2,0),"") ->  | N175: =C175*10+D175 -> 0
A176: ='1.ข้อมูลส่วนบุคคล'!$F$5 -> 1234567891234 | B176: 172 | L176: ไม่ถูกต้อง | M176: =IFERROR(VLOOKUP(G176,ตัวแปร!B$41:C$61,2,0),"") ->  | N176: =C176*10+D176 -> 0
A177: ='1.ข้อมูลส่วนบุคคล'!$F$5 -> 1234567891234 | B177: 173 | L177: ไม่ถูกต้อง | M177: =IFERROR(VLOOKUP(G177,ตัวแปร!B$41:C$61,2,0),"") ->  | N177: =C177*10+D177 -> 0 | AE177: =IF(AE$4=$N177,$M177,"") -> 
A178: ='1.ข้อมูลส่วนบุคคล'!$F$5 -> 1234567891234 | B178: 174 | L178: ไม่ถูกต้อง | M178: =IFERROR(VLOOKUP(G178,ตัวแปร!B$41:C$61,2,0),"") ->  | N178: =C178*10+D178 -> 0 | P178: =IF(P$4=$N178,$M178,"") -> 
A179: ='1.ข้อมูลส่วนบุคคล'!$F$5 -> 1234567891234 | B179: 175 | L179: ไม่ถูกต้อง | M179: =IFERROR(VLOOKUP(G179,ตัวแปร!B$41:C$61,2,0),"") ->  | N179: =C179*10+D179 -> 0
A180: ='1.ข้อมูลส่วนบุคคล'!$F$5 -> 1234567891234 | B180: 176 | L180: ไม่ถูกต้อง | M180: =IFERROR(VLOOKUP(G180,ตัวแปร!B$41:C$61,2,0),"") ->  | N180: =C180*10+D180 -> 0
A181: ='1.ข้อมูลส่วนบุคคล'!$F$5 -> 1234567891234 | B181: 177 | L181: ไม่ถูกต้อง | M181: =IFERROR(VLOOKUP(G181,ตัวแปร!B$41:C$61,2,0),"") ->  | N181: =C181*10+D181 -> 0
A182: ='1.ข้อมูลส่วนบุคคล'!$F$5 -> 1234567891234 | B182: 178 | L182: ไม่ถูกต้อง | M182: =IFERROR(VLOOKUP(G182,ตัวแปร!B$41:C$61,2,0),"") ->  | N182: =C182*10+D182 -> 0
A183: ='1.ข้อมูลส่วนบุคคล'!$F$5 -> 1234567891234 | B183: 179 | L183: ไม่ถูกต้อง | M183: =IFERROR(VLOOKUP(G183,ตัวแปร!B$41:C$61,2,0),"") ->  | N183: =C183*10+D183 -> 0
A184: ='1.ข้อมูลส่วนบุคคล'!$F$5 -> 1234567891234 | B184: 180 | L184: ไม่ถูกต้อง | M184: =IFERROR(VLOOKUP(G184,ตัวแปร!B$41:C$61,2,0),"") ->  | N184: =C184*10+D184 -> 0
A185: ='1.ข้อมูลส่วนบุคคล'!$F$5 -> 1234567891234 | B185: 181 | L185: ไม่ถูกต้อง | M185: =IFERROR(VLOOKUP(G185,ตัวแปร!B$41:C$61,2,0),"") ->  | N185: =C185*10+D185 -> 0
A186: ='1.ข้อมูลส่วนบุคคล'!$F$5 -> 1234567891234 | B186: 182 | L186: ไม่ถูกต้อง | M186: =IFERROR(VLOOKUP(G186,ตัวแปร!B$41:C$61,2,0),"") ->  | N186: =C186*10+D186 -> 0
A187: ='1.ข้อมูลส่วนบุคคล'!$F$5 -> 1234567891234 | B187: 183 | L187: ไม่ถูกต้อง | M187: =IFERROR(VLOOKUP(G187,ตัวแปร!B$41:C$61,2,0),"") ->  | N187: =C187*10+D187 -> 0
A188: ='1.ข้อมูลส่วนบุคคล'!$F$5 -> 1234567891234 | B188: 184 | L188: ไม่ถูกต้อง | M188: =IFERROR(VLOOKUP(G188,ตัวแปร!B$41:C$61,2,0),"") ->  | N188: =C188*10+D188 -> 0
A189: ='1.ข้อมูลส่วนบุคคล'!$F$5 -> 1234567891234 | B189: 185 | L189: ไม่ถูกต้อง | M189: =IFERROR(VLOOKUP(G189,ตัวแปร!B$41:C$61,2,0),"") ->  | N189: =C189*10+D189 -> 0
A190: ='1.ข้อมูลส่วนบุคคล'!$F$5 -> 1234567891234 | B190: 186 | L190: ไม่ถูกต้อง | M190: =IFERROR(VLOOKUP(G190,ตัวแปร!B$41:C$61,2,0),"") ->  | N190: =C190*10+D190 -> 0
A191: ='1.ข้อมูลส่วนบุคคล'!$F$5 -> 1234567891234 | B191: 187 | L191: ไม่ถูกต้อง | M191: =IFERROR(VLOOKUP(G191,ตัวแปร!B$41:C$61,2,0),"") ->  | N191: =C191*10+D191 -> 0
A192: ='1.ข้อมูลส่วนบุคคล'!$F$5 -> 1234567891234 | B192: 188 | L192: ไม่ถูกต้อง | M192: =IFERROR(VLOOKUP(G192,ตัวแปร!B$41:C$61,2,0),"") ->  | N192: =C192*10+D192 -> 0
A193: ='1.ข้อมูลส่วนบุคคล'!$F$5 -> 1234567891234 | B193: 189 | L193: ไม่ถูกต้อง | M193: =IFERROR(VLOOKUP(G193,ตัวแปร!B$41:C$61,2,0),"") ->  | N193: =C193*10+D193 -> 0 | AE193: =IF(AE$4=$N193,$M193,"") -> 
A194: ='1.ข้อมูลส่วนบุคคล'!$F$5 -> 1234567891234 | B194: 190 | L194: ไม่ถูกต้อง | M194: =IFERROR(VLOOKUP(G194,ตัวแปร!B$41:C$61,2,0),"") ->  | N194: =C194*10+D194 -> 0 | P194: =IF(P$4=$N194,$M194,"") -> 
A195: ='1.ข้อมูลส่วนบุคคล'!$F$5 -> 1234567891234 | B195: 191 | L195: ไม่ถูกต้อง | M195: =IFERROR(VLOOKUP(G195,ตัวแปร!B$41:C$61,2,0),"") ->  | N195: =C195*10+D195 -> 0
A196: ='1.ข้อมูลส่วนบุคคล'!$F$5 -> 1234567891234 | B196: 192 | L196: ไม่ถูกต้อง | M196: =IFERROR(VLOOKUP(G196,ตัวแปร!B$41:C$61,2,0),"") ->  | N196: =C196*10+D196 -> 0
A197: ='1.ข้อมูลส่วนบุคคล'!$F$5 -> 1234567891234 | B197: 193 | L197: ไม่ถูกต้อง | M197: =IFERROR(VLOOKUP(G197,ตัวแปร!B$41:C$61,2,0),"") ->  | N197: =C197*10+D197 -> 0
A198: ='1.ข้อมูลส่วนบุคคล'!$F$5 -> 1234567891234 | B198: 194 | L198: ไม่ถูกต้อง | M198: =IFERROR(VLOOKUP(G198,ตัวแปร!B$41:C$61,2,0),"") ->  | N198: =C198*10+D198 -> 0 | O198: =IF(O$4=N198,M198,"") -> 
A199: ='1.ข้อมูลส่วนบุคคล'!$F$5 -> 1234567891234 | B199: 195 | L199: ไม่ถูกต้อง | M199: =IFERROR(VLOOKUP(G199,ตัวแปร!B$41:C$61,2,0),"") ->  | N199: =C199*10+D199 -> 0
A200: ='1.ข้อมูลส่วนบุคคล'!$F$5 -> 1234567891234 | B200: 196 | L200: ไม่ถูกต้อง | M200: =IFERROR(VLOOKUP(G200,ตัวแปร!B$41:C$61,2,0),"") ->  | N200: =C200*10+D200 -> 0
... 154 more rows

Sheet 3.ชั่วโมงสอนตามตารางสอน
C1: ชั่วโมงการปฏิบัติงาน (ชั่วโมงสอนตามตารางสอน)
F2: จำนวนชั่วโมงสอนในวิชา/สาขา/กลุ่มสาระการเรียนรู้ ที่กำหนดไว้ตามหลักสูตร การจัดประสบการณ์การเรียนรู้ กิจกรรมฟื้นฟูสมรรถภาพผู้เรียน | O2: =ABS(IFERROR(VLOOKUP(N2,AQ$7:AS$26,3,FALSE),0)-IFERROR(VLOOKUP(N2,AQ$7:AS$26,2,FALSE),0)) -> 0
E3: =IF(SUMIF(AA7:AA22,1)>0,"โปรดตรวจสอบการบันทึกในช่อง 'ปีการศึกษา/ปีงบประมาณ ภาคเรียนที่ และสัปดาห์ที่' เนื่องจากมีการบันทึกไม่ถูกต้อง","") ->  | L3: =IF(SUMIF(AJ$7:AJ$7000,1,AJ$7:AJ$7000)>0,"ต้องสอนซ่อมเสริมในปี "&+L2&+" ภาคเรียนที่ "&+M2&+" อีก "&+O2&+" ชั่วโมง","") -> 
A5: เลขบัตรประชาชน | B5: ปีที่ | C5: ปีการศึกษา/ปีงบประมาณ | D5: ภาคเรียนที่ | E5: สัปดาห์ที่ | F5: ว/ด/ป ของสัปดาห์ | H5: กลุ่มสาระที่สอน/สาขาวิชาที่สอน/วิชาที่สอน | I5: ชื่อวิชาที่สอน | J5: รหัสวิชา | K5: เกี่ยวข้องกับการขอวิทยฐานะเชี่ยวชาญ/เชี่ยวชาญพิเศษ | L5: จำนวนคาบ/หลักสูตร | M5: หน่วยเวลาที่ใช้ต่อคาบ/หลักสูตร | N5: หน่วยนับเวลาที่ใช้ | O5: ลักษณะการสอน | P5: หมายเหตุ | Q5: การรับรองของ | R5: รหัสเอกสารสำหรับตรวจสอบ | S5: รหัสเอกสารสำหรับตรวจสอบ | W5: คือคิดในหน้าสรุปตรวจสอบชั่วโมงขั้นต่ำ | AQ5: สรุปจำนวนชั่วโมงขาดและสอนซ่อมเสริมเป็นรายเทอม
F6: วันแรกของสัปดาห์ | G6: วันสุดท้ายของสัปดาห์ | P6: (กรณี ชม.สอนน้อยกว่าเกณฑ์ขั้นต่ำ) | Q6: ผอ. สถานศึกษา | W6: ตรวจสอบว่าชั่วโมงในสัปดาห์ไม่ครบตามชั่วโมงขั้นต่ำ (ไม่นับชั่วโมงสอนซ่อมเสริมในสัปดาห์นั้น) | Z6: ชั่วโมงจริง | AA6: ตรวจสอบการบันทึกไม่เรียงลำดับปี ภาคเรียน สัปดาห์ ตามที่ควรจะเป็น | AB6: คำนวณปีรายบุคคล | AG6: สัปดาห์ที่ ผอ. มอบหมาย | AH6: จำนวนชั่วโมงที่ขาด ในสัปดาห์ที่สอนไม่ครบ (คิดสัปดาห์เดียว) | AI6: จำนวนชั่วโมงที่สอนซ่อมเสริม | AJ6: ตรวจสอบว่าชั่วโมงสอนซ่อมเสริมทดแทนอาทิตย์ที่ ผอ. มอบหมายงานได้ ภายในเทอมนั้น | AK6: รายการที่สอนซ่อมเสริม | AL6: ปีที่ ภาคเรียน สัปดาห์ ผอ.รับรอง | AM6: ปีการศึกษา ภาคเรียน | AN6: ปีการศึกษา สัปดาห์ | AO6: ปีการศึกษา ภาคเรียน (ไว้เช็คกับชีท2) | AP6: ชั่วโมงขั้นต่ำที่ต้องสอนในเทอมนั้นๆ | AQ6: ปีการศึกษา ภาคเรียน แบบ 10 ปี | AR6: ชั่วโมงสอนที่ขาดไปในเทอมหรือปีนั้นๆ | AS6: ชั่วโมงสอนซ่อมเสริมในเทอมหรือปีนั้นๆ
A7: ='1.ข้อมูลส่วนบุคคล'!$F$5 -> 1234567891234 | B7: =IF(AF7<0,"",IF(DATEDIF(AB7,AD7,"y")+(DATEDIF(AB7,AD7,"ym")/10)<=1,1,IF(DATEDIF(AB7,AD7,"y")+(DATEDIF(AB7,AD7,"ym")/10)<=2,2,IF(DATEDIF(AB7,AD7,"y")+(DATEDIF(AB7,AD7,"ym")/10)<=3,3,IF(DATEDIF(AB7,AD7,"y")+(DATEDIF(AB7,AD7,"ym")/10)<=4,4,IF(DATEDIF(AB7,AD7,"y")+(DATEDIF(AB7,AD7,"ym")/10)<=5,5,IF(DATEDIF(AB7,AD7,"y")+(DATEDIF(AB7,AD7,"ym")/10)<=6,6,IF(DATEDIF(AB7,AD7,"y")+(DATEDIF(AB7,AD7,"ym")/10)<=7,7,IF(DATEDIF(AB7,AD7,"y")+(DATEDIF(AB7,AD7,"ym")/10)<=8,8,IF(DATEDIF(AB7,AD7,"y")+(DATEDIF(AB7,AD7,"ym")/10)<=9,9,IF(DATEDIF(AB7,AD7,"y")+(DATEDIF(AB7,AD7,"ym")/10)<=10,10,"ไม่ถูกต้อง"))))))))))) -> 1 | C7: ='2.การมอบหมายงานสอน'!C5 -> 2560 | D7: 1 | E7: 1 | F7: 2560-05-15 | G7: 2560-05-21 | H7: ภาษาไทย | I7: ภาษาไทย | J7: ท31011 | K7: =IF('1.ข้อมูลส่วนบุคคล'!C$21="เชี่ยวชาญ",IF(H7="-","",IF(H7='1.ข้อมูลส่วนบุคคล'!F$26,"เกี่ยวข้อง","ไม่เกี่ยวข้อง")),IF('1.ข้อมูลส่วนบุคคล'!C$21="เชี่ยวชาญพิเศษ",IF(H7="-","",IF(H7='1.ข้อมูลส่วนบุคคล'!F$26,"เกี่ยวข้อง","ไม่เกี่ยวข้อง")),"")) ->  | L7: 10 | M7: 50 | N7: นาที | O7: สอนตามตารางสอน | P7: 5.ปฏิบัติงานอื่นตามที่ ผอ. มอบหมาย | Q7: ถูกต้อง | R7: =S7 -> 256011ท31011ภาษาไทย | S7: =C7&+D7&+E7&+J7&+LEFT(I7,20) -> 256011ท31011ภาษาไทย | T7: =B7&+E7 -> 11 | U7: =IF(LEFT(Q7,3)="ไม่",0,IF(L7="","",B7)) -> 1 | V7: =IF(K7="เกี่ยวข้อง",1,0) -> 0 | W7: =IF(LEFT(Q7,3)="ไม่","",IF(OR(LEFT(P7,1)="1",LEFT(P7,1)="2",LEFT(P7,1)="3",LEFT(P7,1)="4",LEFT(P7,1)="5"),0,IF(SUMIFS(Z7:Z57,AL7:AL57,B7&+D7&+E7&+"ถูกต้อง",AK7:AK57,0)<AP7,1,0))) -> 0 | X7: =IF(Q7="ไม่ถูกต้อง",0,IF(N7="นาที",(L7*M7)/60,L7*M7)) -> 8.333333333 | Y7: =(MOD(X7,1))*60/100 -> 0.2 | Z7: =ROUNDDOWN(X7,0)+Y7 -> 8.2 | AA7: =IF(E7<>1,1,0) -> 0 | AB7: ='1.ข้อมูลส่วนบุคคล'!G$32 -> 2560-05-15 | AC7: =TEXT(AB7,"yyyy")&+IF(TEXT(AB7,"mm")>9,TEXT(AB7,"mm"),"0"&+TEXT(AB7,"mm"))&+IF(TEXT(AB7,"dd")>9,TEXT(AB7,"dd"),"0"&+TEXT(AB7,"dd")) -> 25600515 | AD7: =F7 -> 2560-05-15 | AE7: =TEXT(AD7,"yyyy")&+IF(TEXT(AD7,"mm")>9,TEXT(AD7,"mm"),"0"&+TEXT(AD7,"mm"))&+IF(TEXT(AD7,"dd")>9,TEXT(AD7,"dd"),"0"&+TEXT(AD7,"dd")) -> 25600515 | AF7: =AE7-AC7 -> 0 | AG7: =IF(LEFT(P7,1)="5",1,0) -> 1 | AH7: =IF(AG7=1,IF((AP7-IF(AND(LEFT(Q7,3)<>"ไม่",AK7=0),SUMIF(AN$7:AN57,AN7,Z$7:Z57),0))<0,0,AP7-IF(AND(LEFT(Q7,3)<>"ไม่",AK7=0),SUMIF(AN$7:AN57,AN7,Z$7:Z57),0)),0) -> 3.8 | AI7: =IF(O7="สอนซ่อมเสริม",Z7,0) -> 0 | AJ7: =IF(IFERROR(VLOOKUP(AO7,AQ$7:AS$26,3,FALSE),0)-IFERROR(VLOOKUP(AO7,AQ$7:AS$26,2,FALSE),0)<0,1,0) -> 0 | AK7: =IF(O7="สอนซ่อมเสริม",1,0) -> 0 | AL7: =B7&+D7&+E7&+Q7 -> 111ถูกต้อง | AM7: =C7&+D7 -> 25601 | AN7: =C7&+E7 -> 25601 | AO7: =C7*10+D7 -> 25601 | AP7: =IFERROR(VLOOKUP(AO7,'2.การมอบหมายงานสอน'!$AI$5:$AJ$24,2,FALSE),0) -> 12 | AQ7: =IF(ISBLANK(D$7),C$7*10+0,C$7*10+D$7) -> 25601 | AR7: =SUMIF(AO$7:AO$7000,AQ7,AH$7:AH$7000) -> 7.6 | AS7: =SUMIF(AO$7:AO$7000,AQ7,AI$7:AI$7000) -> 8.2
A8: ='1.ข้อมูลส่วนบุคคล'!$F$5 -> 1234567891234 | B8: =IF(AF8<0,"",IF(DATEDIF(AB8,AD8,"y")+(DATEDIF(AB8,AD8,"ym")/10)<=1,1,IF(DATEDIF(AB8,AD8,"y")+(DATEDIF(AB8,AD8,"ym")/10)<=2,2,IF(DATEDIF(AB8,AD8,"y")+(DATEDIF(AB8,AD8,"ym")/10)<=3,3,IF(DATEDIF(AB8,AD8,"y")+(DATEDIF(AB8,AD8,"ym")/10)<=4,4,IF(DATEDIF(AB8,AD8,"y")+(DATEDIF(AB8,AD8,"ym")/10)<=5,5,IF(DATEDIF(AB8,AD8,"y")+(DATEDIF(AB8,AD8,"ym")/10)<=6,6,IF(DATEDIF(AB8,AD8,"y")+(DATEDIF(AB8,AD8,"ym")/10)<=7,7,IF(DATEDIF(AB8,AD8,"y")+(DATEDIF(AB8,AD8,"ym")/10)<=8,8,IF(DATEDIF(AB8,AD8,"y")+(DATEDIF(AB8,AD8,"ym")/10)<=9,9,IF(DATEDIF(AB8,AD8,"y")+(DATEDIF(AB8,AD8,"ym")/10)<=10,10,"ไม่ถูกต้อง"))))))))))) -> 1 | C8: 2560 | D8: 1 | E8: 2 | F8: 2560-05-22 | G8: 2560-05-28 | H8: ภาษาไทย | I8: ภาษาไทย | J8: ท31011 | K8: =IF('1.ข้อมูลส่วนบุคคล'!C$21="เชี่ยวชาญ",IF(H8="-","",IF(H8='1.ข้อมูลส่วนบุคคล'!F$26,"เกี่ยวข้อง","ไม่เกี่ยวข้อง")),IF('1.ข้อมูลส่วนบุคคล'!C$21="เชี่ยวชาญพิเศษ",IF(H8="-","",IF(H8='1.ข้อมูลส่วนบุคคล'!F$26,"เกี่ยวข้อง","ไม่เกี่ยวข้อง")),"")) ->  | L8: 10 | M8: 50 | N8: นาที | O8: สอนตามตารางสอน | P8: 5.ปฏิบัติงานอื่นตามที่ ผอ. มอบหมาย | Q8: ถูกต้อง | R8: =S8 -> 256012ท31011ภาษาไทย | S8: 256012ท31011ภาษาไทย | T8: =B8&+E8 -> 12 | U8: =IF(LEFT(Q8,3)="ไม่",0,IF(L8="","",B8)) -> 1 | V8: =IF(K8="เกี่ยวข้อง",1,0) -> 0 | W8: =IF(LEFT(Q8,3)="ไม่","",IF(AL8=AL7,0,IF(OR(LEFT(P8,1)="1",LEFT(P8,1)="2",LEFT(P8,1)="3",LEFT(P8,1)="4",LEFT(P8,1)="5"),0,IF(SUMIFS(Z8:Z58,AL8:AL58,B8&+D8&+E8&+"ถูกต้อง",AK8:AK58,0)<AP8,1,0)))) -> 0 | X8: =IF(Q8="ไม่ถูกต้อง",0,IF(N8="นาที",(L8*M8)/60,L8*M8)) -> 8.333333333 | Y8: =(MOD(X8,1))*60/100 -> 0.2 | Z8: =ROUNDDOWN(X8,0)+Y8 -> 8.2 | AA8: =IF(ISBLANK(E8),0,IF(ISBLANK(D8),IF(AND(C8=C7,E8=E7),0,IF(AND(C8=C7,E8=(E7+1)),0,IF(AND(C8=(C7+1),E8=1,E7>=18),0,1))),IF(AND(C8=C7,D8=D7,E8=E7),0,IF(AND(C8=C7,D8=D7,E8=(E7+1)),0,IF(AND(C8=C7,D8=(D7+1),E8=1,E7>=18),0,IF(AND(C8=(C7+1),D8=1,E8=1,E7>=18),0,1)))))) -> 0 | AB8: ='1.ข้อมูลส่วนบุคคล'!G$32 -> 2560-05-15 | AC8: =TEXT(AB8,"yyyy")&+IF(TEXT(AB8,"mm")>9,TEXT(AB8,"mm"),"0"&+TEXT(AB8,"mm"))&+IF(TEXT(AB8,"dd")>9,TEXT(AB8,"dd"),"0"&+TEXT(AB8,"dd")) -> 25600515 | AD8: =F8 -> 2560-05-22 | AE8: =TEXT(AD8,"yyyy")&+IF(TEXT(AD8,"mm")>9,TEXT(AD8,"mm"),"0"&+TEXT(AD8,"mm"))&+IF(TEXT(AD8,"dd")>9,TEXT(AD8,"dd"),"0"&+TEXT(AD8,"dd")) -> 25600522 | AF8: =AE8-AC8 -> 7 | AG8: =IF(LEFT(P8,1)="5",1,0) -> 1 | AH8: =IF(AG8=1,IF(IF(AN8=AN7,0,AP8-IF(AND(LEFT(Q8,3)<>"ไม่",AK8=0),SUMIFS(Z8:Z58,AN8:AN58,AN8,AK8:AK58,0),0))<0,0,IF(AN8=AN7,0,AP8-IF(AND(LEFT(Q8,3)<>"ไม่",AK8=0),SUMIFS(Z8:Z58,AN8:AN58,AN8,AK8:AK58,0),0))),0) -> 3.8 | AI8: =IF(O8="สอนซ่อมเสริม",Z8,0) -> 0 | AJ8: =IF(IFERROR(VLOOKUP(AO8,AQ$7:AS$26,3,FALSE),0)-IFERROR(VLOOKUP(AO8,AQ$7:AS$26,2,FALSE),0)<0,1,0) -> 0 | AK8: =IF(O8="สอนซ่อมเสริม",1,0) -> 0 | AL8: =B8&+D8&+E8&+Q8 -> 112ถูกต้อง | AM8: =C8&+D8 -> 25601 | AN8: =C8&+E8 -> 25602 | AO8: =C8*10+D8 -> 25601 | AP8: =IFERROR(VLOOKUP(AO8,'2.การมอบหมายงานสอน'!$AI$5:$AJ$24,2,FALSE),0) -> 12 | AQ8: =IF(ISBLANK(D7),C7*10+0,($C$7)*10+2) -> 25602 | AR8: =SUMIF(AO$7:AO$7000,AQ8,AH$7:AH$7000) -> 0 | AS8: =SUMIF(AO$7:AO$7000,AQ8,AI$7:AI$7000) -> 0
A9: ='1.ข้อมูลส่วนบุคคล'!$F$5 -> 1234567891234 | B9: 1 | C9: 2560 | D9: 1 | E9: 2 | F9: 2560-05-22 | G9: 2560-05-28 | H9: ภาษาไทย | I9: ภาษาไทย | J9: ท31011 | K9: =IF('1.ข้อมูลส่วนบุคคล'!C$21="เชี่ยวชาญ",IF(H9="-","",IF(H9='1.ข้อมูลส่วนบุคคล'!F$26,"เกี่ยวข้อง","ไม่เกี่ยวข้อง")),IF('1.ข้อมูลส่วนบุคคล'!C$21="เชี่ยวชาญพิเศษ",IF(H9="-","",IF(H9='1.ข้อมูลส่วนบุคคล'!F$26,"เกี่ยวข้อง","ไม่เกี่ยวข้อง")),"")) ->  | L9: 5 | M9: 50 | N9: นาที | O9: สอนซ่อมเสริม | P9: 5.ปฏิบัติงานอื่นตามที่ ผอ. มอบหมาย | Q9: ถูกต้อง | R9: =S9 -> 256012ท31011ภาษาไทย | S9: 256012ท31011ภาษาไทย | T9: 12 | U9: =IF(LEFT(Q9,3)="ไม่",0,IF(L9="","",B9)) -> 1 | V9: 0 | W9: =IF(LEFT(Q9,3)="ไม่","",IF(AL9=AL8,0,IF(OR(LEFT(P9,1)="1",LEFT(P9,1)="2",LEFT(P9,1)="3",LEFT(P9,1)="4",LEFT(P9,1)="5"),0,IF(SUMIFS(Z9:Z59,AL9:AL59,B9&+D9&+E9&+"ถูกต้อง",AK9:AK59,0)<AP9,1,0)))) -> 0 | X9: =IF(Q9="ไม่ถูกต้อง",0,IF(N9="นาที",(L9*M9)/60,L9*M9)) -> 4.166666667 | Y9: =(MOD(X9,1))*60/100 -> 0.1 | Z9: 4.1 | AA9: =IF(ISBLANK(E9),0,IF(ISBLANK(D9),IF(AND(C9=C8,E9=E8),0,IF(AND(C9=C8,E9=(E8+1)),0,IF(AND(C9=(C8+1),E9=1,E8>=18),0,1))),IF(AND(C9=C8,D9=D8,E9=E8),0,IF(AND(C9=C8,D9=D8,E9=(E8+1)),0,IF(AND(C9=C8,D9=(D8+1),E9=1,E8>=18),0,IF(AND(C9=(C8+1),D9=1,E9=1,E8>=18),0,1)))))) -> 0 | AB9: ='1.ข้อมูลส่วนบุคคล'!G$32 -> 2560-05-15 | AC9: =TEXT(AB9,"yyyy")&+IF(TEXT(AB9,"mm")>9,TEXT(AB9,"mm"),"0"&+TEXT(AB9,"mm"))&+IF(TEXT(AB9,"dd")>9,TEXT(AB9,"dd"),"0"&+TEXT(AB9,"dd")) -> 25600515 | AD9: 2560-05-22 | AE9: =TEXT(AD9,"yyyy")&+IF(TEXT(AD9,"mm")>9,TEXT(AD9,"mm"),"0"&+TEXT(AD9,"mm"))&+IF(TEXT(AD9,"dd")>9,TEXT(AD9,"dd"),"0"&+TEXT(AD9,"dd")) -> 25600522 | AF9: =AE9-AC9 -> 7 | AG9: 1 | AH9: =IF(AG9=1,IF(IF(AN9=AN8,0,AP9-IF(AND(LEFT(Q9,3)<>"ไม่",AK9=0),SUMIFS(Z9:Z59,AN9:AN59,AN9,AK9:AK59,0),0))<0,0,IF(AN9=AN8,0,AP9-IF(AND(LEFT(Q9,3)<>"ไม่",AK9=0),SUMIFS(Z9:Z59,AN9:AN59,AN9,AK9:AK59,0),0))),0) -> 0 | AI9: =IF(O9="สอนซ่อมเสริม",Z9,0) -> 4.1 | AJ9: 0 | AK9: =IF(O9="สอนซ่อมเสริม",1,0) -> 1 | AL9: 112ถูกต้อง | AM9: 25601 | AN9: 25602 | AO9: 25601 | AP9: =IFERROR(VLOOKUP(AO9,'2.การมอบหมายงานสอน'!$AI$5:$AJ$24,2,FALSE),0) -> 12 | AQ9: =IF(ISBLANK(D$7),C$7*10+(10*1),($C$7+1)*10+1) -> 25611 | AR9: =SUMIF(AO$7:AO$7000,AQ9,AH$7:AH$7000) -> 0 | AS9: 0
A10: ='1.ข้อมูลส่วนบุคคล'!$F$5 -> 1234567891234 | B10: 1 | C10: 2560 | D10: 1 | E10: 3 | F10: 2560-05-29 | G10: 2560-06-04 | H10: ภาษาไทย | I10: ภาษาไทย | J10: ท31011 | K10: =IF('1.ข้อมูลส่วนบุคคล'!C$21="เชี่ยวชาญ",IF(H10="-","",IF(H10='1.ข้อมูลส่วนบุคคล'!F$26,"เกี่ยวข้อง","ไม่เกี่ยวข้อง")),IF('1.ข้อมูลส่วนบุคคล'!C$21="เชี่ยวชาญพิเศษ",IF(H10="-","",IF(H10='1.ข้อมูลส่วนบุคคล'!F$26,"เกี่ยวข้อง","ไม่เกี่ยวข้อง")),"")) ->  | L10: 15 | M10: 50 | N10: นาที | O10: สอนตามตารางสอน | P10: 5.ปฏิบัติงานอื่นตามที่ ผอ. มอบหมาย | Q10: ถูกต้อง | R10: =S10 -> 256013ท31011ภาษาไทย | S10: 256013ท31011ภาษาไทย | T10: 13 | U10: 1 | V10: 0 | W10: 0 | X10: 12.5 | Y10: 0.3 | Z10: 12.3 | AA10: =IF(ISBLANK(E10),0,IF(ISBLANK(D10),IF(AND(C10=C9,E10=E9),0,IF(AND(C10=C9,E10=(E9+1)),0,IF(AND(C10=(C9+1),E10=1,E9>=18),0,1))),IF(AND(C10=C9,D10=D9,E10=E9),0,IF(AND(C10=C9,D10=D9,E10=(E9+1)),0,IF(AND(C10=C9,D10=(D9+1),E10=1,E9>=18),0,IF(AND(C10=(C9+1),D10=1,E10=1,E9>=18),0,1)))))) -> 0 | AB10: ='1.ข้อมูลส่วนบุคคล'!G$32 -> 2560-05-15 | AC10: =TEXT(AB10,"yyyy")&+IF(TEXT(AB10,"mm")>9,TEXT(AB10,"mm"),"0"&+TEXT(AB10,"mm"))&+IF(TEXT(AB10,"dd")>9,TEXT(AB10,"dd"),"0"&+TEXT(AB10,"dd")) -> 25600515 | AD10: 2560-05-29 | AE10: 25600529 | AF10: =AE10-AC10 -> 14 | AG10: 1 | AH10: 0 | AI10: 0 | AJ10: 0 | AK10: 0 | AL10: 113ถูกต้อง | AM10: 25601 | AN10: 25603 | AO10: 25601 | AP10: =IFERROR(VLOOKUP(AO10,'2.การมอบหมายงานสอน'!$AI$5:$AJ$24,2,FALSE),0) -> 12 | AQ10: =IF(ISBLANK(D$7),C$7*10+(10*1),($C$7+1)*10+2) -> 25612 | AR10: 0 | AS10: 0
A11: ='1.ข้อมูลส่วนบุคคล'!$F$5 -> 1234567891234 | B11: 1 | C11: 2560 | D11: 1 | E11: 4 | F11: 2560-06-05 | G11: 2560-06-11 | H11: ภาษาไทย | I11: ภาษาไทย | J11: ท31011 | K11: =IF('1.ข้อมูลส่วนบุคคล'!C$21="เชี่ยวชาญ",IF(H11="-","",IF(H11='1.ข้อมูลส่วนบุคคล'!F$26,"เกี่ยวข้อง","ไม่เกี่ยวข้อง")),IF('1.ข้อมูลส่วนบุคคล'!C$21="เชี่ยวชาญพิเศษ",IF(H11="-","",IF(H11='1.ข้อมูลส่วนบุคคล'!F$26,"เกี่ยวข้อง","ไม่เกี่ยวข้อง")),"")) ->  | L11: 15 | M11: 50 | N11: นาที | O11: สอนตามตารางสอน | Q11: ถูกต้อง | R11: 256014ท31011ภาษาไทย | S11: 256014ท31011ภาษาไทย | T11: 14 | U11: 1 | V11: 0 | W11: 0 | X11: 12.5 | Y11: 0.3 | Z11: 12.3 | AA11: 0 | AB11: ='1.ข้อมูลส่วนบุคคล'!G$32 -> 2560-05-15 | AC11: 25600515 | AD11: 2560-06-05 | AE11: 25600605 | AF11: 90 | AG11: 0 | AH11: 0 | AI11: 0 | AJ11: 0 | AK11: 0 | AL11: 114ถูกต้อง | AM11: 25601 | AN11: 25604 | AO11: 25601 | AP11: =IFERROR(VLOOKUP(AO11,'2.การมอบหมายงานสอน'!$AI$5:$AJ$24,2,FALSE),0) -> 12 | AQ11: =IF(ISBLANK(D$7),C$7*10+(10*2),($C$7+2)*10+1) -> 25621 | AR11: 0 | AS11: 0
A12: ='1.ข้อมูลส่วนบุคคล'!$F$5 -> 1234567891234 | B12: 1 | C12: 2560 | D12: 1 | E12: 4 | F12: 2560-06-12 | G12: 2560-06-18 | H12: ภาษาไทย | I12: ภาษาไทย | J12: ท31011 | K12: =IF('1.ข้อมูลส่วนบุคคล'!C$21="เชี่ยวชาญ",IF(H12="-","",IF(H12='1.ข้อมูลส่วนบุคคล'!F$26,"เกี่ยวข้อง","ไม่เกี่ยวข้อง")),IF('1.ข้อมูลส่วนบุคคล'!C$21="เชี่ยวชาญพิเศษ",IF(H12="-","",IF(H12='1.ข้อมูลส่วนบุคคล'!F$26,"เกี่ยวข้อง","ไม่เกี่ยวข้อง")),"")) ->  | L12: 5 | M12: 50 | N12: นาที | O12: สอนซ่อมเสริม | Q12: ถูกต้อง | R12: 256014ท31011ภาษาไทย | S12: 256014ท31011ภาษาไทย | T12: 14 | U12: 1 | V12: 0 | W12: 0 | X12: 4.166666667 | Y12: 0.1 | Z12: 4.1 | AA12: 0 | AB12: ='1.ข้อมูลส่วนบุคคล'!G$32 -> 2560-05-15 | AC12: 25600515 | AD12: 2560-06-12 | AE12: 25600612 | AF12: 97 | AG12: 0 | AH12: 0 | AI12: 4.1 | AJ12: 0 | AK12: 1 | AL12: 114ถูกต้อง | AM12: 25601 | AN12: 25604 | AO12: 25601 | AP12: =IFERROR(VLOOKUP(AO12,'2.การมอบหมายงานสอน'!$AI$5:$AJ$24,2,FALSE),0) -> 12 | AQ12: =IF(ISBLANK(D$7),C$7*10+(10*2),($C$7+2)*10+2) -> 25622 | AR12: 0 | AS12: 0
A13: ='1.ข้อมูลส่วนบุคคล'!$F$5 -> 1234567891234 | B13: 1 | C13: 2560 | D13: 1 | E13: 5 | F13: 2560-06-12 | G13: 2560-06-18 | H13: ภาษาไทย | I13: ภาษาไทย | J13: ท31011 | K13: =IF('1.ข้อมูลส่วนบุคคล'!C$21="เชี่ยวชาญ",IF(H13="-","",IF(H13='1.ข้อมูลส่วนบุคคล'!F$26,"เกี่ยวข้อง","ไม่เกี่ยวข้อง")),IF('1.ข้อมูลส่วนบุคคล'!C$21="เชี่ยวชาญพิเศษ",IF(H13="-","",IF(H13='1.ข้อมูลส่วนบุคคล'!F$26,"เกี่ยวข้อง","ไม่เกี่ยวข้อง")),"")) ->  | L13: 15 | M13: 50 | N13: นาที | O13: สอนตามตารางสอน | Q13: ถูกต้อง | R13: 256015ท31011ภาษาไทย | S13: 256015ท31011ภาษาไทย | T13: 15 | U13: 1 | V13: 0 | W13: 0 | X13: 12.5 | Y13: 0.3 | Z13: 12.3 | AA13: 0 | AB13: ='1.ข้อมูลส่วนบุคคล'!G$32 -> 2560-05-15 | AC13: 25600515 | AD13: 2560-06-12 | AE13: 25600612 | AF13: 97 | AG13: 0 | AH13: 0 | AI13: 0 | AJ13: 0 | AK13: 0 | AL13: 115ถูกต้อง | AM13: 25601 | AN13: 25605 | AO13: 25601 | AP13: =IFERROR(VLOOKUP(AO13,'2.การมอบหมายงานสอน'!$AI$5:$AJ$24,2,FALSE),0) -> 12 | AQ13: =IF(ISBLANK(D$7),C$7*10+(10*3),($C$7+3)*10+1) -> 25631 | AR13: 0 | AS13: 0
A14: ='1.ข้อมูลส่วนบุคคล'!$F$5 -> 1234567891234 | B14: 1 | C14: 2560 | D14: 1 | E14: 6 | F14: 2560-06-19 | G14: 2560-06-25 | H14: ภาษาไทย | I14: ภาษาไทย | J14: ท31011 | K14: =IF('1.ข้อมูลส่วนบุคคล'!C$21="เชี่ยวชาญ",IF(H14="-","",IF(H14='1.ข้อมูลส่วนบุคคล'!F$26,"เกี่ยวข้อง","ไม่เกี่ยวข้อง")),IF('1.ข้อมูลส่วนบุคคล'!C$21="เชี่ยวชาญพิเศษ",IF(H14="-","",IF(H14='1.ข้อมูลส่วนบุคคล'!F$26,"เกี่ยวข้อง","ไม่เกี่ยวข้อง")),"")) ->  | L14: 15 | M14: 50 | N14: นาที | O14: สอนตามตารางสอน | Q14: ถูกต้อง | R14: 256016ท31011ภาษาไทย | S14: 256016ท31011ภาษาไทย | T14: 16 | U14: 1 | V14: 0 | W14: 0 | X14: 12.5 | Y14: 0.3 | Z14: 12.3 | AA14: 0 | AB14: ='1.ข้อมูลส่วนบุคคล'!G$32 -> 2560-05-15 | AC14: 25600515 | AD14: 2560-06-19 | AE14: 25600619 | AF14: 104 | AG14: 0 | AH14: 0 | AI14: 0 | AJ14: 0 | AK14: 0 | AL14: 116ถูกต้อง | AM14: 25601 | AN14: 25606 | AP14: =IFERROR(VLOOKUP(AO14,'2.การมอบหมายงานสอน'!$AI$5:$AJ$24,2,FALSE),0) -> 0 | AQ14: =IF(ISBLANK(D$7),C$7*10+(10*3),($C$7+3)*10+2) -> 25632 | AR14: 0 | AS14: 0
A15: ='1.ข้อมูลส่วนบุคคล'!$F$5 -> 1234567891234 | K15: =IF('1.ข้อมูลส่วนบุคคล'!C$21="เชี่ยวชาญ",IF(H15="-","",IF(H15='1.ข้อมูลส่วนบุคคล'!F$26,"เกี่ยวข้อง","ไม่เกี่ยวข้อง")),IF('1.ข้อมูลส่วนบุคคล'!C$21="เชี่ยวชาญพิเศษ",IF(H15="-","",IF(H15='1.ข้อมูลส่วนบุคคล'!F$26,"เกี่ยวข้อง","ไม่เกี่ยวข้อง")),"")) ->  | O15: สอนตามตารางสอน | Q15: ไม่ถูกต้อง | U15: 0 | V15: 0 | X15: 0 | Y15: 0 | Z15: 0 | AA15: 0 | AB15: ='1.ข้อมูลส่วนบุคคล'!G$32 -> 2560-05-15 | AC15: 25600515 | AD15: 00:00:00 | AE15: 19000100 | AF15: -6600415 | AG15: 0 | AH15: 0 | AI15: 0 | AJ15: 0 | AK15: 0 | AL15: ไม่ถูกต้อง | AP15: =IFERROR(VLOOKUP(AO15,'2.การมอบหมายงานสอน'!$AI$5:$AJ$24,2,FALSE),0) -> 0 | AQ15: =IF(ISBLANK(D$7),C$7*10+(10*4),($C$7+4)*10+1) -> 25641 | AR15: 0 | AS15: 0
A16: ='1.ข้อมูลส่วนบุคคล'!$F$5 -> 1234567891234 | K16: =IF('1.ข้อมูลส่วนบุคคล'!C$21="เชี่ยวชาญ",IF(H16="-","",IF(H16='1.ข้อมูลส่วนบุคคล'!F$26,"เกี่ยวข้อง","ไม่เกี่ยวข้อง")),IF('1.ข้อมูลส่วนบุคคล'!C$21="เชี่ยวชาญพิเศษ",IF(H16="-","",IF(H16='1.ข้อมูลส่วนบุคคล'!F$26,"เกี่ยวข้อง","ไม่เกี่ยวข้อง")),"")) ->  | O16: สอนตามตารางสอน | Q16: ไม่ถูกต้อง | U16: 0 | V16: 0 | X16: 0 | Y16: 0 | Z16: 0 | AA16: 0 | AB16: ='1.ข้อมูลส่วนบุคคล'!G$32 -> 2560-05-15 | AC16: 25600515 | AD16: 00:00:00 | AE16: 19000100 | AF16: -6600415 | AG16: 0 | AH16: 0 | AI16: 0 | AJ16: 0 | AK16: 0 | AL16: ไม่ถูกต้อง | AP16: =IFERROR(VLOOKUP(AO16,'2.การมอบหมายงานสอน'!$AI$5:$AJ$24,2,FALSE),0) -> 0 | AQ16: =IF(ISBLANK(D$7),C$7*10+(10*4),($C$7+4)*10+2) -> 25642 | AR16: 0 | AS16: 0
A17: ='1.ข้อมูลส่วนบุคคล'!$F$5 -> 1234567891234 | K17: =IF('1.ข้อมูลส่วนบุคคล'!C$21="เชี่ยวชาญ",IF(H17="-","",IF(H17='1.ข้อมูลส่วนบุคคล'!F$26,"เกี่ยวข้อง","ไม่เกี่ยวข้อง")),IF('1.ข้อมูลส่วนบุคคล'!C$21="เชี่ยวชาญพิเศษ",IF(H17="-","",IF(H17='1.ข้อมูลส่วนบุคคล'!F$26,"เกี่ยวข้อง","ไม่เกี่ยวข้อง")),"")) ->  | O17: สอนตามตารางสอน | Q17: ไม่ถูกต้อง | U17: 0 | V17: 0 | X17: 0 | Y17: 0 | Z17: 0 | AA17: 0 | AB17: ='1.ข้อมูลส่วนบุคคล'!G$32 -> 2560-05-15 | AC17: 25600515 | AD17: 00:00:00 | AE17: 19000100 | AF17: -6600415 | AG17: 0 | AH17: 0 | AI17: 0 | AJ17: 0 | AK17: 0 | AL17: ไม่ถูกต้อง | AP17: =IFERROR(VLOOKUP(AO17,'2.การมอบหมายงานสอน'!$AI$5:$AJ$24,2,FALSE),0) -> 0 | AQ17: =IF(ISBLANK(D$7),C$7*10+(10*5),($C$7+5)*10+1) -> 25651 | AR17: 0 | AS17: 0
A18: ='1.ข้อมูลส่วนบุคคล'!$F$5 -> 1234567891234 | K18: =IF('1.ข้อมูลส่วนบุคคล'!C$21="เชี่ยวชาญ",IF(H18="-","",IF(H18='1.ข้อมูลส่วนบุคคล'!F$26,"เกี่ยวข้อง","ไม่เกี่ยวข้อง")),IF('1.ข้อมูลส่วนบุคคล'!C$21="เชี่ยวชาญพิเศษ",IF(H18="-","",IF(H18='1.ข้อมูลส่วนบุคคล'!F$26,"เกี่ยวข้อง","ไม่เกี่ยวข้อง")),"")) ->  | O18: สอนตามตารางสอน | Q18: ไม่ถูกต้อง | U18: 0 | V18: 0 | X18: 0 | Y18: 0 | Z18: 0 | AA18: 0 | AB18: ='1.ข้อมูลส่วนบุคคล'!G$32 -> 2560-05-15 | AC18: 25600515 | AD18: 00:00:00 | AE18: 19000100 | AF18: -6600415 | AG18: 0 | AH18: 0 | AI18: 0 | AJ18: 0 | AK18: 0 | AL18: ไม่ถูกต้อง | AP18: =IFERROR(VLOOKUP(AO18,'2.การมอบหมายงานสอน'!$AI$5:$AJ$24,2,FALSE),0) -> 0 | AQ18: =IF(ISBLANK(D$7),C$7*10+(10*5),($C$7+5)*10+2) -> 25652 | AR18: 0 | AS18: 0
A19: ='1.ข้อมูลส่วนบุคคล'!$F$5 -> 1234567891234 | K19: =IF('1.ข้อมูลส่วนบุคคล'!C$21="เชี่ยวชาญ",IF(H19="-","",IF(H19='1.ข้อมูลส่วนบุคคล'!F$26,"เกี่ยวข้อง","ไม่เกี่ยวข้อง")),IF('1.ข้อมูลส่วนบุคคล'!C$21="เชี่ยวชาญพิเศษ",IF(H19="-","",IF(H19='1.ข้อมูลส่วนบุคคล'!F$26,"เกี่ยวข้อง","ไม่เกี่ยวข้อง")),"")) ->  | O19: สอนตามตารางสอน | Q19: ไม่ถูกต้อง | U19: 0 | V19: 0 | X19: 0 | Y19: 0 | Z19: 0 | AA19: 0 | AB19: ='1.ข้อมูลส่วนบุคคล'!G$32 -> 2560-05-15 | AC19: 25600515 | AD19: 00:00:00 | AE19: 19000100 | AF19: -6600415 | AG19: 0 | AH19: 0 | AI19: 0 | AJ19: 0 | AK19: 0 | AL19: ไม่ถูกต้อง | AP19: =IFERROR(VLOOKUP(AO19,'2.การมอบหมายงานสอน'!$AI$5:$AJ$24,2,FALSE),0) -> 0 | AQ19: =IF(ISBLANK(D$7),C$7*10+(10*6),($C$7+6)*10+1) -> 25661 | AR19: 0 | AS19: 0
A20: ='1.ข้อมูลส่วนบุคคล'!$F$5 -> 1234567891234 | K20: =IF('1.ข้อมูลส่วนบุคคล'!C$21="เชี่ยวชาญ",IF(H20="-","",IF(H20='1.ข้อมูลส่วนบุคคล'!F$26,"เกี่ยวข้อง","ไม่เกี่ยวข้อง")),IF('1.ข้อมูลส่วนบุคคล'!C$21="เชี่ยวชาญพิเศษ",IF(H20="-","",IF(H20='1.ข้อมูลส่วนบุคคล'!F$26,"เกี่ยวข้อง","ไม่เกี่ยวข้อง")),"")) ->  | O20: สอนตามตารางสอน | Q20: ไม่ถูกต้อง | U20: 0 | V20: 0 | X20: 0 | Y20: 0 | Z20: 0 | AA20: 0 | AB20: ='1.ข้อมูลส่วนบุคคล'!G$32 -> 2560-05-15 | AC20: 25600515 | AD20: 00:00:00 | AE20: 19000100 | AF20: -6600415 | AG20: 0 | AH20: 0 | AI20: 0 | AJ20: 0 | AK20: 0 | AL20: ไม่ถูกต้อง | AP20: =IFERROR(VLOOKUP(AO20,'2.การมอบหมายงานสอน'!$AI$5:$AJ$24,2,FALSE),0) -> 0 | AQ20: =IF(ISBLANK(D$7),C$7*10+(10*6),($C$7+6)*10+2) -> 25662 | AR20: 0 | AS20: 0
A21: ='1.ข้อมูลส่วนบุคคล'!$F$5 -> 1234567891234 | K21: =IF('1.ข้อมูลส่วนบุคคล'!C$21="เชี่ยวชาญ",IF(H21="-","",IF(H21='1.ข้อมูลส่วนบุคคล'!F$26,"เกี่ยวข้อง","ไม่เกี่ยวข้อง")),IF('1.ข้อมูลส่วนบุคคล'!C$21="เชี่ยวชาญพิเศษ",IF(H21="-","",IF(H21='1.ข้อมูลส่วนบุคคล'!F$26,"เกี่ยวข้อง","ไม่เกี่ยวข้อง")),"")) ->  | O21: สอนตามตารางสอน | Q21: ไม่ถูกต้อง | U21: 0 | V21: 0 | X21: 0 | Y21: 0 | Z21: 0 | AA21: 0 | AB21: ='1.ข้อมูลส่วนบุคคล'!G$32 -> 2560-05-15 | AC21: 25600515 | AD21: 00:00:00 | AE21: 19000100 | AF21: -6600415 | AG21: 0 | AH21: 0 | AI21: 0 | AJ21: 0 | AK21: 0 | AL21: ไม่ถูกต้อง | AP21: =IFERROR(VLOOKUP(AO21,'2.การมอบหมายงานสอน'!$AI$5:$AJ$24,2,FALSE),0) -> 0 | AQ21: =IF(ISBLANK(D$7),C$7*10+(10*7),($C$7+7)*10+1) -> 25671 | AR21: 0 | AS21: 0
A22: ='1.ข้อมูลส่วนบุคคล'!$F$5 -> 1234567891234 | K22: =IF('1.ข้อมูลส่วนบุคคล'!C$21="เชี่ยวชาญ",IF(H22="-","",IF(H22='1.ข้อมูลส่วนบุคคล'!F$26,"เกี่ยวข้อง","ไม่เกี่ยวข้อง")),IF('1.ข้อมูลส่วนบุคคล'!C$21="เชี่ยวชาญพิเศษ",IF(H22="-","",IF(H22='1.ข้อมูลส่วนบุคคล'!F$26,"เกี่ยวข้อง","ไม่เกี่ยวข้อง")),"")) ->  | O22: สอนตามตารางสอน | Q22: ไม่ถูกต้อง | U22: 0 | V22: 0 | X22: 0 | Y22: 0 | Z22: 0 | AA22: 0 | AB22: ='1.ข้อมูลส่วนบุคคล'!G$32 -> 2560-05-15 | AC22: 25600515 | AD22: 00:00:00 | AE22: 19000100 | AF22: -6600415 | AG22: 0 | AH22: 0 | AI22: 0 | AJ22: 0 | AK22: 0 | AL22: ไม่ถูกต้อง | AP22: =IFERROR(VLOOKUP(AO22,'2.การมอบหมายงานสอน'!$AI$5:$AJ$24,2,FALSE),0) -> 0 | AQ22: =IF(ISBLANK(D$7),C$7*10+(10*7),($C$7+7)*10+2) -> 25672 | AR22: 0 | AS22: 0
A23: ='1.ข้อมูลส่วนบุคคล'!$F$5 -> 1234567891234 | K23: =IF('1.ข้อมูลส่วนบุคคล'!C$21="เชี่ยวชาญ",IF(H23="-","",IF(H23='1.ข้อมูลส่วนบุคคล'!F$26,"เกี่ยวข้อง","ไม่เกี่ยวข้อง")),IF('1.ข้อมูลส่วนบุคคล'!C$21="เชี่ยวชาญพิเศษ",IF(H23="-","",IF(H23='1.ข้อมูลส่วนบุคคล'!F$26,"เกี่ยวข้อง","ไม่เกี่ยวข้อง")),"")) ->  | O23: สอนตามตารางสอน | Q23: ไม่ถูกต้อง | U23: 0 | V23: 0 | X23: 0 | Y23: 0 | Z23: 0 | AA23: 0 | AB23: ='1.ข้อมูลส่วนบุคคล'!G$32 -> 2560-05-15 | AC23: 25600515 | AD23: 00:00:00 | AE23: 19000100 | AF23: -6600415 | AG23: 0 | AH23: 0 | AI23: 0 | AJ23: 0 | AK23: 0 | AL23: ไม่ถูกต้อง | AP23: =IFERROR(VLOOKUP(AO23,'2.การมอบหมายงานสอน'!$AI$5:$AJ$24,2,FALSE),0) -> 0 | AQ23: =IF(ISBLANK(D$7),C$7*10+(10*8),($C$7+8)*10+1) -> 25681 | AR23: 0 | AS23: 0
A24: ='1.ข้อมูลส่วนบุคคล'!$F$5 -> 1234567891234 | K24: =IF('1.ข้อมูลส่วนบุคคล'!C$21="เชี่ยวชาญ",IF(H24="-","",IF(H24='1.ข้อมูลส่วนบุคคล'!F$26,"เกี่ยวข้อง","ไม่เกี่ยวข้อง")),IF('1.ข้อมูลส่วนบุคคล'!C$21="เชี่ยวชาญพิเศษ",IF(H24="-","",IF(H24='1.ข้อมูลส่วนบุคคล'!F$26,"เกี่ยวข้อง","ไม่เกี่ยวข้อง")),"")) ->  | O24: สอนตามตารางสอน | Q24: ไม่ถูกต้อง | U24: 0 | V24: 0 | X24: 0 | Y24: 0 | Z24: 0 | AA24: 0 | AB24: ='1.ข้อมูลส่วนบุคคล'!G$32 -> 2560-05-15 | AC24: 25600515 | AD24: 00:00:00 | AE24: 19000100 | AF24: -6600415 | AG24: 0 | AH24: 0 | AI24: 0 | AJ24: 0 | AK24: 0 | AL24: ไม่ถูกต้อง | AP24: =IFERROR(VLOOKUP(AO24,'2.การมอบหมายงานสอน'!$AI$5:$AJ$24,2,FALSE),0) -> 0 | AQ24: =IF(ISBLANK(D$7),C$7*10+(10*8),($C$7+8)*10+2) -> 25682 | AR24: 0 | AS24: 0
A25: ='1.ข้อมูลส่วนบุคคล'!$F$5 -> 1234567891234 | K25: =IF('1.ข้อมูลส่วนบุคคล'!C$21="เชี่ยวชาญ",IF(H25="-","",IF(H25='1.ข้อมูลส่วนบุคคล'!F$26,"เกี่ยวข้อง","ไม่เกี่ยวข้อง")),IF('1.ข้อมูลส่วนบุคคล'!C$21="เชี่ยวชาญพิเศษ",IF(H25="-","",IF(H25='1.ข้อมูลส่วนบุคคล'!F$26,"เกี่ยวข้อง","ไม่เกี่ยวข้อง")),"")) ->  | O25: สอนตามตารางสอน | Q25: ไม่ถูกต้อง | U25: 0 | V25: 0 | X25: 0 | Y25: 0 | Z25: 0 | AA25: 0 | AB25: ='1.ข้อมูลส่วนบุคคล'!G$32 -> 2560-05-15 | AC25: 25600515 | AD25: 00:00:00 | AE25: 19000100 | AF25: -6600415 | AG25: 0 | AH25: 0 | AI25: 0 | AJ25: 0 | AK25: 0 | AL25: ไม่ถูกต้อง | AP25: =IFERROR(VLOOKUP(AO25,'2.การมอบหมายงานสอน'!$AI$5:$AJ$24,2,FALSE),0) -> 0 | AQ25: =IF(ISBLANK(D$7),C$7*10+(10*9),($C$7+9)*10+1) -> 25691 | AR25: 0 | AS25: 0
A26: ='1.ข้อมูลส่วนบุคคล'!$F$5 -> 1234567891234 | K26: =IF('1.ข้อมูลส่วนบุคคล'!C$21="เชี่ยวชาญ",IF(H26="-","",IF(H26='1.ข้อมูลส่วนบุคคล'!F$26,"เกี่ยวข้อง","ไม่เกี่ยวข้อง")),IF('1.ข้อมูลส่วนบุคคล'!C$21="เชี่ยวชาญพิเศษ",IF(H26="-","",IF(H26='1.ข้อมูลส่วนบุคคล'!F$26,"เกี่ยวข้อง","ไม่เกี่ยวข้อง")),"")) ->  | O26: สอนตามตารางสอน | Q26: ไม่ถูกต้อง | U26: 0 | V26: 0 | X26: 0 | Y26: 0 | Z26: 0 | AA26: 0 | AB26: ='1.ข้อมูลส่วนบุคคล'!G$32 -> 2560-05-15 | AC26: 25600515 | AD26: 00:00:00 | AE26: 19000100 | AF26: -6600415 | AG26: 0 | AH26: 0 | AI26: 0 | AJ26: 0 | AK26: 0 | AL26: ไม่ถูกต้อง | AP26: =IFERROR(VLOOKUP(AO26,'2.การมอบหมายงานสอน'!$AI$5:$AJ$24,2,FALSE),0) -> 0 | AQ26: =IF(ISBLANK(D$7),C$7*10+(10*9),($C$7+9)*10+2) -> 25692 | AR26: 0 | AS26: 0
A27: ='1.ข้อมูลส่วนบุคคล'!$F$5 -> 1234567891234 | K27: =IF('1.ข้อมูลส่วนบุคคล'!C$21="เชี่ยวชาญ",IF(H27="-","",IF(H27='1.ข้อมูลส่วนบุคคล'!F$26,"เกี่ยวข้อง","ไม่เกี่ยวข้อง")),IF('1.ข้อมูลส่วนบุคคล'!C$21="เชี่ยวชาญพิเศษ",IF(H27="-","",IF(H27='1.ข้อมูลส่วนบุคคล'!F$26,"เกี่ยวข้อง","ไม่เกี่ยวข้อง")),"")) ->  | O27: สอนตามตารางสอน | Q27: ไม่ถูกต้อง | U27: 0 | V27: 0 | X27: 0 | Y27: 0 | Z27: 0 | AA27: 0 | AB27: ='1.ข้อมูลส่วนบุคคล'!G$32 -> 2560-05-15 | AC27: 25600515 | AD27: 00:00:00 | AE27: 19000100 | AF27: -6600415 | AG27: 0 | AH27: 0 | AI27: 0 | AJ27: 0 | AK27: 0 | AL27: ไม่ถูกต้อง | AP27: =IFERROR(VLOOKUP(AO27,'2.การมอบหมายงานสอน'!$AI$5:$AJ$24,2,FALSE),0) -> 0
A28: ='1.ข้อมูลส่วนบุคคล'!$F$5 -> 1234567891234 | K28: =IF('1.ข้อมูลส่วนบุคคล'!C$21="เชี่ยวชาญ",IF(H28="-","",IF(H28='1.ข้อมูลส่วนบุคคล'!F$26,"เกี่ยวข้อง","ไม่เกี่ยวข้อง")),IF('1.ข้อมูลส่วนบุคคล'!C$21="เชี่ยวชาญพิเศษ",IF(H28="-","",IF(H28='1.ข้อมูลส่วนบุคคล'!F$26,"เกี่ยวข้อง","ไม่เกี่ยวข้อง")),"")) ->  | O28: สอนตามตารางสอน | Q28: ไม่ถูกต้อง | U28: 0 | V28: 0 | X28: 0 | Y28: 0 | Z28: 0 | AA28: 0 | AB28: ='1.ข้อมูลส่วนบุคคล'!G$32 -> 2560-05-15 | AC28: 25600515 | AD28: 00:00:00 | AE28: 19000100 | AF28: -6600415 | AG28: 0 | AH28: 0 | AI28: 0 | AJ28: 0 | AK28: 0 | AL28: ไม่ถูกต้อง | AP28: =IFERROR(VLOOKUP(AO28,'2.การมอบหมายงานสอน'!$AI$5:$AJ$24,2,FALSE),0) -> 0
A29: ='1.ข้อมูลส่วนบุคคล'!$F$5 -> 1234567891234 | K29: =IF('1.ข้อมูลส่วนบุคคล'!C$21="เชี่ยวชาญ",IF(H29="-","",IF(H29='1.ข้อมูลส่วนบุคคล'!F$26,"เกี่ยวข้อง","ไม่เกี่ยวข้อง")),IF('1.ข้อมูลส่วนบุคคล'!C$21="เชี่ยวชาญพิเศษ",IF(H29="-","",IF(H29='1.ข้อมูลส่วนบุคคล'!F$26,"เกี่ยวข้อง","ไม่เกี่ยวข้อง")),"")) ->  | O29: สอนตามตารางสอน | Q29: ไม่ถูกต้อง | U29: 0 | V29: 0 | X29: 0 | Y29: 0 | Z29: 0 | AA29: 0 | AB29: ='1.ข้อมูลส่วนบุคคล'!G$32 -> 2560-05-15 | AC29: 25600515 | AD29: 00:00:00 | AE29: 19000100 | AF29: -6600415 | AG29: 0 | AH29: 0 | AI29: 0 | AJ29: 0 | AK29: 0 | AL29: ไม่ถูกต้อง | AP29: =IFERROR(VLOOKUP(AO29,'2.การมอบหมายงานสอน'!$AI$5:$AJ$24,2,FALSE),0) -> 0
A30: ='1.ข้อมูลส่วนบุคคล'!$F$5 -> 1234567891234 | K30: =IF('1.ข้อมูลส่วนบุคคล'!C$21="เชี่ยวชาญ",IF(H30="-","",IF(H30='1.ข้อมูลส่วนบุคคล'!F$26,"เกี่ยวข้อง","ไม่เกี่ยวข้อง")),IF('1.ข้อมูลส่วนบุคคล'!C$21="เชี่ยวชาญพิเศษ",IF(H30="-","",IF(H30='1.ข้อมูลส่วนบุคคล'!F$26,"เกี่ยวข้อง","ไม่เกี่ยวข้อง")),"")) ->  | O30: สอนตามตารางสอน | Q30: ไม่ถูกต้อง | U30: 0 | V30: 0 | X30: 0 | Y30: 0 | Z30: 0 | AA30: 0 | AB30: ='1.ข้อมูลส่วนบุคคล'!G$32 -> 2560-05-15 | AC30: 25600515 | AD30: 00:00:00 | AE30: 19000100 | AF30: -6600415 | AG30: 0 | AH30: 0 | AI30: 0 | AJ30: 0 | AK30: 0 | AL30: ไม่ถูกต้อง | AP30: =IFERROR(VLOOKUP(AO30,'2.การมอบหมายงานสอน'!$AI$5:$AJ$24,2,FALSE),0) -> 0
A31: ='1.ข้อมูลส่วนบุคคล'!$F$5 -> 1234567891234 | K31: =IF('1.ข้อมูลส่วนบุคคล'!C$21="เชี่ยวชาญ",IF(H31="-","",IF(H31='1.ข้อมูลส่วนบุคคล'!F$26,"เกี่ยวข้อง","ไม่เกี่ยวข้อง")),IF('1.ข้อมูลส่วนบุคคล'!C$21="เชี่ยวชาญพิเศษ",IF(H31="-","",IF(H31='1.ข้อมูลส่วนบุคคล'!F$26,"เกี่ยวข้อง","ไม่เกี่ยวข้อง")),"")) ->  | O31: สอนตามตารางสอน | Q31: ไม่ถูกต้อง | U31: 0 | V31: 0 | X31: 0 | Y31: 0 | Z31: 0 | AA31: 0 | AB31: ='1.ข้อมูลส่วนบุคคล'!G$32 -> 2560-05-15 | AC31: 25600515 | AD31: 00:00:00 | AE31: 19000100 | AF31: -6600415 | AG31: 0 | AH31: 0 | AI31: 0 | AJ31: 0 | AK31: 0 | AL31: ไม่ถูกต้อง | AP31: =IFERROR(VLOOKUP(AO31,'2.การมอบหมายงานสอน'!$AI$5:$AJ$24,2,FALSE),0) -> 0
A32: ='1.ข้อมูลส่วนบุคคล'!$F$5 -> 1234567891234 | K32: =IF('1.ข้อมูลส่วนบุคคล'!C$21="เชี่ยวชาญ",IF(H32="-","",IF(H32='1.ข้อมูลส่วนบุคคล'!F$26,"เกี่ยวข้อง","ไม่เกี่ยวข้อง")),IF('1.ข้อมูลส่วนบุคคล'!C$21="เชี่ยวชาญพิเศษ",IF(H32="-","",IF(H32='1.ข้อมูลส่วนบุคคล'!F$26,"เกี่ยวข้อง","ไม่เกี่ยวข้อง")),"")) ->  | O32: สอนตามตารางสอน | Q32: ไม่ถูกต้อง | U32: 0 | V32: 0 | X32: 0 | Y32: 0 | Z32: 0 | AA32: 0 | AB32: ='1.ข้อมูลส่วนบุคคล'!G$32 -> 2560-05-15 | AC32: 25600515 | AD32: 00:00:00 | AE32: 19000100 | AF32: -6600415 | AG32: 0 | AH32: 0 | AI32: 0 | AJ32: 0 | AK32: 0 | AL32: ไม่ถูกต้อง | AP32: =IFERROR(VLOOKUP(AO32,'2.การมอบหมายงานสอน'!$AI$5:$AJ$24,2,FALSE),0) -> 0
A33: ='1.ข้อมูลส่วนบุคคล'!$F$5 -> 1234567891234 | K33: =IF('1.ข้อมูลส่วนบุคคล'!C$21="เชี่ยวชาญ",IF(H33="-","",IF(H33='1.ข้อมูลส่วนบุคคล'!F$26,"เกี่ยวข้อง","ไม่เกี่ยวข้อง")),IF('1.ข้อมูลส่วนบุคคล'!C$21="เชี่ยวชาญพิเศษ",IF(H33="-","",IF(H33='1.ข้อมูลส่วนบุคคล'!F$26,"เกี่ยวข้อง","ไม่เกี่ยวข้อง")),"")) ->  | O33: สอนตามตารางสอน | Q33: ไม่ถูกต้อง | U33: 0 | V33: 0 | X33: 0 | Y33: 0 | Z33: 0 | AA33: 0 | AB33: ='1.ข้อมูลส่วนบุคคล'!G$32 -> 2560-05-15 | AC33: 25600515 | AD33: 00:00:00 | AE33: 19000100 | AF33: -6600415 | AG33: 0 | AH33: 0 | AI33: 0 | AJ33: 0 | AK33: 0 | AL33: ไม่ถูกต้อง | AP33: =IFERROR(VLOOKUP(AO33,'2.การมอบหมายงานสอน'!$AI$5:$AJ$24,2,FALSE),0) -> 0
A34: ='1.ข้อมูลส่วนบุคคล'!$F$5 -> 1234567891234 | K34: =IF('1.ข้อมูลส่วนบุคคล'!C$21="เชี่ยวชาญ",IF(H34="-","",IF(H34='1.ข้อมูลส่วนบุคคล'!F$26,"เกี่ยวข้อง","ไม่เกี่ยวข้อง")),IF('1.ข้อมูลส่วนบุคคล'!C$21="เชี่ยวชาญพิเศษ",IF(H34="-","",IF(H34='1.ข้อมูลส่วนบุคคล'!F$26,"เกี่ยวข้อง","ไม่เกี่ยวข้อง")),"")) ->  | O34: สอนตามตารางสอน | Q34: ไม่ถูกต้อง | U34: 0 | V34: 0 | X34: 0 | Y34: 0 | Z34: 0 | AA34: 0 | AB34: ='1.ข้อมูลส่วนบุคคล'!G$32 -> 2560-05-15 | AC34: 25600515 | AD34: 00:00:00 | AE34: 19000100 | AF34: -6600415 | AG34: 0 | AH34: 0 | AI34: 0 | AJ34: 0 | AK34: 0 | AL34: ไม่ถูกต้อง | AP34: =IFERROR(VLOOKUP(AO34,'2.การมอบหมายงานสอน'!$AI$5:$AJ$24,2,FALSE),0) -> 0
A35: ='1.ข้อมูลส่วนบุคคล'!$F$5 -> 1234567891234 | K35: =IF('1.ข้อมูลส่วนบุคคล'!C$21="เชี่ยวชาญ",IF(H35="-","",IF(H35='1.ข้อมูลส่วนบุคคล'!F$26,"เกี่ยวข้อง","ไม่เกี่ยวข้อง")),IF('1.ข้อมูลส่วนบุคคล'!C$21="เชี่ยวชาญพิเศษ",IF(H35="-","",IF(H35='1.ข้อมูลส่วนบุคคล'!F$26,"เกี่ยวข้อง","ไม่เกี่ยวข้อง")),"")) ->  | O35: สอนตามตารางสอน | Q35: ไม่ถูกต้อง | U35: 0 | V35: 0 | X35: 0 | Y35: 0 | Z35: 0 | AA35: 0 | AB35: ='1.ข้อมูลส่วนบุคคล'!G$32 -> 2560-05-15 | AC35: 25600515 | AD35: 00:00:00 | AE35: 19000100 | AF35: -6600415 | AG35: 0 | AH35: 0 | AI35: 0 | AJ35: 0 | AK35: 0 | AL35: ไม่ถูกต้อง | AP35: =IFERROR(VLOOKUP(AO35,'2.การมอบหมายงานสอน'!$AI$5:$AJ$24,2,FALSE),0) -> 0
A36: ='1.ข้อมูลส่วนบุคคล'!$F$5 -> 1234567891234 | K36: =IF('1.ข้อมูลส่วนบุคคล'!C$21="เชี่ยวชาญ",IF(H36="-","",IF(H36='1.ข้อมูลส่วนบุคคล'!F$26,"เกี่ยวข้อง","ไม่เกี่ยวข้อง")),IF('1.ข้อมูลส่วนบุคคล'!C$21="เชี่ยวชาญพิเศษ",IF(H36="-","",IF(H36='1.ข้อมูลส่วนบุคคล'!F$26,"เกี่ยวข้อง","ไม่เกี่ยวข้อง")),"")) ->  | O36: สอนตามตารางสอน | Q36: ไม่ถูกต้อง | U36: 0 | V36: 0 | X36: 0 | Y36: 0 | Z36: 0 | AA36: 0 | AB36: ='1.ข้อมูลส่วนบุคคล'!G$32 -> 2560-05-15 | AC36: 25600515 | AD36: 00:00:00 | AE36: 19000100 | AF36: -6600415 | AG36: 0 | AH36: 0 | AI36: 0 | AJ36: 0 | AK36: 0 | AL36: ไม่ถูกต้อง | AP36: =IFERROR(VLOOKUP(AO36,'2.การมอบหมายงานสอน'!$AI$5:$AJ$24,2,FALSE),0) -> 0
A37: ='1.ข้อมูลส่วนบุคคล'!$F$5 -> 1234567891234 | K37: =IF('1.ข้อมูลส่วนบุคคล'!C$21="เชี่ยวชาญ",IF(H37="-","",IF(H37='1.ข้อมูลส่วนบุคคล'!F$26,"เกี่ยวข้อง","ไม่เกี่ยวข้อง")),IF('1.ข้อมูลส่วนบุคคล'!C$21="เชี่ยวชาญพิเศษ",IF(H37="-","",IF(H37='1.ข้อมูลส่วนบุคคล'!F$26,"เกี่ยวข้อง","ไม่เกี่ยวข้อง")),"")) ->  | O37: สอนตามตารางสอน | Q37: ไม่ถูกต้อง | U37: 0 | V37: 0 | X37: 0 | Y37: 0 | Z37: 0 | AA37: 0 | AB37: ='1.ข้อมูลส่วนบุคคล'!G$32 -> 2560-05-15 | AC37: 25600515 | AD37: 00:00:00 | AE37: 19000100 | AF37: -6600415 | AG37: 0 | AH37: 0 | AI37: 0 | AJ37: 0 | AK37: 0 | AL37: ไม่ถูกต้อง | AP37: =IFERROR(VLOOKUP(AO37,'2.การมอบหมายงานสอน'!$AI$5:$AJ$24,2,FALSE),0) -> 0
A38: ='1.ข้อมูลส่วนบุคคล'!$F$5 -> 1234567891234 | K38: =IF('1.ข้อมูลส่วนบุคคล'!C$21="เชี่ยวชาญ",IF(H38="-","",IF(H38='1.ข้อมูลส่วนบุคคล'!F$26,"เกี่ยวข้อง","ไม่เกี่ยวข้อง")),IF('1.ข้อมูลส่วนบุคคล'!C$21="เชี่ยวชาญพิเศษ",IF(H38="-","",IF(H38='1.ข้อมูลส่วนบุคคล'!F$26,"เกี่ยวข้อง","ไม่เกี่ยวข้อง")),"")) ->  | O38: สอนตามตารางสอน | Q38: ไม่ถูกต้อง | U38: 0 | V38: 0 | X38: 0 | Y38: 0 | Z38: 0 | AA38: 0 | AB38: ='1.ข้อมูลส่วนบุคคล'!G$32 -> 2560-05-15 | AC38: 25600515 | AD38: 00:00:00 | AE38: 19000100 | AF38: -6600415 | AG38: 0 | AH38: 0 | AI38: 0 | AJ38: 0 | AK38: 0 | AL38: ไม่ถูกต้อง | AP38: =IFERROR(VLOOKUP(AO38,'2.การมอบหมายงานสอน'!$AI$5:$AJ$24,2,FALSE),0) -> 0
A39: ='1.ข้อมูลส่วนบุคคล'!$F$5 -> 1234567891234 | K39: =IF('1.ข้อมูลส่วนบุคคล'!C$21="เชี่ยวชาญ",IF(H39="-","",IF(H39='1.ข้อมูลส่วนบุคคล'!F$26,"เกี่ยวข้อง","ไม่เกี่ยวข้อง")),IF('1.ข้อมูลส่วนบุคคล'!C$21="เชี่ยวชาญพิเศษ",IF(H39="-","",IF(H39='1.ข้อมูลส่วนบุคคล'!F$26,"เกี่ยวข้อง","ไม่เกี่ยวข้อง")),"")) ->  | O39: สอนตามตารางสอน | Q39: ไม่ถูกต้อง | U39: 0 | V39: 0 | X39: 0 | Y39: 0 | Z39: 0 | AA39: 0 | AB39: ='1.ข้อมูลส่วนบุคคล'!G$32 -> 2560-05-15 | AC39: 25600515 | AD39: 00:00:00 | AE39: 19000100 | AF39: -6600415 | AG39: 0 | AH39: 0 | AI39: 0 | AJ39: 0 | AK39: 0 | AL39: ไม่ถูกต้อง | AP39: =IFERROR(VLOOKUP(AO39,'2.การมอบหมายงานสอน'!$AI$5:$AJ$24,2,FALSE),0) -> 0
A40: ='1.ข้อมูลส่วนบุคคล'!$F$5 -> 1234567891234 | K40: =IF('1.ข้อมูลส่วนบุคคล'!C$21="เชี่ยวชาญ",IF(H40="-","",IF(H40='1.ข้อมูลส่วนบุคคล'!F$26,"เกี่ยวข้อง","ไม่เกี่ยวข้อง")),IF('1.ข้อมูลส่วนบุคคล'!C$21="เชี่ยวชาญพิเศษ",IF(H40="-","",IF(H40='1.ข้อมูลส่วนบุคคล'!F$26,"เกี่ยวข้อง","ไม่เกี่ยวข้อง")),"")) ->  | O40: สอนตามตารางสอน | Q40: ไม่ถูกต้อง | U40: 0 | V40: 0 | X40: 0 | Y40: 0 | Z40: 0 | AA40: 0 | AB40: ='1.ข้อมูลส่วนบุคคล'!G$32 -> 2560-05-15 | AC40: 25600515 | AD40: 00:00:00 | AE40: 19000100 | AF40: -6600415 | AG40: 0 | AH40: 0 | AI40: 0 | AJ40: 0 | AK40: 0 | AL40: ไม่ถูกต้อง | AP40: =IFERROR(VLOOKUP(AO40,'2.การมอบหมายงานสอน'!$AI$5:$AJ$24,2,FALSE),0) -> 0
A41: ='1.ข้อมูลส่วนบุคคล'!$F$5 -> 1234567891234 | K41: =IF('1.ข้อมูลส่วนบุคคล'!C$21="เชี่ยวชาญ",IF(H41="-","",IF(H41='1.ข้อมูลส่วนบุคคล'!F$26,"เกี่ยวข้อง","ไม่เกี่ยวข้อง")),IF('1.ข้อมูลส่วนบุคคล'!C$21="เชี่ยวชาญพิเศษ",IF(H41="-","",IF(H41='1.ข้อมูลส่วนบุคคล'!F$26,"เกี่ยวข้อง","ไม่เกี่ยวข้อง")),"")) ->  | O41: สอนตามตารางสอน | Q41: ไม่ถูกต้อง | U41: 0 | V41: 0 | X41: 0 | Y41: 0 | Z41: 0 | AA41: 0 | AB41: ='1.ข้อมูลส่วนบุคคล'!G$32 -> 2560-05-15 | AC41: 25600515 | AD41: 00:00:00 | AE41: 19000100 | AF41: -6600415 | AG41: 0 | AH41: 0 | AI41: 0 | AJ41: 0 | AK41: 0 | AL41: ไม่ถูกต้อง | AP41: =IFERROR(VLOOKUP(AO41,'2.การมอบหมายงานสอน'!$AI$5:$AJ$24,2,FALSE),0) -> 0
A42: ='1.ข้อมูลส่วนบุคคล'!$F$5 -> 1234567891234 | K42: =IF('1.ข้อมูลส่วนบุคคล'!C$21="เชี่ยวชาญ",IF(H42="-","",IF(H42='1.ข้อมูลส่วนบุคคล'!F$26,"เกี่ยวข้อง","ไม่เกี่ยวข้อง")),IF('1.ข้อมูลส่วนบุคคล'!C$21="เชี่ยวชาญพิเศษ",IF(H42="-","",IF(H42='1.ข้อมูลส่วนบุคคล'!F$26,"เกี่ยวข้อง","ไม่เกี่ยวข้อง")),"")) ->  | O42: สอนตามตารางสอน | Q42: ไม่ถูกต้อง | U42: 0 | V42: 0 | X42: 0 | Y42: 0 | Z42: 0 | AA42: 0 | AB42: ='1.ข้อมูลส่วนบุคคล'!G$32 -> 2560-05-15 | AC42: 25600515 | AD42: 00:00:00 | AE42: 19000100 | AF42: -6600415 | AG42: 0 | AH42: 0 | AI42: 0 | AJ42: 0 | AK42: 0 | AL42: ไม่ถูกต้อง | AP42: =IFERROR(VLOOKUP(AO42,'2.การมอบหมายงานสอน'!$AI$5:$AJ$24,2,FALSE),0) -> 0
A43: ='1.ข้อมูลส่วนบุคคล'!$F$5 -> 1234567891234 | K43: =IF('1.ข้อมูลส่วนบุคคล'!C$21="เชี่ยวชาญ",IF(H43="-","",IF(H43='1.ข้อมูลส่วนบุคคล'!F$26,"เกี่ยวข้อง","ไม่เกี่ยวข้อง")),IF('1.ข้อมูลส่วนบุคคล'!C$21="เชี่ยวชาญพิเศษ",IF(H43="-","",IF(H43='1.ข้อมูลส่วนบุคคล'!F$26,"เกี่ยวข้อง","ไม่เกี่ยวข้อง")),"")) ->  | O43: สอนตามตารางสอน | Q43: ไม่ถูกต้อง | U43: 0 | V43: 0 | X43: 0 | Y43: 0 | Z43: 0 | AA43: 0 | AB43: ='1.ข้อมูลส่วนบุคคล'!G$32 -> 2560-05-15 | AC43: 25600515 | AD43: 00:00:00 | AE43: 19000100 | AF43: -6600415 | AG43: 0 | AH43: 0 | AI43: 0 | AJ43: 0 | AK43: 0 | AL43: ไม่ถูกต้อง | AP43: =IFERROR(VLOOKUP(AO43,'2.การมอบหมายงานสอน'!$AI$5:$AJ$24,2,FALSE),0) -> 0
A44: ='1.ข้อมูลส่วนบุคคล'!$F$5 -> 1234567891234 | K44: =IF('1.ข้อมูลส่วนบุคคล'!C$21="เชี่ยวชาญ",IF(H44="-","",IF(H44='1.ข้อมูลส่วนบุคคล'!F$26,"เกี่ยวข้อง","ไม่เกี่ยวข้อง")),IF('1.ข้อมูลส่วนบุคคล'!C$21="เชี่ยวชาญพิเศษ",IF(H44="-","",IF(H44='1.ข้อมูลส่วนบุคคล'!F$26,"เกี่ยวข้อง","ไม่เกี่ยวข้อง")),"")) ->  | O44: สอนตามตารางสอน | Q44: ไม่ถูกต้อง | U44: 0 | V44: 0 | X44: 0 | Y44: 0 | Z44: 0 | AA44: 0 | AB44: ='1.ข้อมูลส่วนบุคคล'!G$32 -> 2560-05-15 | AC44: 25600515 | AD44: 00:00:00 | AE44: 19000100 | AF44: -6600415 | AG44: 0 | AH44: 0 | AI44: 0 | AJ44: 0 | AK44: 0 | AL44: ไม่ถูกต้อง | AP44: =IFERROR(VLOOKUP(AO44,'2.การมอบหมายงานสอน'!$AI$5:$AJ$24,2,FALSE),0) -> 0
A45: ='1.ข้อมูลส่วนบุคคล'!$F$5 -> 1234567891234 | K45: =IF('1.ข้อมูลส่วนบุคคล'!C$21="เชี่ยวชาญ",IF(H45="-","",IF(H45='1.ข้อมูลส่วนบุคคล'!F$26,"เกี่ยวข้อง","ไม่เกี่ยวข้อง")),IF('1.ข้อมูลส่วนบุคคล'!C$21="เชี่ยวชาญพิเศษ",IF(H45="-","",IF(H45='1.ข้อมูลส่วนบุคคล'!F$26,"เกี่ยวข้อง","ไม่เกี่ยวข้อง")),"")) ->  | O45: สอนตามตารางสอน | Q45: ไม่ถูกต้อง | U45: 0 | V45: 0 | X45: 0 | Y45: 0 | Z45: 0 | AA45: 0 | AB45: ='1.ข้อมูลส่วนบุคคล'!G$32 -> 2560-05-15 | AC45: 25600515 | AD45: 00:00:00 | AE45: 19000100 | AF45: -6600415 | AG45: 0 | AH45: 0 | AI45: 0 | AJ45: 0 | AK45: 0 | AL45: ไม่ถูกต้อง | AP45: =IFERROR(VLOOKUP(AO45,'2.การมอบหมายงานสอน'!$AI$5:$AJ$24,2,FALSE),0) -> 0
A46: ='1.ข้อมูลส่วนบุคคล'!$F$5 -> 1234567891234 | K46: =IF('1.ข้อมูลส่วนบุคคล'!C$21="เชี่ยวชาญ",IF(H46="-","",IF(H46='1.ข้อมูลส่วนบุคคล'!F$26,"เกี่ยวข้อง","ไม่เกี่ยวข้อง")),IF('1.ข้อมูลส่วนบุคคล'!C$21="เชี่ยวชาญพิเศษ",IF(H46="-","",IF(H46='1.ข้อมูลส่วนบุคคล'!F$26,"เกี่ยวข้อง","ไม่เกี่ยวข้อง")),"")) ->  | O46: สอนตามตารางสอน | Q46: ไม่ถูกต้อง | U46: 0 | V46: 0 | X46: 0 | Y46: 0 | Z46: 0 | AA46: 0 | AB46: ='1.ข้อมูลส่วนบุคคล'!G$32 -> 2560-05-15 | AC46: 25600515 | AD46: 00:00:00 | AE46: 19000100 | AF46: -6600415 | AG46: 0 | AH46: 0 | AI46: 0 | AJ46: 0 | AK46: 0 | AL46: ไม่ถูกต้อง | AP46: =IFERROR(VLOOKUP(AO46,'2.การมอบหมายงานสอน'!$AI$5:$AJ$24,2,FALSE),0) -> 0
A47: ='1.ข้อมูลส่วนบุคคล'!$F$5 -> 1234567891234 | K47: =IF('1.ข้อมูลส่วนบุคคล'!C$21="เชี่ยวชาญ",IF(H47="-","",IF(H47='1.ข้อมูลส่วนบุคคล'!F$26,"เกี่ยวข้อง","ไม่เกี่ยวข้อง")),IF('1.ข้อมูลส่วนบุคคล'!C$21="เชี่ยวชาญพิเศษ",IF(H47="-","",IF(H47='1.ข้อมูลส่วนบุคคล'!F$26,"เกี่ยวข้อง","ไม่เกี่ยวข้อง")),"")) ->  | O47: สอนตามตารางสอน | Q47: ไม่ถูกต้อง | U47: 0 | V47: 0 | X47: 0 | Y47: 0 | Z47: 0 | AA47: 0 | AB47: ='1.ข้อมูลส่วนบุคคล'!G$32 -> 2560-05-15 | AC47: 25600515 | AD47: 00:00:00 | AE47: 19000100 | AF47: -6600415 | AG47: 0 | AH47: 0 | AI47: 0 | AJ47: 0 | AK47: 0 | AL47: ไม่ถูกต้อง | AP47: =IFERROR(VLOOKUP(AO47,'2.การมอบหมายงานสอน'!$AI$5:$AJ$24,2,FALSE),0) -> 0
A48: ='1.ข้อมูลส่วนบุคคล'!$F$5 -> 1234567891234 | K48: =IF('1.ข้อมูลส่วนบุคคล'!C$21="เชี่ยวชาญ",IF(H48="-","",IF(H48='1.ข้อมูลส่วนบุคคล'!F$26,"เกี่ยวข้อง","ไม่เกี่ยวข้อง")),IF('1.ข้อมูลส่วนบุคคล'!C$21="เชี่ยวชาญพิเศษ",IF(H48="-","",IF(H48='1.ข้อมูลส่วนบุคคล'!F$26,"เกี่ยวข้อง","ไม่เกี่ยวข้อง")),"")) ->  | O48: สอนตามตารางสอน | Q48: ไม่ถูกต้อง | U48: 0 | V48: 0 | X48: 0 | Y48: 0 | Z48: 0 | AA48: 0 | AB48: ='1.ข้อมูลส่วนบุคคล'!G$32 -> 2560-05-15 | AC48: 25600515 | AD48: 00:00:00 | AE48: 19000100 | AF48: -6600415 | AG48: 0 | AH48: 0 | AI48: 0 | AJ48: 0 | AK48: 0 | AL48: ไม่ถูกต้อง | AP48: =IFERROR(VLOOKUP(AO48,'2.การมอบหมายงานสอน'!$AI$5:$AJ$24,2,FALSE),0) -> 0
A49: ='1.ข้อมูลส่วนบุคคล'!$F$5 -> 1234567891234 | K49: =IF('1.ข้อมูลส่วนบุคคล'!C$21="เชี่ยวชาญ",IF(H49="-","",IF(H49='1.ข้อมูลส่วนบุคคล'!F$26,"เกี่ยวข้อง","ไม่เกี่ยวข้อง")),IF('1.ข้อมูลส่วนบุคคล'!C$21="เชี่ยวชาญพิเศษ",IF(H49="-","",IF(H49='1.ข้อมูลส่วนบุคคล'!F$26,"เกี่ยวข้อง","ไม่เกี่ยวข้อง")),"")) ->  | O49: สอนตามตารางสอน | Q49: ไม่ถูกต้อง | U49: 0 | V49: 0 | X49: 0 | Y49: 0 | Z49: 0 | AA49: 0 | AB49: ='1.ข้อมูลส่วนบุคคล'!G$32 -> 2560-05-15 | AC49: 25600515 | AD49: 00:00:00 | AE49: 19000100 | AF49: -6600415 | AG49: 0 | AH49: 0 | AI49: 0 | AJ49: 0 | AK49: 0 | AL49: ไม่ถูกต้อง | AP49: =IFERROR(VLOOKUP(AO49,'2.การมอบหมายงานสอน'!$AI$5:$AJ$24,2,FALSE),0) -> 0
A50: ='1.ข้อมูลส่วนบุคคล'!$F$5 -> 1234567891234 | K50: =IF('1.ข้อมูลส่วนบุคคล'!C$21="เชี่ยวชาญ",IF(H50="-","",IF(H50='1.ข้อมูลส่วนบุคคล'!F$26,"เกี่ยวข้อง","ไม่เกี่ยวข้อง")),IF('1.ข้อมูลส่วนบุคคล'!C$21="เชี่ยวชาญพิเศษ",IF(H50="-","",IF(H50='1.ข้อมูลส่วนบุคคล'!F$26,"เกี่ยวข้อง","ไม่เกี่ยวข้อง")),"")) ->  | O50: สอนตามตารางสอน | Q50: ไม่ถูกต้อง | U50: 0 | V50: 0 | X50: 0 | Y50: 0 | Z50: 0 | AA50: 0 | AB50: ='1.ข้อมูลส่วนบุคคล'!G$32 -> 2560-05-15 | AC50: 25600515 | AD50: 00:00:00 | AE50: 19000100 | AF50: -6600415 | AG50: 0 | AH50: 0 | AI50: 0 | AJ50: 0 | AK50: 0 | AL50: ไม่ถูกต้อง | AP50: =IFERROR(VLOOKUP(AO50,'2.การมอบหมายงานสอน'!$AI$5:$AJ$24,2,FALSE),0) -> 0
A51: ='1.ข้อมูลส่วนบุคคล'!$F$5 -> 1234567891234 | K51: =IF('1.ข้อมูลส่วนบุคคล'!C$21="เชี่ยวชาญ",IF(H51="-","",IF(H51='1.ข้อมูลส่วนบุคคล'!F$26,"เกี่ยวข้อง","ไม่เกี่ยวข้อง")),IF('1.ข้อมูลส่วนบุคคล'!C$21="เชี่ยวชาญพิเศษ",IF(H51="-","",IF(H51='1.ข้อมูลส่วนบุคคล'!F$26,"เกี่ยวข้อง","ไม่เกี่ยวข้อง")),"")) ->  | O51: สอนตามตารางสอน | Q51: ไม่ถูกต้อง | U51: 0 | V51: 0 | X51: 0 | Y51: 0 | Z51: 0 | AA51: 0 | AB51: ='1.ข้อมูลส่วนบุคคล'!G$32 -> 2560-05-15 | AC51: 25600515 | AD51: 00:00:00 | AE51: 19000100 | AF51: -6600415 | AG51: 0 | AH51: 0 | AI51: 0 | AJ51: 0 | AK51: 0 | AL51: ไม่ถูกต้อง | AP51: =IFERROR(VLOOKUP(AO51,'2.การมอบหมายงานสอน'!$AI$5:$AJ$24,2,FALSE),0) -> 0
A52: ='1.ข้อมูลส่วนบุคคล'!$F$5 -> 1234567891234 | K52: =IF('1.ข้อมูลส่วนบุคคล'!C$21="เชี่ยวชาญ",IF(H52="-","",IF(H52='1.ข้อมูลส่วนบุคคล'!F$26,"เกี่ยวข้อง","ไม่เกี่ยวข้อง")),IF('1.ข้อมูลส่วนบุคคล'!C$21="เชี่ยวชาญพิเศษ",IF(H52="-","",IF(H52='1.ข้อมูลส่วนบุคคล'!F$26,"เกี่ยวข้อง","ไม่เกี่ยวข้อง")),"")) ->  | O52: สอนตามตารางสอน | Q52: ไม่ถูกต้อง | T52: =B52&+E52&+I52 ->  | U52: 0 | V52: 0 | X52: 0 | Y52: 0 | Z52: 0 | AA52: 0 | AB52: ='1.ข้อมูลส่วนบุคคล'!G$32 -> 2560-05-15 | AC52: 25600515 | AD52: 00:00:00 | AE52: 19000100 | AF52: -6600415 | AG52: 0 | AH52: 0 | AI52: 0 | AJ52: 0 | AK52: 0 | AL52: ไม่ถูกต้อง | AP52: =IFERROR(VLOOKUP(AO52,'2.การมอบหมายงานสอน'!$AI$5:$AJ$24,2,FALSE),0) -> 0
A53: ='1.ข้อมูลส่วนบุคคล'!$F$5 -> 1234567891234 | K53: =IF('1.ข้อมูลส่วนบุคคล'!C$21="เชี่ยวชาญ",IF(H53="-","",IF(H53='1.ข้อมูลส่วนบุคคล'!F$26,"เกี่ยวข้อง","ไม่เกี่ยวข้อง")),IF('1.ข้อมูลส่วนบุคคล'!C$21="เชี่ยวชาญพิเศษ",IF(H53="-","",IF(H53='1.ข้อมูลส่วนบุคคล'!F$26,"เกี่ยวข้อง","ไม่เกี่ยวข้อง")),"")) ->  | O53: สอนตามตารางสอน | Q53: ไม่ถูกต้อง | T53: =B53&+E53 ->  | U53: 0 | V53: 0 | X53: 0 | Y53: 0 | Z53: 0 | AA53: 0 | AB53: ='1.ข้อมูลส่วนบุคคล'!G$32 -> 2560-05-15 | AC53: 25600515 | AD53: 00:00:00 | AE53: 19000100 | AF53: -6600415 | AG53: 0 | AH53: 0 | AI53: 0 | AJ53: 0 | AK53: 0 | AL53: ไม่ถูกต้อง | AP53: =IFERROR(VLOOKUP(AO53,'2.การมอบหมายงานสอน'!$AI$5:$AJ$24,2,FALSE),0) -> 0
A54: ='1.ข้อมูลส่วนบุคคล'!$F$5 -> 1234567891234 | K54: =IF('1.ข้อมูลส่วนบุคคล'!C$21="เชี่ยวชาญ",IF(H54="-","",IF(H54='1.ข้อมูลส่วนบุคคล'!F$26,"เกี่ยวข้อง","ไม่เกี่ยวข้อง")),IF('1.ข้อมูลส่วนบุคคล'!C$21="เชี่ยวชาญพิเศษ",IF(H54="-","",IF(H54='1.ข้อมูลส่วนบุคคล'!F$26,"เกี่ยวข้อง","ไม่เกี่ยวข้อง")),"")) ->  | O54: สอนตามตารางสอน | Q54: ไม่ถูกต้อง | U54: 0 | V54: 0 | X54: 0 | Y54: 0 | Z54: 0 | AA54: 0 | AB54: ='1.ข้อมูลส่วนบุคคล'!G$32 -> 2560-05-15 | AC54: 25600515 | AD54: 00:00:00 | AE54: 19000100 | AF54: -6600415 | AG54: 0 | AH54: 0 | AI54: 0 | AJ54: 0 | AK54: 0 | AL54: ไม่ถูกต้อง | AP54: =IFERROR(VLOOKUP(AO54,'2.การมอบหมายงานสอน'!$AI$5:$AJ$24,2,FALSE),0) -> 0
A55: ='1.ข้อมูลส่วนบุคคล'!$F$5 -> 1234567891234 | K55: =IF('1.ข้อมูลส่วนบุคคล'!C$21="เชี่ยวชาญ",IF(H55="-","",IF(H55='1.ข้อมูลส่วนบุคคล'!F$26,"เกี่ยวข้อง","ไม่เกี่ยวข้อง")),IF('1.ข้อมูลส่วนบุคคล'!C$21="เชี่ยวชาญพิเศษ",IF(H55="-","",IF(H55='1.ข้อมูลส่วนบุคคล'!F$26,"เกี่ยวข้อง","ไม่เกี่ยวข้อง")),"")) ->  | O55: สอนตามตารางสอน | Q55: ไม่ถูกต้อง | U55: 0 | V55: 0 | X55: 0 | Y55: 0 | Z55: 0 | AA55: 0 | AB55: ='1.ข้อมูลส่วนบุคคล'!G$32 -> 2560-05-15 | AC55: 25600515 | AD55: 00:00:00 | AE55: 19000100 | AF55: -6600415 | AG55: 0 | AH55: 0 | AI55: 0 | AJ55: 0 | AK55: 0 | AL55: ไม่ถูกต้อง | AP55: =IFERROR(VLOOKUP(AO55,'2.การมอบหมายงานสอน'!$AI$5:$AJ$24,2,FALSE),0) -> 0
A56: ='1.ข้อมูลส่วนบุคคล'!$F$5 -> 1234567891234 | K56: =IF('1.ข้อมูลส่วนบุคคล'!C$21="เชี่ยวชาญ",IF(H56="-","",IF(H56='1.ข้อมูลส่วนบุคคล'!F$26,"เกี่ยวข้อง","ไม่เกี่ยวข้อง")),IF('1.ข้อมูลส่วนบุคคล'!C$21="เชี่ยวชาญพิเศษ",IF(H56="-","",IF(H56='1.ข้อมูลส่วนบุคคล'!F$26,"เกี่ยวข้อง","ไม่เกี่ยวข้อง")),"")) ->  | O56: สอนตามตารางสอน | Q56: ไม่ถูกต้อง | U56: 0 | V56: 0 | X56: 0 | Y56: 0 | Z56: 0 | AA56: 0 | AB56: ='1.ข้อมูลส่วนบุคคล'!G$32 -> 2560-05-15 | AC56: 25600515 | AD56: 00:00:00 | AE56: 19000100 | AF56: -6600415 | AG56: 0 | AH56: 0 | AI56: 0 | AJ56: 0 | AK56: 0 | AL56: ไม่ถูกต้อง | AP56: =IFERROR(VLOOKUP(AO56,'2.การมอบหมายงานสอน'!$AI$5:$AJ$24,2,FALSE),0) -> 0
A57: ='1.ข้อมูลส่วนบุคคล'!$F$5 -> 1234567891234 | K57: =IF('1.ข้อมูลส่วนบุคคล'!C$21="เชี่ยวชาญ",IF(H57="-","",IF(H57='1.ข้อมูลส่วนบุคคล'!F$26,"เกี่ยวข้อง","ไม่เกี่ยวข้อง")),IF('1.ข้อมูลส่วนบุคคล'!C$21="เชี่ยวชาญพิเศษ",IF(H57="-","",IF(H57='1.ข้อมูลส่วนบุคคล'!F$26,"เกี่ยวข้อง","ไม่เกี่ยวข้อง")),"")) ->  | O57: สอนตามตารางสอน | Q57: ไม่ถูกต้อง | U57: 0 | V57: 0 | X57: 0 | Y57: 0 | Z57: 0 | AA57: 0 | AB57: ='1.ข้อมูลส่วนบุคคล'!G$32 -> 2560-05-15 | AC57: 25600515 | AD57: 00:00:00 | AE57: 19000100 | AF57: -6600415 | AG57: 0 | AH57: 0 | AI57: 0 | AJ57: 0 | AK57: 0 | AL57: ไม่ถูกต้อง | AP57: =IFERROR(VLOOKUP(AO57,'2.การมอบหมายงานสอน'!$AI$5:$AJ$24,2,FALSE),0) -> 0
A58: ='1.ข้อมูลส่วนบุคคล'!$F$5 -> 1234567891234 | K58: =IF('1.ข้อมูลส่วนบุคคล'!C$21="เชี่ยวชาญ",IF(H58="-","",IF(H58='1.ข้อมูลส่วนบุคคล'!F$26,"เกี่ยวข้อง","ไม่เกี่ยวข้อง")),IF('1.ข้อมูลส่วนบุคคล'!C$21="เชี่ยวชาญพิเศษ",IF(H58="-","",IF(H58='1.ข้อมูลส่วนบุคคล'!F$26,"เกี่ยวข้อง","ไม่เกี่ยวข้อง")),"")) ->  | O58: สอนตามตารางสอน | Q58: ไม่ถูกต้อง | U58: 0 | V58: 0 | X58: 0 | Y58: 0 | Z58: 0 | AA58: 0 | AB58: ='1.ข้อมูลส่วนบุคคล'!G$32 -> 2560-05-15 | AC58: 25600515 | AD58: 00:00:00 | AE58: 19000100 | AF58: -6600415 | AG58: 0 | AH58: 0 | AI58: 0 | AJ58: 0 | AK58: 0 | AL58: ไม่ถูกต้อง | AP58: =IFERROR(VLOOKUP(AO58,'2.การมอบหมายงานสอน'!$AI$5:$AJ$24,2,FALSE),0) -> 0
A59: ='1.ข้อมูลส่วนบุคคล'!$F$5 -> 1234567891234 | K59: =IF('1.ข้อมูลส่วนบุคคล'!C$21="เชี่ยวชาญ",IF(H59="-","",IF(H59='1.ข้อมูลส่วนบุคคล'!F$26,"เกี่ยวข้อง","ไม่เกี่ยวข้อง")),IF('1.ข้อมูลส่วนบุคคล'!C$21="เชี่ยวชาญพิเศษ",IF(H59="-","",IF(H59='1.ข้อมูลส่วนบุคคล'!F$26,"เกี่ยวข้อง","ไม่เกี่ยวข้อง")),"")) ->  | O59: สอนตามตารางสอน | Q59: ไม่ถูกต้อง | U59: 0 | V59: 0 | X59: 0 | Y59: 0 | Z59: 0 | AA59: 0 | AB59: ='1.ข้อมูลส่วนบุคคล'!G$32 -> 2560-05-15 | AC59: 25600515 | AD59: 00:00:00 | AE59: 19000100 | AF59: -6600415 | AG59: 0 | AH59: 0 | AI59: 0 | AJ59: 0 | AK59: 0 | AL59: ไม่ถูกต้อง | AP59: =IFERROR(VLOOKUP(AO59,'2.การมอบหมายงานสอน'!$AI$5:$AJ$24,2,FALSE),0) -> 0
A60: ='1.ข้อมูลส่วนบุคคล'!$F$5 -> 1234567891234 | K60: =IF('1.ข้อมูลส่วนบุคคล'!C$21="เชี่ยวชาญ",IF(H60="-","",IF(H60='1.ข้อมูลส่วนบุคคล'!F$26,"เกี่ยวข้อง","ไม่เกี่ยวข้อง")),IF('1.ข้อมูลส่วนบุคคล'!C$21="เชี่ยวชาญพิเศษ",IF(H60="-","",IF(H60='1.ข้อมูลส่วนบุคคล'!F$26,"เกี่ยวข้อง","ไม่เกี่ยวข้อง")),"")) ->  | O60: สอนตามตารางสอน | Q60: ไม่ถูกต้อง | U60: 0 | V60: 0 | X60: 0 | Y60: 0 | Z60: 0 | AA60: 0 | AB60: ='1.ข้อมูลส่วนบุคคล'!G$32 -> 2560-05-15 | AC60: 25600515 | AD60: 00:00:00 | AE60: 19000100 | AF60: -6600415 | AG60: 0 | AH60: 0 | AI60: 0 | AJ60: 0 | AK60: 0 | AL60: ไม่ถูกต้อง | AP60: =IFERROR(VLOOKUP(AO60,'2.การมอบหมายงานสอน'!$AI$5:$AJ$24,2,FALSE),0) -> 0
A61: ='1.ข้อมูลส่วนบุคคล'!$F$5 -> 1234567891234 | K61: =IF('1.ข้อมูลส่วนบุคคล'!C$21="เชี่ยวชาญ",IF(H61="-","",IF(H61='1.ข้อมูลส่วนบุคคล'!F$26,"เกี่ยวข้อง","ไม่เกี่ยวข้อง")),IF('1.ข้อมูลส่วนบุคคล'!C$21="เชี่ยวชาญพิเศษ",IF(H61="-","",IF(H61='1.ข้อมูลส่วนบุคคล'!F$26,"เกี่ยวข้อง","ไม่เกี่ยวข้อง")),"")) ->  | O61: สอนตามตารางสอน | Q61: ไม่ถูกต้อง | U61: 0 | V61: 0 | X61: 0 | Y61: 0 | Z61: 0 | AA61: 0 | AB61: ='1.ข้อมูลส่วนบุคคล'!G$32 -> 2560-05-15 | AC61: 25600515 | AD61: 00:00:00 | AE61: 19000100 | AF61: -6600415 | AG61: 0 | AH61: 0 | AI61: 0 | AJ61: 0 | AK61: 0 | AL61: ไม่ถูกต้อง | AP61: =IFERROR(VLOOKUP(AO61,'2.การมอบหมายงานสอน'!$AI$5:$AJ$24,2,FALSE),0) -> 0
A62: ='1.ข้อมูลส่วนบุคคล'!$F$5 -> 1234567891234 | K62: =IF('1.ข้อมูลส่วนบุคคล'!C$21="เชี่ยวชาญ",IF(H62="-","",IF(H62='1.ข้อมูลส่วนบุคคล'!F$26,"เกี่ยวข้อง","ไม่เกี่ยวข้อง")),IF('1.ข้อมูลส่วนบุคคล'!C$21="เชี่ยวชาญพิเศษ",IF(H62="-","",IF(H62='1.ข้อมูลส่วนบุคคล'!F$26,"เกี่ยวข้อง","ไม่เกี่ยวข้อง")),"")) ->  | O62: สอนตามตารางสอน | Q62: ไม่ถูกต้อง | U62: 0 | V62: 0 | X62: 0 | Y62: 0 | Z62: 0 | AA62: 0 | AB62: ='1.ข้อมูลส่วนบุคคล'!G$32 -> 2560-05-15 | AC62: 25600515 | AD62: 00:00:00 | AE62: 19000100 | AF62: -6600415 | AG62: 0 | AH62: 0 | AI62: 0 | AJ62: 0 | AK62: 0 | AL62: ไม่ถูกต้อง | AP62: =IFERROR(VLOOKUP(AO62,'2.การมอบหมายงานสอน'!$AI$5:$AJ$24,2,FALSE),0) -> 0
A63: ='1.ข้อมูลส่วนบุคคล'!$F$5 -> 1234567891234 | K63: =IF('1.ข้อมูลส่วนบุคคล'!C$21="เชี่ยวชาญ",IF(H63="-","",IF(H63='1.ข้อมูลส่วนบุคคล'!F$26,"เกี่ยวข้อง","ไม่เกี่ยวข้อง")),IF('1.ข้อมูลส่วนบุคคล'!C$21="เชี่ยวชาญพิเศษ",IF(H63="-","",IF(H63='1.ข้อมูลส่วนบุคคล'!F$26,"เกี่ยวข้อง","ไม่เกี่ยวข้อง")),"")) ->  | O63: สอนตามตารางสอน | Q63: ไม่ถูกต้อง | U63: 0 | V63: 0 | X63: 0 | Y63: 0 | Z63: 0 | AA63: 0 | AB63: ='1.ข้อมูลส่วนบุคคล'!G$32 -> 2560-05-15 | AC63: 25600515 | AD63: 00:00:00 | AE63: 19000100 | AF63: -6600415 | AG63: 0 | AH63: 0 | AI63: 0 | AJ63: 0 | AK63: 0 | AL63: ไม่ถูกต้อง | AP63: =IFERROR(VLOOKUP(AO63,'2.การมอบหมายงานสอน'!$AI$5:$AJ$24,2,FALSE),0) -> 0
A64: ='1.ข้อมูลส่วนบุคคล'!$F$5 -> 1234567891234 | K64: =IF('1.ข้อมูลส่วนบุคคล'!C$21="เชี่ยวชาญ",IF(H64="-","",IF(H64='1.ข้อมูลส่วนบุคคล'!F$26,"เกี่ยวข้อง","ไม่เกี่ยวข้อง")),IF('1.ข้อมูลส่วนบุคคล'!C$21="เชี่ยวชาญพิเศษ",IF(H64="-","",IF(H64='1.ข้อมูลส่วนบุคคล'!F$26,"เกี่ยวข้อง","ไม่เกี่ยวข้อง")),"")) ->  | O64: สอนตามตารางสอน | Q64: ไม่ถูกต้อง | U64: 0 | V64: 0 | X64: 0 | Y64: 0 | Z64: 0 | AA64: 0 | AB64: ='1.ข้อมูลส่วนบุคคล'!G$32 -> 2560-05-15 | AC64: 25600515 | AD64: 00:00:00 | AE64: 19000100 | AF64: -6600415 | AG64: 0 | AH64: 0 | AI64: 0 | AJ64: 0 | AK64: 0 | AL64: ไม่ถูกต้อง | AP64: =IFERROR(VLOOKUP(AO64,'2.การมอบหมายงานสอน'!$AI$5:$AJ$24,2,FALSE),0) -> 0
A65: ='1.ข้อมูลส่วนบุคคล'!$F$5 -> 1234567891234 | K65: =IF('1.ข้อมูลส่วนบุคคล'!C$21="เชี่ยวชาญ",IF(H65="-","",IF(H65='1.ข้อมูลส่วนบุคคล'!F$26,"เกี่ยวข้อง","ไม่เกี่ยวข้อง")),IF('1.ข้อมูลส่วนบุคคล'!C$21="เชี่ยวชาญพิเศษ",IF(H65="-","",IF(H65='1.ข้อมูลส่วนบุคคล'!F$26,"เกี่ยวข้อง","ไม่เกี่ยวข้อง")),"")) ->  | O65: สอนตามตารางสอน | Q65: ไม่ถูกต้อง | U65: 0 | V65: 0 | X65: 0 | Y65: 0 | Z65: 0 | AA65: 0 | AB65: ='1.ข้อมูลส่วนบุคคล'!G$32 -> 2560-05-15 | AC65: 25600515 | AD65: 00:00:00 | AE65: 19000100 | AF65: -6600415 | AG65: 0 | AH65: 0 | AI65: 0 | AJ65: 0 | AK65: 0 | AL65: ไม่ถูกต้อง | AP65: =IFERROR(VLOOKUP(AO65,'2.การมอบหมายงานสอน'!$AI$5:$AJ$24,2,FALSE),0) -> 0
A66: ='1.ข้อมูลส่วนบุคคล'!$F$5 -> 1234567891234 | K66: =IF('1.ข้อมูลส่วนบุคคล'!C$21="เชี่ยวชาญ",IF(H66="-","",IF(H66='1.ข้อมูลส่วนบุคคล'!F$26,"เกี่ยวข้อง","ไม่เกี่ยวข้อง")),IF('1.ข้อมูลส่วนบุคคล'!C$21="เชี่ยวชาญพิเศษ",IF(H66="-","",IF(H66='1.ข้อมูลส่วนบุคคล'!F$26,"เกี่ยวข้อง","ไม่เกี่ยวข้อง")),"")) ->  | O66: สอนตามตารางสอน | Q66: ไม่ถูกต้อง | U66: 0 | V66: 0 | X66: 0 | Y66: 0 | Z66: 0 | AA66: 0 | AB66: ='1.ข้อมูลส่วนบุคคล'!G$32 -> 2560-05-15 | AC66: 25600515 | AD66: 00:00:00 | AE66: 19000100 | AF66: -6600415 | AG66: 0 | AH66: 0 | AI66: 0 | AJ66: 0 | AK66: 0 | AL66: ไม่ถูกต้อง | AP66: =IFERROR(VLOOKUP(AO66,'2.การมอบหมายงานสอน'!$AI$5:$AJ$24,2,FALSE),0) -> 0
A67: ='1.ข้อมูลส่วนบุคคล'!$F$5 -> 1234567891234 | K67: =IF('1.ข้อมูลส่วนบุคคล'!C$21="เชี่ยวชาญ",IF(H67="-","",IF(H67='1.ข้อมูลส่วนบุคคล'!F$26,"เกี่ยวข้อง","ไม่เกี่ยวข้อง")),IF('1.ข้อมูลส่วนบุคคล'!C$21="เชี่ยวชาญพิเศษ",IF(H67="-","",IF(H67='1.ข้อมูลส่วนบุคคล'!F$26,"เกี่ยวข้อง","ไม่เกี่ยวข้อง")),"")) ->  | O67: สอนตามตารางสอน | Q67: ไม่ถูกต้อง | U67: 0 | V67: 0 | X67: 0 | Y67: 0 | Z67: 0 | AA67: 0 | AB67: ='1.ข้อมูลส่วนบุคคล'!G$32 -> 2560-05-15 | AC67: 25600515 | AD67: 00:00:00 | AE67: 19000100 | AF67: -6600415 | AG67: 0 | AH67: 0 | AI67: 0 | AJ67: 0 | AK67: 0 | AL67: ไม่ถูกต้อง | AP67: =IFERROR(VLOOKUP(AO67,'2.การมอบหมายงานสอน'!$AI$5:$AJ$24,2,FALSE),0) -> 0
A68: ='1.ข้อมูลส่วนบุคคล'!$F$5 -> 1234567891234 | K68: =IF('1.ข้อมูลส่วนบุคคล'!C$21="เชี่ยวชาญ",IF(H68="-","",IF(H68='1.ข้อมูลส่วนบุคคล'!F$26,"เกี่ยวข้อง","ไม่เกี่ยวข้อง")),IF('1.ข้อมูลส่วนบุคคล'!C$21="เชี่ยวชาญพิเศษ",IF(H68="-","",IF(H68='1.ข้อมูลส่วนบุคคล'!F$26,"เกี่ยวข้อง","ไม่เกี่ยวข้อง")),"")) ->  | O68: สอนตามตารางสอน | Q68: ไม่ถูกต้อง | U68: 0 | V68: 0 | X68: 0 | Y68: 0 | Z68: 0 | AA68: 0 | AB68: ='1.ข้อมูลส่วนบุคคล'!G$32 -> 2560-05-15 | AC68: 25600515 | AD68: 00:00:00 | AE68: 19000100 | AF68: -6600415 | AG68: 0 | AH68: 0 | AI68: 0 | AJ68: 0 | AK68: 0 | AL68: ไม่ถูกต้อง | AP68: =IFERROR(VLOOKUP(AO68,'2.การมอบหมายงานสอน'!$AI$5:$AJ$24,2,FALSE),0) -> 0
A69: ='1.ข้อมูลส่วนบุคคล'!$F$5 -> 1234567891234 | K69: =IF('1.ข้อมูลส่วนบุคคล'!C$21="เชี่ยวชาญ",IF(H69="-","",IF(H69='1.ข้อมูลส่วนบุคคล'!F$26,"เกี่ยวข้อง","ไม่เกี่ยวข้อง")),IF('1.ข้อมูลส่วนบุคคล'!C$21="เชี่ยวชาญพิเศษ",IF(H69="-","",IF(H69='1.ข้อมูลส่วนบุคคล'!F$26,"เกี่ยวข้อง","ไม่เกี่ยวข้อง")),"")) ->  | O69: สอนตามตารางสอน | Q69: ไม่ถูกต้อง | U69: 0 | V69: 0 | X69: 0 | Y69: 0 | Z69: 0 | AA69: 0 | AB69: ='1.ข้อมูลส่วนบุคคล'!G$32 -> 2560-05-15 | AC69: 25600515 | AD69: 00:00:00 | AE69: 19000100 | AF69: -6600415 | AG69: 0 | AH69: 0 | AI69: 0 | AJ69: 0 | AK69: 0 | AL69: ไม่ถูกต้อง | AP69: =IFERROR(VLOOKUP(AO69,'2.การมอบหมายงานสอน'!$AI$5:$AJ$24,2,FALSE),0) -> 0
A70: ='1.ข้อมูลส่วนบุคคล'!$F$5 -> 1234567891234 | K70: =IF('1.ข้อมูลส่วนบุคคล'!C$21="เชี่ยวชาญ",IF(H70="-","",IF(H70='1.ข้อมูลส่วนบุคคล'!F$26,"เกี่ยวข้อง","ไม่เกี่ยวข้อง")),IF('1.ข้อมูลส่วนบุคคล'!C$21="เชี่ยวชาญพิเศษ",IF(H70="-","",IF(H70='1.ข้อมูลส่วนบุคคล'!F$26,"เกี่ยวข้อง","ไม่เกี่ยวข้อง")),"")) ->  | O70: สอนตามตารางสอน | Q70: ไม่ถูกต้อง | U70: 0 | V70: 0 | X70: 0 | Y70: 0 | Z70: 0 | AA70: 0 | AB70: ='1.ข้อมูลส่วนบุคคล'!G$32 -> 2560-05-15 | AC70: 25600515 | AD70: 00:00:00 | AE70: 19000100 | AF70: -6600415 | AG70: 0 | AH70: 0 | AI70: 0 | AJ70: 0 | AK70: 0 | AL70: ไม่ถูกต้อง | AP70: =IFERROR(VLOOKUP(AO70,'2.การมอบหมายงานสอน'!$AI$5:$AJ$24,2,FALSE),0) -> 0
A71: ='1.ข้อมูลส่วนบุคคล'!$F$5 -> 1234567891234 | K71: =IF('1.ข้อมูลส่วนบุคคล'!C$21="เชี่ยวชาญ",IF(H71="-","",IF(H71='1.ข้อมูลส่วนบุคคล'!F$26,"เกี่ยวข้อง","ไม่เกี่ยวข้อง")),IF('1.ข้อมูลส่วนบุคคล'!C$21="เชี่ยวชาญพิเศษ",IF(H71="-","",IF(H71='1.ข้อมูลส่วนบุคคล'!F$26,"เกี่ยวข้อง","ไม่เกี่ยวข้อง")),"")) ->  | O71: สอนตามตารางสอน | Q71: ไม่ถูกต้อง | S71: =C71&+D71&+E71&+J71&+LEFT(I71,20) ->  | U71: =IF(LEFT(Q71,3)="ไม่",0,IF(L71="","",B71)) -> 0 | V71: =IF(K71="เกี่ยวข้อง",1,0) -> 0 | X71: =IF(Q71="ไม่ถูกต้อง",0,IF(N71="นาที",(L71*M71)/60,L71*M71)) -> 0 | Y71: 0 | Z71: 0 | AA71: 0 | AB71: ='1.ข้อมูลส่วนบุคคล'!G$32 -> 2560-05-15 | AC71: 25600515 | AD71: =F71 -> 00:00:00 | AE71: 19000100 | AF71: -6600415 | AG71: 0 | AH71: 0 | AI71: =IF(O71="สอนซ่อมเสริม",Z71,0) -> 0 | AJ71: 0 | AK71: =IF(O71="สอนซ่อมเสริม",1,0) -> 0 | AL71: =B71&+D71&+E71&+Q71 -> ไม่ถูกต้อง | AM71: =C71&+D71 ->  | AN71: =C71&+E71 ->  | AP71: =IFERROR(VLOOKUP(AO71,'2.การมอบหมายงานสอน'!$AI$5:$AJ$24,2,FALSE),0) -> 0
A72: ='1.ข้อมูลส่วนบุคคล'!$F$5 -> 1234567891234 | B72: =IF(AF72<0,"",IF(DATEDIF(AB72,AD72,"y")+(DATEDIF(AB72,AD72,"ym")/10)<=1,1,IF(DATEDIF(AB72,AD72,"y")+(DATEDIF(AB72,AD72,"ym")/10)<=2,2,IF(DATEDIF(AB72,AD72,"y")+(DATEDIF(AB72,AD72,"ym")/10)<=3,3,IF(DATEDIF(AB72,AD72,"y")+(DATEDIF(AB72,AD72,"ym")/10)<=4,4,IF(DATEDIF(AB72,AD72,"y")+(DATEDIF(AB72,AD72,"ym")/10)<=5,5,IF(DATEDIF(AB72,AD72,"y")+(DATEDIF(AB72,AD72,"ym")/10)<=6,6,IF(DATEDIF(AB72,AD72,"y")+(DATEDIF(AB72,AD72,"ym")/10)<=7,7,IF(DATEDIF(AB72,AD72,"y")+(DATEDIF(AB72,AD72,"ym")/10)<=8,8,IF(DATEDIF(AB72,AD72,"y")+(DATEDIF(AB72,AD72,"ym")/10)<=9,9,IF(DATEDIF(AB72,AD72,"y")+(DATEDIF(AB72,AD72,"ym")/10)<=10,10,"ไม่ถูกต้อง"))))))))))) ->  | K72: =IF('1.ข้อมูลส่วนบุคคล'!C$21="เชี่ยวชาญ",IF(H72="-","",IF(H72='1.ข้อมูลส่วนบุคคล'!F$26,"เกี่ยวข้อง","ไม่เกี่ยวข้อง")),IF('1.ข้อมูลส่วนบุคคล'!C$21="เชี่ยวชาญพิเศษ",IF(H72="-","",IF(H72='1.ข้อมูลส่วนบุคคล'!F$26,"เกี่ยวข้อง","ไม่เกี่ยวข้อง")),"")) ->  | O72: สอนตามตารางสอน | Q72: ไม่ถูกต้อง | R72: =S72 ->  | U72: 0 | V72: 0 | X72: 0 | Y72: 0 | Z72: =ROUNDDOWN(X72,0)+Y72 -> 0 | AA72: =IF(ISBLANK(E72),0,IF(ISBLANK(D72),IF(AND(C72=C71,E72=E71),0,IF(AND(C72=C71,E72=(E71+1)),0,IF(AND(C72=(C71+1),E72=1,E71>=18),0,1))),IF(AND(C72=C71,D72=D71,E72=E71),0,IF(AND(C72=C71,D72=D71,E72=(E71+1)),0,IF(AND(C72=C71,D72=(D71+1),E72=1,E71>=18),0,IF(AND(C72=(C71+1),D72=1,E72=1,E71>=18),0,1)))))) -> 0 | AB72: ='1.ข้อมูลส่วนบุคคล'!G$32 -> 2560-05-15 | AC72: =TEXT(AB72,"yyyy")&+IF(TEXT(AB72,"mm")>9,TEXT(AB72,"mm"),"0"&+TEXT(AB72,"mm"))&+IF(TEXT(AB72,"dd")>9,TEXT(AB72,"dd"),"0"&+TEXT(AB72,"dd")) -> 25600515 | AD72: 00:00:00 | AE72: =TEXT(AD72,"yyyy")&+IF(TEXT(AD72,"mm")>9,TEXT(AD72,"mm"),"0"&+TEXT(AD72,"mm"))&+IF(TEXT(AD72,"dd")>9,TEXT(AD72,"dd"),"0"&+TEXT(AD72,"dd")) -> 19000100 | AF72: =AE72-AC72 -> -6600415 | AG72: =IF(LEFT(P72,1)="5",1,0) -> 0 | AH72: 0 | AI72: 0 | AJ72: =IF(IFERROR(VLOOKUP(AO72,AQ$7:AS$26,3,FALSE),0)-IFERROR(VLOOKUP(AO72,AQ$7:AS$26,2,FALSE),0)<0,1,0) -> 0 | AK72: 0 | AL72: ไม่ถูกต้อง | AP72: =IFERROR(VLOOKUP(AO72,'2.การมอบหมายงานสอน'!$AI$5:$AJ$24,2,FALSE),0) -> 0
A73: ='1.ข้อมูลส่วนบุคคล'!$F$5 -> 1234567891234 | K73: =IF('1.ข้อมูลส่วนบุคคล'!C$21="เชี่ยวชาญ",IF(H73="-","",IF(H73='1.ข้อมูลส่วนบุคคล'!F$26,"เกี่ยวข้อง","ไม่เกี่ยวข้อง")),IF('1.ข้อมูลส่วนบุคคล'!C$21="เชี่ยวชาญพิเศษ",IF(H73="-","",IF(H73='1.ข้อมูลส่วนบุคคล'!F$26,"เกี่ยวข้อง","ไม่เกี่ยวข้อง")),"")) ->  | O73: สอนตามตารางสอน | Q73: ไม่ถูกต้อง | U73: 0 | V73: 0 | W73: =IF(LEFT(Q73,3)="ไม่","",IF(AL73=AL72,0,IF(OR(LEFT(P73,1)="1",LEFT(P73,1)="2",LEFT(P73,1)="3",LEFT(P73,1)="4",LEFT(P73,1)="5"),0,IF(SUMIFS(Z73:Z123,AL73:AL123,B73&+D73&+E73&+"ถูกต้อง",AK73:AK123,0)<AP73,1,0)))) ->  | X73: 0 | Y73: =(MOD(X73,1))*60/100 -> 0 | Z73: 0 | AA73: 0 | AB73: ='1.ข้อมูลส่วนบุคคล'!G$32 -> 2560-05-15 | AC73: 25600515 | AD73: 00:00:00 | AE73: 19000100 | AF73: -6600415 | AG73: 0 | AH73: =IF(AG73=1,IF(IF(AN73=AN72,0,AP73-IF(AND(LEFT(Q73,3)<>"ไม่",AK73=0),SUMIFS(Z73:Z123,AN73:AN123,AN73,AK73:AK123,0),0))<0,0,IF(AN73=AN72,0,AP73-IF(AND(LEFT(Q73,3)<>"ไม่",AK73=0),SUMIFS(Z73:Z123,AN73:AN123,AN73,AK73:AK123,0),0))),0) -> 0 | AI73: 0 | AJ73: 0 | AK73: 0 | AL73: ไม่ถูกต้อง | AP73: =IFERROR(VLOOKUP(AO73,'2.การมอบหมายงานสอน'!$AI$5:$AJ$24,2,FALSE),0) -> 0
A74: ='1.ข้อมูลส่วนบุคคล'!$F$5 -> 1234567891234 | K74: =IF('1.ข้อมูลส่วนบุคคล'!C$21="เชี่ยวชาญ",IF(H74="-","",IF(H74='1.ข้อมูลส่วนบุคคล'!F$26,"เกี่ยวข้อง","ไม่เกี่ยวข้อง")),IF('1.ข้อมูลส่วนบุคคล'!C$21="เชี่ยวชาญพิเศษ",IF(H74="-","",IF(H74='1.ข้อมูลส่วนบุคคล'!F$26,"เกี่ยวข้อง","ไม่เกี่ยวข้อง")),"")) ->  | O74: สอนตามตารางสอน | Q74: ไม่ถูกต้อง | U74: 0 | V74: 0 | X74: 0 | Y74: 0 | Z74: 0 | AA74: 0 | AB74: ='1.ข้อมูลส่วนบุคคล'!G$32 -> 2560-05-15 | AC74: 25600515 | AD74: 00:00:00 | AE74: 19000100 | AF74: -6600415 | AG74: 0 | AH74: 0 | AI74: 0 | AJ74: 0 | AK74: 0 | AL74: ไม่ถูกต้อง | AP74: =IFERROR(VLOOKUP(AO74,'2.การมอบหมายงานสอน'!$AI$5:$AJ$24,2,FALSE),0) -> 0
A75: ='1.ข้อมูลส่วนบุคคล'!$F$5 -> 1234567891234 | K75: =IF('1.ข้อมูลส่วนบุคคล'!C$21="เชี่ยวชาญ",IF(H75="-","",IF(H75='1.ข้อมูลส่วนบุคคล'!F$26,"เกี่ยวข้อง","ไม่เกี่ยวข้อง")),IF('1.ข้อมูลส่วนบุคคล'!C$21="เชี่ยวชาญพิเศษ",IF(H75="-","",IF(H75='1.ข้อมูลส่วนบุคคล'!F$26,"เกี่ยวข้อง","ไม่เกี่ยวข้อง")),"")) ->  | O75: สอนตามตารางสอน | Q75: ไม่ถูกต้อง | U75: 0 | V75: 0 | X75: 0 | Y75: 0 | Z75: 0 | AA75: 0 | AB75: ='1.ข้อมูลส่วนบุคคล'!G$32 -> 2560-05-15 | AC75: 25600515 | AD75: 00:00:00 | AE75: 19000100 | AF75: -6600415 | AG75: 0 | AH75: 0 | AI75: 0 | AJ75: 0 | AK75: 0 | AL75: ไม่ถูกต้อง | AP75: =IFERROR(VLOOKUP(AO75,'2.การมอบหมายงานสอน'!$AI$5:$AJ$24,2,FALSE),0) -> 0
A76: ='1.ข้อมูลส่วนบุคคล'!$F$5 -> 1234567891234 | K76: =IF('1.ข้อมูลส่วนบุคคล'!C$21="เชี่ยวชาญ",IF(H76="-","",IF(H76='1.ข้อมูลส่วนบุคคล'!F$26,"เกี่ยวข้อง","ไม่เกี่ยวข้อง")),IF('1.ข้อมูลส่วนบุคคล'!C$21="เชี่ยวชาญพิเศษ",IF(H76="-","",IF(H76='1.ข้อมูลส่วนบุคคล'!F$26,"เกี่ยวข้อง","ไม่เกี่ยวข้อง")),"")) ->  | O76: สอนตามตารางสอน | Q76: ไม่ถูกต้อง | U76: 0 | V76: 0 | X76: 0 | Y76: 0 | Z76: 0 | AA76: 0 | AB76: ='1.ข้อมูลส่วนบุคคล'!G$32 -> 2560-05-15 | AC76: 25600515 | AD76: 00:00:00 | AE76: 19000100 | AF76: -6600415 | AG76: 0 | AH76: 0 | AI76: 0 | AJ76: 0 | AK76: 0 | AL76: ไม่ถูกต้อง | AP76: =IFERROR(VLOOKUP(AO76,'2.การมอบหมายงานสอน'!$AI$5:$AJ$24,2,FALSE),0) -> 0
A77: ='1.ข้อมูลส่วนบุคคล'!$F$5 -> 1234567891234 | K77: =IF('1.ข้อมูลส่วนบุคคล'!C$21="เชี่ยวชาญ",IF(H77="-","",IF(H77='1.ข้อมูลส่วนบุคคล'!F$26,"เกี่ยวข้อง","ไม่เกี่ยวข้อง")),IF('1.ข้อมูลส่วนบุคคล'!C$21="เชี่ยวชาญพิเศษ",IF(H77="-","",IF(H77='1.ข้อมูลส่วนบุคคล'!F$26,"เกี่ยวข้อง","ไม่เกี่ยวข้อง")),"")) ->  | O77: สอนตามตารางสอน | Q77: ไม่ถูกต้อง | U77: 0 | V77: 0 | X77: 0 | Y77: 0 | Z77: 0 | AA77: 0 | AB77: ='1.ข้อมูลส่วนบุคคล'!G$32 -> 2560-05-15 | AC77: 25600515 | AD77: 00:00:00 | AE77: 19000100 | AF77: -6600415 | AG77: 0 | AH77: 0 | AI77: 0 | AJ77: 0 | AK77: 0 | AL77: ไม่ถูกต้อง | AP77: =IFERROR(VLOOKUP(AO77,'2.การมอบหมายงานสอน'!$AI$5:$AJ$24,2,FALSE),0) -> 0
A78: ='1.ข้อมูลส่วนบุคคล'!$F$5 -> 1234567891234 | K78: =IF('1.ข้อมูลส่วนบุคคล'!C$21="เชี่ยวชาญ",IF(H78="-","",IF(H78='1.ข้อมูลส่วนบุคคล'!F$26,"เกี่ยวข้อง","ไม่เกี่ยวข้อง")),IF('1.ข้อมูลส่วนบุคคล'!C$21="เชี่ยวชาญพิเศษ",IF(H78="-","",IF(H78='1.ข้อมูลส่วนบุคคล'!F$26,"เกี่ยวข้อง","ไม่เกี่ยวข้อง")),"")) ->  | O78: สอนตามตารางสอน | Q78: ไม่ถูกต้อง | U78: 0 | V78: 0 | X78: 0 | Y78: 0 | Z78: 0 | AA78: 0 | AB78: ='1.ข้อมูลส่วนบุคคล'!G$32 -> 2560-05-15 | AC78: 25600515 | AD78: 00:00:00 | AE78: 19000100 | AF78: -6600415 | AG78: 0 | AH78: 0 | AI78: 0 | AJ78: 0 | AK78: 0 | AL78: ไม่ถูกต้อง | AP78: =IFERROR(VLOOKUP(AO78,'2.การมอบหมายงานสอน'!$AI$5:$AJ$24,2,FALSE),0) -> 0
A79: ='1.ข้อมูลส่วนบุคคล'!$F$5 -> 1234567891234 | K79: =IF('1.ข้อมูลส่วนบุคคล'!C$21="เชี่ยวชาญ",IF(H79="-","",IF(H79='1.ข้อมูลส่วนบุคคล'!F$26,"เกี่ยวข้อง","ไม่เกี่ยวข้อง")),IF('1.ข้อมูลส่วนบุคคล'!C$21="เชี่ยวชาญพิเศษ",IF(H79="-","",IF(H79='1.ข้อมูลส่วนบุคคล'!F$26,"เกี่ยวข้อง","ไม่เกี่ยวข้อง")),"")) ->  | O79: สอนตามตารางสอน | Q79: ไม่ถูกต้อง | U79: 0 | V79: 0 | X79: 0 | Y79: 0 | Z79: 0 | AA79: 0 | AB79: ='1.ข้อมูลส่วนบุคคล'!G$32 -> 2560-05-15 | AC79: 25600515 | AD79: 00:00:00 | AE79: 19000100 | AF79: -6600415 | AG79: 0 | AH79: 0 | AI79: 0 | AJ79: 0 | AK79: 0 | AL79: ไม่ถูกต้อง | AP79: =IFERROR(VLOOKUP(AO79,'2.การมอบหมายงานสอน'!$AI$5:$AJ$24,2,FALSE),0) -> 0
A80: ='1.ข้อมูลส่วนบุคคล'!$F$5 -> 1234567891234 | K80: =IF('1.ข้อมูลส่วนบุคคล'!C$21="เชี่ยวชาญ",IF(H80="-","",IF(H80='1.ข้อมูลส่วนบุคคล'!F$26,"เกี่ยวข้อง","ไม่เกี่ยวข้อง")),IF('1.ข้อมูลส่วนบุคคล'!C$21="เชี่ยวชาญพิเศษ",IF(H80="-","",IF(H80='1.ข้อมูลส่วนบุคคล'!F$26,"เกี่ยวข้อง","ไม่เกี่ยวข้อง")),"")) ->  | O80: สอนตามตารางสอน | Q80: ไม่ถูกต้อง | U80: 0 | V80: 0 | X80: 0 | Y80: 0 | Z80: 0 | AA80: 0 | AB80: ='1.ข้อมูลส่วนบุคคล'!G$32 -> 2560-05-15 | AC80: 25600515 | AD80: 00:00:00 | AE80: 19000100 | AF80: -6600415 | AG80: 0 | AH80: 0 | AI80: 0 | AJ80: 0 | AK80: 0 | AL80: ไม่ถูกต้อง | AP80: =IFERROR(VLOOKUP(AO80,'2.การมอบหมายงานสอน'!$AI$5:$AJ$24,2,FALSE),0) -> 0
A81: ='1.ข้อมูลส่วนบุคคล'!$F$5 -> 1234567891234 | K81: =IF('1.ข้อมูลส่วนบุคคล'!C$21="เชี่ยวชาญ",IF(H81="-","",IF(H81='1.ข้อมูลส่วนบุคคล'!F$26,"เกี่ยวข้อง","ไม่เกี่ยวข้อง")),IF('1.ข้อมูลส่วนบุคคล'!C$21="เชี่ยวชาญพิเศษ",IF(H81="-","",IF(H81='1.ข้อมูลส่วนบุคคล'!F$26,"เกี่ยวข้อง","ไม่เกี่ยวข้อง")),"")) ->  | O81: สอนตามตารางสอน | Q81: ไม่ถูกต้อง | U81: 0 | V81: 0 | X81: 0 | Y81: 0 | Z81: 0 | AA81: 0 | AB81: ='1.ข้อมูลส่วนบุคคล'!G$32 -> 2560-05-15 | AC81: 25600515 | AD81: 00:00:00 | AE81: 19000100 | AF81: -6600415 | AG81: 0 | AH81: 0 | AI81: 0 | AJ81: 0 | AK81: 0 | AL81: ไม่ถูกต้อง | AP81: =IFERROR(VLOOKUP(AO81,'2.การมอบหมายงานสอน'!$AI$5:$AJ$24,2,FALSE),0) -> 0
A82: ='1.ข้อมูลส่วนบุคคล'!$F$5 -> 1234567891234 | K82: =IF('1.ข้อมูลส่วนบุคคล'!C$21="เชี่ยวชาญ",IF(H82="-","",IF(H82='1.ข้อมูลส่วนบุคคล'!F$26,"เกี่ยวข้อง","ไม่เกี่ยวข้อง")),IF('1.ข้อมูลส่วนบุคคล'!C$21="เชี่ยวชาญพิเศษ",IF(H82="-","",IF(H82='1.ข้อมูลส่วนบุคคล'!F$26,"เกี่ยวข้อง","ไม่เกี่ยวข้อง")),"")) ->  | O82: สอนตามตารางสอน | Q82: ไม่ถูกต้อง | U82: 0 | V82: 0 | X82: 0 | Y82: 0 | Z82: 0 | AA82: 0 | AB82: ='1.ข้อมูลส่วนบุคคล'!G$32 -> 2560-05-15 | AC82: 25600515 | AD82: 00:00:00 | AE82: 19000100 | AF82: -6600415 | AG82: 0 | AH82: 0 | AI82: 0 | AJ82: 0 | AK82: 0 | AL82: ไม่ถูกต้อง | AP82: =IFERROR(VLOOKUP(AO82,'2.การมอบหมายงานสอน'!$AI$5:$AJ$24,2,FALSE),0) -> 0
A83: ='1.ข้อมูลส่วนบุคคล'!$F$5 -> 1234567891234 | K83: =IF('1.ข้อมูลส่วนบุคคล'!C$21="เชี่ยวชาญ",IF(H83="-","",IF(H83='1.ข้อมูลส่วนบุคคล'!F$26,"เกี่ยวข้อง","ไม่เกี่ยวข้อง")),IF('1.ข้อมูลส่วนบุคคล'!C$21="เชี่ยวชาญพิเศษ",IF(H83="-","",IF(H83='1.ข้อมูลส่วนบุคคล'!F$26,"เกี่ยวข้อง","ไม่เกี่ยวข้อง")),"")) ->  | O83: สอนตามตารางสอน | Q83: ไม่ถูกต้อง | U83: 0 | V83: 0 | X83: 0 | Y83: 0 | Z83: 0 | AA83: 0 | AB83: ='1.ข้อมูลส่วนบุคคล'!G$32 -> 2560-05-15 | AC83: 25600515 | AD83: 00:00:00 | AE83: 19000100 | AF83: -6600415 | AG83: 0 | AH83: 0 | AI83: 0 | AJ83: 0 | AK83: 0 | AL83: ไม่ถูกต้อง | AP83: =IFERROR(VLOOKUP(AO83,'2.การมอบหมายงานสอน'!$AI$5:$AJ$24,2,FALSE),0) -> 0
A84: ='1.ข้อมูลส่วนบุคคล'!$F$5 -> 1234567891234 | K84: =IF('1.ข้อมูลส่วนบุคคล'!C$21="เชี่ยวชาญ",IF(H84="-","",IF(H84='1.ข้อมูลส่วนบุคคล'!F$26,"เกี่ยวข้อง","ไม่เกี่ยวข้อง")),IF('1.ข้อมูลส่วนบุคคล'!C$21="เชี่ยวชาญพิเศษ",IF(H84="-","",IF(H84='1.ข้อมูลส่วนบุคคล'!F$26,"เกี่ยวข้อง","ไม่เกี่ยวข้อง")),"")) ->  | O84: สอนตามตารางสอน | Q84: ไม่ถูกต้อง | U84: 0 | V84: 0 | X84: 0 | Y84: 0 | Z84: 0 | AA84: 0 | AB84: ='1.ข้อมูลส่วนบุคคล'!G$32 -> 2560-05-15 | AC84: 25600515 | AD84: 00:00:00 | AE84: 19000100 | AF84: -6600415 | AG84: 0 | AH84: 0 | AI84: 0 | AJ84: 0 | AK84: 0 | AL84: ไม่ถูกต้อง | AP84: =IFERROR(VLOOKUP(AO84,'2.การมอบหมายงานสอน'!$AI$5:$AJ$24,2,FALSE),0) -> 0
A85: ='1.ข้อมูลส่วนบุคคล'!$F$5 -> 1234567891234 | K85: =IF('1.ข้อมูลส่วนบุคคล'!C$21="เชี่ยวชาญ",IF(H85="-","",IF(H85='1.ข้อมูลส่วนบุคคล'!F$26,"เกี่ยวข้อง","ไม่เกี่ยวข้อง")),IF('1.ข้อมูลส่วนบุคคล'!C$21="เชี่ยวชาญพิเศษ",IF(H85="-","",IF(H85='1.ข้อมูลส่วนบุคคล'!F$26,"เกี่ยวข้อง","ไม่เกี่ยวข้อง")),"")) ->  | O85: สอนตามตารางสอน | Q85: ไม่ถูกต้อง | U85: 0 | V85: 0 | X85: 0 | Y85: 0 | Z85: 0 | AA85: 0 | AB85: ='1.ข้อมูลส่วนบุคคล'!G$32 -> 2560-05-15 | AC85: 25600515 | AD85: 00:00:00 | AE85: 19000100 | AF85: -6600415 | AG85: 0 | AH85: 0 | AI85: 0 | AJ85: 0 | AK85: 0 | AL85: ไม่ถูกต้อง | AP85: =IFERROR(VLOOKUP(AO85,'2.การมอบหมายงานสอน'!$AI$5:$AJ$24,2,FALSE),0) -> 0
A86: ='1.ข้อมูลส่วนบุคคล'!$F$5 -> 1234567891234 | K86: =IF('1.ข้อมูลส่วนบุคคล'!C$21="เชี่ยวชาญ",IF(H86="-","",IF(H86='1.ข้อมูลส่วนบุคคล'!F$26,"เกี่ยวข้อง","ไม่เกี่ยวข้อง")),IF('1.ข้อมูลส่วนบุคคล'!C$21="เชี่ยวชาญพิเศษ",IF(H86="-","",IF(H86='1.ข้อมูลส่วนบุคคล'!F$26,"เกี่ยวข้อง","ไม่เกี่ยวข้อง")),"")) ->  | O86: สอนตามตารางสอน | Q86: ไม่ถูกต้อง | U86: 0 | V86: 0 | X86: 0 | Y86: 0 | Z86: 0 | AA86: 0 | AB86: ='1.ข้อมูลส่วนบุคคล'!G$32 -> 2560-05-15 | AC86: 25600515 | AD86: 00:00:00 | AE86: 19000100 | AF86: -6600415 | AG86: 0 | AH86: 0 | AI86: 0 | AJ86: 0 | AK86: 0 | AL86: ไม่ถูกต้อง | AP86: =IFERROR(VLOOKUP(AO86,'2.การมอบหมายงานสอน'!$AI$5:$AJ$24,2,FALSE),0) -> 0
A87: ='1.ข้อมูลส่วนบุคคล'!$F$5 -> 1234567891234 | K87: =IF('1.ข้อมูลส่วนบุคคล'!C$21="เชี่ยวชาญ",IF(H87="-","",IF(H87='1.ข้อมูลส่วนบุคคล'!F$26,"เกี่ยวข้อง","ไม่เกี่ยวข้อง")),IF('1.ข้อมูลส่วนบุคคล'!C$21="เชี่ยวชาญพิเศษ",IF(H87="-","",IF(H87='1.ข้อมูลส่วนบุคคล'!F$26,"เกี่ยวข้อง","ไม่เกี่ยวข้อง")),"")) ->  | O87: สอนตามตารางสอน | Q87: ไม่ถูกต้อง | U87: 0 | V87: 0 | X87: 0 | Y87: 0 | Z87: 0 | AA87: 0 | AB87: ='1.ข้อมูลส่วนบุคคล'!G$32 -> 2560-05-15 | AC87: 25600515 | AD87: 00:00:00 | AE87: 19000100 | AF87: -6600415 | AG87: 0 | AH87: 0 | AI87: 0 | AJ87: 0 | AK87: 0 | AL87: ไม่ถูกต้อง | AP87: =IFERROR(VLOOKUP(AO87,'2.การมอบหมายงานสอน'!$AI$5:$AJ$24,2,FALSE),0) -> 0
A88: ='1.ข้อมูลส่วนบุคคล'!$F$5 -> 1234567891234 | K88: =IF('1.ข้อมูลส่วนบุคคล'!C$21="เชี่ยวชาญ",IF(H88="-","",IF(H88='1.ข้อมูลส่วนบุคคล'!F$26,"เกี่ยวข้อง","ไม่เกี่ยวข้อง")),IF('1.ข้อมูลส่วนบุคคล'!C$21="เชี่ยวชาญพิเศษ",IF(H88="-","",IF(H88='1.ข้อมูลส่วนบุคคล'!F$26,"เกี่ยวข้อง","ไม่เกี่ยวข้อง")),"")) ->  | O88: สอนตามตารางสอน | Q88: ไม่ถูกต้อง | U88: 0 | V88: 0 | X88: 0 | Y88: 0 | Z88: 0 | AA88: 0 | AB88: ='1.ข้อมูลส่วนบุคคล'!G$32 -> 2560-05-15 | AC88: 25600515 | AD88: 00:00:00 | AE88: 19000100 | AF88: -6600415 | AG88: 0 | AH88: 0 | AI88: 0 | AJ88: 0 | AK88: 0 | AL88: ไม่ถูกต้อง | AP88: =IFERROR(VLOOKUP(AO88,'2.การมอบหมายงานสอน'!$AI$5:$AJ$24,2,FALSE),0) -> 0
A89: ='1.ข้อมูลส่วนบุคคล'!$F$5 -> 1234567891234 | K89: =IF('1.ข้อมูลส่วนบุคคล'!C$21="เชี่ยวชาญ",IF(H89="-","",IF(H89='1.ข้อมูลส่วนบุคคล'!F$26,"เกี่ยวข้อง","ไม่เกี่ยวข้อง")),IF('1.ข้อมูลส่วนบุคคล'!C$21="เชี่ยวชาญพิเศษ",IF(H89="-","",IF(H89='1.ข้อมูลส่วนบุคคล'!F$26,"เกี่ยวข้อง","ไม่เกี่ยวข้อง")),"")) ->  | O89: สอนตามตารางสอน | Q89: ไม่ถูกต้อง | U89: 0 | V89: 0 | X89: 0 | Y89: 0 | Z89: 0 | AA89: 0 | AB89: ='1.ข้อมูลส่วนบุคคล'!G$32 -> 2560-05-15 | AC89: 25600515 | AD89: 00:00:00 | AE89: 19000100 | AF89: -6600415 | AG89: 0 | AH89: 0 | AI89: 0 | AJ89: 0 | AK89: 0 | AL89: ไม่ถูกต้อง | AP89: =IFERROR(VLOOKUP(AO89,'2.การมอบหมายงานสอน'!$AI$5:$AJ$24,2,FALSE),0) -> 0
A90: ='1.ข้อมูลส่วนบุคคล'!$F$5 -> 1234567891234 | K90: =IF('1.ข้อมูลส่วนบุคคล'!C$21="เชี่ยวชาญ",IF(H90="-","",IF(H90='1.ข้อมูลส่วนบุคคล'!F$26,"เกี่ยวข้อง","ไม่เกี่ยวข้อง")),IF('1.ข้อมูลส่วนบุคคล'!C$21="เชี่ยวชาญพิเศษ",IF(H90="-","",IF(H90='1.ข้อมูลส่วนบุคคล'!F$26,"เกี่ยวข้อง","ไม่เกี่ยวข้อง")),"")) ->  | O90: สอนตามตารางสอน | Q90: ไม่ถูกต้อง | U90: 0 | V90: 0 | X90: 0 | Y90: 0 | Z90: 0 | AA90: 0 | AB90: ='1.ข้อมูลส่วนบุคคล'!G$32 -> 2560-05-15 | AC90: 25600515 | AD90: 00:00:00 | AE90: 19000100 | AF90: -6600415 | AG90: 0 | AH90: 0 | AI90: 0 | AJ90: 0 | AK90: 0 | AL90: ไม่ถูกต้อง | AP90: =IFERROR(VLOOKUP(AO90,'2.การมอบหมายงานสอน'!$AI$5:$AJ$24,2,FALSE),0) -> 0
A91: ='1.ข้อมูลส่วนบุคคล'!$F$5 -> 1234567891234 | K91: =IF('1.ข้อมูลส่วนบุคคล'!C$21="เชี่ยวชาญ",IF(H91="-","",IF(H91='1.ข้อมูลส่วนบุคคล'!F$26,"เกี่ยวข้อง","ไม่เกี่ยวข้อง")),IF('1.ข้อมูลส่วนบุคคล'!C$21="เชี่ยวชาญพิเศษ",IF(H91="-","",IF(H91='1.ข้อมูลส่วนบุคคล'!F$26,"เกี่ยวข้อง","ไม่เกี่ยวข้อง")),"")) ->  | O91: สอนตามตารางสอน | Q91: ไม่ถูกต้อง | U91: 0 | V91: 0 | X91: 0 | Y91: 0 | Z91: 0 | AA91: 0 | AB91: ='1.ข้อมูลส่วนบุคคล'!G$32 -> 2560-05-15 | AC91: 25600515 | AD91: 00:00:00 | AE91: 19000100 | AF91: -6600415 | AG91: 0 | AH91: 0 | AI91: 0 | AJ91: 0 | AK91: 0 | AL91: ไม่ถูกต้อง | AP91: =IFERROR(VLOOKUP(AO91,'2.การมอบหมายงานสอน'!$AI$5:$AJ$24,2,FALSE),0) -> 0
A92: ='1.ข้อมูลส่วนบุคคล'!$F$5 -> 1234567891234 | K92: =IF('1.ข้อมูลส่วนบุคคล'!C$21="เชี่ยวชาญ",IF(H92="-","",IF(H92='1.ข้อมูลส่วนบุคคล'!F$26,"เกี่ยวข้อง","ไม่เกี่ยวข้อง")),IF('1.ข้อมูลส่วนบุคคล'!C$21="เชี่ยวชาญพิเศษ",IF(H92="-","",IF(H92='1.ข้อมูลส่วนบุคคล'!F$26,"เกี่ยวข้อง","ไม่เกี่ยวข้อง")),"")) ->  | O92: สอนตามตารางสอน | Q92: ไม่ถูกต้อง | U92: 0 | V92: 0 | X92: 0 | Y92: 0 | Z92: 0 | AA92: 0 | AB92: ='1.ข้อมูลส่วนบุคคล'!G$32 -> 2560-05-15 | AC92: 25600515 | AD92: 00:00:00 | AE92: 19000100 | AF92: -6600415 | AG92: 0 | AH92: 0 | AI92: 0 | AJ92: 0 | AK92: 0 | AL92: ไม่ถูกต้อง | AP92: =IFERROR(VLOOKUP(AO92,'2.การมอบหมายงานสอน'!$AI$5:$AJ$24,2,FALSE),0) -> 0
A93: ='1.ข้อมูลส่วนบุคคล'!$F$5 -> 1234567891234 | K93: =IF('1.ข้อมูลส่วนบุคคล'!C$21="เชี่ยวชาญ",IF(H93="-","",IF(H93='1.ข้อมูลส่วนบุคคล'!F$26,"เกี่ยวข้อง","ไม่เกี่ยวข้อง")),IF('1.ข้อมูลส่วนบุคคล'!C$21="เชี่ยวชาญพิเศษ",IF(H93="-","",IF(H93='1.ข้อมูลส่วนบุคคล'!F$26,"เกี่ยวข้อง","ไม่เกี่ยวข้อง")),"")) ->  | O93: สอนตามตารางสอน | Q93: ไม่ถูกต้อง | U93: 0 | V93: 0 | X93: 0 | Y93: 0 | Z93: 0 | AA93: 0 | AB93: ='1.ข้อมูลส่วนบุคคล'!G$32 -> 2560-05-15 | AC93: 25600515 | AD93: 00:00:00 | AE93: 19000100 | AF93: -6600415 | AG93: 0 | AH93: 0 | AI93: 0 | AJ93: 0 | AK93: 0 | AL93: ไม่ถูกต้อง | AP93: =IFERROR(VLOOKUP(AO93,'2.การมอบหมายงานสอน'!$AI$5:$AJ$24,2,FALSE),0) -> 0
A94: ='1.ข้อมูลส่วนบุคคล'!$F$5 -> 1234567891234 | K94: =IF('1.ข้อมูลส่วนบุคคล'!C$21="เชี่ยวชาญ",IF(H94="-","",IF(H94='1.ข้อมูลส่วนบุคคล'!F$26,"เกี่ยวข้อง","ไม่เกี่ยวข้อง")),IF('1.ข้อมูลส่วนบุคคล'!C$21="เชี่ยวชาญพิเศษ",IF(H94="-","",IF(H94='1.ข้อมูลส่วนบุคคล'!F$26,"เกี่ยวข้อง","ไม่เกี่ยวข้อง")),"")) ->  | O94: สอนตามตารางสอน | Q94: ไม่ถูกต้อง | U94: 0 | V94: 0 | X94: 0 | Y94: 0 | Z94: 0 | AA94: 0 | AB94: ='1.ข้อมูลส่วนบุคคล'!G$32 -> 2560-05-15 | AC94: 25600515 | AD94: 00:00:00 | AE94: 19000100 | AF94: -6600415 | AG94: 0 | AH94: 0 | AI94: 0 | AJ94: 0 | AK94: 0 | AL94: ไม่ถูกต้อง | AP94: =IFERROR(VLOOKUP(AO94,'2.การมอบหมายงานสอน'!$AI$5:$AJ$24,2,FALSE),0) -> 0
A95: ='1.ข้อมูลส่วนบุคคล'!$F$5 -> 1234567891234 | K95: =IF('1.ข้อมูลส่วนบุคคล'!C$21="เชี่ยวชาญ",IF(H95="-","",IF(H95='1.ข้อมูลส่วนบุคคล'!F$26,"เกี่ยวข้อง","ไม่เกี่ยวข้อง")),IF('1.ข้อมูลส่วนบุคคล'!C$21="เชี่ยวชาญพิเศษ",IF(H95="-","",IF(H95='1.ข้อมูลส่วนบุคคล'!F$26,"เกี่ยวข้อง","ไม่เกี่ยวข้อง")),"")) ->  | O95: สอนตามตารางสอน | Q95: ไม่ถูกต้อง | U95: 0 | V95: 0 | X95: 0 | Y95: 0 | Z95: 0 | AA95: 0 | AB95: ='1.ข้อมูลส่วนบุคคล'!G$32 -> 2560-05-15 | AC95: 25600515 | AD95: 00:00:00 | AE95: 19000100 | AF95: -6600415 | AG95: 0 | AH95: 0 | AI95: 0 | AJ95: 0 | AK95: 0 | AL95: ไม่ถูกต้อง | AP95: =IFERROR(VLOOKUP(AO95,'2.การมอบหมายงานสอน'!$AI$5:$AJ$24,2,FALSE),0) -> 0
A96: ='1.ข้อมูลส่วนบุคคล'!$F$5 -> 1234567891234 | K96: =IF('1.ข้อมูลส่วนบุคคล'!C$21="เชี่ยวชาญ",IF(H96="-","",IF(H96='1.ข้อมูลส่วนบุคคล'!F$26,"เกี่ยวข้อง","ไม่เกี่ยวข้อง")),IF('1.ข้อมูลส่วนบุคคล'!C$21="เชี่ยวชาญพิเศษ",IF(H96="-","",IF(H96='1.ข้อมูลส่วนบุคคล'!F$26,"เกี่ยวข้อง","ไม่เกี่ยวข้อง")),"")) ->  | O96: สอนตามตารางสอน | Q96: ไม่ถูกต้อง | U96: 0 | V96: 0 | X96: 0 | Y96: 0 | Z96: 0 | AA96: 0 | AB96: ='1.ข้อมูลส่วนบุคคล'!G$32 -> 2560-05-15 | AC96: 25600515 | AD96: 00:00:00 | AE96: 19000100 | AF96: -6600415 | AG96: 0 | AH96: 0 | AI96: 0 | AJ96: 0 | AK96: 0 | AL96: ไม่ถูกต้อง | AP96: =IFERROR(VLOOKUP(AO96,'2.การมอบหมายงานสอน'!$AI$5:$AJ$24,2,FALSE),0) -> 0
A97: ='1.ข้อมูลส่วนบุคคล'!$F$5 -> 1234567891234 | K97: =IF('1.ข้อมูลส่วนบุคคล'!C$21="เชี่ยวชาญ",IF(H97="-","",IF(H97='1.ข้อมูลส่วนบุคคล'!F$26,"เกี่ยวข้อง","ไม่เกี่ยวข้อง")),IF('1.ข้อมูลส่วนบุคคล'!C$21="เชี่ยวชาญพิเศษ",IF(H97="-","",IF(H97='1.ข้อมูลส่วนบุคคล'!F$26,"เกี่ยวข้อง","ไม่เกี่ยวข้อง")),"")) ->  | O97: สอนตามตารางสอน | Q97: ไม่ถูกต้อง | U97: 0 | V97: 0 | X97: 0 | Y97: 0 | Z97: 0 | AA97: 0 | AB97: ='1.ข้อมูลส่วนบุคคล'!G$32 -> 2560-05-15 | AC97: 25600515 | AD97: 00:00:00 | AE97: 19000100 | AF97: -6600415 | AG97: 0 | AH97: 0 | AI97: 0 | AJ97: 0 | AK97: 0 | AL97: ไม่ถูกต้อง | AP97: =IFERROR(VLOOKUP(AO97,'2.การมอบหมายงานสอน'!$AI$5:$AJ$24,2,FALSE),0) -> 0
A98: ='1.ข้อมูลส่วนบุคคล'!$F$5 -> 1234567891234 | K98: =IF('1.ข้อมูลส่วนบุคคล'!C$21="เชี่ยวชาญ",IF(H98="-","",IF(H98='1.ข้อมูลส่วนบุคคล'!F$26,"เกี่ยวข้อง","ไม่เกี่ยวข้อง")),IF('1.ข้อมูลส่วนบุคคล'!C$21="เชี่ยวชาญพิเศษ",IF(H98="-","",IF(H98='1.ข้อมูลส่วนบุคคล'!F$26,"เกี่ยวข้อง","ไม่เกี่ยวข้อง")),"")) ->  | O98: สอนตามตารางสอน | Q98: ไม่ถูกต้อง | U98: 0 | V98: 0 | X98: 0 | Y98: 0 | Z98: 0 | AA98: 0 | AB98: ='1.ข้อมูลส่วนบุคคล'!G$32 -> 2560-05-15 | AC98: 25600515 | AD98: 00:00:00 | AE98: 19000100 | AF98: -6600415 | AG98: 0 | AH98: 0 | AI98: 0 | AJ98: 0 | AK98: 0 | AL98: ไม่ถูกต้อง | AP98: =IFERROR(VLOOKUP(AO98,'2.การมอบหมายงานสอน'!$AI$5:$AJ$24,2,FALSE),0) -> 0
A99: ='1.ข้อมูลส่วนบุคคล'!$F$5 -> 1234567891234 | K99: =IF('1.ข้อมูลส่วนบุคคล'!C$21="เชี่ยวชาญ",IF(H99="-","",IF(H99='1.ข้อมูลส่วนบุคคล'!F$26,"เกี่ยวข้อง","ไม่เกี่ยวข้อง")),IF('1.ข้อมูลส่วนบุคคล'!C$21="เชี่ยวชาญพิเศษ",IF(H99="-","",IF(H99='1.ข้อมูลส่วนบุคคล'!F$26,"เกี่ยวข้อง","ไม่เกี่ยวข้อง")),"")) ->  | O99: สอนตามตารางสอน | Q99: ไม่ถูกต้อง | U99: 0 | V99: 0 | X99: 0 | Y99: 0 | Z99: 0 | AA99: 0 | AB99: ='1.ข้อมูลส่วนบุคคล'!G$32 -> 2560-05-15 | AC99: 25600515 | AD99: 00:00:00 | AE99: 19000100 | AF99: -6600415 | AG99: 0 | AH99: 0 | AI99: 0 | AJ99: 0 | AK99: 0 | AL99: ไม่ถูกต้อง | AP99: =IFERROR(VLOOKUP(AO99,'2.การมอบหมายงานสอน'!$AI$5:$AJ$24,2,FALSE),0) -> 0
A100: ='1.ข้อมูลส่วนบุคคล'!$F$5 -> 1234567891234 | K100: =IF('1.ข้อมูลส่วนบุคคล'!C$21="เชี่ยวชาญ",IF(H100="-","",IF(H100='1.ข้อมูลส่วนบุคคล'!F$26,"เกี่ยวข้อง","ไม่เกี่ยวข้อง")),IF('1.ข้อมูลส่วนบุคคล'!C$21="เชี่ยวชาญพิเศษ",IF(H100="-","",IF(H100='1.ข้อมูลส่วนบุคคล'!F$26,"เกี่ยวข้อง","ไม่เกี่ยวข้อง")),"")) ->  | O100: สอนตามตารางสอน | Q100: ไม่ถูกต้อง | U100: 0 | V100: 0 | X100: 0 | Y100: 0 | Z100: 0 | AA100: 0 | AB100: ='1.ข้อมูลส่วนบุคคล'!G$32 -> 2560-05-15 | AC100: 25600515 | AD100: 00:00:00 | AE100: 19000100 | AF100: -6600415 | AG100: 0 | AH100: 0 | AI100: 0 | AJ100: 0 | AK100: 0 | AL100: ไม่ถูกต้อง | AP100: =IFERROR(VLOOKUP(AO100,'2.การมอบหมายงานสอน'!$AI$5:$AJ$24,2,FALSE),0) -> 0
A101: ='1.ข้อมูลส่วนบุคคล'!$F$5 -> 1234567891234 | K101: =IF('1.ข้อมูลส่วนบุคคล'!C$21="เชี่ยวชาญ",IF(H101="-","",IF(H101='1.ข้อมูลส่วนบุคคล'!F$26,"เกี่ยวข้อง","ไม่เกี่ยวข้อง")),IF('1.ข้อมูลส่วนบุคคล'!C$21="เชี่ยวชาญพิเศษ",IF(H101="-","",IF(H101='1.ข้อมูลส่วนบุคคล'!F$26,"เกี่ยวข้อง","ไม่เกี่ยวข้อง")),"")) ->  | O101: สอนตามตารางสอน | Q101: ไม่ถูกต้อง | U101: 0 | V101: 0 | X101: 0 | Y101: 0 | Z101: 0 | AA101: 0 | AB101: ='1.ข้อมูลส่วนบุคคล'!G$32 -> 2560-05-15 | AC101: 25600515 | AD101: 00:00:00 | AE101: 19000100 | AF101: -6600415 | AG101: 0 | AH101: 0 | AI101: 0 | AJ101: 0 | AK101: 0 | AL101: ไม่ถูกต้อง | AP101: =IFERROR(VLOOKUP(AO101,'2.การมอบหมายงานสอน'!$AI$5:$AJ$24,2,FALSE),0) -> 0
A102: ='1.ข้อมูลส่วนบุคคล'!$F$5 -> 1234567891234 | K102: =IF('1.ข้อมูลส่วนบุคคล'!C$21="เชี่ยวชาญ",IF(H102="-","",IF(H102='1.ข้อมูลส่วนบุคคล'!F$26,"เกี่ยวข้อง","ไม่เกี่ยวข้อง")),IF('1.ข้อมูลส่วนบุคคล'!C$21="เชี่ยวชาญพิเศษ",IF(H102="-","",IF(H102='1.ข้อมูลส่วนบุคคล'!F$26,"เกี่ยวข้อง","ไม่เกี่ยวข้อง")),"")) ->  | O102: สอนตามตารางสอน | Q102: ไม่ถูกต้อง | U102: 0 | V102: 0 | X102: 0 | Y102: 0 | Z102: 0 | AA102: 0 | AB102: ='1.ข้อมูลส่วนบุคคล'!G$32 -> 2560-05-15 | AC102: 25600515 | AD102: 00:00:00 | AE102: 19000100 | AF102: -6600415 | AG102: 0 | AH102: 0 | AI102: 0 | AJ102: 0 | AK102: 0 | AL102: ไม่ถูกต้อง | AP102: =IFERROR(VLOOKUP(AO102,'2.การมอบหมายงานสอน'!$AI$5:$AJ$24,2,FALSE),0) -> 0
A103: ='1.ข้อมูลส่วนบุคคล'!$F$5 -> 1234567891234 | K103: =IF('1.ข้อมูลส่วนบุคคล'!C$21="เชี่ยวชาญ",IF(H103="-","",IF(H103='1.ข้อมูลส่วนบุคคล'!F$26,"เกี่ยวข้อง","ไม่เกี่ยวข้อง")),IF('1.ข้อมูลส่วนบุคคล'!C$21="เชี่ยวชาญพิเศษ",IF(H103="-","",IF(H103='1.ข้อมูลส่วนบุคคล'!F$26,"เกี่ยวข้อง","ไม่เกี่ยวข้อง")),"")) ->  | O103: สอนตามตารางสอน | Q103: ไม่ถูกต้อง | U103: 0 | V103: 0 | X103: 0 | Y103: 0 | Z103: 0 | AA103: 0 | AB103: ='1.ข้อมูลส่วนบุคคล'!G$32 -> 2560-05-15 | AC103: 25600515 | AD103: 00:00:00 | AE103: 19000100 | AF103: -6600415 | AG103: 0 | AH103: 0 | AI103: 0 | AJ103: 0 | AK103: 0 | AL103: ไม่ถูกต้อง | AP103: =IFERROR(VLOOKUP(AO103,'2.การมอบหมายงานสอน'!$AI$5:$AJ$24,2,FALSE),0) -> 0
A104: ='1.ข้อมูลส่วนบุคคล'!$F$5 -> 1234567891234 | K104: =IF('1.ข้อมูลส่วนบุคคล'!C$21="เชี่ยวชาญ",IF(H104="-","",IF(H104='1.ข้อมูลส่วนบุคคล'!F$26,"เกี่ยวข้อง","ไม่เกี่ยวข้อง")),IF('1.ข้อมูลส่วนบุคคล'!C$21="เชี่ยวชาญพิเศษ",IF(H104="-","",IF(H104='1.ข้อมูลส่วนบุคคล'!F$26,"เกี่ยวข้อง","ไม่เกี่ยวข้อง")),"")) ->  | O104: สอนตามตารางสอน | Q104: ไม่ถูกต้อง | U104: 0 | V104: 0 | X104: 0 | Y104: 0 | Z104: 0 | AA104: 0 | AB104: ='1.ข้อมูลส่วนบุคคล'!G$32 -> 2560-05-15 | AC104: 25600515 | AD104: 00:00:00 | AE104: 19000100 | AF104: -6600415 | AG104: 0 | AH104: 0 | AI104: 0 | AJ104: 0 | AK104: 0 | AL104: ไม่ถูกต้อง | AP104: =IFERROR(VLOOKUP(AO104,'2.การมอบหมายงานสอน'!$AI$5:$AJ$24,2,FALSE),0) -> 0
A105: ='1.ข้อมูลส่วนบุคคล'!$F$5 -> 1234567891234 | K105: =IF('1.ข้อมูลส่วนบุคคล'!C$21="เชี่ยวชาญ",IF(H105="-","",IF(H105='1.ข้อมูลส่วนบุคคล'!F$26,"เกี่ยวข้อง","ไม่เกี่ยวข้อง")),IF('1.ข้อมูลส่วนบุคคล'!C$21="เชี่ยวชาญพิเศษ",IF(H105="-","",IF(H105='1.ข้อมูลส่วนบุคคล'!F$26,"เกี่ยวข้อง","ไม่เกี่ยวข้อง")),"")) ->  | O105: สอนตามตารางสอน | Q105: ไม่ถูกต้อง | U105: 0 | V105: 0 | X105: 0 | Y105: 0 | Z105: 0 | AA105: 0 | AB105: ='1.ข้อมูลส่วนบุคคล'!G$32 -> 2560-05-15 | AC105: 25600515 | AD105: 00:00:00 | AE105: 19000100 | AF105: -6600415 | AG105: 0 | AH105: 0 | AI105: 0 | AJ105: 0 | AK105: 0 | AL105: ไม่ถูกต้อง | AP105: =IFERROR(VLOOKUP(AO105,'2.การมอบหมายงานสอน'!$AI$5:$AJ$24,2,FALSE),0) -> 0
A106: ='1.ข้อมูลส่วนบุคคล'!$F$5 -> 1234567891234 | K106: =IF('1.ข้อมูลส่วนบุคคล'!C$21="เชี่ยวชาญ",IF(H106="-","",IF(H106='1.ข้อมูลส่วนบุคคล'!F$26,"เกี่ยวข้อง","ไม่เกี่ยวข้อง")),IF('1.ข้อมูลส่วนบุคคล'!C$21="เชี่ยวชาญพิเศษ",IF(H106="-","",IF(H106='1.ข้อมูลส่วนบุคคล'!F$26,"เกี่ยวข้อง","ไม่เกี่ยวข้อง")),"")) ->  | O106: สอนตามตารางสอน | Q106: ไม่ถูกต้อง | U106: 0 | V106: 0 | X106: 0 | Y106: 0 | Z106: 0 | AA106: 0 | AB106: ='1.ข้อมูลส่วนบุคคล'!G$32 -> 2560-05-15 | AC106: 25600515 | AD106: 00:00:00 | AE106: 19000100 | AF106: -6600415 | AG106: 0 | AH106: 0 | AI106: 0 | AJ106: 0 | AK106: 0 | AL106: ไม่ถูกต้อง | AP106: =IFERROR(VLOOKUP(AO106,'2.การมอบหมายงานสอน'!$AI$5:$AJ$24,2,FALSE),0) -> 0
A107: ='1.ข้อมูลส่วนบุคคล'!$F$5 -> 1234567891234 | K107: =IF('1.ข้อมูลส่วนบุคคล'!C$21="เชี่ยวชาญ",IF(H107="-","",IF(H107='1.ข้อมูลส่วนบุคคล'!F$26,"เกี่ยวข้อง","ไม่เกี่ยวข้อง")),IF('1.ข้อมูลส่วนบุคคล'!C$21="เชี่ยวชาญพิเศษ",IF(H107="-","",IF(H107='1.ข้อมูลส่วนบุคคล'!F$26,"เกี่ยวข้อง","ไม่เกี่ยวข้อง")),"")) ->  | O107: สอนตามตารางสอน | Q107: ไม่ถูกต้อง | U107: 0 | V107: 0 | X107: 0 | Y107: 0 | Z107: 0 | AA107: 0 | AB107: ='1.ข้อมูลส่วนบุคคล'!G$32 -> 2560-05-15 | AC107: 25600515 | AD107: 00:00:00 | AE107: 19000100 | AF107: -6600415 | AG107: 0 | AH107: 0 | AI107: 0 | AJ107: 0 | AK107: 0 | AL107: ไม่ถูกต้อง | AP107: =IFERROR(VLOOKUP(AO107,'2.การมอบหมายงานสอน'!$AI$5:$AJ$24,2,FALSE),0) -> 0
A108: ='1.ข้อมูลส่วนบุคคล'!$F$5 -> 1234567891234 | K108: =IF('1.ข้อมูลส่วนบุคคล'!C$21="เชี่ยวชาญ",IF(H108="-","",IF(H108='1.ข้อมูลส่วนบุคคล'!F$26,"เกี่ยวข้อง","ไม่เกี่ยวข้อง")),IF('1.ข้อมูลส่วนบุคคล'!C$21="เชี่ยวชาญพิเศษ",IF(H108="-","",IF(H108='1.ข้อมูลส่วนบุคคล'!F$26,"เกี่ยวข้อง","ไม่เกี่ยวข้อง")),"")) ->  | O108: สอนตามตารางสอน | Q108: ไม่ถูกต้อง | U108: 0 | V108: 0 | X108: 0 | Y108: 0 | Z108: 0 | AA108: 0 | AB108: ='1.ข้อมูลส่วนบุคคล'!G$32 -> 2560-05-15 | AC108: 25600515 | AD108: 00:00:00 | AE108: 19000100 | AF108: -6600415 | AG108: 0 | AH108: 0 | AI108: 0 | AJ108: 0 | AK108: 0 | AL108: ไม่ถูกต้อง | AP108: =IFERROR(VLOOKUP(AO108,'2.การมอบหมายงานสอน'!$AI$5:$AJ$24,2,FALSE),0) -> 0
A109: ='1.ข้อมูลส่วนบุคคล'!$F$5 -> 1234567891234 | K109: =IF('1.ข้อมูลส่วนบุคคล'!C$21="เชี่ยวชาญ",IF(H109="-","",IF(H109='1.ข้อมูลส่วนบุคคล'!F$26,"เกี่ยวข้อง","ไม่เกี่ยวข้อง")),IF('1.ข้อมูลส่วนบุคคล'!C$21="เชี่ยวชาญพิเศษ",IF(H109="-","",IF(H109='1.ข้อมูลส่วนบุคคล'!F$26,"เกี่ยวข้อง","ไม่เกี่ยวข้อง")),"")) ->  | O109: สอนตามตารางสอน | Q109: ไม่ถูกต้อง | U109: 0 | V109: 0 | X109: 0 | Y109: 0 | Z109: 0 | AA109: 0 | AB109: ='1.ข้อมูลส่วนบุคคล'!G$32 -> 2560-05-15 | AC109: 25600515 | AD109: 00:00:00 | AE109: 19000100 | AF109: -6600415 | AG109: 0 | AH109: 0 | AI109: 0 | AJ109: 0 | AK109: 0 | AL109: ไม่ถูกต้อง | AP109: =IFERROR(VLOOKUP(AO109,'2.การมอบหมายงานสอน'!$AI$5:$AJ$24,2,FALSE),0) -> 0
A110: ='1.ข้อมูลส่วนบุคคล'!$F$5 -> 1234567891234 | K110: =IF('1.ข้อมูลส่วนบุคคล'!C$21="เชี่ยวชาญ",IF(H110="-","",IF(H110='1.ข้อมูลส่วนบุคคล'!F$26,"เกี่ยวข้อง","ไม่เกี่ยวข้อง")),IF('1.ข้อมูลส่วนบุคคล'!C$21="เชี่ยวชาญพิเศษ",IF(H110="-","",IF(H110='1.ข้อมูลส่วนบุคคล'!F$26,"เกี่ยวข้อง","ไม่เกี่ยวข้อง")),"")) ->  | O110: สอนตามตารางสอน | Q110: ไม่ถูกต้อง | U110: 0 | V110: 0 | X110: 0 | Y110: 0 | Z110: 0 | AA110: 0 | AB110: ='1.ข้อมูลส่วนบุคคล'!G$32 -> 2560-05-15 | AC110: 25600515 | AD110: 00:00:00 | AE110: 19000100 | AF110: -6600415 | AG110: 0 | AH110: 0 | AI110: 0 | AJ110: 0 | AK110: 0 | AL110: ไม่ถูกต้อง | AP110: =IFERROR(VLOOKUP(AO110,'2.การมอบหมายงานสอน'!$AI$5:$AJ$24,2,FALSE),0) -> 0
A111: ='1.ข้อมูลส่วนบุคคล'!$F$5 -> 1234567891234 | K111: =IF('1.ข้อมูลส่วนบุคคล'!C$21="เชี่ยวชาญ",IF(H111="-","",IF(H111='1.ข้อมูลส่วนบุคคล'!F$26,"เกี่ยวข้อง","ไม่เกี่ยวข้อง")),IF('1.ข้อมูลส่วนบุคคล'!C$21="เชี่ยวชาญพิเศษ",IF(H111="-","",IF(H111='1.ข้อมูลส่วนบุคคล'!F$26,"เกี่ยวข้อง","ไม่เกี่ยวข้อง")),"")) ->  | O111: สอนตามตารางสอน | Q111: ไม่ถูกต้อง | U111: 0 | V111: 0 | X111: 0 | Y111: 0 | Z111: 0 | AA111: 0 | AB111: ='1.ข้อมูลส่วนบุคคล'!G$32 -> 2560-05-15 | AC111: 25600515 | AD111: 00:00:00 | AE111: 19000100 | AF111: -6600415 | AG111: 0 | AH111: 0 | AI111: 0 | AJ111: 0 | AK111: 0 | AL111: ไม่ถูกต้อง | AP111: =IFERROR(VLOOKUP(AO111,'2.การมอบหมายงานสอน'!$AI$5:$AJ$24,2,FALSE),0) -> 0
A112: ='1.ข้อมูลส่วนบุคคล'!$F$5 -> 1234567891234 | K112: =IF('1.ข้อมูลส่วนบุคคล'!C$21="เชี่ยวชาญ",IF(H112="-","",IF(H112='1.ข้อมูลส่วนบุคคล'!F$26,"เกี่ยวข้อง","ไม่เกี่ยวข้อง")),IF('1.ข้อมูลส่วนบุคคล'!C$21="เชี่ยวชาญพิเศษ",IF(H112="-","",IF(H112='1.ข้อมูลส่วนบุคคล'!F$26,"เกี่ยวข้อง","ไม่เกี่ยวข้อง")),"")) ->  | O112: สอนตามตารางสอน | Q112: ไม่ถูกต้อง | U112: 0 | V112: 0 | X112: 0 | Y112: 0 | Z112: 0 | AA112: 0 | AB112: ='1.ข้อมูลส่วนบุคคล'!G$32 -> 2560-05-15 | AC112: 25600515 | AD112: 00:00:00 | AE112: 19000100 | AF112: -6600415 | AG112: 0 | AH112: 0 | AI112: 0 | AJ112: 0 | AK112: 0 | AL112: ไม่ถูกต้อง | AP112: =IFERROR(VLOOKUP(AO112,'2.การมอบหมายงานสอน'!$AI$5:$AJ$24,2,FALSE),0) -> 0
A113: ='1.ข้อมูลส่วนบุคคล'!$F$5 -> 1234567891234 | K113: =IF('1.ข้อมูลส่วนบุคคล'!C$21="เชี่ยวชาญ",IF(H113="-","",IF(H113='1.ข้อมูลส่วนบุคคล'!F$26,"เกี่ยวข้อง","ไม่เกี่ยวข้อง")),IF('1.ข้อมูลส่วนบุคคล'!C$21="เชี่ยวชาญพิเศษ",IF(H113="-","",IF(H113='1.ข้อมูลส่วนบุคคล'!F$26,"เกี่ยวข้อง","ไม่เกี่ยวข้อง")),"")) ->  | O113: สอนตามตารางสอน | Q113: ไม่ถูกต้อง | U113: 0 | V113: 0 | X113: 0 | Y113: 0 | Z113: 0 | AA113: 0 | AB113: ='1.ข้อมูลส่วนบุคคล'!G$32 -> 2560-05-15 | AC113: 25600515 | AD113: 00:00:00 | AE113: 19000100 | AF113: -6600415 | AG113: 0 | AH113: 0 | AI113: 0 | AJ113: 0 | AK113: 0 | AL113: ไม่ถูกต้อง | AP113: =IFERROR(VLOOKUP(AO113,'2.การมอบหมายงานสอน'!$AI$5:$AJ$24,2,FALSE),0) -> 0
A114: ='1.ข้อมูลส่วนบุคคล'!$F$5 -> 1234567891234 | K114: =IF('1.ข้อมูลส่วนบุคคล'!C$21="เชี่ยวชาญ",IF(H114="-","",IF(H114='1.ข้อมูลส่วนบุคคล'!F$26,"เกี่ยวข้อง","ไม่เกี่ยวข้อง")),IF('1.ข้อมูลส่วนบุคคล'!C$21="เชี่ยวชาญพิเศษ",IF(H114="-","",IF(H114='1.ข้อมูลส่วนบุคคล'!F$26,"เกี่ยวข้อง","ไม่เกี่ยวข้อง")),"")) ->  | O114: สอนตามตารางสอน | Q114: ไม่ถูกต้อง | U114: 0 | V114: 0 | X114: 0 | Y114: 0 | Z114: 0 | AA114: 0 | AB114: ='1.ข้อมูลส่วนบุคคล'!G$32 -> 2560-05-15 | AC114: 25600515 | AD114: 00:00:00 | AE114: 19000100 | AF114: -6600415 | AG114: 0 | AH114: 0 | AI114: 0 | AJ114: 0 | AK114: 0 | AL114: ไม่ถูกต้อง | AP114: =IFERROR(VLOOKUP(AO114,'2.การมอบหมายงานสอน'!$AI$5:$AJ$24,2,FALSE),0) -> 0
A115: ='1.ข้อมูลส่วนบุคคล'!$F$5 -> 1234567891234 | K115: =IF('1.ข้อมูลส่วนบุคคล'!C$21="เชี่ยวชาญ",IF(H115="-","",IF(H115='1.ข้อมูลส่วนบุคคล'!F$26,"เกี่ยวข้อง","ไม่เกี่ยวข้อง")),IF('1.ข้อมูลส่วนบุคคล'!C$21="เชี่ยวชาญพิเศษ",IF(H115="-","",IF(H115='1.ข้อมูลส่วนบุคคล'!F$26,"เกี่ยวข้อง","ไม่เกี่ยวข้อง")),"")) ->  | O115: สอนตามตารางสอน | Q115: ไม่ถูกต้อง | U115: 0 | V115: 0 | X115: 0 | Y115: 0 | Z115: 0 | AA115: 0 | AB115: ='1.ข้อมูลส่วนบุคคล'!G$32 -> 2560-05-15 | AC115: 25600515 | AD115: 00:00:00 | AE115: 19000100 | AF115: -6600415 | AG115: 0 | AH115: 0 | AI115: 0 | AJ115: 0 | AK115: 0 | AL115: ไม่ถูกต้อง | AP115: =IFERROR(VLOOKUP(AO115,'2.การมอบหมายงานสอน'!$AI$5:$AJ$24,2,FALSE),0) -> 0
A116: ='1.ข้อมูลส่วนบุคคล'!$F$5 -> 1234567891234 | K116: =IF('1.ข้อมูลส่วนบุคคล'!C$21="เชี่ยวชาญ",IF(H116="-","",IF(H116='1.ข้อมูลส่วนบุคคล'!F$26,"เกี่ยวข้อง","ไม่เกี่ยวข้อง")),IF('1.ข้อมูลส่วนบุคคล'!C$21="เชี่ยวชาญพิเศษ",IF(H116="-","",IF(H116='1.ข้อมูลส่วนบุคคล'!F$26,"เกี่ยวข้อง","ไม่เกี่ยวข้อง")),"")) ->  | O116: สอนตามตารางสอน | Q116: ไม่ถูกต้อง | U116: 0 | V116: 0 | X116: 0 | Y116: 0 | Z116: 0 | AA116: 0 | AB116: ='1.ข้อมูลส่วนบุคคล'!G$32 -> 2560-05-15 | AC116: 25600515 | AD116: 00:00:00 | AE116: 19000100 | AF116: -6600415 | AG116: 0 | AH116: 0 | AI116: 0 | AJ116: 0 | AK116: 0 | AL116: ไม่ถูกต้อง | AP116: =IFERROR(VLOOKUP(AO116,'2.การมอบหมายงานสอน'!$AI$5:$AJ$24,2,FALSE),0) -> 0
A117: ='1.ข้อมูลส่วนบุคคล'!$F$5 -> 1234567891234 | K117: =IF('1.ข้อมูลส่วนบุคคล'!C$21="เชี่ยวชาญ",IF(H117="-","",IF(H117='1.ข้อมูลส่วนบุคคล'!F$26,"เกี่ยวข้อง","ไม่เกี่ยวข้อง")),IF('1.ข้อมูลส่วนบุคคล'!C$21="เชี่ยวชาญพิเศษ",IF(H117="-","",IF(H117='1.ข้อมูลส่วนบุคคล'!F$26,"เกี่ยวข้อง","ไม่เกี่ยวข้อง")),"")) ->  | O117: สอนตามตารางสอน | Q117: ไม่ถูกต้อง | T117: =B117&+E117 ->  | U117: 0 | V117: 0 | X117: 0 | Y117: 0 | Z117: 0 | AA117: 0 | AB117: ='1.ข้อมูลส่วนบุคคล'!G$32 -> 2560-05-15 | AC117: 25600515 | AD117: 00:00:00 | AE117: 19000100 | AF117: -6600415 | AG117: 0 | AH117: 0 | AI117: 0 | AJ117: 0 | AK117: 0 | AL117: ไม่ถูกต้อง | AP117: =IFERROR(VLOOKUP(AO117,'2.การมอบหมายงานสอน'!$AI$5:$AJ$24,2,FALSE),0) -> 0
A118: ='1.ข้อมูลส่วนบุคคล'!$F$5 -> 1234567891234 | K118: =IF('1.ข้อมูลส่วนบุคคล'!C$21="เชี่ยวชาญ",IF(H118="-","",IF(H118='1.ข้อมูลส่วนบุคคล'!F$26,"เกี่ยวข้อง","ไม่เกี่ยวข้อง")),IF('1.ข้อมูลส่วนบุคคล'!C$21="เชี่ยวชาญพิเศษ",IF(H118="-","",IF(H118='1.ข้อมูลส่วนบุคคล'!F$26,"เกี่ยวข้อง","ไม่เกี่ยวข้อง")),"")) ->  | O118: สอนตามตารางสอน | Q118: ไม่ถูกต้อง | U118: 0 | V118: 0 | X118: 0 | Y118: 0 | Z118: 0 | AA118: 0 | AB118: ='1.ข้อมูลส่วนบุคคล'!G$32 -> 2560-05-15 | AC118: 25600515 | AD118: 00:00:00 | AE118: 19000100 | AF118: -6600415 | AG118: 0 | AH118: 0 | AI118: 0 | AJ118: 0 | AK118: 0 | AL118: ไม่ถูกต้อง | AP118: =IFERROR(VLOOKUP(AO118,'2.การมอบหมายงานสอน'!$AI$5:$AJ$24,2,FALSE),0) -> 0
A119: ='1.ข้อมูลส่วนบุคคล'!$F$5 -> 1234567891234 | K119: =IF('1.ข้อมูลส่วนบุคคล'!C$21="เชี่ยวชาญ",IF(H119="-","",IF(H119='1.ข้อมูลส่วนบุคคล'!F$26,"เกี่ยวข้อง","ไม่เกี่ยวข้อง")),IF('1.ข้อมูลส่วนบุคคล'!C$21="เชี่ยวชาญพิเศษ",IF(H119="-","",IF(H119='1.ข้อมูลส่วนบุคคล'!F$26,"เกี่ยวข้อง","ไม่เกี่ยวข้อง")),"")) ->  | O119: สอนตามตารางสอน | Q119: ไม่ถูกต้อง | U119: 0 | V119: 0 | X119: 0 | Y119: 0 | Z119: 0 | AA119: 0 | AB119: ='1.ข้อมูลส่วนบุคคล'!G$32 -> 2560-05-15 | AC119: 25600515 | AD119: 00:00:00 | AE119: 19000100 | AF119: -6600415 | AG119: 0 | AH119: 0 | AI119: 0 | AJ119: 0 | AK119: 0 | AL119: ไม่ถูกต้อง | AP119: =IFERROR(VLOOKUP(AO119,'2.การมอบหมายงานสอน'!$AI$5:$AJ$24,2,FALSE),0) -> 0
A120: ='1.ข้อมูลส่วนบุคคล'!$F$5 -> 1234567891234 | K120: =IF('1.ข้อมูลส่วนบุคคล'!C$21="เชี่ยวชาญ",IF(H120="-","",IF(H120='1.ข้อมูลส่วนบุคคล'!F$26,"เกี่ยวข้อง","ไม่เกี่ยวข้อง")),IF('1.ข้อมูลส่วนบุคคล'!C$21="เชี่ยวชาญพิเศษ",IF(H120="-","",IF(H120='1.ข้อมูลส่วนบุคคล'!F$26,"เกี่ยวข้อง","ไม่เกี่ยวข้อง")),"")) ->  | O120: สอนตามตารางสอน | Q120: ไม่ถูกต้อง | U120: 0 | V120: 0 | X120: 0 | Y120: 0 | Z120: 0 | AA120: 0 | AB120: ='1.ข้อมูลส่วนบุคคล'!G$32 -> 2560-05-15 | AC120: 25600515 | AD120: 00:00:00 | AE120: 19000100 | AF120: -6600415 | AG120: 0 | AH120: 0 | AI120: 0 | AJ120: 0 | AK120: 0 | AL120: ไม่ถูกต้อง | AP120: =IFERROR(VLOOKUP(AO120,'2.การมอบหมายงานสอน'!$AI$5:$AJ$24,2,FALSE),0) -> 0
A121: ='1.ข้อมูลส่วนบุคคล'!$F$5 -> 1234567891234 | K121: =IF('1.ข้อมูลส่วนบุคคล'!C$21="เชี่ยวชาญ",IF(H121="-","",IF(H121='1.ข้อมูลส่วนบุคคล'!F$26,"เกี่ยวข้อง","ไม่เกี่ยวข้อง")),IF('1.ข้อมูลส่วนบุคคล'!C$21="เชี่ยวชาญพิเศษ",IF(H121="-","",IF(H121='1.ข้อมูลส่วนบุคคล'!F$26,"เกี่ยวข้อง","ไม่เกี่ยวข้อง")),"")) ->  | O121: สอนตามตารางสอน | Q121: ไม่ถูกต้อง | U121: 0 | V121: 0 | X121: 0 | Y121: 0 | Z121: 0 | AA121: 0 | AB121: ='1.ข้อมูลส่วนบุคคล'!G$32 -> 2560-05-15 | AC121: 25600515 | AD121: 00:00:00 | AE121: 19000100 | AF121: -6600415 | AG121: 0 | AH121: 0 | AI121: 0 | AJ121: 0 | AK121: 0 | AL121: ไม่ถูกต้อง | AP121: =IFERROR(VLOOKUP(AO121,'2.การมอบหมายงานสอน'!$AI$5:$AJ$24,2,FALSE),0) -> 0
A122: ='1.ข้อมูลส่วนบุคคล'!$F$5 -> 1234567891234 | K122: =IF('1.ข้อมูลส่วนบุคคล'!C$21="เชี่ยวชาญ",IF(H122="-","",IF(H122='1.ข้อมูลส่วนบุคคล'!F$26,"เกี่ยวข้อง","ไม่เกี่ยวข้อง")),IF('1.ข้อมูลส่วนบุคคล'!C$21="เชี่ยวชาญพิเศษ",IF(H122="-","",IF(H122='1.ข้อมูลส่วนบุคคล'!F$26,"เกี่ยวข้อง","ไม่เกี่ยวข้อง")),"")) ->  | O122: สอนตามตารางสอน | Q122: ไม่ถูกต้อง | U122: 0 | V122: 0 | X122: 0 | Y122: 0 | Z122: 0 | AA122: 0 | AB122: ='1.ข้อมูลส่วนบุคคล'!G$32 -> 2560-05-15 | AC122: 25600515 | AD122: 00:00:00 | AE122: 19000100 | AF122: -6600415 | AG122: 0 | AH122: 0 | AI122: 0 | AJ122: 0 | AK122: 0 | AL122: ไม่ถูกต้อง | AP122: =IFERROR(VLOOKUP(AO122,'2.การมอบหมายงานสอน'!$AI$5:$AJ$24,2,FALSE),0) -> 0
A123: ='1.ข้อมูลส่วนบุคคล'!$F$5 -> 1234567891234 | K123: =IF('1.ข้อมูลส่วนบุคคล'!C$21="เชี่ยวชาญ",IF(H123="-","",IF(H123='1.ข้อมูลส่วนบุคคล'!F$26,"เกี่ยวข้อง","ไม่เกี่ยวข้อง")),IF('1.ข้อมูลส่วนบุคคล'!C$21="เชี่ยวชาญพิเศษ",IF(H123="-","",IF(H123='1.ข้อมูลส่วนบุคคล'!F$26,"เกี่ยวข้อง","ไม่เกี่ยวข้อง")),"")) ->  | O123: สอนตามตารางสอน | Q123: ไม่ถูกต้อง | U123: 0 | V123: 0 | X123: 0 | Y123: 0 | Z123: 0 | AA123: 0 | AB123: ='1.ข้อมูลส่วนบุคคล'!G$32 -> 2560-05-15 | AC123: 25600515 | AD123: 00:00:00 | AE123: 19000100 | AF123: -6600415 | AG123: 0 | AH123: 0 | AI123: 0 | AJ123: 0 | AK123: 0 | AL123: ไม่ถูกต้อง | AP123: =IFERROR(VLOOKUP(AO123,'2.การมอบหมายงานสอน'!$AI$5:$AJ$24,2,FALSE),0) -> 0
A124: ='1.ข้อมูลส่วนบุคคล'!$F$5 -> 1234567891234 | K124: =IF('1.ข้อมูลส่วนบุคคล'!C$21="เชี่ยวชาญ",IF(H124="-","",IF(H124='1.ข้อมูลส่วนบุคคล'!F$26,"เกี่ยวข้อง","ไม่เกี่ยวข้อง")),IF('1.ข้อมูลส่วนบุคคล'!C$21="เชี่ยวชาญพิเศษ",IF(H124="-","",IF(H124='1.ข้อมูลส่วนบุคคล'!F$26,"เกี่ยวข้อง","ไม่เกี่ยวข้อง")),"")) ->  | O124: สอนตามตารางสอน | Q124: ไม่ถูกต้อง | U124: 0 | V124: 0 | X124: 0 | Y124: 0 | Z124: 0 | AA124: 0 | AB124: ='1.ข้อมูลส่วนบุคคล'!G$32 -> 2560-05-15 | AC124: 25600515 | AD124: 00:00:00 | AE124: 19000100 | AF124: -6600415 | AG124: 0 | AH124: 0 | AI124: 0 | AJ124: 0 | AK124: 0 | AL124: ไม่ถูกต้อง | AP124: =IFERROR(VLOOKUP(AO124,'2.การมอบหมายงานสอน'!$AI$5:$AJ$24,2,FALSE),0) -> 0
A125: ='1.ข้อมูลส่วนบุคคล'!$F$5 -> 1234567891234 | K125: =IF('1.ข้อมูลส่วนบุคคล'!C$21="เชี่ยวชาญ",IF(H125="-","",IF(H125='1.ข้อมูลส่วนบุคคล'!F$26,"เกี่ยวข้อง","ไม่เกี่ยวข้อง")),IF('1.ข้อมูลส่วนบุคคล'!C$21="เชี่ยวชาญพิเศษ",IF(H125="-","",IF(H125='1.ข้อมูลส่วนบุคคล'!F$26,"เกี่ยวข้อง","ไม่เกี่ยวข้อง")),"")) ->  | O125: สอนตามตารางสอน | Q125: ไม่ถูกต้อง | U125: 0 | V125: 0 | X125: 0 | Y125: 0 | Z125: 0 | AA125: 0 | AB125: ='1.ข้อมูลส่วนบุคคล'!G$32 -> 2560-05-15 | AC125: 25600515 | AD125: 00:00:00 | AE125: 19000100 | AF125: -6600415 | AG125: 0 | AH125: 0 | AI125: 0 | AJ125: 0 | AK125: 0 | AL125: ไม่ถูกต้อง | AP125: =IFERROR(VLOOKUP(AO125,'2.การมอบหมายงานสอน'!$AI$5:$AJ$24,2,FALSE),0) -> 0
A126: ='1.ข้อมูลส่วนบุคคล'!$F$5 -> 1234567891234 | K126: =IF('1.ข้อมูลส่วนบุคคล'!C$21="เชี่ยวชาญ",IF(H126="-","",IF(H126='1.ข้อมูลส่วนบุคคล'!F$26,"เกี่ยวข้อง","ไม่เกี่ยวข้อง")),IF('1.ข้อมูลส่วนบุคคล'!C$21="เชี่ยวชาญพิเศษ",IF(H126="-","",IF(H126='1.ข้อมูลส่วนบุคคล'!F$26,"เกี่ยวข้อง","ไม่เกี่ยวข้อง")),"")) ->  | O126: สอนตามตารางสอน | Q126: ไม่ถูกต้อง | U126: 0 | V126: 0 | X126: 0 | Y126: 0 | Z126: 0 | AA126: 0 | AB126: ='1.ข้อมูลส่วนบุคคล'!G$32 -> 2560-05-15 | AC126: 25600515 | AD126: 00:00:00 | AE126: 19000100 | AF126: -6600415 | AG126: 0 | AH126: 0 | AI126: 0 | AJ126: 0 | AK126: 0 | AL126: ไม่ถูกต้อง | AP126: =IFERROR(VLOOKUP(AO126,'2.การมอบหมายงานสอน'!$AI$5:$AJ$24,2,FALSE),0) -> 0
A127: ='1.ข้อมูลส่วนบุคคล'!$F$5 -> 1234567891234 | K127: =IF('1.ข้อมูลส่วนบุคคล'!C$21="เชี่ยวชาญ",IF(H127="-","",IF(H127='1.ข้อมูลส่วนบุคคล'!F$26,"เกี่ยวข้อง","ไม่เกี่ยวข้อง")),IF('1.ข้อมูลส่วนบุคคล'!C$21="เชี่ยวชาญพิเศษ",IF(H127="-","",IF(H127='1.ข้อมูลส่วนบุคคล'!F$26,"เกี่ยวข้อง","ไม่เกี่ยวข้อง")),"")) ->  | O127: สอนตามตารางสอน | Q127: ไม่ถูกต้อง | U127: 0 | V127: 0 | X127: 0 | Y127: 0 | Z127: 0 | AA127: 0 | AB127: ='1.ข้อมูลส่วนบุคคล'!G$32 -> 2560-05-15 | AC127: 25600515 | AD127: 00:00:00 | AE127: 19000100 | AF127: -6600415 | AG127: 0 | AH127: 0 | AI127: 0 | AJ127: 0 | AK127: 0 | AL127: ไม่ถูกต้อง | AP127: =IFERROR(VLOOKUP(AO127,'2.การมอบหมายงานสอน'!$AI$5:$AJ$24,2,FALSE),0) -> 0
A128: ='1.ข้อมูลส่วนบุคคล'!$F$5 -> 1234567891234 | K128: =IF('1.ข้อมูลส่วนบุคคล'!C$21="เชี่ยวชาญ",IF(H128="-","",IF(H128='1.ข้อมูลส่วนบุคคล'!F$26,"เกี่ยวข้อง","ไม่เกี่ยวข้อง")),IF('1.ข้อมูลส่วนบุคคล'!C$21="เชี่ยวชาญพิเศษ",IF(H128="-","",IF(H128='1.ข้อมูลส่วนบุคคล'!F$26,"เกี่ยวข้อง","ไม่เกี่ยวข้อง")),"")) ->  | O128: สอนตามตารางสอน | Q128: ไม่ถูกต้อง | U128: 0 | V128: 0 | X128: 0 | Y128: 0 | Z128: 0 | AA128: 0 | AB128: ='1.ข้อมูลส่วนบุคคล'!G$32 -> 2560-05-15 | AC128: 25600515 | AD128: 00:00:00 | AE128: 19000100 | AF128: -6600415 | AG128: 0 | AH128: 0 | AI128: 0 | AJ128: 0 | AK128: 0 | AL128: ไม่ถูกต้อง | AP128: =IFERROR(VLOOKUP(AO128,'2.การมอบหมายงานสอน'!$AI$5:$AJ$24,2,FALSE),0) -> 0
A129: ='1.ข้อมูลส่วนบุคคล'!$F$5 -> 1234567891234 | K129: =IF('1.ข้อมูลส่วนบุคคล'!C$21="เชี่ยวชาญ",IF(H129="-","",IF(H129='1.ข้อมูลส่วนบุคคล'!F$26,"เกี่ยวข้อง","ไม่เกี่ยวข้อง")),IF('1.ข้อมูลส่วนบุคคล'!C$21="เชี่ยวชาญพิเศษ",IF(H129="-","",IF(H129='1.ข้อมูลส่วนบุคคล'!F$26,"เกี่ยวข้อง","ไม่เกี่ยวข้อง")),"")) ->  | O129: สอนตามตารางสอน | Q129: ไม่ถูกต้อง | U129: 0 | V129: 0 | X129: 0 | Y129: 0 | Z129: 0 | AA129: 0 | AB129: ='1.ข้อมูลส่วนบุคคล'!G$32 -> 2560-05-15 | AC129: 25600515 | AD129: 00:00:00 | AE129: 19000100 | AF129: -6600415 | AG129: 0 | AH129: 0 | AI129: 0 | AJ129: 0 | AK129: 0 | AL129: ไม่ถูกต้อง | AP129: =IFERROR(VLOOKUP(AO129,'2.การมอบหมายงานสอน'!$AI$5:$AJ$24,2,FALSE),0) -> 0
A130: ='1.ข้อมูลส่วนบุคคล'!$F$5 -> 1234567891234 | K130: =IF('1.ข้อมูลส่วนบุคคล'!C$21="เชี่ยวชาญ",IF(H130="-","",IF(H130='1.ข้อมูลส่วนบุคคล'!F$26,"เกี่ยวข้อง","ไม่เกี่ยวข้อง")),IF('1.ข้อมูลส่วนบุคคล'!C$21="เชี่ยวชาญพิเศษ",IF(H130="-","",IF(H130='1.ข้อมูลส่วนบุคคล'!F$26,"เกี่ยวข้อง","ไม่เกี่ยวข้อง")),"")) ->  | O130: สอนตามตารางสอน | Q130: ไม่ถูกต้อง | U130: 0 | V130: 0 | X130: 0 | Y130: 0 | Z130: 0 | AA130: 0 | AB130: ='1.ข้อมูลส่วนบุคคล'!G$32 -> 2560-05-15 | AC130: 25600515 | AD130: 00:00:00 | AE130: 19000100 | AF130: -6600415 | AG130: 0 | AH130: 0 | AI130: 0 | AJ130: 0 | AK130: 0 | AL130: ไม่ถูกต้อง | AP130: =IFERROR(VLOOKUP(AO130,'2.การมอบหมายงานสอน'!$AI$5:$AJ$24,2,FALSE),0) -> 0
A131: ='1.ข้อมูลส่วนบุคคล'!$F$5 -> 1234567891234 | K131: =IF('1.ข้อมูลส่วนบุคคล'!C$21="เชี่ยวชาญ",IF(H131="-","",IF(H131='1.ข้อมูลส่วนบุคคล'!F$26,"เกี่ยวข้อง","ไม่เกี่ยวข้อง")),IF('1.ข้อมูลส่วนบุคคล'!C$21="เชี่ยวชาญพิเศษ",IF(H131="-","",IF(H131='1.ข้อมูลส่วนบุคคล'!F$26,"เกี่ยวข้อง","ไม่เกี่ยวข้อง")),"")) ->  | O131: สอนตามตารางสอน | Q131: ไม่ถูกต้อง | U131: 0 | V131: 0 | X131: 0 | Y131: 0 | Z131: 0 | AA131: 0 | AB131: ='1.ข้อมูลส่วนบุคคล'!G$32 -> 2560-05-15 | AC131: 25600515 | AD131: 00:00:00 | AE131: 19000100 | AF131: -6600415 | AG131: 0 | AH131: 0 | AI131: 0 | AJ131: 0 | AK131: 0 | AL131: ไม่ถูกต้อง | AP131: =IFERROR(VLOOKUP(AO131,'2.การมอบหมายงานสอน'!$AI$5:$AJ$24,2,FALSE),0) -> 0
A132: ='1.ข้อมูลส่วนบุคคล'!$F$5 -> 1234567891234 | K132: =IF('1.ข้อมูลส่วนบุคคล'!C$21="เชี่ยวชาญ",IF(H132="-","",IF(H132='1.ข้อมูลส่วนบุคคล'!F$26,"เกี่ยวข้อง","ไม่เกี่ยวข้อง")),IF('1.ข้อมูลส่วนบุคคล'!C$21="เชี่ยวชาญพิเศษ",IF(H132="-","",IF(H132='1.ข้อมูลส่วนบุคคล'!F$26,"เกี่ยวข้อง","ไม่เกี่ยวข้อง")),"")) ->  | O132: สอนตามตารางสอน | Q132: ไม่ถูกต้อง | U132: 0 | V132: 0 | X132: 0 | Y132: 0 | Z132: 0 | AA132: 0 | AB132: ='1.ข้อมูลส่วนบุคคล'!G$32 -> 2560-05-15 | AC132: 25600515 | AD132: 00:00:00 | AE132: 19000100 | AF132: -6600415 | AG132: 0 | AH132: 0 | AI132: 0 | AJ132: 0 | AK132: 0 | AL132: ไม่ถูกต้อง | AP132: =IFERROR(VLOOKUP(AO132,'2.การมอบหมายงานสอน'!$AI$5:$AJ$24,2,FALSE),0) -> 0
A133: ='1.ข้อมูลส่วนบุคคล'!$F$5 -> 1234567891234 | K133: =IF('1.ข้อมูลส่วนบุคคล'!C$21="เชี่ยวชาญ",IF(H133="-","",IF(H133='1.ข้อมูลส่วนบุคคล'!F$26,"เกี่ยวข้อง","ไม่เกี่ยวข้อง")),IF('1.ข้อมูลส่วนบุคคล'!C$21="เชี่ยวชาญพิเศษ",IF(H133="-","",IF(H133='1.ข้อมูลส่วนบุคคล'!F$26,"เกี่ยวข้อง","ไม่เกี่ยวข้อง")),"")) ->  | O133: สอนตามตารางสอน | Q133: ไม่ถูกต้อง | U133: 0 | V133: 0 | X133: 0 | Y133: 0 | Z133: 0 | AA133: 0 | AB133: ='1.ข้อมูลส่วนบุคคล'!G$32 -> 2560-05-15 | AC133: 25600515 | AD133: 00:00:00 | AE133: 19000100 | AF133: -6600415 | AG133: 0 | AH133: 0 | AI133: 0 | AJ133: 0 | AK133: 0 | AL133: ไม่ถูกต้อง | AP133: =IFERROR(VLOOKUP(AO133,'2.การมอบหมายงานสอน'!$AI$5:$AJ$24,2,FALSE),0) -> 0
A134: ='1.ข้อมูลส่วนบุคคล'!$F$5 -> 1234567891234 | K134: =IF('1.ข้อมูลส่วนบุคคล'!C$21="เชี่ยวชาญ",IF(H134="-","",IF(H134='1.ข้อมูลส่วนบุคคล'!F$26,"เกี่ยวข้อง","ไม่เกี่ยวข้อง")),IF('1.ข้อมูลส่วนบุคคล'!C$21="เชี่ยวชาญพิเศษ",IF(H134="-","",IF(H134='1.ข้อมูลส่วนบุคคล'!F$26,"เกี่ยวข้อง","ไม่เกี่ยวข้อง")),"")) ->  | O134: สอนตามตารางสอน | Q134: ไม่ถูกต้อง | U134: 0 | V134: 0 | X134: 0 | Y134: 0 | Z134: 0 | AA134: 0 | AB134: ='1.ข้อมูลส่วนบุคคล'!G$32 -> 2560-05-15 | AC134: 25600515 | AD134: 00:00:00 | AE134: 19000100 | AF134: -6600415 | AG134: 0 | AH134: 0 | AI134: 0 | AJ134: 0 | AK134: 0 | AL134: ไม่ถูกต้อง | AP134: =IFERROR(VLOOKUP(AO134,'2.การมอบหมายงานสอน'!$AI$5:$AJ$24,2,FALSE),0) -> 0
A135: ='1.ข้อมูลส่วนบุคคล'!$F$5 -> 1234567891234 | K135: =IF('1.ข้อมูลส่วนบุคคล'!C$21="เชี่ยวชาญ",IF(H135="-","",IF(H135='1.ข้อมูลส่วนบุคคล'!F$26,"เกี่ยวข้อง","ไม่เกี่ยวข้อง")),IF('1.ข้อมูลส่วนบุคคล'!C$21="เชี่ยวชาญพิเศษ",IF(H135="-","",IF(H135='1.ข้อมูลส่วนบุคคล'!F$26,"เกี่ยวข้อง","ไม่เกี่ยวข้อง")),"")) ->  | O135: สอนตามตารางสอน | Q135: ไม่ถูกต้อง | S135: =C135&+D135&+E135&+J135&+LEFT(I135,20) ->  | U135: =IF(LEFT(Q135,3)="ไม่",0,IF(L135="","",B135)) -> 0 | V135: =IF(K135="เกี่ยวข้อง",1,0) -> 0 | X135: =IF(Q135="ไม่ถูกต้อง",0,IF(N135="นาที",(L135*M135)/60,L135*M135)) -> 0 | Y135: 0 | Z135: 0 | AA135: 0 | AB135: ='1.ข้อมูลส่วนบุคคล'!G$32 -> 2560-05-15 | AC135: 25600515 | AD135: =F135 -> 00:00:00 | AE135: 19000100 | AF135: -6600415 | AG135: 0 | AH135: 0 | AI135: =IF(O135="สอนซ่อมเสริม",Z135,0) -> 0 | AJ135: 0 | AK135: =IF(O135="สอนซ่อมเสริม",1,0) -> 0 | AL135: =B135&+D135&+E135&+Q135 -> ไม่ถูกต้อง | AM135: =C135&+D135 ->  | AN135: =C135&+E135 ->  | AP135: =IFERROR(VLOOKUP(AO135,'2.การมอบหมายงานสอน'!$AI$5:$AJ$24,2,FALSE),0) -> 0
A136: ='1.ข้อมูลส่วนบุคคล'!$F$5 -> 1234567891234 | B136: =IF(AF136<0,"",IF(DATEDIF(AB136,AD136,"y")+(DATEDIF(AB136,AD136,"ym")/10)<=1,1,IF(DATEDIF(AB136,AD136,"y")+(DATEDIF(AB136,AD136,"ym")/10)<=2,2,IF(DATEDIF(AB136,AD136,"y")+(DATEDIF(AB136,AD136,"ym")/10)<=3,3,IF(DATEDIF(AB136,AD136,"y")+(DATEDIF(AB136,AD136,"ym")/10)<=4,4,IF(DATEDIF(AB136,AD136,"y")+(DATEDIF(AB136,AD136,"ym")/10)<=5,5,IF(DATEDIF(AB136,AD136,"y")+(DATEDIF(AB136,AD136,"ym")/10)<=6,6,IF(DATEDIF(AB136,AD136,"y")+(DATEDIF(AB136,AD136,"ym")/10)<=7,7,IF(DATEDIF(AB136,AD136,"y")+(DATEDIF(AB136,AD136,"ym")/10)<=8,8,IF(DATEDIF(AB136,AD136,"y")+(DATEDIF(AB136,AD136,"ym")/10)<=9,9,IF(DATEDIF(AB136,AD136,"y")+(DATEDIF(AB136,AD136,"ym")/10)<=10,10,"ไม่ถูกต้อง"))))))))))) ->  | K136: =IF('1.ข้อมูลส่วนบุคคล'!C$21="เชี่ยวชาญ",IF(H136="-","",IF(H136='1.ข้อมูลส่วนบุคคล'!F$26,"เกี่ยวข้อง","ไม่เกี่ยวข้อง")),IF('1.ข้อมูลส่วนบุคคล'!C$21="เชี่ยวชาญพิเศษ",IF(H136="-","",IF(H136='1.ข้อมูลส่วนบุคคล'!F$26,"เกี่ยวข้อง","ไม่เกี่ยวข้อง")),"")) ->  | O136: สอนตามตารางสอน | Q136: ไม่ถูกต้อง | R136: =S136 ->  | U136: 0 | V136: 0 | X136: 0 | Y136: 0 | Z136: =ROUNDDOWN(X136,0)+Y136 -> 0 | AA136: =IF(ISBLANK(E136),0,IF(ISBLANK(D136),IF(AND(C136=C135,E136=E135),0,IF(AND(C136=C135,E136=(E135+1)),0,IF(AND(C136=(C135+1),E136=1,E135>=18),0,1))),IF(AND(C136=C135,D136=D135,E136=E135),0,IF(AND(C136=C135,D136=D135,E136=(E135+1)),0,IF(AND(C136=C135,D136=(D135+1),E136=1,E135>=18),0,IF(AND(C136=(C135+1),D136=1,E136=1,E135>=18),0,1)))))) -> 0 | AB136: ='1.ข้อมูลส่วนบุคคล'!G$32 -> 2560-05-15 | AC136: =TEXT(AB136,"yyyy")&+IF(TEXT(AB136,"mm")>9,TEXT(AB136,"mm"),"0"&+TEXT(AB136,"mm"))&+IF(TEXT(AB136,"dd")>9,TEXT(AB136,"dd"),"0"&+TEXT(AB136,"dd")) -> 25600515 | AD136: 00:00:00 | AE136: =TEXT(AD136,"yyyy")&+IF(TEXT(AD136,"mm")>9,TEXT(AD136,"mm"),"0"&+TEXT(AD136,"mm"))&+IF(TEXT(AD136,"dd")>9,TEXT(AD136,"dd"),"0"&+TEXT(AD136,"dd")) -> 19000100 | AF136: =AE136-AC136 -> -6600415 | AG136: =IF(LEFT(P136,1)="5",1,0) -> 0 | AH136: 0 | AI136: 0 | AJ136: =IF(IFERROR(VLOOKUP(AO136,AQ$7:AS$26,3,FALSE),0)-IFERROR(VLOOKUP(AO136,AQ$7:AS$26,2,FALSE),0)<0,1,0) -> 0 | AK136: 0 | AL136: ไม่ถูกต้อง | AP136: =IFERROR(VLOOKUP(AO136,'2.การมอบหมายงานสอน'!$AI$5:$AJ$24,2,FALSE),0) -> 0
A137: ='1.ข้อมูลส่วนบุคคล'!$F$5 -> 1234567891234 | K137: =IF('1.ข้อมูลส่วนบุคคล'!C$21="เชี่ยวชาญ",IF(H137="-","",IF(H137='1.ข้อมูลส่วนบุคคล'!F$26,"เกี่ยวข้อง","ไม่เกี่ยวข้อง")),IF('1.ข้อมูลส่วนบุคคล'!C$21="เชี่ยวชาญพิเศษ",IF(H137="-","",IF(H137='1.ข้อมูลส่วนบุคคล'!F$26,"เกี่ยวข้อง","ไม่เกี่ยวข้อง")),"")) ->  | O137: สอนตามตารางสอน | Q137: ไม่ถูกต้อง | U137: 0 | V137: 0 | W137: =IF(LEFT(Q137,3)="ไม่","",IF(AL137=AL136,0,IF(OR(LEFT(P137,1)="1",LEFT(P137,1)="2",LEFT(P137,1)="3",LEFT(P137,1)="4",LEFT(P137,1)="5"),0,IF(SUMIFS(Z137:Z187,AL137:AL187,B137&+D137&+E137&+"ถูกต้อง",AK137:AK187,0)<AP137,1,0)))) ->  | X137: 0 | Y137: =(MOD(X137,1))*60/100 -> 0 | Z137: 0 | AA137: 0 | AB137: ='1.ข้อมูลส่วนบุคคล'!G$32 -> 2560-05-15 | AC137: 25600515 | AD137: 00:00:00 | AE137: 19000100 | AF137: -6600415 | AG137: 0 | AH137: =IF(AG137=1,IF(IF(AN137=AN136,0,AP137-IF(AND(LEFT(Q137,3)<>"ไม่",AK137=0),SUMIFS(Z137:Z187,AN137:AN187,AN137,AK137:AK187,0),0))<0,0,IF(AN137=AN136,0,AP137-IF(AND(LEFT(Q137,3)<>"ไม่",AK137=0),SUMIFS(Z137:Z187,AN137:AN187,AN137,AK137:AK187,0),0))),0) -> 0 | AI137: 0 | AJ137: 0 | AK137: 0 | AL137: ไม่ถูกต้อง | AP137: =IFERROR(VLOOKUP(AO137,'2.การมอบหมายงานสอน'!$AI$5:$AJ$24,2,FALSE),0) -> 0
A138: ='1.ข้อมูลส่วนบุคคล'!$F$5 -> 1234567891234 | K138: =IF('1.ข้อมูลส่วนบุคคล'!C$21="เชี่ยวชาญ",IF(H138="-","",IF(H138='1.ข้อมูลส่วนบุคคล'!F$26,"เกี่ยวข้อง","ไม่เกี่ยวข้อง")),IF('1.ข้อมูลส่วนบุคคล'!C$21="เชี่ยวชาญพิเศษ",IF(H138="-","",IF(H138='1.ข้อมูลส่วนบุคคล'!F$26,"เกี่ยวข้อง","ไม่เกี่ยวข้อง")),"")) ->  | O138: สอนตามตารางสอน | Q138: ไม่ถูกต้อง | U138: 0 | V138: 0 | X138: 0 | Y138: 0 | Z138: 0 | AA138: 0 | AB138: ='1.ข้อมูลส่วนบุคคล'!G$32 -> 2560-05-15 | AC138: 25600515 | AD138: 00:00:00 | AE138: 19000100 | AF138: -6600415 | AG138: 0 | AH138: 0 | AI138: 0 | AJ138: 0 | AK138: 0 | AL138: ไม่ถูกต้อง | AP138: =IFERROR(VLOOKUP(AO138,'2.การมอบหมายงานสอน'!$AI$5:$AJ$24,2,FALSE),0) -> 0
A139: ='1.ข้อมูลส่วนบุคคล'!$F$5 -> 1234567891234 | K139: =IF('1.ข้อมูลส่วนบุคคล'!C$21="เชี่ยวชาญ",IF(H139="-","",IF(H139='1.ข้อมูลส่วนบุคคล'!F$26,"เกี่ยวข้อง","ไม่เกี่ยวข้อง")),IF('1.ข้อมูลส่วนบุคคล'!C$21="เชี่ยวชาญพิเศษ",IF(H139="-","",IF(H139='1.ข้อมูลส่วนบุคคล'!F$26,"เกี่ยวข้อง","ไม่เกี่ยวข้อง")),"")) ->  | O139: สอนตามตารางสอน | Q139: ไม่ถูกต้อง | U139: 0 | V139: 0 | X139: 0 | Y139: 0 | Z139: 0 | AA139: 0 | AB139: ='1.ข้อมูลส่วนบุคคล'!G$32 -> 2560-05-15 | AC139: 25600515 | AD139: 00:00:00 | AE139: 19000100 | AF139: -6600415 | AG139: 0 | AH139: 0 | AI139: 0 | AJ139: 0 | AK139: 0 | AL139: ไม่ถูกต้อง | AP139: =IFERROR(VLOOKUP(AO139,'2.การมอบหมายงานสอน'!$AI$5:$AJ$24,2,FALSE),0) -> 0
A140: ='1.ข้อมูลส่วนบุคคล'!$F$5 -> 1234567891234 | K140: =IF('1.ข้อมูลส่วนบุคคล'!C$21="เชี่ยวชาญ",IF(H140="-","",IF(H140='1.ข้อมูลส่วนบุคคล'!F$26,"เกี่ยวข้อง","ไม่เกี่ยวข้อง")),IF('1.ข้อมูลส่วนบุคคล'!C$21="เชี่ยวชาญพิเศษ",IF(H140="-","",IF(H140='1.ข้อมูลส่วนบุคคล'!F$26,"เกี่ยวข้อง","ไม่เกี่ยวข้อง")),"")) ->  | O140: สอนตามตารางสอน | Q140: ไม่ถูกต้อง | U140: 0 | V140: 0 | X140: 0 | Y140: 0 | Z140: 0 | AA140: 0 | AB140: ='1.ข้อมูลส่วนบุคคล'!G$32 -> 2560-05-15 | AC140: 25600515 | AD140: 00:00:00 | AE140: 19000100 | AF140: -6600415 | AG140: 0 | AH140: 0 | AI140: 0 | AJ140: 0 | AK140: 0 | AL140: ไม่ถูกต้อง | AP140: =IFERROR(VLOOKUP(AO140,'2.การมอบหมายงานสอน'!$AI$5:$AJ$24,2,FALSE),0) -> 0
A141: ='1.ข้อมูลส่วนบุคคล'!$F$5 -> 1234567891234 | K141: =IF('1.ข้อมูลส่วนบุคคล'!C$21="เชี่ยวชาญ",IF(H141="-","",IF(H141='1.ข้อมูลส่วนบุคคล'!F$26,"เกี่ยวข้อง","ไม่เกี่ยวข้อง")),IF('1.ข้อมูลส่วนบุคคล'!C$21="เชี่ยวชาญพิเศษ",IF(H141="-","",IF(H141='1.ข้อมูลส่วนบุคคล'!F$26,"เกี่ยวข้อง","ไม่เกี่ยวข้อง")),"")) ->  | O141: สอนตามตารางสอน | Q141: ไม่ถูกต้อง | U141: 0 | V141: 0 | X141: 0 | Y141: 0 | Z141: 0 | AA141: 0 | AB141: ='1.ข้อมูลส่วนบุคคล'!G$32 -> 2560-05-15 | AC141: 25600515 | AD141: 00:00:00 | AE141: 19000100 | AF141: -6600415 | AG141: 0 | AH141: 0 | AI141: 0 | AJ141: 0 | AK141: 0 | AL141: ไม่ถูกต้อง | AP141: =IFERROR(VLOOKUP(AO141,'2.การมอบหมายงานสอน'!$AI$5:$AJ$24,2,FALSE),0) -> 0
A142: ='1.ข้อมูลส่วนบุคคล'!$F$5 -> 1234567891234 | K142: =IF('1.ข้อมูลส่วนบุคคล'!C$21="เชี่ยวชาญ",IF(H142="-","",IF(H142='1.ข้อมูลส่วนบุคคล'!F$26,"เกี่ยวข้อง","ไม่เกี่ยวข้อง")),IF('1.ข้อมูลส่วนบุคคล'!C$21="เชี่ยวชาญพิเศษ",IF(H142="-","",IF(H142='1.ข้อมูลส่วนบุคคล'!F$26,"เกี่ยวข้อง","ไม่เกี่ยวข้อง")),"")) ->  | O142: สอนตามตารางสอน | Q142: ไม่ถูกต้อง | U142: 0 | V142: 0 | X142: 0 | Y142: 0 | Z142: 0 | AA142: 0 | AB142: ='1.ข้อมูลส่วนบุคคล'!G$32 -> 2560-05-15 | AC142: 25600515 | AD142: 00:00:00 | AE142: 19000100 | AF142: -6600415 | AG142: 0 | AH142: 0 | AI142: 0 | AJ142: 0 | AK142: 0 | AL142: ไม่ถูกต้อง | AP142: =IFERROR(VLOOKUP(AO142,'2.การมอบหมายงานสอน'!$AI$5:$AJ$24,2,FALSE),0) -> 0
A143: ='1.ข้อมูลส่วนบุคคล'!$F$5 -> 1234567891234 | K143: =IF('1.ข้อมูลส่วนบุคคล'!C$21="เชี่ยวชาญ",IF(H143="-","",IF(H143='1.ข้อมูลส่วนบุคคล'!F$26,"เกี่ยวข้อง","ไม่เกี่ยวข้อง")),IF('1.ข้อมูลส่วนบุคคล'!C$21="เชี่ยวชาญพิเศษ",IF(H143="-","",IF(H143='1.ข้อมูลส่วนบุคคล'!F$26,"เกี่ยวข้อง","ไม่เกี่ยวข้อง")),"")) ->  | O143: สอนตามตารางสอน | Q143: ไม่ถูกต้อง | U143: 0 | V143: 0 | X143: 0 | Y143: 0 | Z143: 0 | AA143: 0 | AB143: ='1.ข้อมูลส่วนบุคคล'!G$32 -> 2560-05-15 | AC143: 25600515 | AD143: 00:00:00 | AE143: 19000100 | AF143: -6600415 | AG143: 0 | AH143: 0 | AI143: 0 | AJ143: 0 | AK143: 0 | AL143: ไม่ถูกต้อง | AP143: =IFERROR(VLOOKUP(AO143,'2.การมอบหมายงานสอน'!$AI$5:$AJ$24,2,FALSE),0) -> 0
A144: ='1.ข้อมูลส่วนบุคคล'!$F$5 -> 1234567891234 | K144: =IF('1.ข้อมูลส่วนบุคคล'!C$21="เชี่ยวชาญ",IF(H144="-","",IF(H144='1.ข้อมูลส่วนบุคคล'!F$26,"เกี่ยวข้อง","ไม่เกี่ยวข้อง")),IF('1.ข้อมูลส่วนบุคคล'!C$21="เชี่ยวชาญพิเศษ",IF(H144="-","",IF(H144='1.ข้อมูลส่วนบุคคล'!F$26,"เกี่ยวข้อง","ไม่เกี่ยวข้อง")),"")) ->  | O144: สอนตามตารางสอน | Q144: ไม่ถูกต้อง | U144: 0 | V144: 0 | X144: 0 | Y144: 0 | Z144: 0 | AA144: 0 | AB144: ='1.ข้อมูลส่วนบุคคล'!G$32 -> 2560-05-15 | AC144: 25600515 | AD144: 00:00:00 | AE144: 19000100 | AF144: -6600415 | AG144: 0 | AH144: 0 | AI144: 0 | AJ144: 0 | AK144: 0 | AL144: ไม่ถูกต้อง | AP144: =IFERROR(VLOOKUP(AO144,'2.การมอบหมายงานสอน'!$AI$5:$AJ$24,2,FALSE),0) -> 0
A145: ='1.ข้อมูลส่วนบุคคล'!$F$5 -> 1234567891234 | K145: =IF('1.ข้อมูลส่วนบุคคล'!C$21="เชี่ยวชาญ",IF(H145="-","",IF(H145='1.ข้อมูลส่วนบุคคล'!F$26,"เกี่ยวข้อง","ไม่เกี่ยวข้อง")),IF('1.ข้อมูลส่วนบุคคล'!C$21="เชี่ยวชาญพิเศษ",IF(H145="-","",IF(H145='1.ข้อมูลส่วนบุคคล'!F$26,"เกี่ยวข้อง","ไม่เกี่ยวข้อง")),"")) ->  | O145: สอนตามตารางสอน | Q145: ไม่ถูกต้อง | U145: 0 | V145: 0 | X145: 0 | Y145: 0 | Z145: 0 | AA145: 0 | AB145: ='1.ข้อมูลส่วนบุคคล'!G$32 -> 2560-05-15 | AC145: 25600515 | AD145: 00:00:00 | AE145: 19000100 | AF145: -6600415 | AG145: 0 | AH145: 0 | AI145: 0 | AJ145: 0 | AK145: 0 | AL145: ไม่ถูกต้อง | AP145: =IFERROR(VLOOKUP(AO145,'2.การมอบหมายงานสอน'!$AI$5:$AJ$24,2,FALSE),0) -> 0
A146: ='1.ข้อมูลส่วนบุคคล'!$F$5 -> 1234567891234 | K146: =IF('1.ข้อมูลส่วนบุคคล'!C$21="เชี่ยวชาญ",IF(H146="-","",IF(H146='1.ข้อมูลส่วนบุคคล'!F$26,"เกี่ยวข้อง","ไม่เกี่ยวข้อง")),IF('1.ข้อมูลส่วนบุคคล'!C$21="เชี่ยวชาญพิเศษ",IF(H146="-","",IF(H146='1.ข้อมูลส่วนบุคคล'!F$26,"เกี่ยวข้อง","ไม่เกี่ยวข้อง")),"")) ->  | O146: สอนตามตารางสอน | Q146: ไม่ถูกต้อง | U146: 0 | V146: 0 | X146: 0 | Y146: 0 | Z146: 0 | AA146: 0 | AB146: ='1.ข้อมูลส่วนบุคคล'!G$32 -> 2560-05-15 | AC146: 25600515 | AD146: 00:00:00 | AE146: 19000100 | AF146: -6600415 | AG146: 0 | AH146: 0 | AI146: 0 | AJ146: 0 | AK146: 0 | AL146: ไม่ถูกต้อง | AP146: =IFERROR(VLOOKUP(AO146,'2.การมอบหมายงานสอน'!$AI$5:$AJ$24,2,FALSE),0) -> 0
A147: ='1.ข้อมูลส่วนบุคคล'!$F$5 -> 1234567891234 | K147: =IF('1.ข้อมูลส่วนบุคคล'!C$21="เชี่ยวชาญ",IF(H147="-","",IF(H147='1.ข้อมูลส่วนบุคคล'!F$26,"เกี่ยวข้อง","ไม่เกี่ยวข้อง")),IF('1.ข้อมูลส่วนบุคคล'!C$21="เชี่ยวชาญพิเศษ",IF(H147="-","",IF(H147='1.ข้อมูลส่วนบุคคล'!F$26,"เกี่ยวข้อง","ไม่เกี่ยวข้อง")),"")) ->  | O147: สอนตามตารางสอน | Q147: ไม่ถูกต้อง | U147: 0 | V147: 0 | X147: 0 | Y147: 0 | Z147: 0 | AA147: 0 | AB147: ='1.ข้อมูลส่วนบุคคล'!G$32 -> 2560-05-15 | AC147: 25600515 | AD147: 00:00:00 | AE147: 19000100 | AF147: -6600415 | AG147: 0 | AH147: 0 | AI147: 0 | AJ147: 0 | AK147: 0 | AL147: ไม่ถูกต้อง | AP147: =IFERROR(VLOOKUP(AO147,'2.การมอบหมายงานสอน'!$AI$5:$AJ$24,2,FALSE),0) -> 0
A148: ='1.ข้อมูลส่วนบุคคล'!$F$5 -> 1234567891234 | K148: =IF('1.ข้อมูลส่วนบุคคล'!C$21="เชี่ยวชาญ",IF(H148="-","",IF(H148='1.ข้อมูลส่วนบุคคล'!F$26,"เกี่ยวข้อง","ไม่เกี่ยวข้อง")),IF('1.ข้อมูลส่วนบุคคล'!C$21="เชี่ยวชาญพิเศษ",IF(H148="-","",IF(H148='1.ข้อมูลส่วนบุคคล'!F$26,"เกี่ยวข้อง","ไม่เกี่ยวข้อง")),"")) ->  | O148: สอนตามตารางสอน | Q148: ไม่ถูกต้อง | U148: 0 | V148: 0 | X148: 0 | Y148: 0 | Z148: 0 | AA148: 0 | AB148: ='1.ข้อมูลส่วนบุคคล'!G$32 -> 2560-05-15 | AC148: 25600515 | AD148: 00:00:00 | AE148: 19000100 | AF148: -6600415 | AG148: 0 | AH148: 0 | AI148: 0 | AJ148: 0 | AK148: 0 | AL148: ไม่ถูกต้อง | AP148: =IFERROR(VLOOKUP(AO148,'2.การมอบหมายงานสอน'!$AI$5:$AJ$24,2,FALSE),0) -> 0
A149: ='1.ข้อมูลส่วนบุคคล'!$F$5 -> 1234567891234 | K149: =IF('1.ข้อมูลส่วนบุคคล'!C$21="เชี่ยวชาญ",IF(H149="-","",IF(H149='1.ข้อมูลส่วนบุคคล'!F$26,"เกี่ยวข้อง","ไม่เกี่ยวข้อง")),IF('1.ข้อมูลส่วนบุคคล'!C$21="เชี่ยวชาญพิเศษ",IF(H149="-","",IF(H149='1.ข้อมูลส่วนบุคคล'!F$26,"เกี่ยวข้อง","ไม่เกี่ยวข้อง")),"")) ->  | O149: สอนตามตารางสอน | Q149: ไม่ถูกต้อง | U149: 0 | V149: 0 | X149: 0 | Y149: 0 | Z149: 0 | AA149: 0 | AB149: ='1.ข้อมูลส่วนบุคคล'!G$32 -> 2560-05-15 | AC149: 25600515 | AD149: 00:00:00 | AE149: 19000100 | AF149: -6600415 | AG149: 0 | AH149: 0 | AI149: 0 | AJ149: 0 | AK149: 0 | AL149: ไม่ถูกต้อง | AP149: =IFERROR(VLOOKUP(AO149,'2.การมอบหมายงานสอน'!$AI$5:$AJ$24,2,FALSE),0) -> 0
A150: ='1.ข้อมูลส่วนบุคคล'!$F$5 -> 1234567891234 | K150: =IF('1.ข้อมูลส่วนบุคคล'!C$21="เชี่ยวชาญ",IF(H150="-","",IF(H150='1.ข้อมูลส่วนบุคคล'!F$26,"เกี่ยวข้อง","ไม่เกี่ยวข้อง")),IF('1.ข้อมูลส่วนบุคคล'!C$21="เชี่ยวชาญพิเศษ",IF(H150="-","",IF(H150='1.ข้อมูลส่วนบุคคล'!F$26,"เกี่ยวข้อง","ไม่เกี่ยวข้อง")),"")) ->  | O150: สอนตามตารางสอน | Q150: ไม่ถูกต้อง | U150: 0 | V150: 0 | X150: 0 | Y150: 0 | Z150: 0 | AA150: 0 | AB150: ='1.ข้อมูลส่วนบุคคล'!G$32 -> 2560-05-15 | AC150: 25600515 | AD150: 00:00:00 | AE150: 19000100 | AF150: -6600415 | AG150: 0 | AH150: 0 | AI150: 0 | AJ150: 0 | AK150: 0 | AL150: ไม่ถูกต้อง | AP150: =IFERROR(VLOOKUP(AO150,'2.การมอบหมายงานสอน'!$AI$5:$AJ$24,2,FALSE),0) -> 0
A151: ='1.ข้อมูลส่วนบุคคล'!$F$5 -> 1234567891234 | K151: =IF('1.ข้อมูลส่วนบุคคล'!C$21="เชี่ยวชาญ",IF(H151="-","",IF(H151='1.ข้อมูลส่วนบุคคล'!F$26,"เกี่ยวข้อง","ไม่เกี่ยวข้อง")),IF('1.ข้อมูลส่วนบุคคล'!C$21="เชี่ยวชาญพิเศษ",IF(H151="-","",IF(H151='1.ข้อมูลส่วนบุคคล'!F$26,"เกี่ยวข้อง","ไม่เกี่ยวข้อง")),"")) ->  | O151: สอนตามตารางสอน | Q151: ไม่ถูกต้อง | U151: 0 | V151: 0 | X151: 0 | Y151: 0 | Z151: 0 | AA151: 0 | AB151: ='1.ข้อมูลส่วนบุคคล'!G$32 -> 2560-05-15 | AC151: 25600515 | AD151: 00:00:00 | AE151: 19000100 | AF151: -6600415 | AG151: 0 | AH151: 0 | AI151: 0 | AJ151: 0 | AK151: 0 | AL151: ไม่ถูกต้อง | AP151: =IFERROR(VLOOKUP(AO151,'2.การมอบหมายงานสอน'!$AI$5:$AJ$24,2,FALSE),0) -> 0
A152: ='1.ข้อมูลส่วนบุคคล'!$F$5 -> 1234567891234 | K152: =IF('1.ข้อมูลส่วนบุคคล'!C$21="เชี่ยวชาญ",IF(H152="-","",IF(H152='1.ข้อมูลส่วนบุคคล'!F$26,"เกี่ยวข้อง","ไม่เกี่ยวข้อง")),IF('1.ข้อมูลส่วนบุคคล'!C$21="เชี่ยวชาญพิเศษ",IF(H152="-","",IF(H152='1.ข้อมูลส่วนบุคคล'!F$26,"เกี่ยวข้อง","ไม่เกี่ยวข้อง")),"")) ->  | O152: สอนตามตารางสอน | Q152: ไม่ถูกต้อง | U152: 0 | V152: 0 | X152: 0 | Y152: 0 | Z152: 0 | AA152: 0 | AB152: ='1.ข้อมูลส่วนบุคคล'!G$32 -> 2560-05-15 | AC152: 25600515 | AD152: 00:00:00 | AE152: 19000100 | AF152: -6600415 | AG152: 0 | AH152: 0 | AI152: 0 | AJ152: 0 | AK152: 0 | AL152: ไม่ถูกต้อง | AP152: =IFERROR(VLOOKUP(AO152,'2.การมอบหมายงานสอน'!$AI$5:$AJ$24,2,FALSE),0) -> 0
A153: ='1.ข้อมูลส่วนบุคคล'!$F$5 -> 1234567891234 | K153: =IF('1.ข้อมูลส่วนบุคคล'!C$21="เชี่ยวชาญ",IF(H153="-","",IF(H153='1.ข้อมูลส่วนบุคคล'!F$26,"เกี่ยวข้อง","ไม่เกี่ยวข้อง")),IF('1.ข้อมูลส่วนบุคคล'!C$21="เชี่ยวชาญพิเศษ",IF(H153="-","",IF(H153='1.ข้อมูลส่วนบุคคล'!F$26,"เกี่ยวข้อง","ไม่เกี่ยวข้อง")),"")) ->  | O153: สอนตามตารางสอน | Q153: ไม่ถูกต้อง | U153: 0 | V153: 0 | X153: 0 | Y153: 0 | Z153: 0 | AA153: 0 | AB153: ='1.ข้อมูลส่วนบุคคล'!G$32 -> 2560-05-15 | AC153: 25600515 | AD153: 00:00:00 | AE153: 19000100 | AF153: -6600415 | AG153: 0 | AH153: 0 | AI153: 0 | AJ153: 0 | AK153: 0 | AL153: ไม่ถูกต้อง | AP153: =IFERROR(VLOOKUP(AO153,'2.การมอบหมายงานสอน'!$AI$5:$AJ$24,2,FALSE),0) -> 0
A154: ='1.ข้อมูลส่วนบุคคล'!$F$5 -> 1234567891234 | K154: =IF('1.ข้อมูลส่วนบุคคล'!C$21="เชี่ยวชาญ",IF(H154="-","",IF(H154='1.ข้อมูลส่วนบุคคล'!F$26,"เกี่ยวข้อง","ไม่เกี่ยวข้อง")),IF('1.ข้อมูลส่วนบุคคล'!C$21="เชี่ยวชาญพิเศษ",IF(H154="-","",IF(H154='1.ข้อมูลส่วนบุคคล'!F$26,"เกี่ยวข้อง","ไม่เกี่ยวข้อง")),"")) ->  | O154: สอนตามตารางสอน | Q154: ไม่ถูกต้อง | U154: 0 | V154: 0 | X154: 0 | Y154: 0 | Z154: 0 | AA154: 0 | AB154: ='1.ข้อมูลส่วนบุคคล'!G$32 -> 2560-05-15 | AC154: 25600515 | AD154: 00:00:00 | AE154: 19000100 | AF154: -6600415 | AG154: 0 | AH154: 0 | AI154: 0 | AJ154: 0 | AK154: 0 | AL154: ไม่ถูกต้อง | AP154: =IFERROR(VLOOKUP(AO154,'2.การมอบหมายงานสอน'!$AI$5:$AJ$24,2,FALSE),0) -> 0
A155: ='1.ข้อมูลส่วนบุคคล'!$F$5 -> 1234567891234 | K155: =IF('1.ข้อมูลส่วนบุคคล'!C$21="เชี่ยวชาญ",IF(H155="-","",IF(H155='1.ข้อมูลส่วนบุคคล'!F$26,"เกี่ยวข้อง","ไม่เกี่ยวข้อง")),IF('1.ข้อมูลส่วนบุคคล'!C$21="เชี่ยวชาญพิเศษ",IF(H155="-","",IF(H155='1.ข้อมูลส่วนบุคคล'!F$26,"เกี่ยวข้อง","ไม่เกี่ยวข้อง")),"")) ->  | O155: สอนตามตารางสอน | Q155: ไม่ถูกต้อง | U155: 0 | V155: 0 | X155: 0 | Y155: 0 | Z155: 0 | AA155: 0 | AB155: ='1.ข้อมูลส่วนบุคคล'!G$32 -> 2560-05-15 | AC155: 25600515 | AD155: 00:00:00 | AE155: 19000100 | AF155: -6600415 | AG155: 0 | AH155: 0 | AI155: 0 | AJ155: 0 | AK155: 0 | AL155: ไม่ถูกต้อง | AP155: =IFERROR(VLOOKUP(AO155,'2.การมอบหมายงานสอน'!$AI$5:$AJ$24,2,FALSE),0) -> 0
A156: ='1.ข้อมูลส่วนบุคคล'!$F$5 -> 1234567891234 | K156: =IF('1.ข้อมูลส่วนบุคคล'!C$21="เชี่ยวชาญ",IF(H156="-","",IF(H156='1.ข้อมูลส่วนบุคคล'!F$26,"เกี่ยวข้อง","ไม่เกี่ยวข้อง")),IF('1.ข้อมูลส่วนบุคคล'!C$21="เชี่ยวชาญพิเศษ",IF(H156="-","",IF(H156='1.ข้อมูลส่วนบุคคล'!F$26,"เกี่ยวข้อง","ไม่เกี่ยวข้อง")),"")) ->  | O156: สอนตามตารางสอน | Q156: ไม่ถูกต้อง | U156: 0 | V156: 0 | X156: 0 | Y156: 0 | Z156: 0 | AA156: 0 | AB156: ='1.ข้อมูลส่วนบุคคล'!G$32 -> 2560-05-15 | AC156: 25600515 | AD156: 00:00:00 | AE156: 19000100 | AF156: -6600415 | AG156: 0 | AH156: 0 | AI156: 0 | AJ156: 0 | AK156: 0 | AL156: ไม่ถูกต้อง | AP156: =IFERROR(VLOOKUP(AO156,'2.การมอบหมายงานสอน'!$AI$5:$AJ$24,2,FALSE),0) -> 0
A157: ='1.ข้อมูลส่วนบุคคล'!$F$5 -> 1234567891234 | K157: =IF('1.ข้อมูลส่วนบุคคล'!C$21="เชี่ยวชาญ",IF(H157="-","",IF(H157='1.ข้อมูลส่วนบุคคล'!F$26,"เกี่ยวข้อง","ไม่เกี่ยวข้อง")),IF('1.ข้อมูลส่วนบุคคล'!C$21="เชี่ยวชาญพิเศษ",IF(H157="-","",IF(H157='1.ข้อมูลส่วนบุคคล'!F$26,"เกี่ยวข้อง","ไม่เกี่ยวข้อง")),"")) ->  | O157: สอนตามตารางสอน | Q157: ไม่ถูกต้อง | U157: 0 | V157: 0 | X157: 0 | Y157: 0 | Z157: 0 | AA157: 0 | AB157: ='1.ข้อมูลส่วนบุคคล'!G$32 -> 2560-05-15 | AC157: 25600515 | AD157: 00:00:00 | AE157: 19000100 | AF157: -6600415 | AG157: 0 | AH157: 0 | AI157: 0 | AJ157: 0 | AK157: 0 | AL157: ไม่ถูกต้อง | AP157: =IFERROR(VLOOKUP(AO157,'2.การมอบหมายงานสอน'!$AI$5:$AJ$24,2,FALSE),0) -> 0
A158: ='1.ข้อมูลส่วนบุคคล'!$F$5 -> 1234567891234 | K158: =IF('1.ข้อมูลส่วนบุคคล'!C$21="เชี่ยวชาญ",IF(H158="-","",IF(H158='1.ข้อมูลส่วนบุคคล'!F$26,"เกี่ยวข้อง","ไม่เกี่ยวข้อง")),IF('1.ข้อมูลส่วนบุคคล'!C$21="เชี่ยวชาญพิเศษ",IF(H158="-","",IF(H158='1.ข้อมูลส่วนบุคคล'!F$26,"เกี่ยวข้อง","ไม่เกี่ยวข้อง")),"")) ->  | O158: สอนตามตารางสอน | Q158: ไม่ถูกต้อง | U158: 0 | V158: 0 | X158: 0 | Y158: 0 | Z158: 0 | AA158: 0 | AB158: ='1.ข้อมูลส่วนบุคคล'!G$32 -> 2560-05-15 | AC158: 25600515 | AD158: 00:00:00 | AE158: 19000100 | AF158: -6600415 | AG158: 0 | AH158: 0 | AI158: 0 | AJ158: 0 | AK158: 0 | AL158: ไม่ถูกต้อง | AP158: =IFERROR(VLOOKUP(AO158,'2.การมอบหมายงานสอน'!$AI$5:$AJ$24,2,FALSE),0) -> 0
A159: ='1.ข้อมูลส่วนบุคคล'!$F$5 -> 1234567891234 | K159: =IF('1.ข้อมูลส่วนบุคคล'!C$21="เชี่ยวชาญ",IF(H159="-","",IF(H159='1.ข้อมูลส่วนบุคคล'!F$26,"เกี่ยวข้อง","ไม่เกี่ยวข้อง")),IF('1.ข้อมูลส่วนบุคคล'!C$21="เชี่ยวชาญพิเศษ",IF(H159="-","",IF(H159='1.ข้อมูลส่วนบุคคล'!F$26,"เกี่ยวข้อง","ไม่เกี่ยวข้อง")),"")) ->  | O159: สอนตามตารางสอน | Q159: ไม่ถูกต้อง | U159: 0 | V159: 0 | X159: 0 | Y159: 0 | Z159: 0 | AA159: 0 | AB159: ='1.ข้อมูลส่วนบุคคล'!G$32 -> 2560-05-15 | AC159: 25600515 | AD159: 00:00:00 | AE159: 19000100 | AF159: -6600415 | AG159: 0 | AH159: 0 | AI159: 0 | AJ159: 0 | AK159: 0 | AL159: ไม่ถูกต้อง | AP159: =IFERROR(VLOOKUP(AO159,'2.การมอบหมายงานสอน'!$AI$5:$AJ$24,2,FALSE),0) -> 0
A160: ='1.ข้อมูลส่วนบุคคล'!$F$5 -> 1234567891234 | K160: =IF('1.ข้อมูลส่วนบุคคล'!C$21="เชี่ยวชาญ",IF(H160="-","",IF(H160='1.ข้อมูลส่วนบุคคล'!F$26,"เกี่ยวข้อง","ไม่เกี่ยวข้อง")),IF('1.ข้อมูลส่วนบุคคล'!C$21="เชี่ยวชาญพิเศษ",IF(H160="-","",IF(H160='1.ข้อมูลส่วนบุคคล'!F$26,"เกี่ยวข้อง","ไม่เกี่ยวข้อง")),"")) ->  | O160: สอนตามตารางสอน | Q160: ไม่ถูกต้อง | U160: 0 | V160: 0 | X160: 0 | Y160: 0 | Z160: 0 | AA160: 0 | AB160: ='1.ข้อมูลส่วนบุคคล'!G$32 -> 2560-05-15 | AC160: 25600515 | AD160: 00:00:00 | AE160: 19000100 | AF160: -6600415 | AG160: 0 | AH160: 0 | AI160: 0 | AJ160: 0 | AK160: 0 | AL160: ไม่ถูกต้อง | AP160: =IFERROR(VLOOKUP(AO160,'2.การมอบหมายงานสอน'!$AI$5:$AJ$24,2,FALSE),0) -> 0
A161: ='1.ข้อมูลส่วนบุคคล'!$F$5 -> 1234567891234 | K161: =IF('1.ข้อมูลส่วนบุคคล'!C$21="เชี่ยวชาญ",IF(H161="-","",IF(H161='1.ข้อมูลส่วนบุคคล'!F$26,"เกี่ยวข้อง","ไม่เกี่ยวข้อง")),IF('1.ข้อมูลส่วนบุคคล'!C$21="เชี่ยวชาญพิเศษ",IF(H161="-","",IF(H161='1.ข้อมูลส่วนบุคคล'!F$26,"เกี่ยวข้อง","ไม่เกี่ยวข้อง")),"")) ->  | O161: สอนตามตารางสอน | Q161: ไม่ถูกต้อง | U161: 0 | V161: 0 | X161: 0 | Y161: 0 | Z161: 0 | AA161: 0 | AB161: ='1.ข้อมูลส่วนบุคคล'!G$32 -> 2560-05-15 | AC161: 25600515 | AD161: 00:00:00 | AE161: 19000100 | AF161: -6600415 | AG161: 0 | AH161: 0 | AI161: 0 | AJ161: 0 | AK161: 0 | AL161: ไม่ถูกต้อง | AP161: =IFERROR(VLOOKUP(AO161,'2.การมอบหมายงานสอน'!$AI$5:$AJ$24,2,FALSE),0) -> 0
A162: ='1.ข้อมูลส่วนบุคคล'!$F$5 -> 1234567891234 | K162: =IF('1.ข้อมูลส่วนบุคคล'!C$21="เชี่ยวชาญ",IF(H162="-","",IF(H162='1.ข้อมูลส่วนบุคคล'!F$26,"เกี่ยวข้อง","ไม่เกี่ยวข้อง")),IF('1.ข้อมูลส่วนบุคคล'!C$21="เชี่ยวชาญพิเศษ",IF(H162="-","",IF(H162='1.ข้อมูลส่วนบุคคล'!F$26,"เกี่ยวข้อง","ไม่เกี่ยวข้อง")),"")) ->  | O162: สอนตามตารางสอน | Q162: ไม่ถูกต้อง | U162: 0 | V162: 0 | X162: 0 | Y162: 0 | Z162: 0 | AA162: 0 | AB162: ='1.ข้อมูลส่วนบุคคล'!G$32 -> 2560-05-15 | AC162: 25600515 | AD162: 00:00:00 | AE162: 19000100 | AF162: -6600415 | AG162: 0 | AH162: 0 | AI162: 0 | AJ162: 0 | AK162: 0 | AL162: ไม่ถูกต้อง | AP162: =IFERROR(VLOOKUP(AO162,'2.การมอบหมายงานสอน'!$AI$5:$AJ$24,2,FALSE),0) -> 0
A163: ='1.ข้อมูลส่วนบุคคล'!$F$5 -> 1234567891234 | K163: =IF('1.ข้อมูลส่วนบุคคล'!C$21="เชี่ยวชาญ",IF(H163="-","",IF(H163='1.ข้อมูลส่วนบุคคล'!F$26,"เกี่ยวข้อง","ไม่เกี่ยวข้อง")),IF('1.ข้อมูลส่วนบุคคล'!C$21="เชี่ยวชาญพิเศษ",IF(H163="-","",IF(H163='1.ข้อมูลส่วนบุคคล'!F$26,"เกี่ยวข้อง","ไม่เกี่ยวข้อง")),"")) ->  | O163: สอนตามตารางสอน | Q163: ไม่ถูกต้อง | U163: 0 | V163: 0 | X163: 0 | Y163: 0 | Z163: 0 | AA163: 0 | AB163: ='1.ข้อมูลส่วนบุคคล'!G$32 -> 2560-05-15 | AC163: 25600515 | AD163: 00:00:00 | AE163: 19000100 | AF163: -6600415 | AG163: 0 | AH163: 0 | AI163: 0 | AJ163: 0 | AK163: 0 | AL163: ไม่ถูกต้อง | AP163: =IFERROR(VLOOKUP(AO163,'2.การมอบหมายงานสอน'!$AI$5:$AJ$24,2,FALSE),0) -> 0
A164: ='1.ข้อมูลส่วนบุคคล'!$F$5 -> 1234567891234 | K164: =IF('1.ข้อมูลส่วนบุคคล'!C$21="เชี่ยวชาญ",IF(H164="-","",IF(H164='1.ข้อมูลส่วนบุคคล'!F$26,"เกี่ยวข้อง","ไม่เกี่ยวข้อง")),IF('1.ข้อมูลส่วนบุคคล'!C$21="เชี่ยวชาญพิเศษ",IF(H164="-","",IF(H164='1.ข้อมูลส่วนบุคคล'!F$26,"เกี่ยวข้อง","ไม่เกี่ยวข้อง")),"")) ->  | O164: สอนตามตารางสอน | Q164: ไม่ถูกต้อง | U164: 0 | V164: 0 | X164: 0 | Y164: 0 | Z164: 0 | AA164: 0 | AB164: ='1.ข้อมูลส่วนบุคคล'!G$32 -> 2560-05-15 | AC164: 25600515 | AD164: 00:00:00 | AE164: 19000100 | AF164: -6600415 | AG164: 0 | AH164: 0 | AI164: 0 | AJ164: 0 | AK164: 0 | AL164: ไม่ถูกต้อง | AP164: =IFERROR(VLOOKUP(AO164,'2.การมอบหมายงานสอน'!$AI$5:$AJ$24,2,FALSE),0) -> 0
A165: ='1.ข้อมูลส่วนบุคคล'!$F$5 -> 1234567891234 | K165: =IF('1.ข้อมูลส่วนบุคคล'!C$21="เชี่ยวชาญ",IF(H165="-","",IF(H165='1.ข้อมูลส่วนบุคคล'!F$26,"เกี่ยวข้อง","ไม่เกี่ยวข้อง")),IF('1.ข้อมูลส่วนบุคคล'!C$21="เชี่ยวชาญพิเศษ",IF(H165="-","",IF(H165='1.ข้อมูลส่วนบุคคล'!F$26,"เกี่ยวข้อง","ไม่เกี่ยวข้อง")),"")) ->  | O165: สอนตามตารางสอน | Q165: ไม่ถูกต้อง | U165: 0 | V165: 0 | X165: 0 | Y165: 0 | Z165: 0 | AA165: 0 | AB165: ='1.ข้อมูลส่วนบุคคล'!G$32 -> 2560-05-15 | AC165: 25600515 | AD165: 00:00:00 | AE165: 19000100 | AF165: -6600415 | AG165: 0 | AH165: 0 | AI165: 0 | AJ165: 0 | AK165: 0 | AL165: ไม่ถูกต้อง | AP165: =IFERROR(VLOOKUP(AO165,'2.การมอบหมายงานสอน'!$AI$5:$AJ$24,2,FALSE),0) -> 0
A166: ='1.ข้อมูลส่วนบุคคล'!$F$5 -> 1234567891234 | K166: =IF('1.ข้อมูลส่วนบุคคล'!C$21="เชี่ยวชาญ",IF(H166="-","",IF(H166='1.ข้อมูลส่วนบุคคล'!F$26,"เกี่ยวข้อง","ไม่เกี่ยวข้อง")),IF('1.ข้อมูลส่วนบุคคล'!C$21="เชี่ยวชาญพิเศษ",IF(H166="-","",IF(H166='1.ข้อมูลส่วนบุคคล'!F$26,"เกี่ยวข้อง","ไม่เกี่ยวข้อง")),"")) ->  | O166: สอนตามตารางสอน | Q166: ไม่ถูกต้อง | U166: 0 | V166: 0 | X166: 0 | Y166: 0 | Z166: 0 | AA166: 0 | AB166: ='1.ข้อมูลส่วนบุคคล'!G$32 -> 2560-05-15 | AC166: 25600515 | AD166: 00:00:00 | AE166: 19000100 | AF166: -6600415 | AG166: 0 | AH166: 0 | AI166: 0 | AJ166: 0 | AK166: 0 | AL166: ไม่ถูกต้อง | AP166: =IFERROR(VLOOKUP(AO166,'2.การมอบหมายงานสอน'!$AI$5:$AJ$24,2,FALSE),0) -> 0
A167: ='1.ข้อมูลส่วนบุคคล'!$F$5 -> 1234567891234 | K167: =IF('1.ข้อมูลส่วนบุคคล'!C$21="เชี่ยวชาญ",IF(H167="-","",IF(H167='1.ข้อมูลส่วนบุคคล'!F$26,"เกี่ยวข้อง","ไม่เกี่ยวข้อง")),IF('1.ข้อมูลส่วนบุคคล'!C$21="เชี่ยวชาญพิเศษ",IF(H167="-","",IF(H167='1.ข้อมูลส่วนบุคคล'!F$26,"เกี่ยวข้อง","ไม่เกี่ยวข้อง")),"")) ->  | O167: สอนตามตารางสอน | Q167: ไม่ถูกต้อง | U167: 0 | V167: 0 | X167: 0 | Y167: 0 | Z167: 0 | AA167: 0 | AB167: ='1.ข้อมูลส่วนบุคคล'!G$32 -> 2560-05-15 | AC167: 25600515 | AD167: 00:00:00 | AE167: 19000100 | AF167: -6600415 | AG167: 0 | AH167: 0 | AI167: 0 | AJ167: 0 | AK167: 0 | AL167: ไม่ถูกต้อง | AP167: =IFERROR(VLOOKUP(AO167,'2.การมอบหมายงานสอน'!$AI$5:$AJ$24,2,FALSE),0) -> 0
A168: ='1.ข้อมูลส่วนบุคคล'!$F$5 -> 1234567891234 | K168: =IF('1.ข้อมูลส่วนบุคคล'!C$21="เชี่ยวชาญ",IF(H168="-","",IF(H168='1.ข้อมูลส่วนบุคคล'!F$26,"เกี่ยวข้อง","ไม่เกี่ยวข้อง")),IF('1.ข้อมูลส่วนบุคคล'!C$21="เชี่ยวชาญพิเศษ",IF(H168="-","",IF(H168='1.ข้อมูลส่วนบุคคล'!F$26,"เกี่ยวข้อง","ไม่เกี่ยวข้อง")),"")) ->  | O168: สอนตามตารางสอน | Q168: ไม่ถูกต้อง | U168: 0 | V168: 0 | X168: 0 | Y168: 0 | Z168: 0 | AA168: 0 | AB168: ='1.ข้อมูลส่วนบุคคล'!G$32 -> 2560-05-15 | AC168: 25600515 | AD168: 00:00:00 | AE168: 19000100 | AF168: -6600415 | AG168: 0 | AH168: 0 | AI168: 0 | AJ168: 0 | AK168: 0 | AL168: ไม่ถูกต้อง | AP168: =IFERROR(VLOOKUP(AO168,'2.การมอบหมายงานสอน'!$AI$5:$AJ$24,2,FALSE),0) -> 0
A169: ='1.ข้อมูลส่วนบุคคล'!$F$5 -> 1234567891234 | K169: =IF('1.ข้อมูลส่วนบุคคล'!C$21="เชี่ยวชาญ",IF(H169="-","",IF(H169='1.ข้อมูลส่วนบุคคล'!F$26,"เกี่ยวข้อง","ไม่เกี่ยวข้อง")),IF('1.ข้อมูลส่วนบุคคล'!C$21="เชี่ยวชาญพิเศษ",IF(H169="-","",IF(H169='1.ข้อมูลส่วนบุคคล'!F$26,"เกี่ยวข้อง","ไม่เกี่ยวข้อง")),"")) ->  | O169: สอนตามตารางสอน | Q169: ไม่ถูกต้อง | U169: 0 | V169: 0 | X169: 0 | Y169: 0 | Z169: 0 | AA169: 0 | AB169: ='1.ข้อมูลส่วนบุคคล'!G$32 -> 2560-05-15 | AC169: 25600515 | AD169: 00:00:00 | AE169: 19000100 | AF169: -6600415 | AG169: 0 | AH169: 0 | AI169: 0 | AJ169: 0 | AK169: 0 | AL169: ไม่ถูกต้อง | AP169: =IFERROR(VLOOKUP(AO169,'2.การมอบหมายงานสอน'!$AI$5:$AJ$24,2,FALSE),0) -> 0
A170: ='1.ข้อมูลส่วนบุคคล'!$F$5 -> 1234567891234 | K170: =IF('1.ข้อมูลส่วนบุคคล'!C$21="เชี่ยวชาญ",IF(H170="-","",IF(H170='1.ข้อมูลส่วนบุคคล'!F$26,"เกี่ยวข้อง","ไม่เกี่ยวข้อง")),IF('1.ข้อมูลส่วนบุคคล'!C$21="เชี่ยวชาญพิเศษ",IF(H170="-","",IF(H170='1.ข้อมูลส่วนบุคคล'!F$26,"เกี่ยวข้อง","ไม่เกี่ยวข้อง")),"")) ->  | O170: สอนตามตารางสอน | Q170: ไม่ถูกต้อง | U170: 0 | V170: 0 | X170: 0 | Y170: 0 | Z170: 0 | AA170: 0 | AB170: ='1.ข้อมูลส่วนบุคคล'!G$32 -> 2560-05-15 | AC170: 25600515 | AD170: 00:00:00 | AE170: 19000100 | AF170: -6600415 | AG170: 0 | AH170: 0 | AI170: 0 | AJ170: 0 | AK170: 0 | AL170: ไม่ถูกต้อง | AP170: =IFERROR(VLOOKUP(AO170,'2.การมอบหมายงานสอน'!$AI$5:$AJ$24,2,FALSE),0) -> 0
A171: ='1.ข้อมูลส่วนบุคคล'!$F$5 -> 1234567891234 | K171: =IF('1.ข้อมูลส่วนบุคคล'!C$21="เชี่ยวชาญ",IF(H171="-","",IF(H171='1.ข้อมูลส่วนบุคคล'!F$26,"เกี่ยวข้อง","ไม่เกี่ยวข้อง")),IF('1.ข้อมูลส่วนบุคคล'!C$21="เชี่ยวชาญพิเศษ",IF(H171="-","",IF(H171='1.ข้อมูลส่วนบุคคล'!F$26,"เกี่ยวข้อง","ไม่เกี่ยวข้อง")),"")) ->  | O171: สอนตามตารางสอน | Q171: ไม่ถูกต้อง | U171: 0 | V171: 0 | X171: 0 | Y171: 0 | Z171: 0 | AA171: 0 | AB171: ='1.ข้อมูลส่วนบุคคล'!G$32 -> 2560-05-15 | AC171: 25600515 | AD171: 00:00:00 | AE171: 19000100 | AF171: -6600415 | AG171: 0 | AH171: 0 | AI171: 0 | AJ171: 0 | AK171: 0 | AL171: ไม่ถูกต้อง | AP171: =IFERROR(VLOOKUP(AO171,'2.การมอบหมายงานสอน'!$AI$5:$AJ$24,2,FALSE),0) -> 0
A172: ='1.ข้อมูลส่วนบุคคล'!$F$5 -> 1234567891234 | K172: =IF('1.ข้อมูลส่วนบุคคล'!C$21="เชี่ยวชาญ",IF(H172="-","",IF(H172='1.ข้อมูลส่วนบุคคล'!F$26,"เกี่ยวข้อง","ไม่เกี่ยวข้อง")),IF('1.ข้อมูลส่วนบุคคล'!C$21="เชี่ยวชาญพิเศษ",IF(H172="-","",IF(H172='1.ข้อมูลส่วนบุคคล'!F$26,"เกี่ยวข้อง","ไม่เกี่ยวข้อง")),"")) ->  | O172: สอนตามตารางสอน | Q172: ไม่ถูกต้อง | U172: 0 | V172: 0 | X172: 0 | Y172: 0 | Z172: 0 | AA172: 0 | AB172: ='1.ข้อมูลส่วนบุคคล'!G$32 -> 2560-05-15 | AC172: 25600515 | AD172: 00:00:00 | AE172: 19000100 | AF172: -6600415 | AG172: 0 | AH172: 0 | AI172: 0 | AJ172: 0 | AK172: 0 | AL172: ไม่ถูกต้อง | AP172: =IFERROR(VLOOKUP(AO172,'2.การมอบหมายงานสอน'!$AI$5:$AJ$24,2,FALSE),0) -> 0
A173: ='1.ข้อมูลส่วนบุคคล'!$F$5 -> 1234567891234 | K173: =IF('1.ข้อมูลส่วนบุคคล'!C$21="เชี่ยวชาญ",IF(H173="-","",IF(H173='1.ข้อมูลส่วนบุคคล'!F$26,"เกี่ยวข้อง","ไม่เกี่ยวข้อง")),IF('1.ข้อมูลส่วนบุคคล'!C$21="เชี่ยวชาญพิเศษ",IF(H173="-","",IF(H173='1.ข้อมูลส่วนบุคคล'!F$26,"เกี่ยวข้อง","ไม่เกี่ยวข้อง")),"")) ->  | O173: สอนตามตารางสอน | Q173: ไม่ถูกต้อง | U173: 0 | V173: 0 | X173: 0 | Y173: 0 | Z173: 0 | AA173: 0 | AB173: ='1.ข้อมูลส่วนบุคคล'!G$32 -> 2560-05-15 | AC173: 25600515 | AD173: 00:00:00 | AE173: 19000100 | AF173: -6600415 | AG173: 0 | AH173: 0 | AI173: 0 | AJ173: 0 | AK173: 0 | AL173: ไม่ถูกต้อง | AP173: =IFERROR(VLOOKUP(AO173,'2.การมอบหมายงานสอน'!$AI$5:$AJ$24,2,FALSE),0) -> 0
A174: ='1.ข้อมูลส่วนบุคคล'!$F$5 -> 1234567891234 | K174: =IF('1.ข้อมูลส่วนบุคคล'!C$21="เชี่ยวชาญ",IF(H174="-","",IF(H174='1.ข้อมูลส่วนบุคคล'!F$26,"เกี่ยวข้อง","ไม่เกี่ยวข้อง")),IF('1.ข้อมูลส่วนบุคคล'!C$21="เชี่ยวชาญพิเศษ",IF(H174="-","",IF(H174='1.ข้อมูลส่วนบุคคล'!F$26,"เกี่ยวข้อง","ไม่เกี่ยวข้อง")),"")) ->  | O174: สอนตามตารางสอน | Q174: ไม่ถูกต้อง | U174: 0 | V174: 0 | X174: 0 | Y174: 0 | Z174: 0 | AA174: 0 | AB174: ='1.ข้อมูลส่วนบุคคล'!G$32 -> 2560-05-15 | AC174: 25600515 | AD174: 00:00:00 | AE174: 19000100 | AF174: -6600415 | AG174: 0 | AH174: 0 | AI174: 0 | AJ174: 0 | AK174: 0 | AL174: ไม่ถูกต้อง | AP174: =IFERROR(VLOOKUP(AO174,'2.การมอบหมายงานสอน'!$AI$5:$AJ$24,2,FALSE),0) -> 0
A175: ='1.ข้อมูลส่วนบุคคล'!$F$5 -> 1234567891234 | K175: =IF('1.ข้อมูลส่วนบุคคล'!C$21="เชี่ยวชาญ",IF(H175="-","",IF(H175='1.ข้อมูลส่วนบุคคล'!F$26,"เกี่ยวข้อง","ไม่เกี่ยวข้อง")),IF('1.ข้อมูลส่วนบุคคล'!C$21="เชี่ยวชาญพิเศษ",IF(H175="-","",IF(H175='1.ข้อมูลส่วนบุคคล'!F$26,"เกี่ยวข้อง","ไม่เกี่ยวข้อง")),"")) ->  | O175: สอนตามตารางสอน | Q175: ไม่ถูกต้อง | U175: 0 | V175: 0 | X175: 0 | Y175: 0 | Z175: 0 | AA175: 0 | AB175: ='1.ข้อมูลส่วนบุคคล'!G$32 -> 2560-05-15 | AC175: 25600515 | AD175: 00:00:00 | AE175: 19000100 | AF175: -6600415 | AG175: 0 | AH175: 0 | AI175: 0 | AJ175: 0 | AK175: 0 | AL175: ไม่ถูกต้อง | AP175: =IFERROR(VLOOKUP(AO175,'2.การมอบหมายงานสอน'!$AI$5:$AJ$24,2,FALSE),0) -> 0
A176: ='1.ข้อมูลส่วนบุคคล'!$F$5 -> 1234567891234 | K176: =IF('1.ข้อมูลส่วนบุคคล'!C$21="เชี่ยวชาญ",IF(H176="-","",IF(H176='1.ข้อมูลส่วนบุคคล'!F$26,"เกี่ยวข้อง","ไม่เกี่ยวข้อง")),IF('1.ข้อมูลส่วนบุคคล'!C$21="เชี่ยวชาญพิเศษ",IF(H176="-","",IF(H176='1.ข้อมูลส่วนบุคคล'!F$26,"เกี่ยวข้อง","ไม่เกี่ยวข้อง")),"")) ->  | O176: สอนตามตารางสอน | Q176: ไม่ถูกต้อง | U176: 0 | V176: 0 | X176: 0 | Y176: 0 | Z176: 0 | AA176: 0 | AB176: ='1.ข้อมูลส่วนบุคคล'!G$32 -> 2560-05-15 | AC176: 25600515 | AD176: 00:00:00 | AE176: 19000100 | AF176: -6600415 | AG176: 0 | AH176: 0 | AI176: 0 | AJ176: 0 | AK176: 0 | AL176: ไม่ถูกต้อง | AP176: =IFERROR(VLOOKUP(AO176,'2.การมอบหมายงานสอน'!$AI$5:$AJ$24,2,FALSE),0) -> 0
A177: ='1.ข้อมูลส่วนบุคคล'!$F$5 -> 1234567891234 | K177: =IF('1.ข้อมูลส่วนบุคคล'!C$21="เชี่ยวชาญ",IF(H177="-","",IF(H177='1.ข้อมูลส่วนบุคคล'!F$26,"เกี่ยวข้อง","ไม่เกี่ยวข้อง")),IF('1.ข้อมูลส่วนบุคคล'!C$21="เชี่ยวชาญพิเศษ",IF(H177="-","",IF(H177='1.ข้อมูลส่วนบุคคล'!F$26,"เกี่ยวข้อง","ไม่เกี่ยวข้อง")),"")) ->  | O177: สอนตามตารางสอน | Q177: ไม่ถูกต้อง | U177: 0 | V177: 0 | X177: 0 | Y177: 0 | Z177: 0 | AA177: 0 | AB177: ='1.ข้อมูลส่วนบุคคล'!G$32 -> 2560-05-15 | AC177: 25600515 | AD177: 00:00:00 | AE177: 19000100 | AF177: -6600415 | AG177: 0 | AH177: 0 | AI177: 0 | AJ177: 0 | AK177: 0 | AL177: ไม่ถูกต้อง | AP177: =IFERROR(VLOOKUP(AO177,'2.การมอบหมายงานสอน'!$AI$5:$AJ$24,2,FALSE),0) -> 0
A178: ='1.ข้อมูลส่วนบุคคล'!$F$5 -> 1234567891234 | K178: =IF('1.ข้อมูลส่วนบุคคล'!C$21="เชี่ยวชาญ",IF(H178="-","",IF(H178='1.ข้อมูลส่วนบุคคล'!F$26,"เกี่ยวข้อง","ไม่เกี่ยวข้อง")),IF('1.ข้อมูลส่วนบุคคล'!C$21="เชี่ยวชาญพิเศษ",IF(H178="-","",IF(H178='1.ข้อมูลส่วนบุคคล'!F$26,"เกี่ยวข้อง","ไม่เกี่ยวข้อง")),"")) ->  | O178: สอนตามตารางสอน | Q178: ไม่ถูกต้อง | U178: 0 | V178: 0 | X178: 0 | Y178: 0 | Z178: 0 | AA178: 0 | AB178: ='1.ข้อมูลส่วนบุคคล'!G$32 -> 2560-05-15 | AC178: 25600515 | AD178: 00:00:00 | AE178: 19000100 | AF178: -6600415 | AG178: 0 | AH178: 0 | AI178: 0 | AJ178: 0 | AK178: 0 | AL178: ไม่ถูกต้อง | AP178: =IFERROR(VLOOKUP(AO178,'2.การมอบหมายงานสอน'!$AI$5:$AJ$24,2,FALSE),0) -> 0
A179: ='1.ข้อมูลส่วนบุคคล'!$F$5 -> 1234567891234 | K179: =IF('1.ข้อมูลส่วนบุคคล'!C$21="เชี่ยวชาญ",IF(H179="-","",IF(H179='1.ข้อมูลส่วนบุคคล'!F$26,"เกี่ยวข้อง","ไม่เกี่ยวข้อง")),IF('1.ข้อมูลส่วนบุคคล'!C$21="เชี่ยวชาญพิเศษ",IF(H179="-","",IF(H179='1.ข้อมูลส่วนบุคคล'!F$26,"เกี่ยวข้อง","ไม่เกี่ยวข้อง")),"")) ->  | O179: สอนตามตารางสอน | Q179: ไม่ถูกต้อง | U179: 0 | V179: 0 | X179: 0 | Y179: 0 | Z179: 0 | AA179: 0 | AB179: ='1.ข้อมูลส่วนบุคคล'!G$32 -> 2560-05-15 | AC179: 25600515 | AD179: 00:00:00 | AE179: 19000100 | AF179: -6600415 | AG179: 0 | AH179: 0 | AI179: 0 | AJ179: 0 | AK179: 0 | AL179: ไม่ถูกต้อง | AP179: =IFERROR(VLOOKUP(AO179,'2.การมอบหมายงานสอน'!$AI$5:$AJ$24,2,FALSE),0) -> 0
A180: ='1.ข้อมูลส่วนบุคคล'!$F$5 -> 1234567891234 | K180: =IF('1.ข้อมูลส่วนบุคคล'!C$21="เชี่ยวชาญ",IF(H180="-","",IF(H180='1.ข้อมูลส่วนบุคคล'!F$26,"เกี่ยวข้อง","ไม่เกี่ยวข้อง")),IF('1.ข้อมูลส่วนบุคคล'!C$21="เชี่ยวชาญพิเศษ",IF(H180="-","",IF(H180='1.ข้อมูลส่วนบุคคล'!F$26,"เกี่ยวข้อง","ไม่เกี่ยวข้อง")),"")) ->  | O180: สอนตามตารางสอน | Q180: ไม่ถูกต้อง | U180: 0 | V180: 0 | X180: 0 | Y180: 0 | Z180: 0 | AA180: 0 | AB180: ='1.ข้อมูลส่วนบุคคล'!G$32 -> 2560-05-15 | AC180: 25600515 | AD180: 00:00:00 | AE180: 19000100 | AF180: -6600415 | AG180: 0 | AH180: 0 | AI180: 0 | AJ180: 0 | AK180: 0 | AL180: ไม่ถูกต้อง | AP180: =IFERROR(VLOOKUP(AO180,'2.การมอบหมายงานสอน'!$AI$5:$AJ$24,2,FALSE),0) -> 0
A181: ='1.ข้อมูลส่วนบุคคล'!$F$5 -> 1234567891234 | K181: =IF('1.ข้อมูลส่วนบุคคล'!C$21="เชี่ยวชาญ",IF(H181="-","",IF(H181='1.ข้อมูลส่วนบุคคล'!F$26,"เกี่ยวข้อง","ไม่เกี่ยวข้อง")),IF('1.ข้อมูลส่วนบุคคล'!C$21="เชี่ยวชาญพิเศษ",IF(H181="-","",IF(H181='1.ข้อมูลส่วนบุคคล'!F$26,"เกี่ยวข้อง","ไม่เกี่ยวข้อง")),"")) ->  | O181: สอนตามตารางสอน | Q181: ไม่ถูกต้อง | T181: =B181&+E181 ->  | U181: 0 | V181: 0 | X181: 0 | Y181: 0 | Z181: 0 | AA181: 0 | AB181: ='1.ข้อมูลส่วนบุคคล'!G$32 -> 2560-05-15 | AC181: 25600515 | AD181: 00:00:00 | AE181: 19000100 | AF181: -6600415 | AG181: 0 | AH181: 0 | AI181: 0 | AJ181: 0 | AK181: 0 | AL181: ไม่ถูกต้อง | AP181: =IFERROR(VLOOKUP(AO181,'2.การมอบหมายงานสอน'!$AI$5:$AJ$24,2,FALSE),0) -> 0
A182: ='1.ข้อมูลส่วนบุคคล'!$F$5 -> 1234567891234 | K182: =IF('1.ข้อมูลส่วนบุคคล'!C$21="เชี่ยวชาญ",IF(H182="-","",IF(H182='1.ข้อมูลส่วนบุคคล'!F$26,"เกี่ยวข้อง","ไม่เกี่ยวข้อง")),IF('1.ข้อมูลส่วนบุคคล'!C$21="เชี่ยวชาญพิเศษ",IF(H182="-","",IF(H182='1.ข้อมูลส่วนบุคคล'!F$26,"เกี่ยวข้อง","ไม่เกี่ยวข้อง")),"")) ->  | O182: สอนตามตารางสอน | Q182: ไม่ถูกต้อง | U182: 0 | V182: 0 | X182: 0 | Y182: 0 | Z182: 0 | AA182: 0 | AB182: ='1.ข้อมูลส่วนบุคคล'!G$32 -> 2560-05-15 | AC182: 25600515 | AD182: 00:00:00 | AE182: 19000100 | AF182: -6600415 | AG182: 0 | AH182: 0 | AI182: 0 | AJ182: 0 | AK182: 0 | AL182: ไม่ถูกต้อง | AP182: =IFERROR(VLOOKUP(AO182,'2.การมอบหมายงานสอน'!$AI$5:$AJ$24,2,FALSE),0) -> 0
A183: ='1.ข้อมูลส่วนบุคคล'!$F$5 -> 1234567891234 | K183: =IF('1.ข้อมูลส่วนบุคคล'!C$21="เชี่ยวชาญ",IF(H183="-","",IF(H183='1.ข้อมูลส่วนบุคคล'!F$26,"เกี่ยวข้อง","ไม่เกี่ยวข้อง")),IF('1.ข้อมูลส่วนบุคคล'!C$21="เชี่ยวชาญพิเศษ",IF(H183="-","",IF(H183='1.ข้อมูลส่วนบุคคล'!F$26,"เกี่ยวข้อง","ไม่เกี่ยวข้อง")),"")) ->  | O183: สอนตามตารางสอน | Q183: ไม่ถูกต้อง | U183: 0 | V183: 0 | X183: 0 | Y183: 0 | Z183: 0 | AA183: 0 | AB183: ='1.ข้อมูลส่วนบุคคล'!G$32 -> 2560-05-15 | AC183: 25600515 | AD183: 00:00:00 | AE183: 19000100 | AF183: -6600415 | AG183: 0 | AH183: 0 | AI183: 0 | AJ183: 0 | AK183: 0 | AL183: ไม่ถูกต้อง | AP183: =IFERROR(VLOOKUP(AO183,'2.การมอบหมายงานสอน'!$AI$5:$AJ$24,2,FALSE),0) -> 0
A184: ='1.ข้อมูลส่วนบุคคล'!$F$5 -> 1234567891234 | K184: =IF('1.ข้อมูลส่วนบุคคล'!C$21="เชี่ยวชาญ",IF(H184="-","",IF(H184='1.ข้อมูลส่วนบุคคล'!F$26,"เกี่ยวข้อง","ไม่เกี่ยวข้อง")),IF('1.ข้อมูลส่วนบุคคล'!C$21="เชี่ยวชาญพิเศษ",IF(H184="-","",IF(H184='1.ข้อมูลส่วนบุคคล'!F$26,"เกี่ยวข้อง","ไม่เกี่ยวข้อง")),"")) ->  | O184: สอนตามตารางสอน | Q184: ไม่ถูกต้อง | U184: 0 | V184: 0 | X184: 0 | Y184: 0 | Z184: 0 | AA184: 0 | AB184: ='1.ข้อมูลส่วนบุคคล'!G$32 -> 2560-05-15 | AC184: 25600515 | AD184: 00:00:00 | AE184: 19000100 | AF184: -6600415 | AG184: 0 | AH184: 0 | AI184: 0 | AJ184: 0 | AK184: 0 | AL184: ไม่ถูกต้อง | AP184: =IFERROR(VLOOKUP(AO184,'2.การมอบหมายงานสอน'!$AI$5:$AJ$24,2,FALSE),0) -> 0
A185: ='1.ข้อมูลส่วนบุคคล'!$F$5 -> 1234567891234 | K185: =IF('1.ข้อมูลส่วนบุคคล'!C$21="เชี่ยวชาญ",IF(H185="-","",IF(H185='1.ข้อมูลส่วนบุคคล'!F$26,"เกี่ยวข้อง","ไม่เกี่ยวข้อง")),IF('1.ข้อมูลส่วนบุคคล'!C$21="เชี่ยวชาญพิเศษ",IF(H185="-","",IF(H185='1.ข้อมูลส่วนบุคคล'!F$26,"เกี่ยวข้อง","ไม่เกี่ยวข้อง")),"")) ->  | O185: สอนตามตารางสอน | Q185: ไม่ถูกต้อง | U185: 0 | V185: 0 | X185: 0 | Y185: 0 | Z185: 0 | AA185: 0 | AB185: ='1.ข้อมูลส่วนบุคคล'!G$32 -> 2560-05-15 | AC185: 25600515 | AD185: 00:00:00 | AE185: 19000100 | AF185: -6600415 | AG185: 0 | AH185: 0 | AI185: 0 | AJ185: 0 | AK185: 0 | AL185: ไม่ถูกต้อง | AP185: =IFERROR(VLOOKUP(AO185,'2.การมอบหมายงานสอน'!$AI$5:$AJ$24,2,FALSE),0) -> 0
A186: ='1.ข้อมูลส่วนบุคคล'!$F$5 -> 1234567891234 | K186: =IF('1.ข้อมูลส่วนบุคคล'!C$21="เชี่ยวชาญ",IF(H186="-","",IF(H186='1.ข้อมูลส่วนบุคคล'!F$26,"เกี่ยวข้อง","ไม่เกี่ยวข้อง")),IF('1.ข้อมูลส่วนบุคคล'!C$21="เชี่ยวชาญพิเศษ",IF(H186="-","",IF(H186='1.ข้อมูลส่วนบุคคล'!F$26,"เกี่ยวข้อง","ไม่เกี่ยวข้อง")),"")) ->  | O186: สอนตามตารางสอน | Q186: ไม่ถูกต้อง | U186: 0 | V186: 0 | X186: 0 | Y186: 0 | Z186: 0 | AA186: 0 | AB186: ='1.ข้อมูลส่วนบุคคล'!G$32 -> 2560-05-15 | AC186: 25600515 | AD186: 00:00:00 | AE186: 19000100 | AF186: -6600415 | AG186: 0 | AH186: 0 | AI186: 0 | AJ186: 0 | AK186: 0 | AL186: ไม่ถูกต้อง | AP186: =IFERROR(VLOOKUP(AO186,'2.การมอบหมายงานสอน'!$AI$5:$AJ$24,2,FALSE),0) -> 0
A187: ='1.ข้อมูลส่วนบุคคล'!$F$5 -> 1234567891234 | K187: =IF('1.ข้อมูลส่วนบุคคล'!C$21="เชี่ยวชาญ",IF(H187="-","",IF(H187='1.ข้อมูลส่วนบุคคล'!F$26,"เกี่ยวข้อง","ไม่เกี่ยวข้อง")),IF('1.ข้อมูลส่วนบุคคล'!C$21="เชี่ยวชาญพิเศษ",IF(H187="-","",IF(H187='1.ข้อมูลส่วนบุคคล'!F$26,"เกี่ยวข้อง","ไม่เกี่ยวข้อง")),"")) ->  | O187: สอนตามตารางสอน | Q187: ไม่ถูกต้อง | U187: 0 | V187: 0 | X187: 0 | Y187: 0 | Z187: 0 | AA187: 0 | AB187: ='1.ข้อมูลส่วนบุคคล'!G$32 -> 2560-05-15 | AC187: 25600515 | AD187: 00:00:00 | AE187: 19000100 | AF187: -6600415 | AG187: 0 | AH187: 0 | AI187: 0 | AJ187: 0 | AK187: 0 | AL187: ไม่ถูกต้อง | AP187: =IFERROR(VLOOKUP(AO187,'2.การมอบหมายงานสอน'!$AI$5:$AJ$24,2,FALSE),0) -> 0
A188: ='1.ข้อมูลส่วนบุคคล'!$F$5 -> 1234567891234 | K188: =IF('1.ข้อมูลส่วนบุคคล'!C$21="เชี่ยวชาญ",IF(H188="-","",IF(H188='1.ข้อมูลส่วนบุคคล'!F$26,"เกี่ยวข้อง","ไม่เกี่ยวข้อง")),IF('1.ข้อมูลส่วนบุคคล'!C$21="เชี่ยวชาญพิเศษ",IF(H188="-","",IF(H188='1.ข้อมูลส่วนบุคคล'!F$26,"เกี่ยวข้อง","ไม่เกี่ยวข้อง")),"")) ->  | O188: สอนตามตารางสอน | Q188: ไม่ถูกต้อง | U188: 0 | V188: 0 | X188: 0 | Y188: 0 | Z188: 0 | AA188: 0 | AB188: ='1.ข้อมูลส่วนบุคคล'!G$32 -> 2560-05-15 | AC188: 25600515 | AD188: 00:00:00 | AE188: 19000100 | AF188: -6600415 | AG188: 0 | AH188: 0 | AI188: 0 | AJ188: 0 | AK188: 0 | AL188: ไม่ถูกต้อง | AP188: =IFERROR(VLOOKUP(AO188,'2.การมอบหมายงานสอน'!$AI$5:$AJ$24,2,FALSE),0) -> 0
A189: ='1.ข้อมูลส่วนบุคคล'!$F$5 -> 1234567891234 | K189: =IF('1.ข้อมูลส่วนบุคคล'!C$21="เชี่ยวชาญ",IF(H189="-","",IF(H189='1.ข้อมูลส่วนบุคคล'!F$26,"เกี่ยวข้อง","ไม่เกี่ยวข้อง")),IF('1.ข้อมูลส่วนบุคคล'!C$21="เชี่ยวชาญพิเศษ",IF(H189="-","",IF(H189='1.ข้อมูลส่วนบุคคล'!F$26,"เกี่ยวข้อง","ไม่เกี่ยวข้อง")),"")) ->  | O189: สอนตามตารางสอน | Q189: ไม่ถูกต้อง | U189: 0 | V189: 0 | X189: 0 | Y189: 0 | Z189: 0 | AA189: 0 | AB189: ='1.ข้อมูลส่วนบุคคล'!G$32 -> 2560-05-15 | AC189: 25600515 | AD189: 00:00:00 | AE189: 19000100 | AF189: -6600415 | AG189: 0 | AH189: 0 | AI189: 0 | AJ189: 0 | AK189: 0 | AL189: ไม่ถูกต้อง | AP189: =IFERROR(VLOOKUP(AO189,'2.การมอบหมายงานสอน'!$AI$5:$AJ$24,2,FALSE),0) -> 0
A190: ='1.ข้อมูลส่วนบุคคล'!$F$5 -> 1234567891234 | K190: =IF('1.ข้อมูลส่วนบุคคล'!C$21="เชี่ยวชาญ",IF(H190="-","",IF(H190='1.ข้อมูลส่วนบุคคล'!F$26,"เกี่ยวข้อง","ไม่เกี่ยวข้อง")),IF('1.ข้อมูลส่วนบุคคล'!C$21="เชี่ยวชาญพิเศษ",IF(H190="-","",IF(H190='1.ข้อมูลส่วนบุคคล'!F$26,"เกี่ยวข้อง","ไม่เกี่ยวข้อง")),"")) ->  | O190: สอนตามตารางสอน | Q190: ไม่ถูกต้อง | U190: 0 | V190: 0 | X190: 0 | Y190: 0 | Z190: 0 | AA190: 0 | AB190: ='1.ข้อมูลส่วนบุคคล'!G$32 -> 2560-05-15 | AC190: 25600515 | AD190: 00:00:00 | AE190: 19000100 | AF190: -6600415 | AG190: 0 | AH190: 0 | AI190: 0 | AJ190: 0 | AK190: 0 | AL190: ไม่ถูกต้อง | AP190: =IFERROR(VLOOKUP(AO190,'2.การมอบหมายงานสอน'!$AI$5:$AJ$24,2,FALSE),0) -> 0
A191: ='1.ข้อมูลส่วนบุคคล'!$F$5 -> 1234567891234 | K191: =IF('1.ข้อมูลส่วนบุคคล'!C$21="เชี่ยวชาญ",IF(H191="-","",IF(H191='1.ข้อมูลส่วนบุคคล'!F$26,"เกี่ยวข้อง","ไม่เกี่ยวข้อง")),IF('1.ข้อมูลส่วนบุคคล'!C$21="เชี่ยวชาญพิเศษ",IF(H191="-","",IF(H191='1.ข้อมูลส่วนบุคคล'!F$26,"เกี่ยวข้อง","ไม่เกี่ยวข้อง")),"")) ->  | O191: สอนตามตารางสอน | Q191: ไม่ถูกต้อง | U191: 0 | V191: 0 | X191: 0 | Y191: 0 | Z191: 0 | AA191: 0 | AB191: ='1.ข้อมูลส่วนบุคคล'!G$32 -> 2560-05-15 | AC191: 25600515 | AD191: 00:00:00 | AE191: 19000100 | AF191: -6600415 | AG191: 0 | AH191: 0 | AI191: 0 | AJ191: 0 | AK191: 0 | AL191: ไม่ถูกต้อง | AP191: =IFERROR(VLOOKUP(AO191,'2.การมอบหมายงานสอน'!$AI$5:$AJ$24,2,FALSE),0) -> 0
A192: ='1.ข้อมูลส่วนบุคคล'!$F$5 -> 1234567891234 | K192: =IF('1.ข้อมูลส่วนบุคคล'!C$21="เชี่ยวชาญ",IF(H192="-","",IF(H192='1.ข้อมูลส่วนบุคคล'!F$26,"เกี่ยวข้อง","ไม่เกี่ยวข้อง")),IF('1.ข้อมูลส่วนบุคคล'!C$21="เชี่ยวชาญพิเศษ",IF(H192="-","",IF(H192='1.ข้อมูลส่วนบุคคล'!F$26,"เกี่ยวข้อง","ไม่เกี่ยวข้อง")),"")) ->  | O192: สอนตามตารางสอน | Q192: ไม่ถูกต้อง | U192: 0 | V192: 0 | X192: 0 | Y192: 0 | Z192: 0 | AA192: 0 | AB192: ='1.ข้อมูลส่วนบุคคล'!G$32 -> 2560-05-15 | AC192: 25600515 | AD192: 00:00:00 | AE192: 19000100 | AF192: -6600415 | AG192: 0 | AH192: 0 | AI192: 0 | AJ192: 0 | AK192: 0 | AL192: ไม่ถูกต้อง | AP192: =IFERROR(VLOOKUP(AO192,'2.การมอบหมายงานสอน'!$AI$5:$AJ$24,2,FALSE),0) -> 0
A193: ='1.ข้อมูลส่วนบุคคล'!$F$5 -> 1234567891234 | K193: =IF('1.ข้อมูลส่วนบุคคล'!C$21="เชี่ยวชาญ",IF(H193="-","",IF(H193='1.ข้อมูลส่วนบุคคล'!F$26,"เกี่ยวข้อง","ไม่เกี่ยวข้อง")),IF('1.ข้อมูลส่วนบุคคล'!C$21="เชี่ยวชาญพิเศษ",IF(H193="-","",IF(H193='1.ข้อมูลส่วนบุคคล'!F$26,"เกี่ยวข้อง","ไม่เกี่ยวข้อง")),"")) ->  | O193: สอนตามตารางสอน | Q193: ไม่ถูกต้อง | U193: 0 | V193: 0 | X193: 0 | Y193: 0 | Z193: 0 | AA193: 0 | AB193: ='1.ข้อมูลส่วนบุคคล'!G$32 -> 2560-05-15 | AC193: 25600515 | AD193: 00:00:00 | AE193: 19000100 | AF193: -6600415 | AG193: 0 | AH193: 0 | AI193: 0 | AJ193: 0 | AK193: 0 | AL193: ไม่ถูกต้อง | AP193: =IFERROR(VLOOKUP(AO193,'2.การมอบหมายงานสอน'!$AI$5:$AJ$24,2,FALSE),0) -> 0
A194: ='1.ข้อมูลส่วนบุคคล'!$F$5 -> 1234567891234 | K194: =IF('1.ข้อมูลส่วนบุคคล'!C$21="เชี่ยวชาญ",IF(H194="-","",IF(H194='1.ข้อมูลส่วนบุคคล'!F$26,"เกี่ยวข้อง","ไม่เกี่ยวข้อง")),IF('1.ข้อมูลส่วนบุคคล'!C$21="เชี่ยวชาญพิเศษ",IF(H194="-","",IF(H194='1.ข้อมูลส่วนบุคคล'!F$26,"เกี่ยวข้อง","ไม่เกี่ยวข้อง")),"")) ->  | O194: สอนตามตารางสอน | Q194: ไม่ถูกต้อง | U194: 0 | V194: 0 | X194: 0 | Y194: 0 | Z194: 0 | AA194: 0 | AB194: ='1.ข้อมูลส่วนบุคคล'!G$32 -> 2560-05-15 | AC194: 25600515 | AD194: 00:00:00 | AE194: 19000100 | AF194: -6600415 | AG194: 0 | AH194: 0 | AI194: 0 | AJ194: 0 | AK194: 0 | AL194: ไม่ถูกต้อง | AP194: =IFERROR(VLOOKUP(AO194,'2.การมอบหมายงานสอน'!$AI$5:$AJ$24,2,FALSE),0) -> 0
A195: ='1.ข้อมูลส่วนบุคคล'!$F$5 -> 1234567891234 | K195: =IF('1.ข้อมูลส่วนบุคคล'!C$21="เชี่ยวชาญ",IF(H195="-","",IF(H195='1.ข้อมูลส่วนบุคคล'!F$26,"เกี่ยวข้อง","ไม่เกี่ยวข้อง")),IF('1.ข้อมูลส่วนบุคคล'!C$21="เชี่ยวชาญพิเศษ",IF(H195="-","",IF(H195='1.ข้อมูลส่วนบุคคล'!F$26,"เกี่ยวข้อง","ไม่เกี่ยวข้อง")),"")) ->  | O195: สอนตามตารางสอน | Q195: ไม่ถูกต้อง | U195: 0 | V195: 0 | X195: 0 | Y195: 0 | Z195: 0 | AA195: 0 | AB195: ='1.ข้อมูลส่วนบุคคล'!G$32 -> 2560-05-15 | AC195: 25600515 | AD195: 00:00:00 | AE195: 19000100 | AF195: -6600415 | AG195: 0 | AH195: 0 | AI195: 0 | AJ195: 0 | AK195: 0 | AL195: ไม่ถูกต้อง | AP195: =IFERROR(VLOOKUP(AO195,'2.การมอบหมายงานสอน'!$AI$5:$AJ$24,2,FALSE),0) -> 0
A196: ='1.ข้อมูลส่วนบุคคล'!$F$5 -> 1234567891234 | K196: =IF('1.ข้อมูลส่วนบุคคล'!C$21="เชี่ยวชาญ",IF(H196="-","",IF(H196='1.ข้อมูลส่วนบุคคล'!F$26,"เกี่ยวข้อง","ไม่เกี่ยวข้อง")),IF('1.ข้อมูลส่วนบุคคล'!C$21="เชี่ยวชาญพิเศษ",IF(H196="-","",IF(H196='1.ข้อมูลส่วนบุคคล'!F$26,"เกี่ยวข้อง","ไม่เกี่ยวข้อง")),"")) ->  | O196: สอนตามตารางสอน | Q196: ไม่ถูกต้อง | U196: 0 | V196: 0 | X196: 0 | Y196: 0 | Z196: 0 | AA196: 0 | AB196: ='1.ข้อมูลส่วนบุคคล'!G$32 -> 2560-05-15 | AC196: 25600515 | AD196: 00:00:00 | AE196: 19000100 | AF196: -6600415 | AG196: 0 | AH196: 0 | AI196: 0 | AJ196: 0 | AK196: 0 | AL196: ไม่ถูกต้อง | AP196: =IFERROR(VLOOKUP(AO196,'2.การมอบหมายงานสอน'!$AI$5:$AJ$24,2,FALSE),0) -> 0
A197: ='1.ข้อมูลส่วนบุคคล'!$F$5 -> 1234567891234 | K197: =IF('1.ข้อมูลส่วนบุคคล'!C$21="เชี่ยวชาญ",IF(H197="-","",IF(H197='1.ข้อมูลส่วนบุคคล'!F$26,"เกี่ยวข้อง","ไม่เกี่ยวข้อง")),IF('1.ข้อมูลส่วนบุคคล'!C$21="เชี่ยวชาญพิเศษ",IF(H197="-","",IF(H197='1.ข้อมูลส่วนบุคคล'!F$26,"เกี่ยวข้อง","ไม่เกี่ยวข้อง")),"")) ->  | O197: สอนตามตารางสอน | Q197: ไม่ถูกต้อง | U197: 0 | V197: 0 | X197: 0 | Y197: 0 | Z197: 0 | AA197: 0 | AB197: ='1.ข้อมูลส่วนบุคคล'!G$32 -> 2560-05-15 | AC197: 25600515 | AD197: 00:00:00 | AE197: 19000100 | AF197: -6600415 | AG197: 0 | AH197: 0 | AI197: 0 | AJ197: 0 | AK197: 0 | AL197: ไม่ถูกต้อง | AP197: =IFERROR(VLOOKUP(AO197,'2.การมอบหมายงานสอน'!$AI$5:$AJ$24,2,FALSE),0) -> 0
A198: ='1.ข้อมูลส่วนบุคคล'!$F$5 -> 1234567891234 | K198: =IF('1.ข้อมูลส่วนบุคคล'!C$21="เชี่ยวชาญ",IF(H198="-","",IF(H198='1.ข้อมูลส่วนบุคคล'!F$26,"เกี่ยวข้อง","ไม่เกี่ยวข้อง")),IF('1.ข้อมูลส่วนบุคคล'!C$21="เชี่ยวชาญพิเศษ",IF(H198="-","",IF(H198='1.ข้อมูลส่วนบุคคล'!F$26,"เกี่ยวข้อง","ไม่เกี่ยวข้อง")),"")) ->  | O198: สอนตามตารางสอน | Q198: ไม่ถูกต้อง | U198: 0 | V198: 0 | X198: 0 | Y198: 0 | Z198: 0 | AA198: 0 | AB198: ='1.ข้อมูลส่วนบุคคล'!G$32 -> 2560-05-15 | AC198: 25600515 | AD198: 00:00:00 | AE198: 19000100 | AF198: -6600415 | AG198: 0 | AH198: 0 | AI198: 0 | AJ198: 0 | AK198: 0 | AL198: ไม่ถูกต้อง | AP198: =IFERROR(VLOOKUP(AO198,'2.การมอบหมายงานสอน'!$AI$5:$AJ$24,2,FALSE),0) -> 0
A199: ='1.ข้อมูลส่วนบุคคล'!$F$5 -> 1234567891234 | K199: =IF('1.ข้อมูลส่วนบุคคล'!C$21="เชี่ยวชาญ",IF(H199="-","",IF(H199='1.ข้อมูลส่วนบุคคล'!F$26,"เกี่ยวข้อง","ไม่เกี่ยวข้อง")),IF('1.ข้อมูลส่วนบุคคล'!C$21="เชี่ยวชาญพิเศษ",IF(H199="-","",IF(H199='1.ข้อมูลส่วนบุคคล'!F$26,"เกี่ยวข้อง","ไม่เกี่ยวข้อง")),"")) ->  | O199: สอนตามตารางสอน | Q199: ไม่ถูกต้อง | S199: =C199&+D199&+E199&+J199&+LEFT(I199,20) ->  | U199: =IF(LEFT(Q199,3)="ไม่",0,IF(L199="","",B199)) -> 0 | V199: =IF(K199="เกี่ยวข้อง",1,0) -> 0 | X199: =IF(Q199="ไม่ถูกต้อง",0,IF(N199="นาที",(L199*M199)/60,L199*M199)) -> 0 | Y199: 0 | Z199: 0 | AA199: 0 | AB199: ='1.ข้อมูลส่วนบุคคล'!G$32 -> 2560-05-15 | AC199: 25600515 | AD199: =F199 -> 00:00:00 | AE199: 19000100 | AF199: -6600415 | AG199: 0 | AH199: 0 | AI199: =IF(O199="สอนซ่อมเสริม",Z199,0) -> 0 | AJ199: 0 | AK199: =IF(O199="สอนซ่อมเสริม",1,0) -> 0 | AL199: =B199&+D199&+E199&+Q199 -> ไม่ถูกต้อง | AM199: =C199&+D199 ->  | AN199: =C199&+E199 ->  | AP199: =IFERROR(VLOOKUP(AO199,'2.การมอบหมายงานสอน'!$AI$5:$AJ$24,2,FALSE),0) -> 0
A200: ='1.ข้อมูลส่วนบุคคล'!$F$5 -> 1234567891234 | B200: =IF(AF200<0,"",IF(DATEDIF(AB200,AD200,"y")+(DATEDIF(AB200,AD200,"ym")/10)<=1,1,IF(DATEDIF(AB200,AD200,"y")+(DATEDIF(AB200,AD200,"ym")/10)<=2,2,IF(DATEDIF(AB200,AD200,"y")+(DATEDIF(AB200,AD200,"ym")/10)<=3,3,IF(DATEDIF(AB200,AD200,"y")+(DATEDIF(AB200,AD200,"ym")/10)<=4,4,IF(DATEDIF(AB200,AD200,"y")+(DATEDIF(AB200,AD200,"ym")/10)<=5,5,IF(DATEDIF(AB200,AD200,"y")+(DATEDIF(AB200,AD200,"ym")/10)<=6,6,IF(DATEDIF(AB200,AD200,"y")+(DATEDIF(AB200,AD200,"ym")/10)<=7,7,IF(DATEDIF(AB200,AD200,"y")+(DATEDIF(AB200,AD200,"ym")/10)<=8,8,IF(DATEDIF(AB200,AD200,"y")+(DATEDIF(AB200,AD200,"ym")/10)<=9,9,IF(DATEDIF(AB200,AD200,"y")+(DATEDIF(AB200,AD200,"ym")/10)<=10,10,"ไม่ถูกต้อง"))))))))))) ->  | K200: =IF('1.ข้อมูลส่วนบุคคล'!C$21="เชี่ยวชาญ",IF(H200="-","",IF(H200='1.ข้อมูลส่วนบุคคล'!F$26,"เกี่ยวข้อง","ไม่เกี่ยวข้อง")),IF('1.ข้อมูลส่วนบุคคล'!C$21="เชี่ยวชาญพิเศษ",IF(H200="-","",IF(H200='1.ข้อมูลส่วนบุคคล'!F$26,"เกี่ยวข้อง","ไม่เกี่ยวข้อง")),"")) ->  | O200: สอนตามตารางสอน | Q200: ไม่ถูกต้อง | R200: =S200 ->  | U200: 0 | V200: 0 | X200: 0 | Y200: 0 | Z200: =ROUNDDOWN(X200,0)+Y200 -> 0 | AA200: =IF(ISBLANK(E200),0,IF(ISBLANK(D200),IF(AND(C200=C199,E200=E199),0,IF(AND(C200=C199,E200=(E199+1)),0,IF(AND(C200=(C199+1),E200=1,E199>=18),0,1))),IF(AND(C200=C199,D200=D199,E200=E199),0,IF(AND(C200=C199,D200=D199,E200=(E199+1)),0,IF(AND(C200=C199,D200=(D199+1),E200=1,E199>=18),0,IF(AND(C200=(C199+1),D200=1,E200=1,E199>=18),0,1)))))) -> 0 | AB200: ='1.ข้อมูลส่วนบุคคล'!G$32 -> 2560-05-15 | AC200: =TEXT(AB200,"yyyy")&+IF(TEXT(AB200,"mm")>9,TEXT(AB200,"mm"),"0"&+TEXT(AB200,"mm"))&+IF(TEXT(AB200,"dd")>9,TEXT(AB200,"dd"),"0"&+TEXT(AB200,"dd")) -> 25600515 | AD200: 00:00:00 | AE200: =TEXT(AD200,"yyyy")&+IF(TEXT(AD200,"mm")>9,TEXT(AD200,"mm"),"0"&+TEXT(AD200,"mm"))&+IF(TEXT(AD200,"dd")>9,TEXT(AD200,"dd"),"0"&+TEXT(AD200,"dd")) -> 19000100 | AF200: =AE200-AC200 -> -6600415 | AG200: =IF(LEFT(P200,1)="5",1,0) -> 0 | AH200: 0 | AI200: 0 | AJ200: =IF(IFERROR(VLOOKUP(AO200,AQ$7:AS$26,3,FALSE),0)-IFERROR(VLOOKUP(AO200,AQ$7:AS$26,2,FALSE),0)<0,1,0) -> 0 | AK200: 0 | AL200: ไม่ถูกต้อง | AP200: =IFERROR(VLOOKUP(AO200,'2.การมอบหมายงานสอน'!$AI$5:$AJ$24,2,FALSE),0) -> 0
A201: ='1.ข้อมูลส่วนบุคคล'!$F$5 -> 1234567891234 | K201: =IF('1.ข้อมูลส่วนบุคคล'!C$21="เชี่ยวชาญ",IF(H201="-","",IF(H201='1.ข้อมูลส่วนบุคคล'!F$26,"เกี่ยวข้อง","ไม่เกี่ยวข้อง")),IF('1.ข้อมูลส่วนบุคคล'!C$21="เชี่ยวชาญพิเศษ",IF(H201="-","",IF(H201='1.ข้อมูลส่วนบุคคล'!F$26,"เกี่ยวข้อง","ไม่เกี่ยวข้อง")),"")) ->  | O201: สอนตามตารางสอน | Q201: ไม่ถูกต้อง | U201: 0 | V201: 0 | W201: =IF(LEFT(Q201,3)="ไม่","",IF(AL201=AL200,0,IF(OR(LEFT(P201,1)="1",LEFT(P201,1)="2",LEFT(P201,1)="3",LEFT(P201,1)="4",LEFT(P201,1)="5"),0,IF(SUMIFS(Z201:Z251,AL201:AL251,B201&+D201&+E201&+"ถูกต้อง",AK201:AK251,0)<AP201,1,0)))) ->  | X201: 0 | Y201: =(MOD(X201,1))*60/100 -> 0 | Z201: 0 | AA201: 0 | AB201: ='1.ข้อมูลส่วนบุคคล'!G$32 -> 2560-05-15 | AC201: 25600515 | AD201: 00:00:00 | AE201: 19000100 | AF201: -6600415 | AG201: 0 | AH201: =IF(AG201=1,IF(IF(AN201=AN200,0,AP201-IF(AND(LEFT(Q201,3)<>"ไม่",AK201=0),SUMIFS(Z201:Z251,AN201:AN251,AN201,AK201:AK251,0),0))<0,0,IF(AN201=AN200,0,AP201-IF(AND(LEFT(Q201,3)<>"ไม่",AK201=0),SUMIFS(Z201:Z251,AN201:AN251,AN201,AK201:AK251,0),0))),0) -> 0 | AI201: 0 | AJ201: 0 | AK201: 0 | AL201: ไม่ถูกต้อง | AP201: =IFERROR(VLOOKUP(AO201,'2.การมอบหมายงานสอน'!$AI$5:$AJ$24,2,FALSE),0) -> 0
... 2049 more rows

Sheet 4.งานสนับสนุนการจัดการเรียนรู้
C1: ชั่วโมงการปฏิบัติงาน (ชั่วโมงสนับสนุนการเรียนรู้)
F2: การปฏิบัติงานที่เป็นประโยชน์ต่อการส่งเสริมและพัฒนาการจัดการเรียนรู้ของสถานศึกษา รวมทั้งงานสนับสนุนการบริหารสถานศึกษา เช่น งานวิชาการ งานบุคคล งานงบประมาณ และงานบริหารทั่วไป เป็นต้น
A5: เลขบัตรประชาชน | B5: ปีที่ | C5: ปีการศึกษา/ปีงบประมาณ | D5: ภาคเรียนที่ | E5: สัปดาห์ที่ | F5: ว/ด/ป ของสัปดาห์ | H5: รายการงานสนับสนุน | I5: จำนวน | J5: การรับรองของ | K5: รหัสเอกสารสำหรับตรวจสอบ | L5: รหัสเอกสารสำหรับตรวจสอบ
F6: วันแรกของสัปดาห์ | G6: วันสุดท้ายของสัปดาห์ | I6: ชั่วโมง | J6: ผอ. สถานศึกษา | N6: คำนวณปีรายบุคคล
A7: ='1.ข้อมูลส่วนบุคคล'!$F$5 -> 1234567891234 | B7: =IF(R7<0,"",IF(DATEDIF(N7,P7,"y")+(DATEDIF(N7,P7,"ym")/10)<=1,1,IF(DATEDIF(N7,P7,"y")+(DATEDIF(N7,P7,"ym")/10)<=2,2,IF(DATEDIF(N7,P7,"y")+(DATEDIF(N7,P7,"ym")/10)<=3,3,IF(DATEDIF(N7,P7,"y")+(DATEDIF(N7,P7,"ym")/10)<=4,4,IF(DATEDIF(N7,P7,"y")+(DATEDIF(N7,P7,"ym")/10)<=5,5,IF(DATEDIF(N7,P7,"y")+(DATEDIF(N7,P7,"ym")/10)<=6,6,IF(DATEDIF(N7,P7,"y")+(DATEDIF(N7,P7,"ym")/10)<=7,7,IF(DATEDIF(N7,P7,"y")+(DATEDIF(N7,P7,"ym")/10)<=8,8,IF(DATEDIF(N7,P7,"y")+(DATEDIF(N7,P7,"ym")/10)<=9,9,IF(DATEDIF(N7,P7,"y")+(DATEDIF(N7,P7,"ym")/10)<=10,10,"ไม่ถูกต้อง"))))))))))) -> 1 | C7: ='2.การมอบหมายงานสอน'!C5 -> 2560 | D7: 1 | E7: 1 | F7: 2560-05-15 | G7: 2560-05-21 | I7: 8 | J7: ถูกต้อง | K7: =L7 -> 256011... | L7: =IF(C7<>"",C7&+D7&+E7&+"..."&+RIGHT(H7,10),"") -> 256011... | M7: =IF(LEFT(J7,3)="ไม่",0,IF(I7="","",B7)) -> 1 | N7: ='1.ข้อมูลส่วนบุคคล'!G$32 -> 2560-05-15 | O7: =TEXT(N7,"yyyy")&+IF(TEXT(N7,"mm")>9,TEXT(N7,"mm"),"0"&+TEXT(N7,"mm"))&+IF(TEXT(N7,"dd")>9,TEXT(N7,"dd"),"0"&+TEXT(N7,"dd")) -> 25600515 | P7: =F7 -> 2560-05-15 | Q7: =TEXT(P7,"yyyy")&+IF(TEXT(P7,"mm")>9,TEXT(P7,"mm"),"0"&+TEXT(P7,"mm"))&+IF(TEXT(P7,"dd")>9,TEXT(P7,"dd"),"0"&+TEXT(P7,"dd")) -> 25600515 | R7: =Q7-O7 -> 0
A8: ='1.ข้อมูลส่วนบุคคล'!$F$5 -> 1234567891234 | B8: =IF(R8<0,"",IF(DATEDIF(N8,P8,"y")+(DATEDIF(N8,P8,"ym")/10)<=1,1,IF(DATEDIF(N8,P8,"y")+(DATEDIF(N8,P8,"ym")/10)<=2,2,IF(DATEDIF(N8,P8,"y")+(DATEDIF(N8,P8,"ym")/10)<=3,3,IF(DATEDIF(N8,P8,"y")+(DATEDIF(N8,P8,"ym")/10)<=4,4,IF(DATEDIF(N8,P8,"y")+(DATEDIF(N8,P8,"ym")/10)<=5,5,IF(DATEDIF(N8,P8,"y")+(DATEDIF(N8,P8,"ym")/10)<=6,6,IF(DATEDIF(N8,P8,"y")+(DATEDIF(N8,P8,"ym")/10)<=7,7,IF(DATEDIF(N8,P8,"y")+(DATEDIF(N8,P8,"ym")/10)<=8,8,IF(DATEDIF(N8,P8,"y")+(DATEDIF(N8,P8,"ym")/10)<=9,9,IF(DATEDIF(N8,P8,"y")+(DATEDIF(N8,P8,"ym")/10)<=10,10,"ไม่ถูกต้อง"))))))))))) ->  | J8: ไม่ถูกต้อง | K8: =L8 ->  | L8: =IF(B8<>"",B8&+D8&+E8&+"..."&+RIGHT(H8,10),"") ->  | M8: =IF(LEFT(J8,3)="ไม่",0,IF(I8="","",B8)) -> 0 | N8: ='1.ข้อมูลส่วนบุคคล'!G$32 -> 2560-05-15 | O8: =TEXT(N8,"yyyy")&+IF(TEXT(N8,"mm")>9,TEXT(N8,"mm"),"0"&+TEXT(N8,"mm"))&+IF(TEXT(N8,"dd")>9,TEXT(N8,"dd"),"0"&+TEXT(N8,"dd")) -> 25600515 | P8: =F8 -> 00:00:00 | Q8: =TEXT(P8,"yyyy")&+IF(TEXT(P8,"mm")>9,TEXT(P8,"mm"),"0"&+TEXT(P8,"mm"))&+IF(TEXT(P8,"dd")>9,TEXT(P8,"dd"),"0"&+TEXT(P8,"dd")) -> 19000100 | R8: =Q8-O8 -> -6600415
A9: ='1.ข้อมูลส่วนบุคคล'!$F$5 -> 1234567891234 | J9: ไม่ถูกต้อง | M9: 0 | N9: ='1.ข้อมูลส่วนบุคคล'!G$32 -> 2560-05-15 | O9: 25600515 | P9: 00:00:00 | Q9: 19000100 | R9: -6600415
A10: ='1.ข้อมูลส่วนบุคคล'!$F$5 -> 1234567891234 | J10: ไม่ถูกต้อง | M10: 0 | N10: ='1.ข้อมูลส่วนบุคคล'!G$32 -> 2560-05-15 | O10: 25600515 | P10: 00:00:00 | Q10: 19000100 | R10: -6600415
A11: ='1.ข้อมูลส่วนบุคคล'!$F$5 -> 1234567891234 | J11: ไม่ถูกต้อง | M11: 0 | N11: ='1.ข้อมูลส่วนบุคคล'!G$32 -> 2560-05-15 | O11: 25600515 | P11: 00:00:00 | Q11: 19000100 | R11: -6600415
A12: ='1.ข้อมูลส่วนบุคคล'!$F$5 -> 1234567891234 | J12: ไม่ถูกต้อง | M12: 0 | N12: ='1.ข้อมูลส่วนบุคคล'!G$32 -> 2560-05-15 | O12: 25600515 | P12: 00:00:00 | Q12: 19000100 | R12: -6600415
A13: ='1.ข้อมูลส่วนบุคคล'!$F$5 -> 1234567891234 | J13: ไม่ถูกต้อง | M13: 0 | N13: ='1.ข้อมูลส่วนบุคคล'!G$32 -> 2560-05-15 | O13: 25600515 | P13: 00:00:00 | Q13: 19000100 | R13: -6600415
A14: ='1.ข้อมูลส่วนบุคคล'!$F$5 -> 1234567891234 | J14: ไม่ถูกต้อง | M14: 0 | N14: ='1.ข้อมูลส่วนบุคคล'!G$32 -> 2560-05-15 | O14: 25600515 | P14: 00:00:00 | Q14: 19000100 | R14: -6600415
A15: ='1.ข้อมูลส่วนบุคคล'!$F$5 -> 1234567891234 | J15: ไม่ถูกต้อง | M15: 0 | N15: ='1.ข้อมูลส่วนบุคคล'!G$32 -> 2560-05-15 | O15: 25600515 | P15: 00:00:00 | Q15: 19000100 | R15: -6600415
A16: ='1.ข้อมูลส่วนบุคคล'!$F$5 -> 1234567891234 | J16: ไม่ถูกต้อง | M16: 0 | N16: ='1.ข้อมูลส่วนบุคคล'!G$32 -> 2560-05-15 | O16: 25600515 | P16: 00:00:00 | Q16: 19000100 | R16: -6600415
A17: ='1.ข้อมูลส่วนบุคคล'!$F$5 -> 1234567891234 | J17: ไม่ถูกต้อง | M17: 0 | N17: ='1.ข้อมูลส่วนบุคคล'!G$32 -> 2560-05-15 | O17: 25600515 | P17: 00:00:00 | Q17: 19000100 | R17: -6600415
A18: ='1.ข้อมูลส่วนบุคคล'!$F$5 -> 1234567891234 | J18: ไม่ถูกต้อง | M18: 0 | N18: ='1.ข้อมูลส่วนบุคคล'!G$32 -> 2560-05-15 | O18: 25600515 | P18: 00:00:00 | Q18: 19000100 | R18: -6600415
A19: ='1.ข้อมูลส่วนบุคคล'!$F$5 -> 1234567891234 | J19: ไม่ถูกต้อง | M19: 0 | N19: ='1.ข้อมูลส่วนบุคคล'!G$32 -> 2560-05-15 | O19: 25600515 | P19: 00:00:00 | Q19: 19000100 | R19: -6600415
A20: ='1.ข้อมูลส่วนบุคคล'!$F$5 -> 1234567891234 | J20: ไม่ถูกต้อง | M20: 0 | N20: ='1.ข้อมูลส่วนบุคคล'!G$32 -> 2560-05-15 | O20: 25600515 | P20: 00:00:00 | Q20: 19000100 | R20: -6600415
A21: ='1.ข้อมูลส่วนบุคคล'!$F$5 -> 1234567891234 | J21: ไม่ถูกต้อง | M21: 0 | N21: ='1.ข้อมูลส่วนบุคคล'!G$32 -> 2560-05-15 | O21: 25600515 | P21: 00:00:00 | Q21: 19000100 | R21: -6600415
A22: ='1.ข้อมูลส่วนบุคคล'!$F$5 -> 1234567891234 | J22: ไม่ถูกต้อง | M22: 0 | N22: ='1.ข้อมูลส่วนบุคคล'!G$32 -> 2560-05-15 | O22: 25600515 | P22: 00:00:00 | Q22: 19000100 | R22: -6600415
A23: ='1.ข้อมูลส่วนบุคคล'!$F$5 -> 1234567891234 | J23: ไม่ถูกต้อง | M23: 0 | N23: ='1.ข้อมูลส่วนบุคคล'!G$32 -> 2560-05-15 | O23: 25600515 | P23: 00:00:00 | Q23: 19000100 | R23: -6600415
A24: ='1.ข้อมูลส่วนบุคคล'!$F$5 -> 1234567891234 | J24: ไม่ถูกต้อง | M24: 0 | N24: ='1.ข้อมูลส่วนบุคคล'!G$32 -> 2560-05-15 | O24: 25600515 | P24: 00:00:00 | Q24: 19000100 | R24: -6600415
A25: ='1.ข้อมูลส่วนบุคคล'!$F$5 -> 1234567891234 | J25: ไม่ถูกต้อง | M25: 0 | N25: ='1.ข้อมูลส่วนบุคคล'!G$32 -> 2560-05-15 | O25: 25600515 | P25: 00:00:00 | Q25: 19000100 | R25: -6600415
A26: ='1.ข้อมูลส่วนบุคคล'!$F$5 -> 1234567891234 | J26: ไม่ถูกต้อง | M26: 0 | N26: ='1.ข้อมูลส่วนบุคคล'!G$32 -> 2560-05-15 | O26: 25600515 | P26: 00:00:00 | Q26: 19000100 | R26: -6600415
A27: ='1.ข้อมูลส่วนบุคคล'!$F$5 -> 1234567891234 | J27: ไม่ถูกต้อง | M27: 0 | N27: ='1.ข้อมูลส่วนบุคคล'!G$32 -> 2560-05-15 | O27: 25600515 | P27: 00:00:00 | Q27: 19000100 | R27: -6600415
A28: ='1.ข้อมูลส่วนบุคคล'!$F$5 -> 1234567891234 | J28: ไม่ถูกต้อง | M28: 0 | N28: ='1.ข้อมูลส่วนบุคคล'!G$32 -> 2560-05-15 | O28: 25600515 | P28: 00:00:00 | Q28: 19000100 | R28: -6600415
A29: ='1.ข้อมูลส่วนบุคคล'!$F$5 -> 1234567891234 | J29: ไม่ถูกต้อง | M29: 0 | N29: ='1.ข้อมูลส่วนบุคคล'!G$32 -> 2560-05-15 | O29: 25600515 | P29: 00:00:00 | Q29: 19000100 | R29: -6600415
A30: ='1.ข้อมูลส่วนบุคคล'!$F$5 -> 1234567891234 | J30: ไม่ถูกต้อง | M30: 0 | N30: ='1.ข้อมูลส่วนบุคคล'!G$32 -> 2560-05-15 | O30: 25600515 | P30: 00:00:00 | Q30: 19000100 | R30: -6600415
A31: ='1.ข้อมูลส่วนบุคคล'!$F$5 -> 1234567891234 | J31: ไม่ถูกต้อง | M31: 0 | N31: ='1.ข้อมูลส่วนบุคคล'!G$32 -> 2560-05-15 | O31: 25600515 | P31: 00:00:00 | Q31: 19000100 | R31: -6600415
A32: ='1.ข้อมูลส่วนบุคคล'!$F$5 -> 1234567891234 | J32: ไม่ถูกต้อง | M32: 0 | N32: ='1.ข้อมูลส่วนบุคคล'!G$32 -> 2560-05-15 | O32: 25600515 | P32: 00:00:00 | Q32: 19000100 | R32: -6600415
A33: ='1.ข้อมูลส่วนบุคคล'!$F$5 -> 1234567891234 | J33: ไม่ถูกต้อง | M33: 0 | N33: ='1.ข้อมูลส่วนบุคคล'!G$32 -> 2560-05-15 | O33: 25600515 | P33: 00:00:00 | Q33: 19000100 | R33: -6600415
A34: ='1.ข้อมูลส่วนบุคคล'!$F$5 -> 1234567891234 | J34: ไม่ถูกต้อง | M34: 0 | N34: ='1.ข้อมูลส่วนบุคคล'!G$32 -> 2560-05-15 | O34: 25600515 | P34: 00:00:00 | Q34: 19000100 | R34: -6600415
A35: ='1.ข้อมูลส่วนบุคคล'!$F$5 -> 1234567891234 | J35: ไม่ถูกต้อง | M35: 0 | N35: ='1.ข้อมูลส่วนบุคคล'!G$32 -> 2560-05-15 | O35: 25600515 | P35: 00:00:00 | Q35: 19000100 | R35: -6600415
A36: ='1.ข้อมูลส่วนบุคคล'!$F$5 -> 1234567891234 | J36: ไม่ถูกต้อง | M36: 0 | N36: ='1.ข้อมูลส่วนบุคคล'!G$32 -> 2560-05-15 | O36: 25600515 | P36: 00:00:00 | Q36: 19000100 | R36: -6600415
A37: ='1.ข้อมูลส่วนบุคคล'!$F$5 -> 1234567891234 | J37: ไม่ถูกต้อง | M37: 0 | N37: ='1.ข้อมูลส่วนบุคคล'!G$32 -> 2560-05-15 | O37: 25600515 | P37: 00:00:00 | Q37: 19000100 | R37: -6600415
A38: ='1.ข้อมูลส่วนบุคคล'!$F$5 -> 1234567891234 | J38: ไม่ถูกต้อง | M38: 0 | N38: ='1.ข้อมูลส่วนบุคคล'!G$32 -> 2560-05-15 | O38: 25600515 | P38: 00:00:00 | Q38: 19000100 | R38: -6600415
A39: ='1.ข้อมูลส่วนบุคคล'!$F$5 -> 1234567891234 | J39: ไม่ถูกต้อง | M39: 0 | N39: ='1.ข้อมูลส่วนบุคคล'!G$32 -> 2560-05-15 | O39: 25600515 | P39: 00:00:00 | Q39: 19000100 | R39: -6600415
A40: ='1.ข้อมูลส่วนบุคคล'!$F$5 -> 1234567891234 | J40: ไม่ถูกต้อง | M40: 0 | N40: ='1.ข้อมูลส่วนบุคคล'!G$32 -> 2560-05-15 | O40: 25600515 | P40: 00:00:00 | Q40: 19000100 | R40: -6600415
A41: ='1.ข้อมูลส่วนบุคคล'!$F$5 -> 1234567891234 | J41: ไม่ถูกต้อง | M41: 0 | N41: ='1.ข้อมูลส่วนบุคคล'!G$32 -> 2560-05-15 | O41: 25600515 | P41: 00:00:00 | Q41: 19000100 | R41: -6600415
A42: ='1.ข้อมูลส่วนบุคคล'!$F$5 -> 1234567891234 | J42: ไม่ถูกต้อง | M42: 0 | N42: ='1.ข้อมูลส่วนบุคคล'!G$32 -> 2560-05-15 | O42: 25600515 | P42: 00:00:00 | Q42: 19000100 | R42: -6600415
A43: ='1.ข้อมูลส่วนบุคคล'!$F$5 -> 1234567891234 | J43: ไม่ถูกต้อง | M43: 0 | N43: ='1.ข้อมูลส่วนบุคคล'!G$32 -> 2560-05-15 | O43: 25600515 | P43: 00:00:00 | Q43: 19000100 | R43: -6600415
A44: ='1.ข้อมูลส่วนบุคคล'!$F$5 -> 1234567891234 | J44: ไม่ถูกต้อง | M44: 0 | N44: ='1.ข้อมูลส่วนบุคคล'!G$32 -> 2560-05-15 | O44: 25600515 | P44: 00:00:00 | Q44: 19000100 | R44: -6600415
A45: ='1.ข้อมูลส่วนบุคคล'!$F$5 -> 1234567891234 | J45: ไม่ถูกต้อง | M45: 0 | N45: ='1.ข้อมูลส่วนบุคคล'!G$32 -> 2560-05-15 | O45: 25600515 | P45: 00:00:00 | Q45: 19000100 | R45: -6600415
A46: ='1.ข้อมูลส่วนบุคคล'!$F$5 -> 1234567891234 | J46: ไม่ถูกต้อง | M46: 0 | N46: ='1.ข้อมูลส่วนบุคคล'!G$32 -> 2560-05-15 | O46: 25600515 | P46: 00:00:00 | Q46: 19000100 | R46: -6600415
A47: ='1.ข้อมูลส่วนบุคคล'!$F$5 -> 1234567891234 | J47: ไม่ถูกต้อง | M47: 0 | N47: ='1.ข้อมูลส่วนบุคคล'!G$32 -> 2560-05-15 | O47: 25600515 | P47: 00:00:00 | Q47: 19000100 | R47: -6600415
A48: ='1.ข้อมูลส่วนบุคคล'!$F$5 -> 1234567891234 | J48: ไม่ถูกต้อง | M48: 0 | N48: ='1.ข้อมูลส่วนบุคคล'!G$32 -> 2560-05-15 | O48: 25600515 | P48: 00:00:00 | Q48: 19000100 | R48: -6600415
A49: ='1.ข้อมูลส่วนบุคคล'!$F$5 -> 1234567891234 | J49: ไม่ถูกต้อง | M49: 0 | N49: ='1.ข้อมูลส่วนบุคคล'!G$32 -> 2560-05-15 | O49: 25600515 | P49: 00:00:00 | Q49: 19000100 | R49: -6600415
A50: ='1.ข้อมูลส่วนบุคคล'!$F$5 -> 1234567891234 | J50: ไม่ถูกต้อง | M50: 0 | N50: ='1.ข้อมูลส่วนบุคคล'!G$32 -> 2560-05-15 | O50: 25600515 | P50: 00:00:00 | Q50: 19000100 | R50: -6600415
A51: ='1.ข้อมูลส่วนบุคคล'!$F$5 -> 1234567891234 | J51: ไม่ถูกต้อง | M51: 0 | N51: ='1.ข้อมูลส่วนบุคคล'!G$32 -> 2560-05-15 | O51: 25600515 | P51: 00:00:00 | Q51: 19000100 | R51: -6600415
A52: ='1.ข้อมูลส่วนบุคคล'!$F$5 -> 1234567891234 | J52: ไม่ถูกต้อง | M52: 0 | N52: ='1.ข้อมูลส่วนบุคคล'!G$32 -> 2560-05-15 | O52: 25600515 | P52: 00:00:00 | Q52: 19000100 | R52: -6600415
A53: ='1.ข้อมูลส่วนบุคคล'!$F$5 -> 1234567891234 | J53: ไม่ถูกต้อง | M53: 0 | N53: ='1.ข้อมูลส่วนบุคคล'!G$32 -> 2560-05-15 | O53: 25600515 | P53: 00:00:00 | Q53: 19000100 | R53: -6600415
A54: ='1.ข้อมูลส่วนบุคคล'!$F$5 -> 1234567891234 | J54: ไม่ถูกต้อง | M54: 0 | N54: ='1.ข้อมูลส่วนบุคคล'!G$32 -> 2560-05-15 | O54: 25600515 | P54: 00:00:00 | Q54: 19000100 | R54: -6600415
A55: ='1.ข้อมูลส่วนบุคคล'!$F$5 -> 1234567891234 | J55: ไม่ถูกต้อง | M55: 0 | N55: ='1.ข้อมูลส่วนบุคคล'!G$32 -> 2560-05-15 | O55: 25600515 | P55: 00:00:00 | Q55: 19000100 | R55: -6600415
A56: ='1.ข้อมูลส่วนบุคคล'!$F$5 -> 1234567891234 | J56: ไม่ถูกต้อง | M56: 0 | N56: ='1.ข้อมูลส่วนบุคคล'!G$32 -> 2560-05-15 | O56: 25600515 | P56: 00:00:00 | Q56: 19000100 | R56: -6600415
A57: ='1.ข้อมูลส่วนบุคคล'!$F$5 -> 1234567891234 | J57: ไม่ถูกต้อง | M57: 0 | N57: ='1.ข้อมูลส่วนบุคคล'!G$32 -> 2560-05-15 | O57: 25600515 | P57: 00:00:00 | Q57: 19000100 | R57: -6600415
A58: ='1.ข้อมูลส่วนบุคคล'!$F$5 -> 1234567891234 | J58: ไม่ถูกต้อง | M58: 0 | N58: ='1.ข้อมูลส่วนบุคคล'!G$32 -> 2560-05-15 | O58: 25600515 | P58: 00:00:00 | Q58: 19000100 | R58: -6600415
A59: ='1.ข้อมูลส่วนบุคคล'!$F$5 -> 1234567891234 | J59: ไม่ถูกต้อง | M59: 0 | N59: ='1.ข้อมูลส่วนบุคคล'!G$32 -> 2560-05-15 | O59: 25600515 | P59: 00:00:00 | Q59: 19000100 | R59: -6600415
A60: ='1.ข้อมูลส่วนบุคคล'!$F$5 -> 1234567891234 | J60: ไม่ถูกต้อง | M60: 0 | N60: ='1.ข้อมูลส่วนบุคคล'!G$32 -> 2560-05-15 | O60: 25600515 | P60: 00:00:00 | Q60: 19000100 | R60: -6600415
A61: ='1.ข้อมูลส่วนบุคคล'!$F$5 -> 1234567891234 | J61: ไม่ถูกต้อง | M61: 0 | N61: ='1.ข้อมูลส่วนบุคคล'!G$32 -> 2560-05-15 | O61: 25600515 | P61: 00:00:00 | Q61: 19000100 | R61: -6600415
A62: ='1.ข้อมูลส่วนบุคคล'!$F$5 -> 1234567891234 | J62: ไม่ถูกต้อง | M62: 0 | N62: ='1.ข้อมูลส่วนบุคคล'!G$32 -> 2560-05-15 | O62: 25600515 | P62: 00:00:00 | Q62: 19000100 | R62: -6600415
A63: ='1.ข้อมูลส่วนบุคคล'!$F$5 -> 1234567891234 | J63: ไม่ถูกต้อง | M63: 0 | N63: ='1.ข้อมูลส่วนบุคคล'!G$32 -> 2560-05-15 | O63: 25600515 | P63: 00:00:00 | Q63: 19000100 | R63: -6600415
A64: ='1.ข้อมูลส่วนบุคคล'!$F$5 -> 1234567891234 | J64: ไม่ถูกต้อง | M64: 0 | N64: ='1.ข้อมูลส่วนบุคคล'!G$32 -> 2560-05-15 | O64: 25600515 | P64: 00:00:00 | Q64: 19000100 | R64: -6600415
A65: ='1.ข้อมูลส่วนบุคคล'!$F$5 -> 1234567891234 | J65: ไม่ถูกต้อง | M65: 0 | N65: ='1.ข้อมูลส่วนบุคคล'!G$32 -> 2560-05-15 | O65: 25600515 | P65: 00:00:00 | Q65: 19000100 | R65: -6600415
A66: ='1.ข้อมูลส่วนบุคคล'!$F$5 -> 1234567891234 | J66: ไม่ถูกต้อง | M66: 0 | N66: ='1.ข้อมูลส่วนบุคคล'!G$32 -> 2560-05-15 | O66: 25600515 | P66: 00:00:00 | Q66: 19000100 | R66: -6600415
A67: ='1.ข้อมูลส่วนบุคคล'!$F$5 -> 1234567891234 | J67: ไม่ถูกต้อง | M67: 0 | N67: ='1.ข้อมูลส่วนบุคคล'!G$32 -> 2560-05-15 | O67: 25600515 | P67: 00:00:00 | Q67: 19000100 | R67: -6600415
A68: ='1.ข้อมูลส่วนบุคคล'!$F$5 -> 1234567891234 | J68: ไม่ถูกต้อง | M68: 0 | N68: ='1.ข้อมูลส่วนบุคคล'!G$32 -> 2560-05-15 | O68: 25600515 | P68: 00:00:00 | Q68: 19000100 | R68: -6600415
A69: ='1.ข้อมูลส่วนบุคคล'!$F$5 -> 1234567891234 | J69: ไม่ถูกต้อง | M69: 0 | N69: ='1.ข้อมูลส่วนบุคคล'!G$32 -> 2560-05-15 | O69: 25600515 | P69: 00:00:00 | Q69: 19000100 | R69: -6600415
A70: ='1.ข้อมูลส่วนบุคคล'!$F$5 -> 1234567891234 | J70: ไม่ถูกต้อง | M70: 0 | N70: ='1.ข้อมูลส่วนบุคคล'!G$32 -> 2560-05-15 | O70: 25600515 | P70: 00:00:00 | Q70: 19000100 | R70: -6600415
A71: ='1.ข้อมูลส่วนบุคคล'!$F$5 -> 1234567891234 | J71: ไม่ถูกต้อง | M71: =IF(LEFT(J71,3)="ไม่",0,IF(I71="","",B71)) -> 0 | N71: ='1.ข้อมูลส่วนบุคคล'!G$32 -> 2560-05-15 | O71: 25600515 | P71: 00:00:00 | Q71: 19000100 | R71: -6600415
A72: ='1.ข้อมูลส่วนบุคคล'!$F$5 -> 1234567891234 | B72: =IF(R72<0,"",IF(DATEDIF(N72,P72,"y")+(DATEDIF(N72,P72,"ym")/10)<=1,1,IF(DATEDIF(N72,P72,"y")+(DATEDIF(N72,P72,"ym")/10)<=2,2,IF(DATEDIF(N72,P72,"y")+(DATEDIF(N72,P72,"ym")/10)<=3,3,IF(DATEDIF(N72,P72,"y")+(DATEDIF(N72,P72,"ym")/10)<=4,4,IF(DATEDIF(N72,P72,"y")+(DATEDIF(N72,P72,"ym")/10)<=5,5,IF(DATEDIF(N72,P72,"y")+(DATEDIF(N72,P72,"ym")/10)<=6,6,IF(DATEDIF(N72,P72,"y")+(DATEDIF(N72,P72,"ym")/10)<=7,7,IF(DATEDIF(N72,P72,"y")+(DATEDIF(N72,P72,"ym")/10)<=8,8,IF(DATEDIF(N72,P72,"y")+(DATEDIF(N72,P72,"ym")/10)<=9,9,IF(DATEDIF(N72,P72,"y")+(DATEDIF(N72,P72,"ym")/10)<=10,10,"ไม่ถูกต้อง"))))))))))) ->  | J72: ไม่ถูกต้อง | K72: =L72 ->  | L72: =IF(B72<>"",B72&+D72&+E72&+"..."&+RIGHT(H72,10),"") ->  | M72: 0 | N72: ='1.ข้อมูลส่วนบุคคล'!G$32 -> 2560-05-15 | O72: =TEXT(N72,"yyyy")&+IF(TEXT(N72,"mm")>9,TEXT(N72,"mm"),"0"&+TEXT(N72,"mm"))&+IF(TEXT(N72,"dd")>9,TEXT(N72,"dd"),"0"&+TEXT(N72,"dd")) -> 25600515 | P72: =F72 -> 00:00:00 | Q72: =TEXT(P72,"yyyy")&+IF(TEXT(P72,"mm")>9,TEXT(P72,"mm"),"0"&+TEXT(P72,"mm"))&+IF(TEXT(P72,"dd")>9,TEXT(P72,"dd"),"0"&+TEXT(P72,"dd")) -> 19000100 | R72: =Q72-O72 -> -6600415
A73: ='1.ข้อมูลส่วนบุคคล'!$F$5 -> 1234567891234 | J73: ไม่ถูกต้อง | M73: 0 | N73: ='1.ข้อมูลส่วนบุคคล'!G$32 -> 2560-05-15 | O73: 25600515 | P73: 00:00:00 | Q73: 19000100 | R73: -6600415
A74: ='1.ข้อมูลส่วนบุคคล'!$F$5 -> 1234567891234 | J74: ไม่ถูกต้อง | M74: 0 | N74: ='1.ข้อมูลส่วนบุคคล'!G$32 -> 2560-05-15 | O74: 25600515 | P74: 00:00:00 | Q74: 19000100 | R74: -6600415
A75: ='1.ข้อมูลส่วนบุคคล'!$F$5 -> 1234567891234 | J75: ไม่ถูกต้อง | M75: 0 | N75: ='1.ข้อมูลส่วนบุคคล'!G$32 -> 2560-05-15 | O75: 25600515 | P75: 00:00:00 | Q75: 19000100 | R75: -6600415
A76: ='1.ข้อมูลส่วนบุคคล'!$F$5 -> 1234567891234 | J76: ไม่ถูกต้อง | M76: 0 | N76: ='1.ข้อมูลส่วนบุคคล'!G$32 -> 2560-05-15 | O76: 25600515 | P76: 00:00:00 | Q76: 19000100 | R76: -6600415
A77: ='1.ข้อมูลส่วนบุคคล'!$F$5 -> 1234567891234 | J77: ไม่ถูกต้อง | M77: 0 | N77: ='1.ข้อมูลส่วนบุคคล'!G$32 -> 2560-05-15 | O77: 25600515 | P77: 00:00:00 | Q77: 19000100 | R77: -6600415
A78: ='1.ข้อมูลส่วนบุคคล'!$F$5 -> 1234567891234 | J78: ไม่ถูกต้อง | M78: 0 | N78: ='1.ข้อมูลส่วนบุคคล'!G$32 -> 2560-05-15 | O78: 25600515 | P78: 00:00:00 | Q78: 19000100 | R78: -6600415
A79: ='1.ข้อมูลส่วนบุคคล'!$F$5 -> 1234567891234 | J79: ไม่ถูกต้อง | M79: 0 | N79: ='1.ข้อมูลส่วนบุคคล'!G$32 -> 2560-05-15 | O79: 25600515 | P79: 00:00:00 | Q79: 19000100 | R79: -6600415
A80: ='1.ข้อมูลส่วนบุคคล'!$F$5 -> 1234567891234 | J80: ไม่ถูกต้อง | M80: 0 | N80: ='1.ข้อมูลส่วนบุคคล'!G$32 -> 2560-05-15 | O80: 25600515 | P80: 00:00:00 | Q80: 19000100 | R80: -6600415
A81: ='1.ข้อมูลส่วนบุคคล'!$F$5 -> 1234567891234 | J81: ไม่ถูกต้อง | M81: 0 | N81: ='1.ข้อมูลส่วนบุคคล'!G$32 -> 2560-05-15 | O81: 25600515 | P81: 00:00:00 | Q81: 19000100 | R81: -6600415
A82: ='1.ข้อมูลส่วนบุคคล'!$F$5 -> 1234567891234 | J82: ไม่ถูกต้อง | M82: 0 | N82: ='1.ข้อมูลส่วนบุคคล'!G$32 -> 2560-05-15 | O82: 25600515 | P82: 00:00:00 | Q82: 19000100 | R82: -6600415
A83: ='1.ข้อมูลส่วนบุคคล'!$F$5 -> 1234567891234 | J83: ไม่ถูกต้อง | M83: 0 | N83: ='1.ข้อมูลส่วนบุคคล'!G$32 -> 2560-05-15 | O83: 25600515 | P83: 00:00:00 | Q83: 19000100 | R83: -6600415
A84: ='1.ข้อมูลส่วนบุคคล'!$F$5 -> 1234567891234 | J84: ไม่ถูกต้อง | M84: 0 | N84: ='1.ข้อมูลส่วนบุคคล'!G$32 -> 2560-05-15 | O84: 25600515 | P84: 00:00:00 | Q84: 19000100 | R84: -6600415
A85: ='1.ข้อมูลส่วนบุคคล'!$F$5 -> 1234567891234 | J85: ไม่ถูกต้อง | M85: 0 | N85: ='1.ข้อมูลส่วนบุคคล'!G$32 -> 2560-05-15 | O85: 25600515 | P85: 00:00:00 | Q85: 19000100 | R85: -6600415
A86: ='1.ข้อมูลส่วนบุคคล'!$F$5 -> 1234567891234 | J86: ไม่ถูกต้อง | M86: 0 | N86: ='1.ข้อมูลส่วนบุคคล'!G$32 -> 2560-05-15 | O86: 25600515 | P86: 00:00:00 | Q86: 19000100 | R86: -6600415
A87: ='1.ข้อมูลส่วนบุคคล'!$F$5 -> 1234567891234 | J87: ไม่ถูกต้อง | M87: 0 | N87: ='1.ข้อมูลส่วนบุคคล'!G$32 -> 2560-05-15 | O87: 25600515 | P87: 00:00:00 | Q87: 19000100 | R87: -6600415
A88: ='1.ข้อมูลส่วนบุคคล'!$F$5 -> 1234567891234 | J88: ไม่ถูกต้อง | M88: 0 | N88: ='1.ข้อมูลส่วนบุคคล'!G$32 -> 2560-05-15 | O88: 25600515 | P88: 00:00:00 | Q88: 19000100 | R88: -6600415
A89: ='1.ข้อมูลส่วนบุคคล'!$F$5 -> 1234567891234 | J89: ไม่ถูกต้อง | M89: 0 | N89: ='1.ข้อมูลส่วนบุคคล'!G$32 -> 2560-05-15 | O89: 25600515 | P89: 00:00:00 | Q89: 19000100 | R89: -6600415
A90: ='1.ข้อมูลส่วนบุคคล'!$F$5 -> 1234567891234 | J90: ไม่ถูกต้อง | M90: 0 | N90: ='1.ข้อมูลส่วนบุคคล'!G$32 -> 2560-05-15 | O90: 25600515 | P90: 00:00:00 | Q90: 19000100 | R90: -6600415
